{"text_format":"1","workbook":"xlsx","n_sheets":6,"sheets":["Aceuil","Produits","clients","Tablefusions","Analyses","Tableau de Bord"],"not_rendered":{"charts":7,"images":33,"macros":1,"external_links":0,"defined_names":9,"comments":0,"pivot_tables":10},"unopened":[],"bounds":{"document_bytes":16777216,"sheet_cells":100000,"rows_first":2000,"rows_last":500,"rows_between":2000,"halvings":0,"cell_chars":16384,"cell_head_chars":4096},"cells_cut":0,"cells_raw":0,"read":"whole","date_system":"1900"}

{"sheet":"Aceuil","index":0,"n_rows":26,"n_cols":4,"rows_kept":26,"cut":false,"hidden":false,"merged":[[25,3,27,13]]}
[]
[]
[]
[]
[]
[]
[]
[]
[]
[]
[]
[]
[]
[]
[]
[]
[]
[]
[]
[]
[]
[]
[]
[]
[]
[null,null,null," GESTIONNAIRE COMMERCIAL"]

{"sheet":"Produits","index":1,"n_rows":56,"n_cols":9,"rows_kept":56,"cut":false,"hidden":false,"merged":[]}
[]
[]
[]
[]
[]
[null,null,null,"Index","Produits","Categories","UDM","Cout unitaire","Prix unitaire"]
[null,null,null,"P001","Crème pour les pieds","Soins du Corps","mL",1479,2304.6419330289204]
[null,null,null,"P002","Eye-liner waterproof","Maquillage","mL",1489,2285.5296327924843]
[null,null,null,"P003","Contour des yeux","Soins du Visage","mL",1416,2194.270807453418]
[null,null,null,"P004","Spray thermo-protecteur","Soins Capillaires","mL",1372,2121.5981595092026]
[null,null,null,"P005","Sérum anti-âge","Soins du Visage","mL",1372,2349.1564814814842]
[null,null,null,"P006","Déodorant naturel","Soins du Corps","mL",1440,2318.3925287356337]
[null,null,null,"P007","Mousse volume","Soins Capillaires","mL",1479,2313.7350150602456]
[null,null,null,"P008","Lotion tonique","Soins du Visage","mL",1489,2290.0193939393948]
[null,null,null,"P009","Gommage corps","Soins du Corps","g",1307,2171.2942622950832]
[null,null,null,"P010","Base de maquillage","Maquillage","mL",1479,2214.6171779141105]
[null,null,null,"P011","Eau micellaire","Soins du Visage","mL",1489,2295.3177966101698]
[null,null,null,"P012","Gel coiffant","Soins Capillaires","mL",1423,2300.5051282051286]
[null,null,null,"P013","Gel nettoyant visage","Soins du Visage","mL",1416,2198.2071542130352]
[null,null,null,"P014","Crème coiffante","Soins Capillaires","mL",1479,2409.5477124183008]
[null,null,null,"P015","Poudre libre fixante","Maquillage","g",1442,2304.6419330289204]
[null,null,null,"P016","BB crème","Soins du Visage","mL",1307,2285.5296327924843]
[null,null,null,"P017","Spray rafraîchissant","Soins du Corps","mL",1440,2194.270807453418]
[null,null,null,"P018","Rouge à lèvres mat","Maquillage","g",1372,2121.5981595092026]
[null,null,null,"P019","Shampooing fortifiant","Soins Capillaires","mL",1442,2349.1564814814842]
[null,null,null,"P020","Lotion anti-chute","Soins Capillaires","mL",1416,2318.3925287356337]
[null,null,null,"P021","Huile nourrissante","Soins du Corps","mL",1489,2313.7350150602456]
[null,null,null,"P022","Masque capillaire","Soins Capillaires","mL",1307,2290.0193939393948]
[null,null,null,"P023","Masque purifiant","Soins du Visage","g",1457,2171.2942622950832]
[null,null,null,"P024","Correcteur anti-cernes","Maquillage","mL",1419,2214.6171779141105]
[null,null,null,"P025","Cire coiffante","Soins Capillaires","g",1440,2295.3177966101698]
[null,null,null,"P026","Crème anti-rides","Soins du Visage","mL",1307,2300.5051282051286]
[null,null,null,"P027","Vernis à ongles","Maquillage","mL",1457,2198.2071542130352]
[null,null,null,"P028","Beurre corporel","Soins du Corps","g",1457,2409.5477124183008]
[null,null,null,"P029","Palette de fards","Maquillage","g",1416,2304.6419330289204]
[null,null,null,"P030","Lotion après-soleil","Soins du Corps","mL",1489,2285.5296327924843]
[null,null,null,"P031","Lait corporel","Soins du Corps","mL",1448,2194.270807453418]
[null,null,null,"P032","Fond de teint","Maquillage","mL",1307,2121.5981595092026]
[null,null,null,"P033","Gommage exfoliant","Soins du Visage","g",1456,2349.1564814814842]
[null,null,null,"P034","Blush rosé","Maquillage","g",1448,2318.3925287356337]
[null,null,null,"P035","Après-shampooing doux","Soins Capillaires","mL",1456,2313.7350150602456]
[null,null,null,"P036","Huile capillaire","Soins Capillaires","mL",1419,2290.0193939393948]
[null,null,null,"P037","Sérum réparateur","Soins Capillaires","mL",1307,2171.2942622950832]
[null,null,null,"P038","Crème raffermissante","Soins du Corps","mL",1307,2214.6171779141105]
[null,null,null,"P039","Crème pour les mains","Soins du Corps","mL",1440,2295.3177966101698]
[null,null,null,"P040","Shampoing sec","Soins Capillaires","mL",1456,2300.5051282051286]
[null,null,null,"P041","Gel douche hydratant","Soins du Corps","mL",1456,2198.2071542130352]
[null,null,null,"P042","Crème hydratante","Soins du Visage","mL",1448,2409.5477124183008]
[null,null,null,"P043","Crayon à sourcils","Maquillage","g",1440,2304.6419330289204]
[null,null,null,"P044","Spray thermo-protecteur","Soins Capillaires","mL",1423,2285.5296327924843]
[null,null,null,"P045","Palette de fards","Maquillage","g",1440,2194.270807453418]
[null,null,null,"P046","Huile démaquillante","Soins du Visage","mL",1438,2121.5981595092026]
[null,null,null,"P047","Mascara volumisant","Maquillage","mL",1307,2349.1564814814842]
[null,null,null,"P048","Cire coiffante","Soins Capillaires","g",1347,2318.3925287356337]
[null,null,null,"P049","Lotion anti-chute","Soins Capillaires","mL",1448,2313.7350150602456]
[null,null,null,"P050","Poudre libre fixante","Maquillage","g",1438,2290.0193939393948]

{"sheet":"clients","index":2,"n_rows":297,"n_cols":9,"rows_kept":297,"cut":false,"hidden":false,"merged":[[1,5,2,5],[1,4,2,4]]}
[]
[null,null,null,null,"AUJOURD' HUI  :",{"$f":"TODAY()","v":"2025-06-15"}]
[]
[]
[null,null,null,"Date","Index","Quantite","Canal"," Mode de payement","Taux de reduction"]
[null,null,null,"2023-12-30","P040",18,"Grossiste","Carte",0]
[null,null,null,"2023-12-31","P034",17,"Détail","Mobile Money",0]
[null,null,null,"2024-01-01","P003",12,"Détail","Mobile Money",0]
[null,null,null,"2024-01-02","P010",20,"Détail","Espèces",0]
[null,null,null,"2024-01-03","P038",7,"Détail","Espèces",0]
[null,null,null,"2024-01-03","P011",10,"Grossiste","Espèces",0]
[null,null,null,"2024-01-05","P040",17,"Grossiste","Carte",0]
[null,null,null,"2024-01-06","P034",17,"Détail","Mobile Money",0]
[null,null,null,"2024-01-07","P004",9,"Grossiste","Carte",0]
[null,null,null,"2024-01-08","P040",3,"Grossiste","Mobile Money",0]
[null,null,null,"2024-01-09","P006",19,"Détail","Espèces",0]
[null,null,null,"2024-01-10","P041",9,"Grossiste","Carte",0]
[null,null,null,"2024-01-11","P045",15,"Grossiste","Carte",0]
[null,null,null,"2024-01-12","P040",4,"Détail","Espèces",0]
[null,null,null,"2024-01-13","P029",6,"Détail","Carte",0]
[null,null,null,"2024-01-14","P004",2,"Détail","Carte",0]
[null,null,null,"2024-01-15","P011",15,"Grossiste","Mobile Money",0]
[null,null,null,"2024-01-16","P038",5,"Détail","Carte",0]
[null,null,null,"2024-01-17","P043",19,"Grossiste","Mobile Money",0]
[null,null,null,"2024-01-18","P017",13,"Grossiste","Mobile Money",0]
[null,null,null,"2024-01-19","P006",10,"Grossiste","Espèces",0]
[null,null,null,"2024-01-19","P032",19,"Détail","Espèces",0]
[null,null,null,"2024-01-20","P033",12,"Détail","Carte",0]
[null,null,null,"2024-01-20","P016",8,"Grossiste","Espèces",0]
[null,null,null,"2024-01-21","P039",18,"Détail","Carte",0]
[null,null,null,"2024-01-21","P032",4,"Grossiste","Espèces",0]
[null,null,null,"2024-01-21","P005",6,"Grossiste","Mobile Money",0]
[null,null,null,"2024-01-21","P033",5,"Détail","Mobile Money",0]
[null,null,null,"2024-01-22","P045",20,"Grossiste","Espèces",0]
[null,null,null,"2024-01-22","P048",3,"Grossiste","Espèces",0]
[null,null,null,"2024-01-23","P050",7,"Grossiste","Carte",0]
[null,null,null,"2024-01-24","P018",5,"Détail","Mobile Money",0]
[null,null,null,"2024-01-24","P007",8,"Détail","Mobile Money",0]
[null,null,null,"2024-01-25","P022",20,"Détail","Espèces",0]
[null,null,null,"2024-01-25","P021",5,"Détail","Espèces",0]
[null,null,null,"2024-01-25","P044",7,"Grossiste","Espèces",0]
[null,null,null,"2024-01-26","P018",14,"Grossiste","Carte",0]
[null,null,null,"2024-01-26","P018",4,"Détail","Mobile Money",0]
[null,null,null,"2024-01-27","P025",2,"Grossiste","Carte",0]
[null,null,null,"2024-01-27","P021",8,"Grossiste","Mobile Money",0]
[null,null,null,"2024-01-27","P021",3,"Détail","Espèces",0]
[null,null,null,"2024-01-28","P008",4,"Grossiste","Carte",0]
[null,null,null,"2024-01-28","P011",11,"Grossiste","Carte",0]
[null,null,null,"2024-01-29","P041",13,"Détail","Espèces",0]
[null,null,null,"2024-01-29","P039",5,"Détail","Carte",0]
[null,null,null,"2024-01-29","P014",11,"Détail","Carte",0]
[null,null,null,"2024-01-29","P018",9,"Grossiste","Mobile Money",0]
[null,null,null,"2024-01-30","P023",11,"Détail","Carte",0]
[null,null,null,"2024-01-30","P050",4,"Grossiste","Mobile Money",0]
[null,null,null,"2024-01-30","P042",10,"Grossiste","Mobile Money",0]
[null,null,null,"2024-01-31","P002",9,"Grossiste","Espèces",0]
[null,null,null,"2024-01-31","P001",18,"Détail","Espèces",0]
[null,null,null,"2024-02-01","P040",17,"Détail","Carte",0]
[null,null,null,"2024-02-02","P034",17,"Grossiste","Espèces",0]
[null,null,null,"2024-02-03","P004",9,"Détail","Carte",0]
[null,null,null,"2024-02-04","P040",3,"Grossiste","Espèces",0]
[null,null,null,"2024-02-05","P006",19,"Grossiste","Mobile Money",0]
[null,null,null,"2024-02-06","P041",9,"Détail","Mobile Money",0]
[null,null,null,"2024-02-07","P045",15,"Grossiste","Espèces",0]
[null,null,null,"2024-02-08","P040",4,"Grossiste","Espèces",0]
[null,null,null,"2024-02-09","P029",6,"Grossiste","Carte",0]
[null,null,null,"2024-02-10","P004",2,"Détail","Mobile Money",0]
[null,null,null,"2024-02-11","P011",15,"Détail","Mobile Money",0]
[null,null,null,"2024-02-12","P038",5,"Détail","Espèces",0]
[null,null,null,"2024-02-13","P043",19,"Détail","Espèces",0]
[null,null,null,"2024-02-14","P017",13,"Grossiste","Espèces",0]
[null,null,null,"2024-02-15","P006",10,"Grossiste","Carte",0]
[null,null,null,"2024-02-16","P032",19,"Détail","Mobile Money",0]
[null,null,null,"2024-02-17","P033",12,"Grossiste","Carte",0]
[null,null,null,"2024-02-18","P016",8,"Grossiste","Mobile Money",0]
[null,null,null,"2024-02-19","P039",18,"Détail","Espèces",0]
[null,null,null,"2024-02-20","P032",4,"Grossiste","Carte",0]
[null,null,null,"2024-02-21","P005",6,"Grossiste","Carte",0]
[null,null,null,"2024-02-22","P033",5,"Détail","Espèces",0]
[null,null,null,"2024-02-23","P045",20,"Détail","Carte",0]
[null,null,null,"2024-02-24","P048",3,"Détail","Carte",0]
[null,null,null,"2024-02-25","P050",7,"Grossiste","Mobile Money",0]
[null,null,null,"2024-02-26","P018",5,"Détail","Carte",0]
[null,null,null,"2024-02-27","P007",8,"Grossiste","Mobile Money",0]
[null,null,null,"2024-02-28","P022",20,"Grossiste","Mobile Money",0]
[null,null,null,"2024-03-01","P021",5,"Grossiste","Espèces",0]
[null,null,null,"2024-03-02","P044",7,"Détail","Espèces",0]
[null,null,null,"2024-03-03","P018",14,"Détail","Carte",0]
[null,null,null,"2024-03-04","P018",4,"Grossiste","Espèces",0]
[null,null,null,"2024-03-05","P025",2,"Détail","Carte",0]
[null,null,null,"2024-03-06","P021",8,"Grossiste","Espèces",0]
[null,null,null,"2024-03-07","P021",3,"Grossiste","Mobile Money",0]
[null,null,null,"2024-03-08","P008",4,"Détail","Mobile Money",0]
[null,null,null,"2024-03-09","P011",11,"Grossiste","Espèces",0]
[null,null,null,"2024-03-10","P041",13,"Grossiste","Espèces",0]
[null,null,null,"2024-03-11","P039",5,"Grossiste","Carte",0]
[null,null,null,"2024-03-12","P014",11,"Détail","Mobile Money",0]
[null,null,null,"2024-03-13","P018",9,"Détail","Mobile Money",0]
[null,null,null,"2024-03-14","P023",11,"Détail","Espèces",0]
[null,null,null,"2024-03-15","P050",4,"Détail","Espèces",0]
[null,null,null,"2024-03-16","P042",10,"Grossiste","Espèces",0]
[null,null,null,"2024-03-17","P002",9,"Grossiste","Carte",0]
[null,null,null,"2024-03-18","P001",18,"Détail","Mobile Money",0]
[null,null,null,"2024-03-19","P003",12,"Grossiste","Carte",0]
[null,null,null,"2024-03-20","P010",20,"Grossiste","Mobile Money",0]
[null,null,null,"2024-03-21","P038",7,"Détail","Espèces",0]
[null,null,null,"2024-03-22","P011",10,"Grossiste","Carte",0]
[null,null,null,"2024-03-23","P040",17,"Grossiste","Carte",0]
[null,null,null,"2024-03-24","P034",17,"Détail","Espèces",0]
[null,null,null,"2024-03-25","P004",9,"Détail","Carte",0]
[null,null,null,"2024-03-26","P040",3,"Détail","Carte",0]
[null,null,null,"2024-03-27","P006",19,"Grossiste","Mobile Money",0]
[null,null,null,"2024-03-28","P041",9,"Détail","Carte",0]
[null,null,null,"2024-03-29","P045",15,"Grossiste","Mobile Money",0]
[null,null,null,"2024-03-30","P040",4,"Grossiste","Mobile Money",0]
[null,null,null,"2024-03-31","P029",6,"Grossiste","Espèces",0]
[null,null,null,"2024-04-01","P004",2,"Détail","Espèces",0]
[null,null,null,"2024-04-02","P011",15,"Détail","Carte",0]
[null,null,null,"2024-04-03","P038",5,"Grossiste","Espèces",0]
[null,null,null,"2024-04-04","P043",19,"Détail","Carte",0]
[null,null,null,"2024-04-05","P017",13,"Grossiste","Espèces",0]
[null,null,null,"2024-04-06","P006",10,"Grossiste","Mobile Money",0]
[null,null,null,"2024-04-07","P032",19,"Détail","Mobile Money",0]
[null,null,null,"2024-04-08","P033",12,"Grossiste","Espèces",0]
[null,null,null,"2024-04-09","P016",8,"Grossiste","Espèces",0]
[null,null,null,"2024-04-10","P039",18,"Grossiste","Carte",0]
[null,null,null,"2024-04-11","P032",4,"Détail","Mobile Money",0]
[null,null,null,"2024-04-12","P005",6,"Détail","Mobile Money",0]
[null,null,null,"2024-04-13","P033",5,"Détail","Espèces",0]
[null,null,null,"2024-04-14","P045",20,"Détail","Espèces",0]
[null,null,null,"2024-04-15","P048",3,"Grossiste","Espèces",0]
[null,null,null,"2024-04-16","P050",7,"Grossiste","Carte",0]
[null,null,null,"2024-04-17","P018",5,"Détail","Mobile Money",0]
[null,null,null,"2024-04-18","P007",8,"Grossiste","Carte",0]
[null,null,null,"2024-04-19","P022",20,"Grossiste","Mobile Money",0]
[null,null,null,"2024-04-20","P021",5,"Détail","Espèces",0]
[null,null,null,"2024-04-21","P044",7,"Grossiste","Carte",0]
[null,null,null,"2024-04-22","P018",14,"Grossiste","Carte",0]
[null,null,null,"2024-04-23","P018",4,"Détail","Espèces",0]
[null,null,null,"2024-04-24","P025",2,"Détail","Carte",0]
[null,null,null,"2024-04-25","P021",8,"Détail","Carte",0]
[null,null,null,"2024-04-26","P021",3,"Grossiste","Mobile Money",0]
[null,null,null,"2024-04-27","P008",4,"Détail","Carte",0]
[null,null,null,"2024-04-28","P011",11,"Grossiste","Mobile Money",0]
[null,null,null,"2024-04-29","P041",13,"Grossiste","Mobile Money",0]
[null,null,null,"2024-04-30","P039",5,"Grossiste","Espèces",0]
[null,null,null,"2024-05-01","P014",11,"Détail","Espèces",0]
[null,null,null,"2024-05-02","P018",9,"Détail","Carte",0]
[null,null,null,"2024-05-03","P023",11,"Grossiste","Espèces",0]
[null,null,null,"2024-05-04","P050",4,"Détail","Carte",0]
[null,null,null,"2024-05-05","P042",10,"Grossiste","Espèces",0]
[null,null,null,"2024-05-06","P002",9,"Grossiste","Mobile Money",0]
[null,null,null,"2024-05-07","P001",18,"Détail","Mobile Money",0]
[null,null,null,"2024-05-08","P040",17,"Grossiste","Espèces",0]
[null,null,null,"2024-05-09","P034",17,"Grossiste","Espèces",0]
[null,null,null,"2024-05-10","P004",9,"Grossiste","Carte",0]
[null,null,null,"2024-05-11","P040",3,"Détail","Mobile Money",0]
[null,null,null,"2024-05-12","P006",19,"Détail","Mobile Money",0]
[null,null,null,"2024-05-13","P041",9,"Détail","Espèces",0]
[null,null,null,"2024-05-14","P045",15,"Détail","Espèces",0]
[null,null,null,"2024-05-15","P040",4,"Grossiste","Espèces",0]
[null,null,null,"2024-05-16","P029",6,"Grossiste","Carte",0]
[null,null,null,"2024-05-17","P004",2,"Détail","Mobile Money",0]
[null,null,null,"2024-05-18","P011",15,"Grossiste","Carte",0]
[null,null,null,"2024-05-19","P038",5,"Grossiste","Mobile Money",0]
[null,null,null,"2024-05-20","P043",19,"Détail","Espèces",0]
[null,null,null,"2024-05-21","P017",13,"Grossiste","Carte",0]
[null,null,null,"2024-05-22","P006",10,"Grossiste","Carte",0]
[null,null,null,"2024-05-23","P032",19,"Détail","Espèces",0]
[null,null,null,"2024-05-24","P033",12,"Détail","Carte",0]
[null,null,null,"2024-05-25","P016",8,"Détail","Carte",0]
[null,null,null,"2024-05-26","P039",18,"Grossiste","Mobile Money",0]
[null,null,null,"2024-05-27","P032",4,"Détail","Carte",0]
[null,null,null,"2024-05-28","P005",6,"Grossiste","Mobile Money",0]
[null,null,null,"2024-05-29","P033",5,"Grossiste","Mobile Money",0]
[null,null,null,"2024-05-30","P045",20,"Grossiste","Espèces",0]
[null,null,null,"2024-05-31","P048",3,"Détail","Espèces",0]
[null,null,null,"2024-06-01","P050",7,"Détail","Carte",0]
[null,null,null,"2024-06-02","P018",5,"Grossiste","Espèces",0]
[null,null,null,"2024-06-03","P007",8,"Détail","Carte",0]
[null,null,null,"2024-06-04","P022",20,"Grossiste","Espèces",0]
[null,null,null,"2024-06-05","P021",5,"Grossiste","Mobile Money",0]
[null,null,null,"2024-06-06","P044",7,"Détail","Mobile Money",0]
[null,null,null,"2024-06-07","P018",14,"Grossiste","Espèces",0]
[null,null,null,"2024-06-08","P018",4,"Grossiste","Espèces",0]
[null,null,null,"2024-06-09","P025",2,"Grossiste","Carte",0]
[null,null,null,"2024-06-10","P021",8,"Détail","Mobile Money",0]
[null,null,null,"2024-06-11","P021",3,"Détail","Mobile Money",0]
[null,null,null,"2024-06-12","P008",4,"Détail","Espèces",0]
[null,null,null,"2024-06-13","P011",11,"Détail","Espèces",0]
[null,null,null,"2024-06-14","P041",13,"Grossiste","Espèces",0]
[null,null,null,"2024-06-15","P039",5,"Grossiste","Carte",0]
[null,null,null,"2024-06-16","P014",11,"Détail","Mobile Money",0]
[null,null,null,"2024-06-17","P018",9,"Grossiste","Carte",0]
[null,null,null,"2024-06-18","P023",11,"Grossiste","Mobile Money",0]
[null,null,null,"2024-06-19","P050",4,"Détail","Espèces",0]
[null,null,null,"2024-06-20","P042",10,"Grossiste","Carte",0]
[null,null,null,"2024-06-21","P002",9,"Grossiste","Carte",0]
[null,null,null,"2024-06-22","P001",18,"Détail","Espèces",0]
[null,null,null,"2024-06-23","P021",5,"Détail","Carte",0]
[null,null,null,"2024-06-24","P044",7,"Détail","Carte",0]
[null,null,null,"2024-06-25","P018",14,"Grossiste","Mobile Money",0]
[null,null,null,"2024-06-26","P018",4,"Détail","Carte",0]
[null,null,null,"2024-06-27","P025",2,"Grossiste","Mobile Money",0]
[null,null,null,"2024-06-28","P021",8,"Grossiste","Mobile Money",0]
[null,null,null,"2024-06-29","P021",3,"Grossiste","Espèces",0]
[null,null,null,"2024-06-30","P008",4,"Détail","Espèces",0]
[null,null,null,"2024-07-01","P011",11,"Détail","Carte",0]
[null,null,null,"2024-07-02","P041",13,"Grossiste","Espèces",0]
[null,null,null,"2024-07-03","P039",5,"Détail","Carte",0]
[null,null,null,"2024-07-04","P014",11,"Grossiste","Espèces",0]
[null,null,null,"2024-07-05","P018",9,"Grossiste","Mobile Money",0]
[null,null,null,"2024-07-06","P023",11,"Détail","Mobile Money",0]
[null,null,null,"2024-07-07","P050",4,"Grossiste","Espèces",0]
[null,null,null,"2024-07-08","P042",10,"Grossiste","Espèces",0]
[null,null,null,"2024-07-09","P002",9,"Grossiste","Carte",0]
[null,null,null,"2024-07-10","P001",18,"Détail","Mobile Money",0]
[null,null,null,"2024-07-11","P003",12,"Détail","Mobile Money",0]
[null,null,null,"2024-07-12","P010",20,"Détail","Espèces",0]
[null,null,null,"2024-07-13","P038",7,"Détail","Espèces",0]
[null,null,null,"2024-07-14","P011",10,"Grossiste","Espèces",0]
[null,null,null,"2024-07-15","P040",17,"Grossiste","Carte",0]
[null,null,null,"2024-07-16","P034",17,"Détail","Mobile Money",0]
[null,null,null,"2024-07-17","P004",9,"Grossiste","Carte",0]
[null,null,null,"2024-07-18","P040",3,"Grossiste","Mobile Money",0]
[null,null,null,"2024-07-19","P006",19,"Détail","Espèces",0]
[null,null,null,"2024-07-20","P041",9,"Grossiste","Carte",0]
[null,null,null,"2024-07-21","P045",15,"Grossiste","Carte",0]
[null,null,null,"2024-07-22","P040",4,"Détail","Espèces",0]
[null,null,null,"2024-07-23","P029",6,"Détail","Carte",0]
[null,null,null,"2024-07-24","P004",2,"Détail","Carte",0]
[null,null,null,"2024-07-25","P011",15,"Grossiste","Mobile Money",0]
[null,null,null,"2024-07-26","P038",5,"Détail","Carte",0]
[null,null,null,"2024-07-27","P043",19,"Grossiste","Mobile Money",0]
[null,null,null,"2024-07-28","P017",13,"Grossiste","Mobile Money",0]
[null,null,null,"2024-07-29","P006",10,"Grossiste","Espèces",0]
[null,null,null,"2024-07-30","P032",19,"Détail","Espèces",0]
[null,null,null,"2024-07-31","P033",12,"Détail","Carte",0]
[null,null,null,"2024-08-01","P016",8,"Grossiste","Espèces",0]
[null,null,null,"2024-08-02","P039",18,"Détail","Carte",0]
[null,null,null,"2024-08-03","P032",4,"Grossiste","Espèces",0]
[null,null,null,"2024-08-04","P005",6,"Grossiste","Mobile Money",0]
[null,null,null,"2024-08-05","P033",5,"Détail","Mobile Money",0]
[null,null,null,"2024-08-06","P045",20,"Grossiste","Espèces",0]
[null,null,null,"2024-08-07","P048",3,"Grossiste","Espèces",0]
[null,null,null,"2024-08-08","P050",7,"Grossiste","Carte",0]
[null,null,null,"2024-08-09","P018",5,"Détail","Mobile Money",0]
[null,null,null,"2024-08-10","P007",8,"Détail","Mobile Money",0]
[null,null,null,"2024-08-11","P022",20,"Détail","Espèces",0]
[null,null,null,"2024-08-12","P021",5,"Détail","Espèces",0]
[null,null,null,"2024-08-13","P044",7,"Grossiste","Espèces",0]
[null,null,null,"2024-08-14","P018",14,"Grossiste","Carte",0]
[null,null,null,"2024-08-15","P018",4,"Détail","Mobile Money",0]
[null,null,null,"2024-08-16","P025",2,"Grossiste","Carte",0]
[null,null,null,"2024-08-17","P021",8,"Grossiste","Mobile Money",0]
[null,null,null,"2024-08-18","P021",3,"Détail","Espèces",0]
[null,null,null,"2024-08-19","P008",4,"Grossiste","Carte",0]
[null,null,null,"2024-08-20","P011",11,"Grossiste","Carte",0]
[null,null,null,"2024-08-21","P041",13,"Détail","Espèces",0]
[null,null,null,"2024-08-22","P039",5,"Détail","Carte",0]
[null,null,null,"2024-08-23","P014",11,"Détail","Carte",0]
[null,null,null,"2024-08-24","P018",9,"Grossiste","Mobile Money",0]
[null,null,null,"2024-08-25","P023",11,"Détail","Carte",0]
[null,null,null,"2024-08-26","P050",4,"Grossiste","Mobile Money",0]
[null,null,null,"2024-08-27","P042",10,"Grossiste","Mobile Money",0]
[null,null,null,"2024-08-28","P002",9,"Grossiste","Espèces",0]
[null,null,null,"2024-08-29","P001",18,"Détail","Espèces",0]
[null,null,null,"2024-08-30","P040",17,"Détail","Carte",0]
[null,null,null,"2024-08-31","P034",17,"Grossiste","Espèces",0]
[null,null,null,"2024-09-01","P004",9,"Détail","Carte",0]
[null,null,null,"2024-09-02","P040",3,"Grossiste","Espèces",0]
[null,null,null,"2024-09-03","P006",19,"Grossiste","Mobile Money",0]
[null,null,null,"2024-09-04","P041",9,"Détail","Mobile Money",0]
[null,null,null,"2024-09-05","P045",15,"Grossiste","Espèces",0]
[null,null,null,"2024-09-06","P040",4,"Grossiste","Espèces",0]
[null,null,null,"2024-09-07","P029",6,"Grossiste","Carte",0]
[null,null,null,"2024-09-08","P004",2,"Détail","Mobile Money",0]
[null,null,null,"2024-09-09","P011",15,"Détail","Mobile Money",0]
[null,null,null,"2024-09-10","P038",5,"Détail","Espèces",0]
[null,null,null,"2024-09-11","P043",19,"Détail","Espèces",0]
[null,null,null,"2024-09-12","P017",13,"Grossiste","Espèces",0]
[null,null,null,"2024-09-13","P006",10,"Grossiste","Carte",0]
[null,null,null,"2024-09-14","P032",19,"Détail","Mobile Money",0]
[null,null,null,"2024-09-15","P033",12,"Grossiste","Carte",0]
[null,null,null,"2024-09-16","P016",8,"Grossiste","Mobile Money",0]
[null,null,null,"2024-09-17","P039",18,"Détail","Espèces",0]
[null,null,null,"2024-09-18","P032",4,"Grossiste","Carte",0]
[null,null,null,"2024-09-19","P005",6,"Grossiste","Carte",0]
[null,null,null,"2024-09-20","P033",5,"Détail","Espèces",0]
[null,null,null,"2024-09-21","P045",20,"Détail","Carte",0]
[null,null,null,"2024-09-22","P048",3,"Détail","Carte",0]
[null,null,null,"2024-09-23","P050",7,"Grossiste","Mobile Money",0]
[null,null,null,"2024-09-24","P018",5,"Détail","Carte",0]
[null,null,null,"2024-09-25","P007",8,"Grossiste","Mobile Money",0]
[null,null,null,"2024-09-26","P022",20,"Grossiste","Mobile Money",0]
[null,null,null,"2024-09-27","P018",9,"Grossiste","Carte",0]
[null,null,null,"2024-09-27"]

{"sheet":"Tablefusions","index":3,"n_rows":300,"n_cols":20,"rows_kept":300,"cut":false,"hidden":false,"merged":[]}
[]
[]
[]
[]
[]
[]
[]
[null,null,null,null,"Date","Index","Quantite","Canal"," Mode de payement","Taux de reduction","Catégories","Produits","UDM","Cout unitaire","Prix unitaire","Cout d'achat","Prix de vente","Jour","Mois","Année"]
[null,null,null,null,"2023-12-03","P040",17,"Grossiste","Carte",0,{"$f":"IFERROR(VLOOKUP(coustomerdata5[[#This Row],[Index]],database[],2,0),\"\")","v":"Shampoing sec"},{"$f":"IFERROR(VLOOKUP(coustomerdata5[[#This Row],[Index]],database[],3,0),\"\")","v":"Soins Capillaires"},{"$f":"IFERROR(VLOOKUP(coustomerdata5[[#This Row],[Index]],database[],4,0),\"\")","v":"mL"},{"$f":"IFERROR(VLOOKUP(coustomerdata5[[#This Row],[Index]],database[],5,0),\"\")","v":1456},{"$f":"IFERROR(VLOOKUP(coustomerdata5[[#This Row],[Index]],database[],6,0),\"\")","v":2300.5051282051286},{"$f":"IFERROR(coustomerdata5[[#This Row],[Cout unitaire]]*coustomerdata5[[#This Row],[Quantite]],\"\")","v":24752},{"$f":"IFERROR(coustomerdata5[[#This Row],[Quantite]]*coustomerdata5[[#This Row],[Prix unitaire]]*(1-coustomerdata5[[#This Row],[Taux de reduction]]),\"\")","v":39108.587179487185},{"$f":"DAY(coustomerdata5[[#This Row],[Date]])","v":3},{"$f":"TEXT(coustomerdata5[[#This Row],[Date]], \"mmm\")","v":"déc"},{"$f":"TEXT(coustomerdata5[[#This Row],[Date]], \"aaaa\")","v":"2023"}]
[null,null,null,null,"2023-12-04","P034",4,"Détail","Mobile Money",0,{"$f":"IFERROR(VLOOKUP(coustomerdata5[[#This Row],[Index]],database[],2,0),\"\")","v":"Blush rosé"},{"$f":"IFERROR(VLOOKUP(coustomerdata5[[#This Row],[Index]],database[],3,0),\"\")","v":"Maquillage"},{"$f":"IFERROR(VLOOKUP(coustomerdata5[[#This Row],[Index]],database[],4,0),\"\")","v":"g"},{"$f":"IFERROR(VLOOKUP(coustomerdata5[[#This Row],[Index]],database[],5,0),\"\")","v":1448},{"$f":"IFERROR(VLOOKUP(coustomerdata5[[#This Row],[Index]],database[],6,0),\"\")","v":2318.3925287356337},{"$f":"IFERROR(coustomerdata5[[#This Row],[Cout unitaire]]*coustomerdata5[[#This Row],[Quantite]],\"\")","v":5792},{"$f":"IFERROR(coustomerdata5[[#This Row],[Quantite]]*coustomerdata5[[#This Row],[Prix unitaire]]*(1-coustomerdata5[[#This Row],[Taux de reduction]]),\"\")","v":9273.5701149425349},{"$f":"DAY(coustomerdata5[[#This Row],[Date]])","v":4},{"$f":"TEXT(coustomerdata5[[#This Row],[Date]], \"mmm\")","v":"déc"},{"$f":"TEXT(coustomerdata5[[#This Row],[Date]], \"aaaa\")","v":"2023"}]
[null,null,null,null,"2023-12-05","P003",18,"Détail","Mobile Money",0,{"$f":"IFERROR(VLOOKUP(coustomerdata5[[#This Row],[Index]],database[],2,0),\"\")","v":"Contour des yeux"},{"$f":"IFERROR(VLOOKUP(coustomerdata5[[#This Row],[Index]],database[],3,0),\"\")","v":"Soins du Visage"},{"$f":"IFERROR(VLOOKUP(coustomerdata5[[#This Row],[Index]],database[],4,0),\"\")","v":"mL"},{"$f":"IFERROR(VLOOKUP(coustomerdata5[[#This Row],[Index]],database[],5,0),\"\")","v":1416},{"$f":"IFERROR(VLOOKUP(coustomerdata5[[#This Row],[Index]],database[],6,0),\"\")","v":2194.270807453418},{"$f":"IFERROR(coustomerdata5[[#This Row],[Cout unitaire]]*coustomerdata5[[#This Row],[Quantite]],\"\")","v":25488},{"$f":"IFERROR(coustomerdata5[[#This Row],[Quantite]]*coustomerdata5[[#This Row],[Prix unitaire]]*(1-coustomerdata5[[#This Row],[Taux de reduction]]),\"\")","v":39496.874534161521},{"$f":"DAY(coustomerdata5[[#This Row],[Date]])","v":5},{"$f":"TEXT(coustomerdata5[[#This Row],[Date]], \"mmm\")","v":"déc"},{"$f":"TEXT(coustomerdata5[[#This Row],[Date]], \"aaaa\")","v":"2023"}]
[null,null,null,null,"2023-12-06","P010",5,"Détail","Espèces",0,{"$f":"IFERROR(VLOOKUP(coustomerdata5[[#This Row],[Index]],database[],2,0),\"\")","v":"Base de maquillage"},{"$f":"IFERROR(VLOOKUP(coustomerdata5[[#This Row],[Index]],database[],3,0),\"\")","v":"Maquillage"},{"$f":"IFERROR(VLOOKUP(coustomerdata5[[#This Row],[Index]],database[],4,0),\"\")","v":"mL"},{"$f":"IFERROR(VLOOKUP(coustomerdata5[[#This Row],[Index]],database[],5,0),\"\")","v":1479},{"$f":"IFERROR(VLOOKUP(coustomerdata5[[#This Row],[Index]],database[],6,0),\"\")","v":2214.6171779141105},{"$f":"IFERROR(coustomerdata5[[#This Row],[Cout unitaire]]*coustomerdata5[[#This Row],[Quantite]],\"\")","v":7395},{"$f":"IFERROR(coustomerdata5[[#This Row],[Quantite]]*coustomerdata5[[#This Row],[Prix unitaire]]*(1-coustomerdata5[[#This Row],[Taux de reduction]]),\"\")","v":11073.085889570553},{"$f":"DAY(coustomerdata5[[#This Row],[Date]])","v":6},{"$f":"TEXT(coustomerdata5[[#This Row],[Date]], \"mmm\")","v":"déc"},{"$f":"TEXT(coustomerdata5[[#This Row],[Date]], \"aaaa\")","v":"2023"}]
[null,null,null,null,"2023-12-07","P038",7,"Détail","Espèces",0,{"$f":"IFERROR(VLOOKUP(coustomerdata5[[#This Row],[Index]],database[],2,0),\"\")","v":"Crème raffermissante"},{"$f":"IFERROR(VLOOKUP(coustomerdata5[[#This Row],[Index]],database[],3,0),\"\")","v":"Soins du Corps"},{"$f":"IFERROR(VLOOKUP(coustomerdata5[[#This Row],[Index]],database[],4,0),\"\")","v":"mL"},{"$f":"IFERROR(VLOOKUP(coustomerdata5[[#This Row],[Index]],database[],5,0),\"\")","v":1307},{"$f":"IFERROR(VLOOKUP(coustomerdata5[[#This Row],[Index]],database[],6,0),\"\")","v":2214.6171779141105},{"$f":"IFERROR(coustomerdata5[[#This Row],[Cout unitaire]]*coustomerdata5[[#This Row],[Quantite]],\"\")","v":9149},{"$f":"IFERROR(coustomerdata5[[#This Row],[Quantite]]*coustomerdata5[[#This Row],[Prix unitaire]]*(1-coustomerdata5[[#This Row],[Taux de reduction]]),\"\")","v":15502.320245398772},{"$f":"DAY(coustomerdata5[[#This Row],[Date]])","v":7},{"$f":"TEXT(coustomerdata5[[#This Row],[Date]], \"mmm\")","v":"déc"},{"$f":"TEXT(coustomerdata5[[#This Row],[Date]], \"aaaa\")","v":"2023"}]
[null,null,null,null,"2023-12-08","P011",3,"Grossiste","Espèces",0,{"$f":"IFERROR(VLOOKUP(coustomerdata5[[#This Row],[Index]],database[],2,0),\"\")","v":"Eau micellaire"},{"$f":"IFERROR(VLOOKUP(coustomerdata5[[#This Row],[Index]],database[],3,0),\"\")","v":"Soins du Visage"},{"$f":"IFERROR(VLOOKUP(coustomerdata5[[#This Row],[Index]],database[],4,0),\"\")","v":"mL"},{"$f":"IFERROR(VLOOKUP(coustomerdata5[[#This Row],[Index]],database[],5,0),\"\")","v":1489},{"$f":"IFERROR(VLOOKUP(coustomerdata5[[#This Row],[Index]],database[],6,0),\"\")","v":2295.3177966101698},{"$f":"IFERROR(coustomerdata5[[#This Row],[Cout unitaire]]*coustomerdata5[[#This Row],[Quantite]],\"\")","v":4467},{"$f":"IFERROR(coustomerdata5[[#This Row],[Quantite]]*coustomerdata5[[#This Row],[Prix unitaire]]*(1-coustomerdata5[[#This Row],[Taux de reduction]]),\"\")","v":6885.953389830509},{"$f":"DAY(coustomerdata5[[#This Row],[Date]])","v":8},{"$f":"TEXT(coustomerdata5[[#This Row],[Date]], \"mmm\")","v":"déc"},{"$f":"TEXT(coustomerdata5[[#This Row],[Date]], \"aaaa\")","v":"2023"}]
[null,null,null,null,"2023-12-09","P040",7,"Grossiste","Carte",0,{"$f":"IFERROR(VLOOKUP(coustomerdata5[[#This Row],[Index]],database[],2,0),\"\")","v":"Shampoing sec"},{"$f":"IFERROR(VLOOKUP(coustomerdata5[[#This Row],[Index]],database[],3,0),\"\")","v":"Soins Capillaires"},{"$f":"IFERROR(VLOOKUP(coustomerdata5[[#This Row],[Index]],database[],4,0),\"\")","v":"mL"},{"$f":"IFERROR(VLOOKUP(coustomerdata5[[#This Row],[Index]],database[],5,0),\"\")","v":1456},{"$f":"IFERROR(VLOOKUP(coustomerdata5[[#This Row],[Index]],database[],6,0),\"\")","v":2300.5051282051286},{"$f":"IFERROR(coustomerdata5[[#This Row],[Cout unitaire]]*coustomerdata5[[#This Row],[Quantite]],\"\")","v":10192},{"$f":"IFERROR(coustomerdata5[[#This Row],[Quantite]]*coustomerdata5[[#This Row],[Prix unitaire]]*(1-coustomerdata5[[#This Row],[Taux de reduction]]),\"\")","v":16103.535897435901},{"$f":"DAY(coustomerdata5[[#This Row],[Date]])","v":9},{"$f":"TEXT(coustomerdata5[[#This Row],[Date]], \"mmm\")","v":"déc"},{"$f":"TEXT(coustomerdata5[[#This Row],[Date]], \"aaaa\")","v":"2023"}]
[null,null,null,null,"2023-12-10","P034",14,"Détail","Mobile Money",0,{"$f":"IFERROR(VLOOKUP(coustomerdata5[[#This Row],[Index]],database[],2,0),\"\")","v":"Blush rosé"},{"$f":"IFERROR(VLOOKUP(coustomerdata5[[#This Row],[Index]],database[],3,0),\"\")","v":"Maquillage"},{"$f":"IFERROR(VLOOKUP(coustomerdata5[[#This Row],[Index]],database[],4,0),\"\")","v":"g"},{"$f":"IFERROR(VLOOKUP(coustomerdata5[[#This Row],[Index]],database[],5,0),\"\")","v":1448},{"$f":"IFERROR(VLOOKUP(coustomerdata5[[#This Row],[Index]],database[],6,0),\"\")","v":2318.3925287356337},{"$f":"IFERROR(coustomerdata5[[#This Row],[Cout unitaire]]*coustomerdata5[[#This Row],[Quantite]],\"\")","v":20272},{"$f":"IFERROR(coustomerdata5[[#This Row],[Quantite]]*coustomerdata5[[#This Row],[Prix unitaire]]*(1-coustomerdata5[[#This Row],[Taux de reduction]]),\"\")","v":32457.495402298871},{"$f":"DAY(coustomerdata5[[#This Row],[Date]])","v":10},{"$f":"TEXT(coustomerdata5[[#This Row],[Date]], \"mmm\")","v":"déc"},{"$f":"TEXT(coustomerdata5[[#This Row],[Date]], \"aaaa\")","v":"2023"}]
[null,null,null,null,"2023-12-11","P004",5,"Grossiste","Carte",0,{"$f":"IFERROR(VLOOKUP(coustomerdata5[[#This Row],[Index]],database[],2,0),\"\")","v":"Spray thermo-protecteur"},{"$f":"IFERROR(VLOOKUP(coustomerdata5[[#This Row],[Index]],database[],3,0),\"\")","v":"Soins Capillaires"},{"$f":"IFERROR(VLOOKUP(coustomerdata5[[#This Row],[Index]],database[],4,0),\"\")","v":"mL"},{"$f":"IFERROR(VLOOKUP(coustomerdata5[[#This Row],[Index]],database[],5,0),\"\")","v":1372},{"$f":"IFERROR(VLOOKUP(coustomerdata5[[#This Row],[Index]],database[],6,0),\"\")","v":2121.5981595092026},{"$f":"IFERROR(coustomerdata5[[#This Row],[Cout unitaire]]*coustomerdata5[[#This Row],[Quantite]],\"\")","v":6860},{"$f":"IFERROR(coustomerdata5[[#This Row],[Quantite]]*coustomerdata5[[#This Row],[Prix unitaire]]*(1-coustomerdata5[[#This Row],[Taux de reduction]]),\"\")","v":10607.990797546012},{"$f":"DAY(coustomerdata5[[#This Row],[Date]])","v":11},{"$f":"TEXT(coustomerdata5[[#This Row],[Date]], \"mmm\")","v":"déc"},{"$f":"TEXT(coustomerdata5[[#This Row],[Date]], \"aaaa\")","v":"2023"}]
[null,null,null,null,"2023-12-12","P040",15,"Grossiste","Mobile Money",0,{"$f":"IFERROR(VLOOKUP(coustomerdata5[[#This Row],[Index]],database[],2,0),\"\")","v":"Shampoing sec"},{"$f":"IFERROR(VLOOKUP(coustomerdata5[[#This Row],[Index]],database[],3,0),\"\")","v":"Soins Capillaires"},{"$f":"IFERROR(VLOOKUP(coustomerdata5[[#This Row],[Index]],database[],4,0),\"\")","v":"mL"},{"$f":"IFERROR(VLOOKUP(coustomerdata5[[#This Row],[Index]],database[],5,0),\"\")","v":1456},{"$f":"IFERROR(VLOOKUP(coustomerdata5[[#This Row],[Index]],database[],6,0),\"\")","v":2300.5051282051286},{"$f":"IFERROR(coustomerdata5[[#This Row],[Cout unitaire]]*coustomerdata5[[#This Row],[Quantite]],\"\")","v":21840},{"$f":"IFERROR(coustomerdata5[[#This Row],[Quantite]]*coustomerdata5[[#This Row],[Prix unitaire]]*(1-coustomerdata5[[#This Row],[Taux de reduction]]),\"\")","v":34507.576923076929},{"$f":"DAY(coustomerdata5[[#This Row],[Date]])","v":12},{"$f":"TEXT(coustomerdata5[[#This Row],[Date]], \"mmm\")","v":"déc"},{"$f":"TEXT(coustomerdata5[[#This Row],[Date]], \"aaaa\")","v":"2023"}]
[null,null,null,null,"2023-12-13","P006",8,"Détail","Espèces",0,{"$f":"IFERROR(VLOOKUP(coustomerdata5[[#This Row],[Index]],database[],2,0),\"\")","v":"Déodorant naturel"},{"$f":"IFERROR(VLOOKUP(coustomerdata5[[#This Row],[Index]],database[],3,0),\"\")","v":"Soins du Corps"},{"$f":"IFERROR(VLOOKUP(coustomerdata5[[#This Row],[Index]],database[],4,0),\"\")","v":"mL"},{"$f":"IFERROR(VLOOKUP(coustomerdata5[[#This Row],[Index]],database[],5,0),\"\")","v":1440},{"$f":"IFERROR(VLOOKUP(coustomerdata5[[#This Row],[Index]],database[],6,0),\"\")","v":2318.3925287356337},{"$f":"IFERROR(coustomerdata5[[#This Row],[Cout unitaire]]*coustomerdata5[[#This Row],[Quantite]],\"\")","v":11520},{"$f":"IFERROR(coustomerdata5[[#This Row],[Quantite]]*coustomerdata5[[#This Row],[Prix unitaire]]*(1-coustomerdata5[[#This Row],[Taux de reduction]]),\"\")","v":18547.14022988507},{"$f":"DAY(coustomerdata5[[#This Row],[Date]])","v":13},{"$f":"TEXT(coustomerdata5[[#This Row],[Date]], \"mmm\")","v":"déc"},{"$f":"TEXT(coustomerdata5[[#This Row],[Date]], \"aaaa\")","v":"2023"}]
[null,null,null,null,"2023-12-14","P041",8,"Grossiste","Carte",0,{"$f":"IFERROR(VLOOKUP(coustomerdata5[[#This Row],[Index]],database[],2,0),\"\")","v":"Gel douche hydratant"},{"$f":"IFERROR(VLOOKUP(coustomerdata5[[#This Row],[Index]],database[],3,0),\"\")","v":"Soins du Corps"},{"$f":"IFERROR(VLOOKUP(coustomerdata5[[#This Row],[Index]],database[],4,0),\"\")","v":"mL"},{"$f":"IFERROR(VLOOKUP(coustomerdata5[[#This Row],[Index]],database[],5,0),\"\")","v":1456},{"$f":"IFERROR(VLOOKUP(coustomerdata5[[#This Row],[Index]],database[],6,0),\"\")","v":2198.2071542130352},{"$f":"IFERROR(coustomerdata5[[#This Row],[Cout unitaire]]*coustomerdata5[[#This Row],[Quantite]],\"\")","v":11648},{"$f":"IFERROR(coustomerdata5[[#This Row],[Quantite]]*coustomerdata5[[#This Row],[Prix unitaire]]*(1-coustomerdata5[[#This Row],[Taux de reduction]]),\"\")","v":17585.657233704282},{"$f":"DAY(coustomerdata5[[#This Row],[Date]])","v":14},{"$f":"TEXT(coustomerdata5[[#This Row],[Date]], \"mmm\")","v":"déc"},{"$f":"TEXT(coustomerdata5[[#This Row],[Date]], \"aaaa\")","v":"2023"}]
[null,null,null,null,"2023-12-15","P045",3,"Grossiste","Carte",0,{"$f":"IFERROR(VLOOKUP(coustomerdata5[[#This Row],[Index]],database[],2,0),\"\")","v":"Palette de fards"},{"$f":"IFERROR(VLOOKUP(coustomerdata5[[#This Row],[Index]],database[],3,0),\"\")","v":"Maquillage"},{"$f":"IFERROR(VLOOKUP(coustomerdata5[[#This Row],[Index]],database[],4,0),\"\")","v":"g"},{"$f":"IFERROR(VLOOKUP(coustomerdata5[[#This Row],[Index]],database[],5,0),\"\")","v":1440},{"$f":"IFERROR(VLOOKUP(coustomerdata5[[#This Row],[Index]],database[],6,0),\"\")","v":2194.270807453418},{"$f":"IFERROR(coustomerdata5[[#This Row],[Cout unitaire]]*coustomerdata5[[#This Row],[Quantite]],\"\")","v":4320},{"$f":"IFERROR(coustomerdata5[[#This Row],[Quantite]]*coustomerdata5[[#This Row],[Prix unitaire]]*(1-coustomerdata5[[#This Row],[Taux de reduction]]),\"\")","v":6582.8124223602535},{"$f":"DAY(coustomerdata5[[#This Row],[Date]])","v":15},{"$f":"TEXT(coustomerdata5[[#This Row],[Date]], \"mmm\")","v":"déc"},{"$f":"TEXT(coustomerdata5[[#This Row],[Date]], \"aaaa\")","v":"2023"}]
[null,null,null,null,"2023-12-16","P040",16,"Détail","Espèces",0,{"$f":"IFERROR(VLOOKUP(coustomerdata5[[#This Row],[Index]],database[],2,0),\"\")","v":"Shampoing sec"},{"$f":"IFERROR(VLOOKUP(coustomerdata5[[#This Row],[Index]],database[],3,0),\"\")","v":"Soins Capillaires"},{"$f":"IFERROR(VLOOKUP(coustomerdata5[[#This Row],[Index]],database[],4,0),\"\")","v":"mL"},{"$f":"IFERROR(VLOOKUP(coustomerdata5[[#This Row],[Index]],database[],5,0),\"\")","v":1456},{"$f":"IFERROR(VLOOKUP(coustomerdata5[[#This Row],[Index]],database[],6,0),\"\")","v":2300.5051282051286},{"$f":"IFERROR(coustomerdata5[[#This Row],[Cout unitaire]]*coustomerdata5[[#This Row],[Quantite]],\"\")","v":23296},{"$f":"IFERROR(coustomerdata5[[#This Row],[Quantite]]*coustomerdata5[[#This Row],[Prix unitaire]]*(1-coustomerdata5[[#This Row],[Taux de reduction]]),\"\")","v":36808.082051282057},{"$f":"DAY(coustomerdata5[[#This Row],[Date]])","v":16},{"$f":"TEXT(coustomerdata5[[#This Row],[Date]], \"mmm\")","v":"déc"},{"$f":"TEXT(coustomerdata5[[#This Row],[Date]], \"aaaa\")","v":"2023"}]
[null,null,null,null,"2023-12-17","P029",5,"Détail","Carte",0,{"$f":"IFERROR(VLOOKUP(coustomerdata5[[#This Row],[Index]],database[],2,0),\"\")","v":"Palette de fards"},{"$f":"IFERROR(VLOOKUP(coustomerdata5[[#This Row],[Index]],database[],3,0),\"\")","v":"Maquillage"},{"$f":"IFERROR(VLOOKUP(coustomerdata5[[#This Row],[Index]],database[],4,0),\"\")","v":"g"},{"$f":"IFERROR(VLOOKUP(coustomerdata5[[#This Row],[Index]],database[],5,0),\"\")","v":1416},{"$f":"IFERROR(VLOOKUP(coustomerdata5[[#This Row],[Index]],database[],6,0),\"\")","v":2304.6419330289204},{"$f":"IFERROR(coustomerdata5[[#This Row],[Cout unitaire]]*coustomerdata5[[#This Row],[Quantite]],\"\")","v":7080},{"$f":"IFERROR(coustomerdata5[[#This Row],[Quantite]]*coustomerdata5[[#This Row],[Prix unitaire]]*(1-coustomerdata5[[#This Row],[Taux de reduction]]),\"\")","v":11523.209665144603},{"$f":"DAY(coustomerdata5[[#This Row],[Date]])","v":17},{"$f":"TEXT(coustomerdata5[[#This Row],[Date]], \"mmm\")","v":"déc"},{"$f":"TEXT(coustomerdata5[[#This Row],[Date]], \"aaaa\")","v":"2023"}]
[null,null,null,null,"2023-12-18","P004",2,"Détail","Carte",0,{"$f":"IFERROR(VLOOKUP(coustomerdata5[[#This Row],[Index]],database[],2,0),\"\")","v":"Spray thermo-protecteur"},{"$f":"IFERROR(VLOOKUP(coustomerdata5[[#This Row],[Index]],database[],3,0),\"\")","v":"Soins Capillaires"},{"$f":"IFERROR(VLOOKUP(coustomerdata5[[#This Row],[Index]],database[],4,0),\"\")","v":"mL"},{"$f":"IFERROR(VLOOKUP(coustomerdata5[[#This Row],[Index]],database[],5,0),\"\")","v":1372},{"$f":"IFERROR(VLOOKUP(coustomerdata5[[#This Row],[Index]],database[],6,0),\"\")","v":2121.5981595092026},{"$f":"IFERROR(coustomerdata5[[#This Row],[Cout unitaire]]*coustomerdata5[[#This Row],[Quantite]],\"\")","v":2744},{"$f":"IFERROR(coustomerdata5[[#This Row],[Quantite]]*coustomerdata5[[#This Row],[Prix unitaire]]*(1-coustomerdata5[[#This Row],[Taux de reduction]]),\"\")","v":4243.1963190184051},{"$f":"DAY(coustomerdata5[[#This Row],[Date]])","v":18},{"$f":"TEXT(coustomerdata5[[#This Row],[Date]], \"mmm\")","v":"déc"},{"$f":"TEXT(coustomerdata5[[#This Row],[Date]], \"aaaa\")","v":"2023"}]
[null,null,null,null,"2023-12-19","P011",18,"Grossiste","Mobile Money",0,{"$f":"IFERROR(VLOOKUP(coustomerdata5[[#This Row],[Index]],database[],2,0),\"\")","v":"Eau micellaire"},{"$f":"IFERROR(VLOOKUP(coustomerdata5[[#This Row],[Index]],database[],3,0),\"\")","v":"Soins du Visage"},{"$f":"IFERROR(VLOOKUP(coustomerdata5[[#This Row],[Index]],database[],4,0),\"\")","v":"mL"},{"$f":"IFERROR(VLOOKUP(coustomerdata5[[#This Row],[Index]],database[],5,0),\"\")","v":1489},{"$f":"IFERROR(VLOOKUP(coustomerdata5[[#This Row],[Index]],database[],6,0),\"\")","v":2295.3177966101698},{"$f":"IFERROR(coustomerdata5[[#This Row],[Cout unitaire]]*coustomerdata5[[#This Row],[Quantite]],\"\")","v":26802},{"$f":"IFERROR(coustomerdata5[[#This Row],[Quantite]]*coustomerdata5[[#This Row],[Prix unitaire]]*(1-coustomerdata5[[#This Row],[Taux de reduction]]),\"\")","v":41315.720338983054},{"$f":"DAY(coustomerdata5[[#This Row],[Date]])","v":19},{"$f":"TEXT(coustomerdata5[[#This Row],[Date]], \"mmm\")","v":"déc"},{"$f":"TEXT(coustomerdata5[[#This Row],[Date]], \"aaaa\")","v":"2023"}]
[null,null,null,null,"2023-12-20","P038",6,"Détail","Carte",0,{"$f":"IFERROR(VLOOKUP(coustomerdata5[[#This Row],[Index]],database[],2,0),\"\")","v":"Crème raffermissante"},{"$f":"IFERROR(VLOOKUP(coustomerdata5[[#This Row],[Index]],database[],3,0),\"\")","v":"Soins du Corps"},{"$f":"IFERROR(VLOOKUP(coustomerdata5[[#This Row],[Index]],database[],4,0),\"\")","v":"mL"},{"$f":"IFERROR(VLOOKUP(coustomerdata5[[#This Row],[Index]],database[],5,0),\"\")","v":1307},{"$f":"IFERROR(VLOOKUP(coustomerdata5[[#This Row],[Index]],database[],6,0),\"\")","v":2214.6171779141105},{"$f":"IFERROR(coustomerdata5[[#This Row],[Cout unitaire]]*coustomerdata5[[#This Row],[Quantite]],\"\")","v":7842},{"$f":"IFERROR(coustomerdata5[[#This Row],[Quantite]]*coustomerdata5[[#This Row],[Prix unitaire]]*(1-coustomerdata5[[#This Row],[Taux de reduction]]),\"\")","v":13287.703067484663},{"$f":"DAY(coustomerdata5[[#This Row],[Date]])","v":20},{"$f":"TEXT(coustomerdata5[[#This Row],[Date]], \"mmm\")","v":"déc"},{"$f":"TEXT(coustomerdata5[[#This Row],[Date]], \"aaaa\")","v":"2023"}]
[null,null,null,null,"2023-12-21","P043",12,"Grossiste","Mobile Money",0,{"$f":"IFERROR(VLOOKUP(coustomerdata5[[#This Row],[Index]],database[],2,0),\"\")","v":"Crayon à sourcils"},{"$f":"IFERROR(VLOOKUP(coustomerdata5[[#This Row],[Index]],database[],3,0),\"\")","v":"Maquillage"},{"$f":"IFERROR(VLOOKUP(coustomerdata5[[#This Row],[Index]],database[],4,0),\"\")","v":"g"},{"$f":"IFERROR(VLOOKUP(coustomerdata5[[#This Row],[Index]],database[],5,0),\"\")","v":1440},{"$f":"IFERROR(VLOOKUP(coustomerdata5[[#This Row],[Index]],database[],6,0),\"\")","v":2304.6419330289204},{"$f":"IFERROR(coustomerdata5[[#This Row],[Cout unitaire]]*coustomerdata5[[#This Row],[Quantite]],\"\")","v":17280},{"$f":"IFERROR(coustomerdata5[[#This Row],[Quantite]]*coustomerdata5[[#This Row],[Prix unitaire]]*(1-coustomerdata5[[#This Row],[Taux de reduction]]),\"\")","v":27655.703196347044},{"$f":"DAY(coustomerdata5[[#This Row],[Date]])","v":21},{"$f":"TEXT(coustomerdata5[[#This Row],[Date]], \"mmm\")","v":"déc"},{"$f":"TEXT(coustomerdata5[[#This Row],[Date]], \"aaaa\")","v":"2023"}]
[null,null,null,null,"2023-12-22","P017",5,"Grossiste","Mobile Money",0,{"$f":"IFERROR(VLOOKUP(coustomerdata5[[#This Row],[Index]],database[],2,0),\"\")","v":"Spray rafraîchissant"},{"$f":"IFERROR(VLOOKUP(coustomerdata5[[#This Row],[Index]],database[],3,0),\"\")","v":"Soins du Corps"},{"$f":"IFERROR(VLOOKUP(coustomerdata5[[#This Row],[Index]],database[],4,0),\"\")","v":"mL"},{"$f":"IFERROR(VLOOKUP(coustomerdata5[[#This Row],[Index]],database[],5,0),\"\")","v":1440},{"$f":"IFERROR(VLOOKUP(coustomerdata5[[#This Row],[Index]],database[],6,0),\"\")","v":2194.270807453418},{"$f":"IFERROR(coustomerdata5[[#This Row],[Cout unitaire]]*coustomerdata5[[#This Row],[Quantite]],\"\")","v":7200},{"$f":"IFERROR(coustomerdata5[[#This Row],[Quantite]]*coustomerdata5[[#This Row],[Prix unitaire]]*(1-coustomerdata5[[#This Row],[Taux de reduction]]),\"\")","v":10971.35403726709},{"$f":"DAY(coustomerdata5[[#This Row],[Date]])","v":22},{"$f":"TEXT(coustomerdata5[[#This Row],[Date]], \"mmm\")","v":"déc"},{"$f":"TEXT(coustomerdata5[[#This Row],[Date]], \"aaaa\")","v":"2023"}]
[null,null,null,null,"2023-12-23","P006",1,"Grossiste","Espèces",0,{"$f":"IFERROR(VLOOKUP(coustomerdata5[[#This Row],[Index]],database[],2,0),\"\")","v":"Déodorant naturel"},{"$f":"IFERROR(VLOOKUP(coustomerdata5[[#This Row],[Index]],database[],3,0),\"\")","v":"Soins du Corps"},{"$f":"IFERROR(VLOOKUP(coustomerdata5[[#This Row],[Index]],database[],4,0),\"\")","v":"mL"},{"$f":"IFERROR(VLOOKUP(coustomerdata5[[#This Row],[Index]],database[],5,0),\"\")","v":1440},{"$f":"IFERROR(VLOOKUP(coustomerdata5[[#This Row],[Index]],database[],6,0),\"\")","v":2318.3925287356337},{"$f":"IFERROR(coustomerdata5[[#This Row],[Cout unitaire]]*coustomerdata5[[#This Row],[Quantite]],\"\")","v":1440},{"$f":"IFERROR(coustomerdata5[[#This Row],[Quantite]]*coustomerdata5[[#This Row],[Prix unitaire]]*(1-coustomerdata5[[#This Row],[Taux de reduction]]),\"\")","v":2318.3925287356337},{"$f":"DAY(coustomerdata5[[#This Row],[Date]])","v":23},{"$f":"TEXT(coustomerdata5[[#This Row],[Date]], \"mmm\")","v":"déc"},{"$f":"TEXT(coustomerdata5[[#This Row],[Date]], \"aaaa\")","v":"2023"}]
[null,null,null,null,"2023-12-24","P032",6,"Détail","Espèces",0,{"$f":"IFERROR(VLOOKUP(coustomerdata5[[#This Row],[Index]],database[],2,0),\"\")","v":"Fond de teint"},{"$f":"IFERROR(VLOOKUP(coustomerdata5[[#This Row],[Index]],database[],3,0),\"\")","v":"Maquillage"},{"$f":"IFERROR(VLOOKUP(coustomerdata5[[#This Row],[Index]],database[],4,0),\"\")","v":"mL"},{"$f":"IFERROR(VLOOKUP(coustomerdata5[[#This Row],[Index]],database[],5,0),\"\")","v":1307},{"$f":"IFERROR(VLOOKUP(coustomerdata5[[#This Row],[Index]],database[],6,0),\"\")","v":2121.5981595092026},{"$f":"IFERROR(coustomerdata5[[#This Row],[Cout unitaire]]*coustomerdata5[[#This Row],[Quantite]],\"\")","v":7842},{"$f":"IFERROR(coustomerdata5[[#This Row],[Quantite]]*coustomerdata5[[#This Row],[Prix unitaire]]*(1-coustomerdata5[[#This Row],[Taux de reduction]]),\"\")","v":12729.588957055215},{"$f":"DAY(coustomerdata5[[#This Row],[Date]])","v":24},{"$f":"TEXT(coustomerdata5[[#This Row],[Date]], \"mmm\")","v":"déc"},{"$f":"TEXT(coustomerdata5[[#This Row],[Date]], \"aaaa\")","v":"2023"}]
[null,null,null,null,"2023-12-25","P033",9,"Détail","Carte",0,{"$f":"IFERROR(VLOOKUP(coustomerdata5[[#This Row],[Index]],database[],2,0),\"\")","v":"Gommage exfoliant"},{"$f":"IFERROR(VLOOKUP(coustomerdata5[[#This Row],[Index]],database[],3,0),\"\")","v":"Soins du Visage"},{"$f":"IFERROR(VLOOKUP(coustomerdata5[[#This Row],[Index]],database[],4,0),\"\")","v":"g"},{"$f":"IFERROR(VLOOKUP(coustomerdata5[[#This Row],[Index]],database[],5,0),\"\")","v":1456},{"$f":"IFERROR(VLOOKUP(coustomerdata5[[#This Row],[Index]],database[],6,0),\"\")","v":2349.1564814814842},{"$f":"IFERROR(coustomerdata5[[#This Row],[Cout unitaire]]*coustomerdata5[[#This Row],[Quantite]],\"\")","v":13104},{"$f":"IFERROR(coustomerdata5[[#This Row],[Quantite]]*coustomerdata5[[#This Row],[Prix unitaire]]*(1-coustomerdata5[[#This Row],[Taux de reduction]]),\"\")","v":21142.408333333358},{"$f":"DAY(coustomerdata5[[#This Row],[Date]])","v":25},{"$f":"TEXT(coustomerdata5[[#This Row],[Date]], \"mmm\")","v":"déc"},{"$f":"TEXT(coustomerdata5[[#This Row],[Date]], \"aaaa\")","v":"2023"}]
[null,null,null,null,"2023-12-26","P016",1,"Grossiste","Espèces",0,{"$f":"IFERROR(VLOOKUP(coustomerdata5[[#This Row],[Index]],database[],2,0),\"\")","v":"BB crème"},{"$f":"IFERROR(VLOOKUP(coustomerdata5[[#This Row],[Index]],database[],3,0),\"\")","v":"Soins du Visage"},{"$f":"IFERROR(VLOOKUP(coustomerdata5[[#This Row],[Index]],database[],4,0),\"\")","v":"mL"},{"$f":"IFERROR(VLOOKUP(coustomerdata5[[#This Row],[Index]],database[],5,0),\"\")","v":1307},{"$f":"IFERROR(VLOOKUP(coustomerdata5[[#This Row],[Index]],database[],6,0),\"\")","v":2285.5296327924843},{"$f":"IFERROR(coustomerdata5[[#This Row],[Cout unitaire]]*coustomerdata5[[#This Row],[Quantite]],\"\")","v":1307},{"$f":"IFERROR(coustomerdata5[[#This Row],[Quantite]]*coustomerdata5[[#This Row],[Prix unitaire]]*(1-coustomerdata5[[#This Row],[Taux de reduction]]),\"\")","v":2285.5296327924843},{"$f":"DAY(coustomerdata5[[#This Row],[Date]])","v":26},{"$f":"TEXT(coustomerdata5[[#This Row],[Date]], \"mmm\")","v":"déc"},{"$f":"TEXT(coustomerdata5[[#This Row],[Date]], \"aaaa\")","v":"2023"}]
[null,null,null,null,"2023-12-27","P039",3,"Détail","Carte",0,{"$f":"IFERROR(VLOOKUP(coustomerdata5[[#This Row],[Index]],database[],2,0),\"\")","v":"Crème pour les mains"},{"$f":"IFERROR(VLOOKUP(coustomerdata5[[#This Row],[Index]],database[],3,0),\"\")","v":"Soins du Corps"},{"$f":"IFERROR(VLOOKUP(coustomerdata5[[#This Row],[Index]],database[],4,0),\"\")","v":"mL"},{"$f":"IFERROR(VLOOKUP(coustomerdata5[[#This Row],[Index]],database[],5,0),\"\")","v":1440},{"$f":"IFERROR(VLOOKUP(coustomerdata5[[#This Row],[Index]],database[],6,0),\"\")","v":2295.3177966101698},{"$f":"IFERROR(coustomerdata5[[#This Row],[Cout unitaire]]*coustomerdata5[[#This Row],[Quantite]],\"\")","v":4320},{"$f":"IFERROR(coustomerdata5[[#This Row],[Quantite]]*coustomerdata5[[#This Row],[Prix unitaire]]*(1-coustomerdata5[[#This Row],[Taux de reduction]]),\"\")","v":6885.953389830509},{"$f":"DAY(coustomerdata5[[#This Row],[Date]])","v":27},{"$f":"TEXT(coustomerdata5[[#This Row],[Date]], \"mmm\")","v":"déc"},{"$f":"TEXT(coustomerdata5[[#This Row],[Date]], \"aaaa\")","v":"2023"}]
[null,null,null,null,"2024-01-01","P032",7,"Grossiste","Espèces",0,{"$f":"IFERROR(VLOOKUP(coustomerdata5[[#This Row],[Index]],database[],2,0),\"\")","v":"Fond de teint"},{"$f":"IFERROR(VLOOKUP(coustomerdata5[[#This Row],[Index]],database[],3,0),\"\")","v":"Maquillage"},{"$f":"IFERROR(VLOOKUP(coustomerdata5[[#This Row],[Index]],database[],4,0),\"\")","v":"mL"},{"$f":"IFERROR(VLOOKUP(coustomerdata5[[#This Row],[Index]],database[],5,0),\"\")","v":1307},{"$f":"IFERROR(VLOOKUP(coustomerdata5[[#This Row],[Index]],database[],6,0),\"\")","v":2121.5981595092026},{"$f":"IFERROR(coustomerdata5[[#This Row],[Cout unitaire]]*coustomerdata5[[#This Row],[Quantite]],\"\")","v":9149},{"$f":"IFERROR(coustomerdata5[[#This Row],[Quantite]]*coustomerdata5[[#This Row],[Prix unitaire]]*(1-coustomerdata5[[#This Row],[Taux de reduction]]),\"\")","v":14851.187116564419},{"$f":"DAY(coustomerdata5[[#This Row],[Date]])","v":1},{"$f":"TEXT(coustomerdata5[[#This Row],[Date]], \"mmm\")","v":"janv"},{"$f":"TEXT(coustomerdata5[[#This Row],[Date]], \"aaaa\")","v":"2024"}]
[null,null,null,null,"2024-01-02","P005",4,"Grossiste","Mobile Money",0,{"$f":"IFERROR(VLOOKUP(coustomerdata5[[#This Row],[Index]],database[],2,0),\"\")","v":"Sérum anti-âge"},{"$f":"IFERROR(VLOOKUP(coustomerdata5[[#This Row],[Index]],database[],3,0),\"\")","v":"Soins du Visage"},{"$f":"IFERROR(VLOOKUP(coustomerdata5[[#This Row],[Index]],database[],4,0),\"\")","v":"mL"},{"$f":"IFERROR(VLOOKUP(coustomerdata5[[#This Row],[Index]],database[],5,0),\"\")","v":1372},{"$f":"IFERROR(VLOOKUP(coustomerdata5[[#This Row],[Index]],database[],6,0),\"\")","v":2349.1564814814842},{"$f":"IFERROR(coustomerdata5[[#This Row],[Cout unitaire]]*coustomerdata5[[#This Row],[Quantite]],\"\")","v":5488},{"$f":"IFERROR(coustomerdata5[[#This Row],[Quantite]]*coustomerdata5[[#This Row],[Prix unitaire]]*(1-coustomerdata5[[#This Row],[Taux de reduction]]),\"\")","v":9396.6259259259368},{"$f":"DAY(coustomerdata5[[#This Row],[Date]])","v":2},{"$f":"TEXT(coustomerdata5[[#This Row],[Date]], \"mmm\")","v":"janv"},{"$f":"TEXT(coustomerdata5[[#This Row],[Date]], \"aaaa\")","v":"2024"}]
[null,null,null,null,"2024-01-16","P033",9,"Détail","Mobile Money",0,{"$f":"IFERROR(VLOOKUP(coustomerdata5[[#This Row],[Index]],database[],2,0),\"\")","v":"Gommage exfoliant"},{"$f":"IFERROR(VLOOKUP(coustomerdata5[[#This Row],[Index]],database[],3,0),\"\")","v":"Soins du Visage"},{"$f":"IFERROR(VLOOKUP(coustomerdata5[[#This Row],[Index]],database[],4,0),\"\")","v":"g"},{"$f":"IFERROR(VLOOKUP(coustomerdata5[[#This Row],[Index]],database[],5,0),\"\")","v":1456},{"$f":"IFERROR(VLOOKUP(coustomerdata5[[#This Row],[Index]],database[],6,0),\"\")","v":2349.1564814814842},{"$f":"IFERROR(coustomerdata5[[#This Row],[Cout unitaire]]*coustomerdata5[[#This Row],[Quantite]],\"\")","v":13104},{"$f":"IFERROR(coustomerdata5[[#This Row],[Quantite]]*coustomerdata5[[#This Row],[Prix unitaire]]*(1-coustomerdata5[[#This Row],[Taux de reduction]]),\"\")","v":21142.408333333358},{"$f":"DAY(coustomerdata5[[#This Row],[Date]])","v":16},{"$f":"TEXT(coustomerdata5[[#This Row],[Date]], \"mmm\")","v":"janv"},{"$f":"TEXT(coustomerdata5[[#This Row],[Date]], \"aaaa\")","v":"2024"}]
[null,null,null,null,"2024-01-20","P045",3,"Grossiste","Espèces",0,{"$f":"IFERROR(VLOOKUP(coustomerdata5[[#This Row],[Index]],database[],2,0),\"\")","v":"Palette de fards"},{"$f":"IFERROR(VLOOKUP(coustomerdata5[[#This Row],[Index]],database[],3,0),\"\")","v":"Maquillage"},{"$f":"IFERROR(VLOOKUP(coustomerdata5[[#This Row],[Index]],database[],4,0),\"\")","v":"g"},{"$f":"IFERROR(VLOOKUP(coustomerdata5[[#This Row],[Index]],database[],5,0),\"\")","v":1440},{"$f":"IFERROR(VLOOKUP(coustomerdata5[[#This Row],[Index]],database[],6,0),\"\")","v":2194.270807453418},{"$f":"IFERROR(coustomerdata5[[#This Row],[Cout unitaire]]*coustomerdata5[[#This Row],[Quantite]],\"\")","v":4320},{"$f":"IFERROR(coustomerdata5[[#This Row],[Quantite]]*coustomerdata5[[#This Row],[Prix unitaire]]*(1-coustomerdata5[[#This Row],[Taux de reduction]]),\"\")","v":6582.8124223602535},{"$f":"DAY(coustomerdata5[[#This Row],[Date]])","v":20},{"$f":"TEXT(coustomerdata5[[#This Row],[Date]], \"mmm\")","v":"janv"},{"$f":"TEXT(coustomerdata5[[#This Row],[Date]], \"aaaa\")","v":"2024"}]
[null,null,null,null,"2024-01-22","P048",5,"Grossiste","Espèces",0,{"$f":"IFERROR(VLOOKUP(coustomerdata5[[#This Row],[Index]],database[],2,0),\"\")","v":"Cire coiffante"},{"$f":"IFERROR(VLOOKUP(coustomerdata5[[#This Row],[Index]],database[],3,0),\"\")","v":"Soins Capillaires"},{"$f":"IFERROR(VLOOKUP(coustomerdata5[[#This Row],[Index]],database[],4,0),\"\")","v":"g"},{"$f":"IFERROR(VLOOKUP(coustomerdata5[[#This Row],[Index]],database[],5,0),\"\")","v":1347},{"$f":"IFERROR(VLOOKUP(coustomerdata5[[#This Row],[Index]],database[],6,0),\"\")","v":2318.3925287356337},{"$f":"IFERROR(coustomerdata5[[#This Row],[Cout unitaire]]*coustomerdata5[[#This Row],[Quantite]],\"\")","v":6735},{"$f":"IFERROR(coustomerdata5[[#This Row],[Quantite]]*coustomerdata5[[#This Row],[Prix unitaire]]*(1-coustomerdata5[[#This Row],[Taux de reduction]]),\"\")","v":11591.962643678169},{"$f":"DAY(coustomerdata5[[#This Row],[Date]])","v":22},{"$f":"TEXT(coustomerdata5[[#This Row],[Date]], \"mmm\")","v":"janv"},{"$f":"TEXT(coustomerdata5[[#This Row],[Date]], \"aaaa\")","v":"2024"}]
[null,null,null,null,"2024-01-23","P050",3,"Grossiste","Carte",0,{"$f":"IFERROR(VLOOKUP(coustomerdata5[[#This Row],[Index]],database[],2,0),\"\")","v":"Poudre libre fixante"},{"$f":"IFERROR(VLOOKUP(coustomerdata5[[#This Row],[Index]],database[],3,0),\"\")","v":"Maquillage"},{"$f":"IFERROR(VLOOKUP(coustomerdata5[[#This Row],[Index]],database[],4,0),\"\")","v":"g"},{"$f":"IFERROR(VLOOKUP(coustomerdata5[[#This Row],[Index]],database[],5,0),\"\")","v":1438},{"$f":"IFERROR(VLOOKUP(coustomerdata5[[#This Row],[Index]],database[],6,0),\"\")","v":2290.0193939393948},{"$f":"IFERROR(coustomerdata5[[#This Row],[Cout unitaire]]*coustomerdata5[[#This Row],[Quantite]],\"\")","v":4314},{"$f":"IFERROR(coustomerdata5[[#This Row],[Quantite]]*coustomerdata5[[#This Row],[Prix unitaire]]*(1-coustomerdata5[[#This Row],[Taux de reduction]]),\"\")","v":6870.0581818181845},{"$f":"DAY(coustomerdata5[[#This Row],[Date]])","v":23},{"$f":"TEXT(coustomerdata5[[#This Row],[Date]], \"mmm\")","v":"janv"},{"$f":"TEXT(coustomerdata5[[#This Row],[Date]], \"aaaa\")","v":"2024"}]
[null,null,null,null,"2024-01-24","P018",7,"Détail","Mobile Money",0,{"$f":"IFERROR(VLOOKUP(coustomerdata5[[#This Row],[Index]],database[],2,0),\"\")","v":"Rouge à lèvres mat"},{"$f":"IFERROR(VLOOKUP(coustomerdata5[[#This Row],[Index]],database[],3,0),\"\")","v":"Maquillage"},{"$f":"IFERROR(VLOOKUP(coustomerdata5[[#This Row],[Index]],database[],4,0),\"\")","v":"g"},{"$f":"IFERROR(VLOOKUP(coustomerdata5[[#This Row],[Index]],database[],5,0),\"\")","v":1372},{"$f":"IFERROR(VLOOKUP(coustomerdata5[[#This Row],[Index]],database[],6,0),\"\")","v":2121.5981595092026},{"$f":"IFERROR(coustomerdata5[[#This Row],[Cout unitaire]]*coustomerdata5[[#This Row],[Quantite]],\"\")","v":9604},{"$f":"IFERROR(coustomerdata5[[#This Row],[Quantite]]*coustomerdata5[[#This Row],[Prix unitaire]]*(1-coustomerdata5[[#This Row],[Taux de reduction]]),\"\")","v":14851.187116564419},{"$f":"DAY(coustomerdata5[[#This Row],[Date]])","v":24},{"$f":"TEXT(coustomerdata5[[#This Row],[Date]], \"mmm\")","v":"janv"},{"$f":"TEXT(coustomerdata5[[#This Row],[Date]], \"aaaa\")","v":"2024"}]
[null,null,null,null,"2024-01-24","P007",5,"Détail","Mobile Money",0,{"$f":"IFERROR(VLOOKUP(coustomerdata5[[#This Row],[Index]],database[],2,0),\"\")","v":"Mousse volume"},{"$f":"IFERROR(VLOOKUP(coustomerdata5[[#This Row],[Index]],database[],3,0),\"\")","v":"Soins Capillaires"},{"$f":"IFERROR(VLOOKUP(coustomerdata5[[#This Row],[Index]],database[],4,0),\"\")","v":"mL"},{"$f":"IFERROR(VLOOKUP(coustomerdata5[[#This Row],[Index]],database[],5,0),\"\")","v":1479},{"$f":"IFERROR(VLOOKUP(coustomerdata5[[#This Row],[Index]],database[],6,0),\"\")","v":2313.7350150602456},{"$f":"IFERROR(coustomerdata5[[#This Row],[Cout unitaire]]*coustomerdata5[[#This Row],[Quantite]],\"\")","v":7395},{"$f":"IFERROR(coustomerdata5[[#This Row],[Quantite]]*coustomerdata5[[#This Row],[Prix unitaire]]*(1-coustomerdata5[[#This Row],[Taux de reduction]]),\"\")","v":11568.675075301227},{"$f":"DAY(coustomerdata5[[#This Row],[Date]])","v":24},{"$f":"TEXT(coustomerdata5[[#This Row],[Date]], \"mmm\")","v":"janv"},{"$f":"TEXT(coustomerdata5[[#This Row],[Date]], \"aaaa\")","v":"2024"}]
[null,null,null,null,"2024-01-25","P022",9,"Détail","Espèces",0,{"$f":"IFERROR(VLOOKUP(coustomerdata5[[#This Row],[Index]],database[],2,0),\"\")","v":"Masque capillaire"},{"$f":"IFERROR(VLOOKUP(coustomerdata5[[#This Row],[Index]],database[],3,0),\"\")","v":"Soins Capillaires"},{"$f":"IFERROR(VLOOKUP(coustomerdata5[[#This Row],[Index]],database[],4,0),\"\")","v":"mL"},{"$f":"IFERROR(VLOOKUP(coustomerdata5[[#This Row],[Index]],database[],5,0),\"\")","v":1307},{"$f":"IFERROR(VLOOKUP(coustomerdata5[[#This Row],[Index]],database[],6,0),\"\")","v":2290.0193939393948},{"$f":"IFERROR(coustomerdata5[[#This Row],[Cout unitaire]]*coustomerdata5[[#This Row],[Quantite]],\"\")","v":11763},{"$f":"IFERROR(coustomerdata5[[#This Row],[Quantite]]*coustomerdata5[[#This Row],[Prix unitaire]]*(1-coustomerdata5[[#This Row],[Taux de reduction]]),\"\")","v":20610.174545454553},{"$f":"DAY(coustomerdata5[[#This Row],[Date]])","v":25},{"$f":"TEXT(coustomerdata5[[#This Row],[Date]], \"mmm\")","v":"janv"},{"$f":"TEXT(coustomerdata5[[#This Row],[Date]], \"aaaa\")","v":"2024"}]
[null,null,null,null,"2024-01-25","P021",7,"Détail","Espèces",0,{"$f":"IFERROR(VLOOKUP(coustomerdata5[[#This Row],[Index]],database[],2,0),\"\")","v":"Huile nourrissante"},{"$f":"IFERROR(VLOOKUP(coustomerdata5[[#This Row],[Index]],database[],3,0),\"\")","v":"Soins du Corps"},{"$f":"IFERROR(VLOOKUP(coustomerdata5[[#This Row],[Index]],database[],4,0),\"\")","v":"mL"},{"$f":"IFERROR(VLOOKUP(coustomerdata5[[#This Row],[Index]],database[],5,0),\"\")","v":1489},{"$f":"IFERROR(VLOOKUP(coustomerdata5[[#This Row],[Index]],database[],6,0),\"\")","v":2313.7350150602456},{"$f":"IFERROR(coustomerdata5[[#This Row],[Cout unitaire]]*coustomerdata5[[#This Row],[Quantite]],\"\")","v":10423},{"$f":"IFERROR(coustomerdata5[[#This Row],[Quantite]]*coustomerdata5[[#This Row],[Prix unitaire]]*(1-coustomerdata5[[#This Row],[Taux de reduction]]),\"\")","v":16196.14510542172},{"$f":"DAY(coustomerdata5[[#This Row],[Date]])","v":25},{"$f":"TEXT(coustomerdata5[[#This Row],[Date]], \"mmm\")","v":"janv"},{"$f":"TEXT(coustomerdata5[[#This Row],[Date]], \"aaaa\")","v":"2024"}]
[null,null,null,null,"2024-01-25","P044",2,"Grossiste","Espèces",0,{"$f":"IFERROR(VLOOKUP(coustomerdata5[[#This Row],[Index]],database[],2,0),\"\")","v":"Spray thermo-protecteur"},{"$f":"IFERROR(VLOOKUP(coustomerdata5[[#This Row],[Index]],database[],3,0),\"\")","v":"Soins Capillaires"},{"$f":"IFERROR(VLOOKUP(coustomerdata5[[#This Row],[Index]],database[],4,0),\"\")","v":"mL"},{"$f":"IFERROR(VLOOKUP(coustomerdata5[[#This Row],[Index]],database[],5,0),\"\")","v":1423},{"$f":"IFERROR(VLOOKUP(coustomerdata5[[#This Row],[Index]],database[],6,0),\"\")","v":2285.5296327924843},{"$f":"IFERROR(coustomerdata5[[#This Row],[Cout unitaire]]*coustomerdata5[[#This Row],[Quantite]],\"\")","v":2846},{"$f":"IFERROR(coustomerdata5[[#This Row],[Quantite]]*coustomerdata5[[#This Row],[Prix unitaire]]*(1-coustomerdata5[[#This Row],[Taux de reduction]]),\"\")","v":4571.0592655849687},{"$f":"DAY(coustomerdata5[[#This Row],[Date]])","v":25},{"$f":"TEXT(coustomerdata5[[#This Row],[Date]], \"mmm\")","v":"janv"},{"$f":"TEXT(coustomerdata5[[#This Row],[Date]], \"aaaa\")","v":"2024"}]
[null,null,null,null,"2024-01-26","P018",4,"Grossiste","Carte",0,{"$f":"IFERROR(VLOOKUP(coustomerdata5[[#This Row],[Index]],database[],2,0),\"\")","v":"Rouge à lèvres mat"},{"$f":"IFERROR(VLOOKUP(coustomerdata5[[#This Row],[Index]],database[],3,0),\"\")","v":"Maquillage"},{"$f":"IFERROR(VLOOKUP(coustomerdata5[[#This Row],[Index]],database[],4,0),\"\")","v":"g"},{"$f":"IFERROR(VLOOKUP(coustomerdata5[[#This Row],[Index]],database[],5,0),\"\")","v":1372},{"$f":"IFERROR(VLOOKUP(coustomerdata5[[#This Row],[Index]],database[],6,0),\"\")","v":2121.5981595092026},{"$f":"IFERROR(coustomerdata5[[#This Row],[Cout unitaire]]*coustomerdata5[[#This Row],[Quantite]],\"\")","v":5488},{"$f":"IFERROR(coustomerdata5[[#This Row],[Quantite]]*coustomerdata5[[#This Row],[Prix unitaire]]*(1-coustomerdata5[[#This Row],[Taux de reduction]]),\"\")","v":8486.3926380368102},{"$f":"DAY(coustomerdata5[[#This Row],[Date]])","v":26},{"$f":"TEXT(coustomerdata5[[#This Row],[Date]], \"mmm\")","v":"janv"},{"$f":"TEXT(coustomerdata5[[#This Row],[Date]], \"aaaa\")","v":"2024"}]
[null,null,null,null,"2024-01-26","P018",9,"Détail","Mobile Money",0,{"$f":"IFERROR(VLOOKUP(coustomerdata5[[#This Row],[Index]],database[],2,0),\"\")","v":"Rouge à lèvres mat"},{"$f":"IFERROR(VLOOKUP(coustomerdata5[[#This Row],[Index]],database[],3,0),\"\")","v":"Maquillage"},{"$f":"IFERROR(VLOOKUP(coustomerdata5[[#This Row],[Index]],database[],4,0),\"\")","v":"g"},{"$f":"IFERROR(VLOOKUP(coustomerdata5[[#This Row],[Index]],database[],5,0),\"\")","v":1372},{"$f":"IFERROR(VLOOKUP(coustomerdata5[[#This Row],[Index]],database[],6,0),\"\")","v":2121.5981595092026},{"$f":"IFERROR(coustomerdata5[[#This Row],[Cout unitaire]]*coustomerdata5[[#This Row],[Quantite]],\"\")","v":12348},{"$f":"IFERROR(coustomerdata5[[#This Row],[Quantite]]*coustomerdata5[[#This Row],[Prix unitaire]]*(1-coustomerdata5[[#This Row],[Taux de reduction]]),\"\")","v":19094.383435582822},{"$f":"DAY(coustomerdata5[[#This Row],[Date]])","v":26},{"$f":"TEXT(coustomerdata5[[#This Row],[Date]], \"mmm\")","v":"janv"},{"$f":"TEXT(coustomerdata5[[#This Row],[Date]], \"aaaa\")","v":"2024"}]
[null,null,null,null,"2024-01-27","P025",2,"Grossiste","Carte",0,{"$f":"IFERROR(VLOOKUP(coustomerdata5[[#This Row],[Index]],database[],2,0),\"\")","v":"Cire coiffante"},{"$f":"IFERROR(VLOOKUP(coustomerdata5[[#This Row],[Index]],database[],3,0),\"\")","v":"Soins Capillaires"},{"$f":"IFERROR(VLOOKUP(coustomerdata5[[#This Row],[Index]],database[],4,0),\"\")","v":"g"},{"$f":"IFERROR(VLOOKUP(coustomerdata5[[#This Row],[Index]],database[],5,0),\"\")","v":1440},{"$f":"IFERROR(VLOOKUP(coustomerdata5[[#This Row],[Index]],database[],6,0),\"\")","v":2295.3177966101698},{"$f":"IFERROR(coustomerdata5[[#This Row],[Cout unitaire]]*coustomerdata5[[#This Row],[Quantite]],\"\")","v":2880},{"$f":"IFERROR(coustomerdata5[[#This Row],[Quantite]]*coustomerdata5[[#This Row],[Prix unitaire]]*(1-coustomerdata5[[#This Row],[Taux de reduction]]),\"\")","v":4590.6355932203396},{"$f":"DAY(coustomerdata5[[#This Row],[Date]])","v":27},{"$f":"TEXT(coustomerdata5[[#This Row],[Date]], \"mmm\")","v":"janv"},{"$f":"TEXT(coustomerdata5[[#This Row],[Date]], \"aaaa\")","v":"2024"}]
[null,null,null,null,"2024-01-27","P021",9,"Grossiste","Mobile Money",0,{"$f":"IFERROR(VLOOKUP(coustomerdata5[[#This Row],[Index]],database[],2,0),\"\")","v":"Huile nourrissante"},{"$f":"IFERROR(VLOOKUP(coustomerdata5[[#This Row],[Index]],database[],3,0),\"\")","v":"Soins du Corps"},{"$f":"IFERROR(VLOOKUP(coustomerdata5[[#This Row],[Index]],database[],4,0),\"\")","v":"mL"},{"$f":"IFERROR(VLOOKUP(coustomerdata5[[#This Row],[Index]],database[],5,0),\"\")","v":1489},{"$f":"IFERROR(VLOOKUP(coustomerdata5[[#This Row],[Index]],database[],6,0),\"\")","v":2313.7350150602456},{"$f":"IFERROR(coustomerdata5[[#This Row],[Cout unitaire]]*coustomerdata5[[#This Row],[Quantite]],\"\")","v":13401},{"$f":"IFERROR(coustomerdata5[[#This Row],[Quantite]]*coustomerdata5[[#This Row],[Prix unitaire]]*(1-coustomerdata5[[#This Row],[Taux de reduction]]),\"\")","v":20823.615135542212},{"$f":"DAY(coustomerdata5[[#This Row],[Date]])","v":27},{"$f":"TEXT(coustomerdata5[[#This Row],[Date]], \"mmm\")","v":"janv"},{"$f":"TEXT(coustomerdata5[[#This Row],[Date]], \"aaaa\")","v":"2024"}]
[null,null,null,null,"2024-01-27","P021",5,"Détail","Espèces",0,{"$f":"IFERROR(VLOOKUP(coustomerdata5[[#This Row],[Index]],database[],2,0),\"\")","v":"Huile nourrissante"},{"$f":"IFERROR(VLOOKUP(coustomerdata5[[#This Row],[Index]],database[],3,0),\"\")","v":"Soins du Corps"},{"$f":"IFERROR(VLOOKUP(coustomerdata5[[#This Row],[Index]],database[],4,0),\"\")","v":"mL"},{"$f":"IFERROR(VLOOKUP(coustomerdata5[[#This Row],[Index]],database[],5,0),\"\")","v":1489},{"$f":"IFERROR(VLOOKUP(coustomerdata5[[#This Row],[Index]],database[],6,0),\"\")","v":2313.7350150602456},{"$f":"IFERROR(coustomerdata5[[#This Row],[Cout unitaire]]*coustomerdata5[[#This Row],[Quantite]],\"\")","v":7445},{"$f":"IFERROR(coustomerdata5[[#This Row],[Quantite]]*coustomerdata5[[#This Row],[Prix unitaire]]*(1-coustomerdata5[[#This Row],[Taux de reduction]]),\"\")","v":11568.675075301227},{"$f":"DAY(coustomerdata5[[#This Row],[Date]])","v":27},{"$f":"TEXT(coustomerdata5[[#This Row],[Date]], \"mmm\")","v":"janv"},{"$f":"TEXT(coustomerdata5[[#This Row],[Date]], \"aaaa\")","v":"2024"}]
[null,null,null,null,"2024-01-28","P008",2,"Grossiste","Carte",0,{"$f":"IFERROR(VLOOKUP(coustomerdata5[[#This Row],[Index]],database[],2,0),\"\")","v":"Lotion tonique"},{"$f":"IFERROR(VLOOKUP(coustomerdata5[[#This Row],[Index]],database[],3,0),\"\")","v":"Soins du Visage"},{"$f":"IFERROR(VLOOKUP(coustomerdata5[[#This Row],[Index]],database[],4,0),\"\")","v":"mL"},{"$f":"IFERROR(VLOOKUP(coustomerdata5[[#This Row],[Index]],database[],5,0),\"\")","v":1489},{"$f":"IFERROR(VLOOKUP(coustomerdata5[[#This Row],[Index]],database[],6,0),\"\")","v":2290.0193939393948},{"$f":"IFERROR(coustomerdata5[[#This Row],[Cout unitaire]]*coustomerdata5[[#This Row],[Quantite]],\"\")","v":2978},{"$f":"IFERROR(coustomerdata5[[#This Row],[Quantite]]*coustomerdata5[[#This Row],[Prix unitaire]]*(1-coustomerdata5[[#This Row],[Taux de reduction]]),\"\")","v":4580.0387878787897},{"$f":"DAY(coustomerdata5[[#This Row],[Date]])","v":28},{"$f":"TEXT(coustomerdata5[[#This Row],[Date]], \"mmm\")","v":"janv"},{"$f":"TEXT(coustomerdata5[[#This Row],[Date]], \"aaaa\")","v":"2024"}]
[null,null,null,null,"2024-01-28","P011",4,"Grossiste","Carte",0,{"$f":"IFERROR(VLOOKUP(coustomerdata5[[#This Row],[Index]],database[],2,0),\"\")","v":"Eau micellaire"},{"$f":"IFERROR(VLOOKUP(coustomerdata5[[#This Row],[Index]],database[],3,0),\"\")","v":"Soins du Visage"},{"$f":"IFERROR(VLOOKUP(coustomerdata5[[#This Row],[Index]],database[],4,0),\"\")","v":"mL"},{"$f":"IFERROR(VLOOKUP(coustomerdata5[[#This Row],[Index]],database[],5,0),\"\")","v":1489},{"$f":"IFERROR(VLOOKUP(coustomerdata5[[#This Row],[Index]],database[],6,0),\"\")","v":2295.3177966101698},{"$f":"IFERROR(coustomerdata5[[#This Row],[Cout unitaire]]*coustomerdata5[[#This Row],[Quantite]],\"\")","v":5956},{"$f":"IFERROR(coustomerdata5[[#This Row],[Quantite]]*coustomerdata5[[#This Row],[Prix unitaire]]*(1-coustomerdata5[[#This Row],[Taux de reduction]]),\"\")","v":9181.2711864406792},{"$f":"DAY(coustomerdata5[[#This Row],[Date]])","v":28},{"$f":"TEXT(coustomerdata5[[#This Row],[Date]], \"mmm\")","v":"janv"},{"$f":"TEXT(coustomerdata5[[#This Row],[Date]], \"aaaa\")","v":"2024"}]
[null,null,null,null,"2024-01-29","P041",7,"Détail","Espèces",0,{"$f":"IFERROR(VLOOKUP(coustomerdata5[[#This Row],[Index]],database[],2,0),\"\")","v":"Gel douche hydratant"},{"$f":"IFERROR(VLOOKUP(coustomerdata5[[#This Row],[Index]],database[],3,0),\"\")","v":"Soins du Corps"},{"$f":"IFERROR(VLOOKUP(coustomerdata5[[#This Row],[Index]],database[],4,0),\"\")","v":"mL"},{"$f":"IFERROR(VLOOKUP(coustomerdata5[[#This Row],[Index]],database[],5,0),\"\")","v":1456},{"$f":"IFERROR(VLOOKUP(coustomerdata5[[#This Row],[Index]],database[],6,0),\"\")","v":2198.2071542130352},{"$f":"IFERROR(coustomerdata5[[#This Row],[Cout unitaire]]*coustomerdata5[[#This Row],[Quantite]],\"\")","v":10192},{"$f":"IFERROR(coustomerdata5[[#This Row],[Quantite]]*coustomerdata5[[#This Row],[Prix unitaire]]*(1-coustomerdata5[[#This Row],[Taux de reduction]]),\"\")","v":15387.450079491246},{"$f":"DAY(coustomerdata5[[#This Row],[Date]])","v":29},{"$f":"TEXT(coustomerdata5[[#This Row],[Date]], \"mmm\")","v":"janv"},{"$f":"TEXT(coustomerdata5[[#This Row],[Date]], \"aaaa\")","v":"2024"}]
[null,null,null,null,"2024-01-29","P039",8,"Détail","Carte",0,{"$f":"IFERROR(VLOOKUP(coustomerdata5[[#This Row],[Index]],database[],2,0),\"\")","v":"Crème pour les mains"},{"$f":"IFERROR(VLOOKUP(coustomerdata5[[#This Row],[Index]],database[],3,0),\"\")","v":"Soins du Corps"},{"$f":"IFERROR(VLOOKUP(coustomerdata5[[#This Row],[Index]],database[],4,0),\"\")","v":"mL"},{"$f":"IFERROR(VLOOKUP(coustomerdata5[[#This Row],[Index]],database[],5,0),\"\")","v":1440},{"$f":"IFERROR(VLOOKUP(coustomerdata5[[#This Row],[Index]],database[],6,0),\"\")","v":2295.3177966101698},{"$f":"IFERROR(coustomerdata5[[#This Row],[Cout unitaire]]*coustomerdata5[[#This Row],[Quantite]],\"\")","v":11520},{"$f":"IFERROR(coustomerdata5[[#This Row],[Quantite]]*coustomerdata5[[#This Row],[Prix unitaire]]*(1-coustomerdata5[[#This Row],[Taux de reduction]]),\"\")","v":18362.542372881358},{"$f":"DAY(coustomerdata5[[#This Row],[Date]])","v":29},{"$f":"TEXT(coustomerdata5[[#This Row],[Date]], \"mmm\")","v":"janv"},{"$f":"TEXT(coustomerdata5[[#This Row],[Date]], \"aaaa\")","v":"2024"}]
[null,null,null,null,"2024-01-29","P014",3,"Détail","Carte",0,{"$f":"IFERROR(VLOOKUP(coustomerdata5[[#This Row],[Index]],database[],2,0),\"\")","v":"Crème coiffante"},{"$f":"IFERROR(VLOOKUP(coustomerdata5[[#This Row],[Index]],database[],3,0),\"\")","v":"Soins Capillaires"},{"$f":"IFERROR(VLOOKUP(coustomerdata5[[#This Row],[Index]],database[],4,0),\"\")","v":"mL"},{"$f":"IFERROR(VLOOKUP(coustomerdata5[[#This Row],[Index]],database[],5,0),\"\")","v":1479},{"$f":"IFERROR(VLOOKUP(coustomerdata5[[#This Row],[Index]],database[],6,0),\"\")","v":2409.5477124183008},{"$f":"IFERROR(coustomerdata5[[#This Row],[Cout unitaire]]*coustomerdata5[[#This Row],[Quantite]],\"\")","v":4437},{"$f":"IFERROR(coustomerdata5[[#This Row],[Quantite]]*coustomerdata5[[#This Row],[Prix unitaire]]*(1-coustomerdata5[[#This Row],[Taux de reduction]]),\"\")","v":7228.6431372549023},{"$f":"DAY(coustomerdata5[[#This Row],[Date]])","v":29},{"$f":"TEXT(coustomerdata5[[#This Row],[Date]], \"mmm\")","v":"janv"},{"$f":"TEXT(coustomerdata5[[#This Row],[Date]], \"aaaa\")","v":"2024"}]
[null,null,null,null,"2024-01-29","P018",1,"Grossiste","Mobile Money",0,{"$f":"IFERROR(VLOOKUP(coustomerdata5[[#This Row],[Index]],database[],2,0),\"\")","v":"Rouge à lèvres mat"},{"$f":"IFERROR(VLOOKUP(coustomerdata5[[#This Row],[Index]],database[],3,0),\"\")","v":"Maquillage"},{"$f":"IFERROR(VLOOKUP(coustomerdata5[[#This Row],[Index]],database[],4,0),\"\")","v":"g"},{"$f":"IFERROR(VLOOKUP(coustomerdata5[[#This Row],[Index]],database[],5,0),\"\")","v":1372},{"$f":"IFERROR(VLOOKUP(coustomerdata5[[#This Row],[Index]],database[],6,0),\"\")","v":2121.5981595092026},{"$f":"IFERROR(coustomerdata5[[#This Row],[Cout unitaire]]*coustomerdata5[[#This Row],[Quantite]],\"\")","v":1372},{"$f":"IFERROR(coustomerdata5[[#This Row],[Quantite]]*coustomerdata5[[#This Row],[Prix unitaire]]*(1-coustomerdata5[[#This Row],[Taux de reduction]]),\"\")","v":2121.5981595092026},{"$f":"DAY(coustomerdata5[[#This Row],[Date]])","v":29},{"$f":"TEXT(coustomerdata5[[#This Row],[Date]], \"mmm\")","v":"janv"},{"$f":"TEXT(coustomerdata5[[#This Row],[Date]], \"aaaa\")","v":"2024"}]
[null,null,null,null,"2024-01-30","P023",4,"Détail","Carte",0,{"$f":"IFERROR(VLOOKUP(coustomerdata5[[#This Row],[Index]],database[],2,0),\"\")","v":"Masque purifiant"},{"$f":"IFERROR(VLOOKUP(coustomerdata5[[#This Row],[Index]],database[],3,0),\"\")","v":"Soins du Visage"},{"$f":"IFERROR(VLOOKUP(coustomerdata5[[#This Row],[Index]],database[],4,0),\"\")","v":"g"},{"$f":"IFERROR(VLOOKUP(coustomerdata5[[#This Row],[Index]],database[],5,0),\"\")","v":1457},{"$f":"IFERROR(VLOOKUP(coustomerdata5[[#This Row],[Index]],database[],6,0),\"\")","v":2171.2942622950832},{"$f":"IFERROR(coustomerdata5[[#This Row],[Cout unitaire]]*coustomerdata5[[#This Row],[Quantite]],\"\")","v":5828},{"$f":"IFERROR(coustomerdata5[[#This Row],[Quantite]]*coustomerdata5[[#This Row],[Prix unitaire]]*(1-coustomerdata5[[#This Row],[Taux de reduction]]),\"\")","v":8685.1770491803327},{"$f":"DAY(coustomerdata5[[#This Row],[Date]])","v":30},{"$f":"TEXT(coustomerdata5[[#This Row],[Date]], \"mmm\")","v":"janv"},{"$f":"TEXT(coustomerdata5[[#This Row],[Date]], \"aaaa\")","v":"2024"}]
[null,null,null,null,"2024-01-30","P050",2,"Grossiste","Mobile Money",0,{"$f":"IFERROR(VLOOKUP(coustomerdata5[[#This Row],[Index]],database[],2,0),\"\")","v":"Poudre libre fixante"},{"$f":"IFERROR(VLOOKUP(coustomerdata5[[#This Row],[Index]],database[],3,0),\"\")","v":"Maquillage"},{"$f":"IFERROR(VLOOKUP(coustomerdata5[[#This Row],[Index]],database[],4,0),\"\")","v":"g"},{"$f":"IFERROR(VLOOKUP(coustomerdata5[[#This Row],[Index]],database[],5,0),\"\")","v":1438},{"$f":"IFERROR(VLOOKUP(coustomerdata5[[#This Row],[Index]],database[],6,0),\"\")","v":2290.0193939393948},{"$f":"IFERROR(coustomerdata5[[#This Row],[Cout unitaire]]*coustomerdata5[[#This Row],[Quantite]],\"\")","v":2876},{"$f":"IFERROR(coustomerdata5[[#This Row],[Quantite]]*coustomerdata5[[#This Row],[Prix unitaire]]*(1-coustomerdata5[[#This Row],[Taux de reduction]]),\"\")","v":4580.0387878787897},{"$f":"DAY(coustomerdata5[[#This Row],[Date]])","v":30},{"$f":"TEXT(coustomerdata5[[#This Row],[Date]], \"mmm\")","v":"janv"},{"$f":"TEXT(coustomerdata5[[#This Row],[Date]], \"aaaa\")","v":"2024"}]
[null,null,null,null,"2024-01-30","P042",8,"Grossiste","Mobile Money",0,{"$f":"IFERROR(VLOOKUP(coustomerdata5[[#This Row],[Index]],database[],2,0),\"\")","v":"Crème hydratante"},{"$f":"IFERROR(VLOOKUP(coustomerdata5[[#This Row],[Index]],database[],3,0),\"\")","v":"Soins du Visage"},{"$f":"IFERROR(VLOOKUP(coustomerdata5[[#This Row],[Index]],database[],4,0),\"\")","v":"mL"},{"$f":"IFERROR(VLOOKUP(coustomerdata5[[#This Row],[Index]],database[],5,0),\"\")","v":1448},{"$f":"IFERROR(VLOOKUP(coustomerdata5[[#This Row],[Index]],database[],6,0),\"\")","v":2409.5477124183008},{"$f":"IFERROR(coustomerdata5[[#This Row],[Cout unitaire]]*coustomerdata5[[#This Row],[Quantite]],\"\")","v":11584},{"$f":"IFERROR(coustomerdata5[[#This Row],[Quantite]]*coustomerdata5[[#This Row],[Prix unitaire]]*(1-coustomerdata5[[#This Row],[Taux de reduction]]),\"\")","v":19276.381699346406},{"$f":"DAY(coustomerdata5[[#This Row],[Date]])","v":30},{"$f":"TEXT(coustomerdata5[[#This Row],[Date]], \"mmm\")","v":"janv"},{"$f":"TEXT(coustomerdata5[[#This Row],[Date]], \"aaaa\")","v":"2024"}]
[null,null,null,null,"2024-01-31","P002",4,"Grossiste","Espèces",0,{"$f":"IFERROR(VLOOKUP(coustomerdata5[[#This Row],[Index]],database[],2,0),\"\")","v":"Eye-liner waterproof"},{"$f":"IFERROR(VLOOKUP(coustomerdata5[[#This Row],[Index]],database[],3,0),\"\")","v":"Maquillage"},{"$f":"IFERROR(VLOOKUP(coustomerdata5[[#This Row],[Index]],database[],4,0),\"\")","v":"mL"},{"$f":"IFERROR(VLOOKUP(coustomerdata5[[#This Row],[Index]],database[],5,0),\"\")","v":1489},{"$f":"IFERROR(VLOOKUP(coustomerdata5[[#This Row],[Index]],database[],6,0),\"\")","v":2285.5296327924843},{"$f":"IFERROR(coustomerdata5[[#This Row],[Cout unitaire]]*coustomerdata5[[#This Row],[Quantite]],\"\")","v":5956},{"$f":"IFERROR(coustomerdata5[[#This Row],[Quantite]]*coustomerdata5[[#This Row],[Prix unitaire]]*(1-coustomerdata5[[#This Row],[Taux de reduction]]),\"\")","v":9142.1185311699373},{"$f":"DAY(coustomerdata5[[#This Row],[Date]])","v":31},{"$f":"TEXT(coustomerdata5[[#This Row],[Date]], \"mmm\")","v":"janv"},{"$f":"TEXT(coustomerdata5[[#This Row],[Date]], \"aaaa\")","v":"2024"}]
[null,null,null,null,"2024-01-31","P001",2,"Détail","Espèces",0,{"$f":"IFERROR(VLOOKUP(coustomerdata5[[#This Row],[Index]],database[],2,0),\"\")","v":"Crème pour les pieds"},{"$f":"IFERROR(VLOOKUP(coustomerdata5[[#This Row],[Index]],database[],3,0),\"\")","v":"Soins du Corps"},{"$f":"IFERROR(VLOOKUP(coustomerdata5[[#This Row],[Index]],database[],4,0),\"\")","v":"mL"},{"$f":"IFERROR(VLOOKUP(coustomerdata5[[#This Row],[Index]],database[],5,0),\"\")","v":1479},{"$f":"IFERROR(VLOOKUP(coustomerdata5[[#This Row],[Index]],database[],6,0),\"\")","v":2304.6419330289204},{"$f":"IFERROR(coustomerdata5[[#This Row],[Cout unitaire]]*coustomerdata5[[#This Row],[Quantite]],\"\")","v":2958},{"$f":"IFERROR(coustomerdata5[[#This Row],[Quantite]]*coustomerdata5[[#This Row],[Prix unitaire]]*(1-coustomerdata5[[#This Row],[Taux de reduction]]),\"\")","v":4609.2838660578409},{"$f":"DAY(coustomerdata5[[#This Row],[Date]])","v":31},{"$f":"TEXT(coustomerdata5[[#This Row],[Date]], \"mmm\")","v":"janv"},{"$f":"TEXT(coustomerdata5[[#This Row],[Date]], \"aaaa\")","v":"2024"}]
[null,null,null,null,"2024-02-01","P040",6,"Détail","Carte",0,{"$f":"IFERROR(VLOOKUP(coustomerdata5[[#This Row],[Index]],database[],2,0),\"\")","v":"Shampoing sec"},{"$f":"IFERROR(VLOOKUP(coustomerdata5[[#This Row],[Index]],database[],3,0),\"\")","v":"Soins Capillaires"},{"$f":"IFERROR(VLOOKUP(coustomerdata5[[#This Row],[Index]],database[],4,0),\"\")","v":"mL"},{"$f":"IFERROR(VLOOKUP(coustomerdata5[[#This Row],[Index]],database[],5,0),\"\")","v":1456},{"$f":"IFERROR(VLOOKUP(coustomerdata5[[#This Row],[Index]],database[],6,0),\"\")","v":2300.5051282051286},{"$f":"IFERROR(coustomerdata5[[#This Row],[Cout unitaire]]*coustomerdata5[[#This Row],[Quantite]],\"\")","v":8736},{"$f":"IFERROR(coustomerdata5[[#This Row],[Quantite]]*coustomerdata5[[#This Row],[Prix unitaire]]*(1-coustomerdata5[[#This Row],[Taux de reduction]]),\"\")","v":13803.030769230772},{"$f":"DAY(coustomerdata5[[#This Row],[Date]])","v":1},{"$f":"TEXT(coustomerdata5[[#This Row],[Date]], \"mmm\")","v":"févr"},{"$f":"TEXT(coustomerdata5[[#This Row],[Date]], \"aaaa\")","v":"2024"}]
[null,null,null,null,"2024-02-02","P034",6,"Grossiste","Espèces",0,{"$f":"IFERROR(VLOOKUP(coustomerdata5[[#This Row],[Index]],database[],2,0),\"\")","v":"Blush rosé"},{"$f":"IFERROR(VLOOKUP(coustomerdata5[[#This Row],[Index]],database[],3,0),\"\")","v":"Maquillage"},{"$f":"IFERROR(VLOOKUP(coustomerdata5[[#This Row],[Index]],database[],4,0),\"\")","v":"g"},{"$f":"IFERROR(VLOOKUP(coustomerdata5[[#This Row],[Index]],database[],5,0),\"\")","v":1448},{"$f":"IFERROR(VLOOKUP(coustomerdata5[[#This Row],[Index]],database[],6,0),\"\")","v":2318.3925287356337},{"$f":"IFERROR(coustomerdata5[[#This Row],[Cout unitaire]]*coustomerdata5[[#This Row],[Quantite]],\"\")","v":8688},{"$f":"IFERROR(coustomerdata5[[#This Row],[Quantite]]*coustomerdata5[[#This Row],[Prix unitaire]]*(1-coustomerdata5[[#This Row],[Taux de reduction]]),\"\")","v":13910.355172413801},{"$f":"DAY(coustomerdata5[[#This Row],[Date]])","v":2},{"$f":"TEXT(coustomerdata5[[#This Row],[Date]], \"mmm\")","v":"févr"},{"$f":"TEXT(coustomerdata5[[#This Row],[Date]], \"aaaa\")","v":"2024"}]
[null,null,null,null,"2024-02-03","P004",4,"Détail","Carte",0,{"$f":"IFERROR(VLOOKUP(coustomerdata5[[#This Row],[Index]],database[],2,0),\"\")","v":"Spray thermo-protecteur"},{"$f":"IFERROR(VLOOKUP(coustomerdata5[[#This Row],[Index]],database[],3,0),\"\")","v":"Soins Capillaires"},{"$f":"IFERROR(VLOOKUP(coustomerdata5[[#This Row],[Index]],database[],4,0),\"\")","v":"mL"},{"$f":"IFERROR(VLOOKUP(coustomerdata5[[#This Row],[Index]],database[],5,0),\"\")","v":1372},{"$f":"IFERROR(VLOOKUP(coustomerdata5[[#This Row],[Index]],database[],6,0),\"\")","v":2121.5981595092026},{"$f":"IFERROR(coustomerdata5[[#This Row],[Cout unitaire]]*coustomerdata5[[#This Row],[Quantite]],\"\")","v":5488},{"$f":"IFERROR(coustomerdata5[[#This Row],[Quantite]]*coustomerdata5[[#This Row],[Prix unitaire]]*(1-coustomerdata5[[#This Row],[Taux de reduction]]),\"\")","v":8486.3926380368102},{"$f":"DAY(coustomerdata5[[#This Row],[Date]])","v":3},{"$f":"TEXT(coustomerdata5[[#This Row],[Date]], \"mmm\")","v":"févr"},{"$f":"TEXT(coustomerdata5[[#This Row],[Date]], \"aaaa\")","v":"2024"}]
[null,null,null,null,"2024-02-04","P040",6,"Grossiste","Espèces",0,{"$f":"IFERROR(VLOOKUP(coustomerdata5[[#This Row],[Index]],database[],2,0),\"\")","v":"Shampoing sec"},{"$f":"IFERROR(VLOOKUP(coustomerdata5[[#This Row],[Index]],database[],3,0),\"\")","v":"Soins Capillaires"},{"$f":"IFERROR(VLOOKUP(coustomerdata5[[#This Row],[Index]],database[],4,0),\"\")","v":"mL"},{"$f":"IFERROR(VLOOKUP(coustomerdata5[[#This Row],[Index]],database[],5,0),\"\")","v":1456},{"$f":"IFERROR(VLOOKUP(coustomerdata5[[#This Row],[Index]],database[],6,0),\"\")","v":2300.5051282051286},{"$f":"IFERROR(coustomerdata5[[#This Row],[Cout unitaire]]*coustomerdata5[[#This Row],[Quantite]],\"\")","v":8736},{"$f":"IFERROR(coustomerdata5[[#This Row],[Quantite]]*coustomerdata5[[#This Row],[Prix unitaire]]*(1-coustomerdata5[[#This Row],[Taux de reduction]]),\"\")","v":13803.030769230772},{"$f":"DAY(coustomerdata5[[#This Row],[Date]])","v":4},{"$f":"TEXT(coustomerdata5[[#This Row],[Date]], \"mmm\")","v":"févr"},{"$f":"TEXT(coustomerdata5[[#This Row],[Date]], \"aaaa\")","v":"2024"}]
[null,null,null,null,"2024-02-05","P006",2,"Grossiste","Mobile Money",0,{"$f":"IFERROR(VLOOKUP(coustomerdata5[[#This Row],[Index]],database[],2,0),\"\")","v":"Déodorant naturel"},{"$f":"IFERROR(VLOOKUP(coustomerdata5[[#This Row],[Index]],database[],3,0),\"\")","v":"Soins du Corps"},{"$f":"IFERROR(VLOOKUP(coustomerdata5[[#This Row],[Index]],database[],4,0),\"\")","v":"mL"},{"$f":"IFERROR(VLOOKUP(coustomerdata5[[#This Row],[Index]],database[],5,0),\"\")","v":1440},{"$f":"IFERROR(VLOOKUP(coustomerdata5[[#This Row],[Index]],database[],6,0),\"\")","v":2318.3925287356337},{"$f":"IFERROR(coustomerdata5[[#This Row],[Cout unitaire]]*coustomerdata5[[#This Row],[Quantite]],\"\")","v":2880},{"$f":"IFERROR(coustomerdata5[[#This Row],[Quantite]]*coustomerdata5[[#This Row],[Prix unitaire]]*(1-coustomerdata5[[#This Row],[Taux de reduction]]),\"\")","v":4636.7850574712675},{"$f":"DAY(coustomerdata5[[#This Row],[Date]])","v":5},{"$f":"TEXT(coustomerdata5[[#This Row],[Date]], \"mmm\")","v":"févr"},{"$f":"TEXT(coustomerdata5[[#This Row],[Date]], \"aaaa\")","v":"2024"}]
[null,null,null,null,"2024-02-06","P041",2,"Détail","Mobile Money",0,{"$f":"IFERROR(VLOOKUP(coustomerdata5[[#This Row],[Index]],database[],2,0),\"\")","v":"Gel douche hydratant"},{"$f":"IFERROR(VLOOKUP(coustomerdata5[[#This Row],[Index]],database[],3,0),\"\")","v":"Soins du Corps"},{"$f":"IFERROR(VLOOKUP(coustomerdata5[[#This Row],[Index]],database[],4,0),\"\")","v":"mL"},{"$f":"IFERROR(VLOOKUP(coustomerdata5[[#This Row],[Index]],database[],5,0),\"\")","v":1456},{"$f":"IFERROR(VLOOKUP(coustomerdata5[[#This Row],[Index]],database[],6,0),\"\")","v":2198.2071542130352},{"$f":"IFERROR(coustomerdata5[[#This Row],[Cout unitaire]]*coustomerdata5[[#This Row],[Quantite]],\"\")","v":2912},{"$f":"IFERROR(coustomerdata5[[#This Row],[Quantite]]*coustomerdata5[[#This Row],[Prix unitaire]]*(1-coustomerdata5[[#This Row],[Taux de reduction]]),\"\")","v":4396.4143084260704},{"$f":"DAY(coustomerdata5[[#This Row],[Date]])","v":6},{"$f":"TEXT(coustomerdata5[[#This Row],[Date]], \"mmm\")","v":"févr"},{"$f":"TEXT(coustomerdata5[[#This Row],[Date]], \"aaaa\")","v":"2024"}]
[null,null,null,null,"2024-02-07","P045",4,"Grossiste","Espèces",0,{"$f":"IFERROR(VLOOKUP(coustomerdata5[[#This Row],[Index]],database[],2,0),\"\")","v":"Palette de fards"},{"$f":"IFERROR(VLOOKUP(coustomerdata5[[#This Row],[Index]],database[],3,0),\"\")","v":"Maquillage"},{"$f":"IFERROR(VLOOKUP(coustomerdata5[[#This Row],[Index]],database[],4,0),\"\")","v":"g"},{"$f":"IFERROR(VLOOKUP(coustomerdata5[[#This Row],[Index]],database[],5,0),\"\")","v":1440},{"$f":"IFERROR(VLOOKUP(coustomerdata5[[#This Row],[Index]],database[],6,0),\"\")","v":2194.270807453418},{"$f":"IFERROR(coustomerdata5[[#This Row],[Cout unitaire]]*coustomerdata5[[#This Row],[Quantite]],\"\")","v":5760},{"$f":"IFERROR(coustomerdata5[[#This Row],[Quantite]]*coustomerdata5[[#This Row],[Prix unitaire]]*(1-coustomerdata5[[#This Row],[Taux de reduction]]),\"\")","v":8777.083229813672},{"$f":"DAY(coustomerdata5[[#This Row],[Date]])","v":7},{"$f":"TEXT(coustomerdata5[[#This Row],[Date]], \"mmm\")","v":"févr"},{"$f":"TEXT(coustomerdata5[[#This Row],[Date]], \"aaaa\")","v":"2024"}]
[null,null,null,null,"2024-02-08","P040",8,"Grossiste","Espèces",0,{"$f":"IFERROR(VLOOKUP(coustomerdata5[[#This Row],[Index]],database[],2,0),\"\")","v":"Shampoing sec"},{"$f":"IFERROR(VLOOKUP(coustomerdata5[[#This Row],[Index]],database[],3,0),\"\")","v":"Soins Capillaires"},{"$f":"IFERROR(VLOOKUP(coustomerdata5[[#This Row],[Index]],database[],4,0),\"\")","v":"mL"},{"$f":"IFERROR(VLOOKUP(coustomerdata5[[#This Row],[Index]],database[],5,0),\"\")","v":1456},{"$f":"IFERROR(VLOOKUP(coustomerdata5[[#This Row],[Index]],database[],6,0),\"\")","v":2300.5051282051286},{"$f":"IFERROR(coustomerdata5[[#This Row],[Cout unitaire]]*coustomerdata5[[#This Row],[Quantite]],\"\")","v":11648},{"$f":"IFERROR(coustomerdata5[[#This Row],[Quantite]]*coustomerdata5[[#This Row],[Prix unitaire]]*(1-coustomerdata5[[#This Row],[Taux de reduction]]),\"\")","v":18404.041025641029},{"$f":"DAY(coustomerdata5[[#This Row],[Date]])","v":8},{"$f":"TEXT(coustomerdata5[[#This Row],[Date]], \"mmm\")","v":"févr"},{"$f":"TEXT(coustomerdata5[[#This Row],[Date]], \"aaaa\")","v":"2024"}]
[null,null,null,null,"2024-02-09","P029",7,"Grossiste","Carte",0,{"$f":"IFERROR(VLOOKUP(coustomerdata5[[#This Row],[Index]],database[],2,0),\"\")","v":"Palette de fards"},{"$f":"IFERROR(VLOOKUP(coustomerdata5[[#This Row],[Index]],database[],3,0),\"\")","v":"Maquillage"},{"$f":"IFERROR(VLOOKUP(coustomerdata5[[#This Row],[Index]],database[],4,0),\"\")","v":"g"},{"$f":"IFERROR(VLOOKUP(coustomerdata5[[#This Row],[Index]],database[],5,0),\"\")","v":1416},{"$f":"IFERROR(VLOOKUP(coustomerdata5[[#This Row],[Index]],database[],6,0),\"\")","v":2304.6419330289204},{"$f":"IFERROR(coustomerdata5[[#This Row],[Cout unitaire]]*coustomerdata5[[#This Row],[Quantite]],\"\")","v":9912},{"$f":"IFERROR(coustomerdata5[[#This Row],[Quantite]]*coustomerdata5[[#This Row],[Prix unitaire]]*(1-coustomerdata5[[#This Row],[Taux de reduction]]),\"\")","v":16132.493531202443},{"$f":"DAY(coustomerdata5[[#This Row],[Date]])","v":9},{"$f":"TEXT(coustomerdata5[[#This Row],[Date]], \"mmm\")","v":"févr"},{"$f":"TEXT(coustomerdata5[[#This Row],[Date]], \"aaaa\")","v":"2024"}]
[null,null,null,null,"2024-02-10","P004",9,"Détail","Mobile Money",0,{"$f":"IFERROR(VLOOKUP(coustomerdata5[[#This Row],[Index]],database[],2,0),\"\")","v":"Spray thermo-protecteur"},{"$f":"IFERROR(VLOOKUP(coustomerdata5[[#This Row],[Index]],database[],3,0),\"\")","v":"Soins Capillaires"},{"$f":"IFERROR(VLOOKUP(coustomerdata5[[#This Row],[Index]],database[],4,0),\"\")","v":"mL"},{"$f":"IFERROR(VLOOKUP(coustomerdata5[[#This Row],[Index]],database[],5,0),\"\")","v":1372},{"$f":"IFERROR(VLOOKUP(coustomerdata5[[#This Row],[Index]],database[],6,0),\"\")","v":2121.5981595092026},{"$f":"IFERROR(coustomerdata5[[#This Row],[Cout unitaire]]*coustomerdata5[[#This Row],[Quantite]],\"\")","v":12348},{"$f":"IFERROR(coustomerdata5[[#This Row],[Quantite]]*coustomerdata5[[#This Row],[Prix unitaire]]*(1-coustomerdata5[[#This Row],[Taux de reduction]]),\"\")","v":19094.383435582822},{"$f":"DAY(coustomerdata5[[#This Row],[Date]])","v":10},{"$f":"TEXT(coustomerdata5[[#This Row],[Date]], \"mmm\")","v":"févr"},{"$f":"TEXT(coustomerdata5[[#This Row],[Date]], \"aaaa\")","v":"2024"}]
[null,null,null,null,"2024-02-11","P011",8,"Détail","Mobile Money",0,{"$f":"IFERROR(VLOOKUP(coustomerdata5[[#This Row],[Index]],database[],2,0),\"\")","v":"Eau micellaire"},{"$f":"IFERROR(VLOOKUP(coustomerdata5[[#This Row],[Index]],database[],3,0),\"\")","v":"Soins du Visage"},{"$f":"IFERROR(VLOOKUP(coustomerdata5[[#This Row],[Index]],database[],4,0),\"\")","v":"mL"},{"$f":"IFERROR(VLOOKUP(coustomerdata5[[#This Row],[Index]],database[],5,0),\"\")","v":1489},{"$f":"IFERROR(VLOOKUP(coustomerdata5[[#This Row],[Index]],database[],6,0),\"\")","v":2295.3177966101698},{"$f":"IFERROR(coustomerdata5[[#This Row],[Cout unitaire]]*coustomerdata5[[#This Row],[Quantite]],\"\")","v":11912},{"$f":"IFERROR(coustomerdata5[[#This Row],[Quantite]]*coustomerdata5[[#This Row],[Prix unitaire]]*(1-coustomerdata5[[#This Row],[Taux de reduction]]),\"\")","v":18362.542372881358},{"$f":"DAY(coustomerdata5[[#This Row],[Date]])","v":11},{"$f":"TEXT(coustomerdata5[[#This Row],[Date]], \"mmm\")","v":"févr"},{"$f":"TEXT(coustomerdata5[[#This Row],[Date]], \"aaaa\")","v":"2024"}]
[null,null,null,null,"2024-02-12","P038",5,"Détail","Espèces",0,{"$f":"IFERROR(VLOOKUP(coustomerdata5[[#This Row],[Index]],database[],2,0),\"\")","v":"Crème raffermissante"},{"$f":"IFERROR(VLOOKUP(coustomerdata5[[#This Row],[Index]],database[],3,0),\"\")","v":"Soins du Corps"},{"$f":"IFERROR(VLOOKUP(coustomerdata5[[#This Row],[Index]],database[],4,0),\"\")","v":"mL"},{"$f":"IFERROR(VLOOKUP(coustomerdata5[[#This Row],[Index]],database[],5,0),\"\")","v":1307},{"$f":"IFERROR(VLOOKUP(coustomerdata5[[#This Row],[Index]],database[],6,0),\"\")","v":2214.6171779141105},{"$f":"IFERROR(coustomerdata5[[#This Row],[Cout unitaire]]*coustomerdata5[[#This Row],[Quantite]],\"\")","v":6535},{"$f":"IFERROR(coustomerdata5[[#This Row],[Quantite]]*coustomerdata5[[#This Row],[Prix unitaire]]*(1-coustomerdata5[[#This Row],[Taux de reduction]]),\"\")","v":11073.085889570553},{"$f":"DAY(coustomerdata5[[#This Row],[Date]])","v":12},{"$f":"TEXT(coustomerdata5[[#This Row],[Date]], \"mmm\")","v":"févr"},{"$f":"TEXT(coustomerdata5[[#This Row],[Date]], \"aaaa\")","v":"2024"}]
[null,null,null,null,"2024-02-13","P043",2,"Détail","Espèces",0,{"$f":"IFERROR(VLOOKUP(coustomerdata5[[#This Row],[Index]],database[],2,0),\"\")","v":"Crayon à sourcils"},{"$f":"IFERROR(VLOOKUP(coustomerdata5[[#This Row],[Index]],database[],3,0),\"\")","v":"Maquillage"},{"$f":"IFERROR(VLOOKUP(coustomerdata5[[#This Row],[Index]],database[],4,0),\"\")","v":"g"},{"$f":"IFERROR(VLOOKUP(coustomerdata5[[#This Row],[Index]],database[],5,0),\"\")","v":1440},{"$f":"IFERROR(VLOOKUP(coustomerdata5[[#This Row],[Index]],database[],6,0),\"\")","v":2304.6419330289204},{"$f":"IFERROR(coustomerdata5[[#This Row],[Cout unitaire]]*coustomerdata5[[#This Row],[Quantite]],\"\")","v":2880},{"$f":"IFERROR(coustomerdata5[[#This Row],[Quantite]]*coustomerdata5[[#This Row],[Prix unitaire]]*(1-coustomerdata5[[#This Row],[Taux de reduction]]),\"\")","v":4609.2838660578409},{"$f":"DAY(coustomerdata5[[#This Row],[Date]])","v":13},{"$f":"TEXT(coustomerdata5[[#This Row],[Date]], \"mmm\")","v":"févr"},{"$f":"TEXT(coustomerdata5[[#This Row],[Date]], \"aaaa\")","v":"2024"}]
[null,null,null,null,"2024-02-14","P017",5,"Grossiste","Espèces",0,{"$f":"IFERROR(VLOOKUP(coustomerdata5[[#This Row],[Index]],database[],2,0),\"\")","v":"Spray rafraîchissant"},{"$f":"IFERROR(VLOOKUP(coustomerdata5[[#This Row],[Index]],database[],3,0),\"\")","v":"Soins du Corps"},{"$f":"IFERROR(VLOOKUP(coustomerdata5[[#This Row],[Index]],database[],4,0),\"\")","v":"mL"},{"$f":"IFERROR(VLOOKUP(coustomerdata5[[#This Row],[Index]],database[],5,0),\"\")","v":1440},{"$f":"IFERROR(VLOOKUP(coustomerdata5[[#This Row],[Index]],database[],6,0),\"\")","v":2194.270807453418},{"$f":"IFERROR(coustomerdata5[[#This Row],[Cout unitaire]]*coustomerdata5[[#This Row],[Quantite]],\"\")","v":7200},{"$f":"IFERROR(coustomerdata5[[#This Row],[Quantite]]*coustomerdata5[[#This Row],[Prix unitaire]]*(1-coustomerdata5[[#This Row],[Taux de reduction]]),\"\")","v":10971.35403726709},{"$f":"DAY(coustomerdata5[[#This Row],[Date]])","v":14},{"$f":"TEXT(coustomerdata5[[#This Row],[Date]], \"mmm\")","v":"févr"},{"$f":"TEXT(coustomerdata5[[#This Row],[Date]], \"aaaa\")","v":"2024"}]
[null,null,null,null,"2024-02-15","P006",8,"Grossiste","Carte",0,{"$f":"IFERROR(VLOOKUP(coustomerdata5[[#This Row],[Index]],database[],2,0),\"\")","v":"Déodorant naturel"},{"$f":"IFERROR(VLOOKUP(coustomerdata5[[#This Row],[Index]],database[],3,0),\"\")","v":"Soins du Corps"},{"$f":"IFERROR(VLOOKUP(coustomerdata5[[#This Row],[Index]],database[],4,0),\"\")","v":"mL"},{"$f":"IFERROR(VLOOKUP(coustomerdata5[[#This Row],[Index]],database[],5,0),\"\")","v":1440},{"$f":"IFERROR(VLOOKUP(coustomerdata5[[#This Row],[Index]],database[],6,0),\"\")","v":2318.3925287356337},{"$f":"IFERROR(coustomerdata5[[#This Row],[Cout unitaire]]*coustomerdata5[[#This Row],[Quantite]],\"\")","v":11520},{"$f":"IFERROR(coustomerdata5[[#This Row],[Quantite]]*coustomerdata5[[#This Row],[Prix unitaire]]*(1-coustomerdata5[[#This Row],[Taux de reduction]]),\"\")","v":18547.14022988507},{"$f":"DAY(coustomerdata5[[#This Row],[Date]])","v":15},{"$f":"TEXT(coustomerdata5[[#This Row],[Date]], \"mmm\")","v":"févr"},{"$f":"TEXT(coustomerdata5[[#This Row],[Date]], \"aaaa\")","v":"2024"}]
[null,null,null,null,"2024-02-16","P032",9,"Détail","Mobile Money",0,{"$f":"IFERROR(VLOOKUP(coustomerdata5[[#This Row],[Index]],database[],2,0),\"\")","v":"Fond de teint"},{"$f":"IFERROR(VLOOKUP(coustomerdata5[[#This Row],[Index]],database[],3,0),\"\")","v":"Maquillage"},{"$f":"IFERROR(VLOOKUP(coustomerdata5[[#This Row],[Index]],database[],4,0),\"\")","v":"mL"},{"$f":"IFERROR(VLOOKUP(coustomerdata5[[#This Row],[Index]],database[],5,0),\"\")","v":1307},{"$f":"IFERROR(VLOOKUP(coustomerdata5[[#This Row],[Index]],database[],6,0),\"\")","v":2121.5981595092026},{"$f":"IFERROR(coustomerdata5[[#This Row],[Cout unitaire]]*coustomerdata5[[#This Row],[Quantite]],\"\")","v":11763},{"$f":"IFERROR(coustomerdata5[[#This Row],[Quantite]]*coustomerdata5[[#This Row],[Prix unitaire]]*(1-coustomerdata5[[#This Row],[Taux de reduction]]),\"\")","v":19094.383435582822},{"$f":"DAY(coustomerdata5[[#This Row],[Date]])","v":16},{"$f":"TEXT(coustomerdata5[[#This Row],[Date]], \"mmm\")","v":"févr"},{"$f":"TEXT(coustomerdata5[[#This Row],[Date]], \"aaaa\")","v":"2024"}]
[null,null,null,null,"2024-02-17","P033",9,"Grossiste","Carte",0,{"$f":"IFERROR(VLOOKUP(coustomerdata5[[#This Row],[Index]],database[],2,0),\"\")","v":"Gommage exfoliant"},{"$f":"IFERROR(VLOOKUP(coustomerdata5[[#This Row],[Index]],database[],3,0),\"\")","v":"Soins du Visage"},{"$f":"IFERROR(VLOOKUP(coustomerdata5[[#This Row],[Index]],database[],4,0),\"\")","v":"g"},{"$f":"IFERROR(VLOOKUP(coustomerdata5[[#This Row],[Index]],database[],5,0),\"\")","v":1456},{"$f":"IFERROR(VLOOKUP(coustomerdata5[[#This Row],[Index]],database[],6,0),\"\")","v":2349.1564814814842},{"$f":"IFERROR(coustomerdata5[[#This Row],[Cout unitaire]]*coustomerdata5[[#This Row],[Quantite]],\"\")","v":13104},{"$f":"IFERROR(coustomerdata5[[#This Row],[Quantite]]*coustomerdata5[[#This Row],[Prix unitaire]]*(1-coustomerdata5[[#This Row],[Taux de reduction]]),\"\")","v":21142.408333333358},{"$f":"DAY(coustomerdata5[[#This Row],[Date]])","v":17},{"$f":"TEXT(coustomerdata5[[#This Row],[Date]], \"mmm\")","v":"févr"},{"$f":"TEXT(coustomerdata5[[#This Row],[Date]], \"aaaa\")","v":"2024"}]
[null,null,null,null,"2024-02-18","P016",1,"Grossiste","Mobile Money",0,{"$f":"IFERROR(VLOOKUP(coustomerdata5[[#This Row],[Index]],database[],2,0),\"\")","v":"BB crème"},{"$f":"IFERROR(VLOOKUP(coustomerdata5[[#This Row],[Index]],database[],3,0),\"\")","v":"Soins du Visage"},{"$f":"IFERROR(VLOOKUP(coustomerdata5[[#This Row],[Index]],database[],4,0),\"\")","v":"mL"},{"$f":"IFERROR(VLOOKUP(coustomerdata5[[#This Row],[Index]],database[],5,0),\"\")","v":1307},{"$f":"IFERROR(VLOOKUP(coustomerdata5[[#This Row],[Index]],database[],6,0),\"\")","v":2285.5296327924843},{"$f":"IFERROR(coustomerdata5[[#This Row],[Cout unitaire]]*coustomerdata5[[#This Row],[Quantite]],\"\")","v":1307},{"$f":"IFERROR(coustomerdata5[[#This Row],[Quantite]]*coustomerdata5[[#This Row],[Prix unitaire]]*(1-coustomerdata5[[#This Row],[Taux de reduction]]),\"\")","v":2285.5296327924843},{"$f":"DAY(coustomerdata5[[#This Row],[Date]])","v":18},{"$f":"TEXT(coustomerdata5[[#This Row],[Date]], \"mmm\")","v":"févr"},{"$f":"TEXT(coustomerdata5[[#This Row],[Date]], \"aaaa\")","v":"2024"}]
[null,null,null,null,"2024-02-19","P039",9,"Détail","Espèces",0,{"$f":"IFERROR(VLOOKUP(coustomerdata5[[#This Row],[Index]],database[],2,0),\"\")","v":"Crème pour les mains"},{"$f":"IFERROR(VLOOKUP(coustomerdata5[[#This Row],[Index]],database[],3,0),\"\")","v":"Soins du Corps"},{"$f":"IFERROR(VLOOKUP(coustomerdata5[[#This Row],[Index]],database[],4,0),\"\")","v":"mL"},{"$f":"IFERROR(VLOOKUP(coustomerdata5[[#This Row],[Index]],database[],5,0),\"\")","v":1440},{"$f":"IFERROR(VLOOKUP(coustomerdata5[[#This Row],[Index]],database[],6,0),\"\")","v":2295.3177966101698},{"$f":"IFERROR(coustomerdata5[[#This Row],[Cout unitaire]]*coustomerdata5[[#This Row],[Quantite]],\"\")","v":12960},{"$f":"IFERROR(coustomerdata5[[#This Row],[Quantite]]*coustomerdata5[[#This Row],[Prix unitaire]]*(1-coustomerdata5[[#This Row],[Taux de reduction]]),\"\")","v":20657.860169491527},{"$f":"DAY(coustomerdata5[[#This Row],[Date]])","v":19},{"$f":"TEXT(coustomerdata5[[#This Row],[Date]], \"mmm\")","v":"févr"},{"$f":"TEXT(coustomerdata5[[#This Row],[Date]], \"aaaa\")","v":"2024"}]
[null,null,null,null,"2024-02-20","P032",7,"Grossiste","Carte",0,{"$f":"IFERROR(VLOOKUP(coustomerdata5[[#This Row],[Index]],database[],2,0),\"\")","v":"Fond de teint"},{"$f":"IFERROR(VLOOKUP(coustomerdata5[[#This Row],[Index]],database[],3,0),\"\")","v":"Maquillage"},{"$f":"IFERROR(VLOOKUP(coustomerdata5[[#This Row],[Index]],database[],4,0),\"\")","v":"mL"},{"$f":"IFERROR(VLOOKUP(coustomerdata5[[#This Row],[Index]],database[],5,0),\"\")","v":1307},{"$f":"IFERROR(VLOOKUP(coustomerdata5[[#This Row],[Index]],database[],6,0),\"\")","v":2121.5981595092026},{"$f":"IFERROR(coustomerdata5[[#This Row],[Cout unitaire]]*coustomerdata5[[#This Row],[Quantite]],\"\")","v":9149},{"$f":"IFERROR(coustomerdata5[[#This Row],[Quantite]]*coustomerdata5[[#This Row],[Prix unitaire]]*(1-coustomerdata5[[#This Row],[Taux de reduction]]),\"\")","v":14851.187116564419},{"$f":"DAY(coustomerdata5[[#This Row],[Date]])","v":20},{"$f":"TEXT(coustomerdata5[[#This Row],[Date]], \"mmm\")","v":"févr"},{"$f":"TEXT(coustomerdata5[[#This Row],[Date]], \"aaaa\")","v":"2024"}]
[null,null,null,null,"2024-02-21","P005",9,"Grossiste","Carte",0,{"$f":"IFERROR(VLOOKUP(coustomerdata5[[#This Row],[Index]],database[],2,0),\"\")","v":"Sérum anti-âge"},{"$f":"IFERROR(VLOOKUP(coustomerdata5[[#This Row],[Index]],database[],3,0),\"\")","v":"Soins du Visage"},{"$f":"IFERROR(VLOOKUP(coustomerdata5[[#This Row],[Index]],database[],4,0),\"\")","v":"mL"},{"$f":"IFERROR(VLOOKUP(coustomerdata5[[#This Row],[Index]],database[],5,0),\"\")","v":1372},{"$f":"IFERROR(VLOOKUP(coustomerdata5[[#This Row],[Index]],database[],6,0),\"\")","v":2349.1564814814842},{"$f":"IFERROR(coustomerdata5[[#This Row],[Cout unitaire]]*coustomerdata5[[#This Row],[Quantite]],\"\")","v":12348},{"$f":"IFERROR(coustomerdata5[[#This Row],[Quantite]]*coustomerdata5[[#This Row],[Prix unitaire]]*(1-coustomerdata5[[#This Row],[Taux de reduction]]),\"\")","v":21142.408333333358},{"$f":"DAY(coustomerdata5[[#This Row],[Date]])","v":21},{"$f":"TEXT(coustomerdata5[[#This Row],[Date]], \"mmm\")","v":"févr"},{"$f":"TEXT(coustomerdata5[[#This Row],[Date]], \"aaaa\")","v":"2024"}]
[null,null,null,null,"2024-02-22","P033",8,"Détail","Espèces",0,{"$f":"IFERROR(VLOOKUP(coustomerdata5[[#This Row],[Index]],database[],2,0),\"\")","v":"Gommage exfoliant"},{"$f":"IFERROR(VLOOKUP(coustomerdata5[[#This Row],[Index]],database[],3,0),\"\")","v":"Soins du Visage"},{"$f":"IFERROR(VLOOKUP(coustomerdata5[[#This Row],[Index]],database[],4,0),\"\")","v":"g"},{"$f":"IFERROR(VLOOKUP(coustomerdata5[[#This Row],[Index]],database[],5,0),\"\")","v":1456},{"$f":"IFERROR(VLOOKUP(coustomerdata5[[#This Row],[Index]],database[],6,0),\"\")","v":2349.1564814814842},{"$f":"IFERROR(coustomerdata5[[#This Row],[Cout unitaire]]*coustomerdata5[[#This Row],[Quantite]],\"\")","v":11648},{"$f":"IFERROR(coustomerdata5[[#This Row],[Quantite]]*coustomerdata5[[#This Row],[Prix unitaire]]*(1-coustomerdata5[[#This Row],[Taux de reduction]]),\"\")","v":18793.251851851874},{"$f":"DAY(coustomerdata5[[#This Row],[Date]])","v":22},{"$f":"TEXT(coustomerdata5[[#This Row],[Date]], \"mmm\")","v":"févr"},{"$f":"TEXT(coustomerdata5[[#This Row],[Date]], \"aaaa\")","v":"2024"}]
[null,null,null,null,"2024-02-23","P045",1,"Détail","Carte",0,{"$f":"IFERROR(VLOOKUP(coustomerdata5[[#This Row],[Index]],database[],2,0),\"\")","v":"Palette de fards"},{"$f":"IFERROR(VLOOKUP(coustomerdata5[[#This Row],[Index]],database[],3,0),\"\")","v":"Maquillage"},{"$f":"IFERROR(VLOOKUP(coustomerdata5[[#This Row],[Index]],database[],4,0),\"\")","v":"g"},{"$f":"IFERROR(VLOOKUP(coustomerdata5[[#This Row],[Index]],database[],5,0),\"\")","v":1440},{"$f":"IFERROR(VLOOKUP(coustomerdata5[[#This Row],[Index]],database[],6,0),\"\")","v":2194.270807453418},{"$f":"IFERROR(coustomerdata5[[#This Row],[Cout unitaire]]*coustomerdata5[[#This Row],[Quantite]],\"\")","v":1440},{"$f":"IFERROR(coustomerdata5[[#This Row],[Quantite]]*coustomerdata5[[#This Row],[Prix unitaire]]*(1-coustomerdata5[[#This Row],[Taux de reduction]]),\"\")","v":2194.270807453418},{"$f":"DAY(coustomerdata5[[#This Row],[Date]])","v":23},{"$f":"TEXT(coustomerdata5[[#This Row],[Date]], \"mmm\")","v":"févr"},{"$f":"TEXT(coustomerdata5[[#This Row],[Date]], \"aaaa\")","v":"2024"}]
[null,null,null,null,"2024-02-24","P048",8,"Détail","Carte",0,{"$f":"IFERROR(VLOOKUP(coustomerdata5[[#This Row],[Index]],database[],2,0),\"\")","v":"Cire coiffante"},{"$f":"IFERROR(VLOOKUP(coustomerdata5[[#This Row],[Index]],database[],3,0),\"\")","v":"Soins Capillaires"},{"$f":"IFERROR(VLOOKUP(coustomerdata5[[#This Row],[Index]],database[],4,0),\"\")","v":"g"},{"$f":"IFERROR(VLOOKUP(coustomerdata5[[#This Row],[Index]],database[],5,0),\"\")","v":1347},{"$f":"IFERROR(VLOOKUP(coustomerdata5[[#This Row],[Index]],database[],6,0),\"\")","v":2318.3925287356337},{"$f":"IFERROR(coustomerdata5[[#This Row],[Cout unitaire]]*coustomerdata5[[#This Row],[Quantite]],\"\")","v":10776},{"$f":"IFERROR(coustomerdata5[[#This Row],[Quantite]]*coustomerdata5[[#This Row],[Prix unitaire]]*(1-coustomerdata5[[#This Row],[Taux de reduction]]),\"\")","v":18547.14022988507},{"$f":"DAY(coustomerdata5[[#This Row],[Date]])","v":24},{"$f":"TEXT(coustomerdata5[[#This Row],[Date]], \"mmm\")","v":"févr"},{"$f":"TEXT(coustomerdata5[[#This Row],[Date]], \"aaaa\")","v":"2024"}]
[null,null,null,null,"2024-02-25","P050",8,"Grossiste","Mobile Money",0,{"$f":"IFERROR(VLOOKUP(coustomerdata5[[#This Row],[Index]],database[],2,0),\"\")","v":"Poudre libre fixante"},{"$f":"IFERROR(VLOOKUP(coustomerdata5[[#This Row],[Index]],database[],3,0),\"\")","v":"Maquillage"},{"$f":"IFERROR(VLOOKUP(coustomerdata5[[#This Row],[Index]],database[],4,0),\"\")","v":"g"},{"$f":"IFERROR(VLOOKUP(coustomerdata5[[#This Row],[Index]],database[],5,0),\"\")","v":1438},{"$f":"IFERROR(VLOOKUP(coustomerdata5[[#This Row],[Index]],database[],6,0),\"\")","v":2290.0193939393948},{"$f":"IFERROR(coustomerdata5[[#This Row],[Cout unitaire]]*coustomerdata5[[#This Row],[Quantite]],\"\")","v":11504},{"$f":"IFERROR(coustomerdata5[[#This Row],[Quantite]]*coustomerdata5[[#This Row],[Prix unitaire]]*(1-coustomerdata5[[#This Row],[Taux de reduction]]),\"\")","v":18320.155151515159},{"$f":"DAY(coustomerdata5[[#This Row],[Date]])","v":25},{"$f":"TEXT(coustomerdata5[[#This Row],[Date]], \"mmm\")","v":"févr"},{"$f":"TEXT(coustomerdata5[[#This Row],[Date]], \"aaaa\")","v":"2024"}]
[null,null,null,null,"2024-03-01","P018",3,"Détail","Carte",0,{"$f":"IFERROR(VLOOKUP(coustomerdata5[[#This Row],[Index]],database[],2,0),\"\")","v":"Rouge à lèvres mat"},{"$f":"IFERROR(VLOOKUP(coustomerdata5[[#This Row],[Index]],database[],3,0),\"\")","v":"Maquillage"},{"$f":"IFERROR(VLOOKUP(coustomerdata5[[#This Row],[Index]],database[],4,0),\"\")","v":"g"},{"$f":"IFERROR(VLOOKUP(coustomerdata5[[#This Row],[Index]],database[],5,0),\"\")","v":1372},{"$f":"IFERROR(VLOOKUP(coustomerdata5[[#This Row],[Index]],database[],6,0),\"\")","v":2121.5981595092026},{"$f":"IFERROR(coustomerdata5[[#This Row],[Cout unitaire]]*coustomerdata5[[#This Row],[Quantite]],\"\")","v":4116},{"$f":"IFERROR(coustomerdata5[[#This Row],[Quantite]]*coustomerdata5[[#This Row],[Prix unitaire]]*(1-coustomerdata5[[#This Row],[Taux de reduction]]),\"\")","v":6364.7944785276077},{"$f":"DAY(coustomerdata5[[#This Row],[Date]])","v":1},{"$f":"TEXT(coustomerdata5[[#This Row],[Date]], \"mmm\")","v":"mars"},{"$f":"TEXT(coustomerdata5[[#This Row],[Date]], \"aaaa\")","v":"2024"}]
[null,null,null,null,"2024-03-01","P007",1,"Grossiste","Mobile Money",0,{"$f":"IFERROR(VLOOKUP(coustomerdata5[[#This Row],[Index]],database[],2,0),\"\")","v":"Mousse volume"},{"$f":"IFERROR(VLOOKUP(coustomerdata5[[#This Row],[Index]],database[],3,0),\"\")","v":"Soins Capillaires"},{"$f":"IFERROR(VLOOKUP(coustomerdata5[[#This Row],[Index]],database[],4,0),\"\")","v":"mL"},{"$f":"IFERROR(VLOOKUP(coustomerdata5[[#This Row],[Index]],database[],5,0),\"\")","v":1479},{"$f":"IFERROR(VLOOKUP(coustomerdata5[[#This Row],[Index]],database[],6,0),\"\")","v":2313.7350150602456},{"$f":"IFERROR(coustomerdata5[[#This Row],[Cout unitaire]]*coustomerdata5[[#This Row],[Quantite]],\"\")","v":1479},{"$f":"IFERROR(coustomerdata5[[#This Row],[Quantite]]*coustomerdata5[[#This Row],[Prix unitaire]]*(1-coustomerdata5[[#This Row],[Taux de reduction]]),\"\")","v":2313.7350150602456},{"$f":"DAY(coustomerdata5[[#This Row],[Date]])","v":1},{"$f":"TEXT(coustomerdata5[[#This Row],[Date]], \"mmm\")","v":"mars"},{"$f":"TEXT(coustomerdata5[[#This Row],[Date]], \"aaaa\")","v":"2024"}]
[null,null,null,null,"2024-03-01","P022",8,"Grossiste","Mobile Money",0,{"$f":"IFERROR(VLOOKUP(coustomerdata5[[#This Row],[Index]],database[],2,0),\"\")","v":"Masque capillaire"},{"$f":"IFERROR(VLOOKUP(coustomerdata5[[#This Row],[Index]],database[],3,0),\"\")","v":"Soins Capillaires"},{"$f":"IFERROR(VLOOKUP(coustomerdata5[[#This Row],[Index]],database[],4,0),\"\")","v":"mL"},{"$f":"IFERROR(VLOOKUP(coustomerdata5[[#This Row],[Index]],database[],5,0),\"\")","v":1307},{"$f":"IFERROR(VLOOKUP(coustomerdata5[[#This Row],[Index]],database[],6,0),\"\")","v":2290.0193939393948},{"$f":"IFERROR(coustomerdata5[[#This Row],[Cout unitaire]]*coustomerdata5[[#This Row],[Quantite]],\"\")","v":10456},{"$f":"IFERROR(coustomerdata5[[#This Row],[Quantite]]*coustomerdata5[[#This Row],[Prix unitaire]]*(1-coustomerdata5[[#This Row],[Taux de reduction]]),\"\")","v":18320.155151515159},{"$f":"DAY(coustomerdata5[[#This Row],[Date]])","v":1},{"$f":"TEXT(coustomerdata5[[#This Row],[Date]], \"mmm\")","v":"mars"},{"$f":"TEXT(coustomerdata5[[#This Row],[Date]], \"aaaa\")","v":"2024"}]
[null,null,null,null,"2024-03-01","P021",3,"Grossiste","Espèces",0,{"$f":"IFERROR(VLOOKUP(coustomerdata5[[#This Row],[Index]],database[],2,0),\"\")","v":"Huile nourrissante"},{"$f":"IFERROR(VLOOKUP(coustomerdata5[[#This Row],[Index]],database[],3,0),\"\")","v":"Soins du Corps"},{"$f":"IFERROR(VLOOKUP(coustomerdata5[[#This Row],[Index]],database[],4,0),\"\")","v":"mL"},{"$f":"IFERROR(VLOOKUP(coustomerdata5[[#This Row],[Index]],database[],5,0),\"\")","v":1489},{"$f":"IFERROR(VLOOKUP(coustomerdata5[[#This Row],[Index]],database[],6,0),\"\")","v":2313.7350150602456},{"$f":"IFERROR(coustomerdata5[[#This Row],[Cout unitaire]]*coustomerdata5[[#This Row],[Quantite]],\"\")","v":4467},{"$f":"IFERROR(coustomerdata5[[#This Row],[Quantite]]*coustomerdata5[[#This Row],[Prix unitaire]]*(1-coustomerdata5[[#This Row],[Taux de reduction]]),\"\")","v":6941.2050451807372},{"$f":"DAY(coustomerdata5[[#This Row],[Date]])","v":1},{"$f":"TEXT(coustomerdata5[[#This Row],[Date]], \"mmm\")","v":"mars"},{"$f":"TEXT(coustomerdata5[[#This Row],[Date]], \"aaaa\")","v":"2024"}]
[null,null,null,null,"2024-03-02","P044",3,"Détail","Espèces",0,{"$f":"IFERROR(VLOOKUP(coustomerdata5[[#This Row],[Index]],database[],2,0),\"\")","v":"Spray thermo-protecteur"},{"$f":"IFERROR(VLOOKUP(coustomerdata5[[#This Row],[Index]],database[],3,0),\"\")","v":"Soins Capillaires"},{"$f":"IFERROR(VLOOKUP(coustomerdata5[[#This Row],[Index]],database[],4,0),\"\")","v":"mL"},{"$f":"IFERROR(VLOOKUP(coustomerdata5[[#This Row],[Index]],database[],5,0),\"\")","v":1423},{"$f":"IFERROR(VLOOKUP(coustomerdata5[[#This Row],[Index]],database[],6,0),\"\")","v":2285.5296327924843},{"$f":"IFERROR(coustomerdata5[[#This Row],[Cout unitaire]]*coustomerdata5[[#This Row],[Quantite]],\"\")","v":4269},{"$f":"IFERROR(coustomerdata5[[#This Row],[Quantite]]*coustomerdata5[[#This Row],[Prix unitaire]]*(1-coustomerdata5[[#This Row],[Taux de reduction]]),\"\")","v":6856.588898377453},{"$f":"DAY(coustomerdata5[[#This Row],[Date]])","v":2},{"$f":"TEXT(coustomerdata5[[#This Row],[Date]], \"mmm\")","v":"mars"},{"$f":"TEXT(coustomerdata5[[#This Row],[Date]], \"aaaa\")","v":"2024"}]
[null,null,null,null,"2024-03-03","P018",1,"Détail","Carte",0,{"$f":"IFERROR(VLOOKUP(coustomerdata5[[#This Row],[Index]],database[],2,0),\"\")","v":"Rouge à lèvres mat"},{"$f":"IFERROR(VLOOKUP(coustomerdata5[[#This Row],[Index]],database[],3,0),\"\")","v":"Maquillage"},{"$f":"IFERROR(VLOOKUP(coustomerdata5[[#This Row],[Index]],database[],4,0),\"\")","v":"g"},{"$f":"IFERROR(VLOOKUP(coustomerdata5[[#This Row],[Index]],database[],5,0),\"\")","v":1372},{"$f":"IFERROR(VLOOKUP(coustomerdata5[[#This Row],[Index]],database[],6,0),\"\")","v":2121.5981595092026},{"$f":"IFERROR(coustomerdata5[[#This Row],[Cout unitaire]]*coustomerdata5[[#This Row],[Quantite]],\"\")","v":1372},{"$f":"IFERROR(coustomerdata5[[#This Row],[Quantite]]*coustomerdata5[[#This Row],[Prix unitaire]]*(1-coustomerdata5[[#This Row],[Taux de reduction]]),\"\")","v":2121.5981595092026},{"$f":"DAY(coustomerdata5[[#This Row],[Date]])","v":3},{"$f":"TEXT(coustomerdata5[[#This Row],[Date]], \"mmm\")","v":"mars"},{"$f":"TEXT(coustomerdata5[[#This Row],[Date]], \"aaaa\")","v":"2024"}]
[null,null,null,null,"2024-03-04","P018",5,"Grossiste","Espèces",0,{"$f":"IFERROR(VLOOKUP(coustomerdata5[[#This Row],[Index]],database[],2,0),\"\")","v":"Rouge à lèvres mat"},{"$f":"IFERROR(VLOOKUP(coustomerdata5[[#This Row],[Index]],database[],3,0),\"\")","v":"Maquillage"},{"$f":"IFERROR(VLOOKUP(coustomerdata5[[#This Row],[Index]],database[],4,0),\"\")","v":"g"},{"$f":"IFERROR(VLOOKUP(coustomerdata5[[#This Row],[Index]],database[],5,0),\"\")","v":1372},{"$f":"IFERROR(VLOOKUP(coustomerdata5[[#This Row],[Index]],database[],6,0),\"\")","v":2121.5981595092026},{"$f":"IFERROR(coustomerdata5[[#This Row],[Cout unitaire]]*coustomerdata5[[#This Row],[Quantite]],\"\")","v":6860},{"$f":"IFERROR(coustomerdata5[[#This Row],[Quantite]]*coustomerdata5[[#This Row],[Prix unitaire]]*(1-coustomerdata5[[#This Row],[Taux de reduction]]),\"\")","v":10607.990797546012},{"$f":"DAY(coustomerdata5[[#This Row],[Date]])","v":4},{"$f":"TEXT(coustomerdata5[[#This Row],[Date]], \"mmm\")","v":"mars"},{"$f":"TEXT(coustomerdata5[[#This Row],[Date]], \"aaaa\")","v":"2024"}]
[null,null,null,null,"2024-03-05","P025",7,"Détail","Carte",0,{"$f":"IFERROR(VLOOKUP(coustomerdata5[[#This Row],[Index]],database[],2,0),\"\")","v":"Cire coiffante"},{"$f":"IFERROR(VLOOKUP(coustomerdata5[[#This Row],[Index]],database[],3,0),\"\")","v":"Soins Capillaires"},{"$f":"IFERROR(VLOOKUP(coustomerdata5[[#This Row],[Index]],database[],4,0),\"\")","v":"g"},{"$f":"IFERROR(VLOOKUP(coustomerdata5[[#This Row],[Index]],database[],5,0),\"\")","v":1440},{"$f":"IFERROR(VLOOKUP(coustomerdata5[[#This Row],[Index]],database[],6,0),\"\")","v":2295.3177966101698},{"$f":"IFERROR(coustomerdata5[[#This Row],[Cout unitaire]]*coustomerdata5[[#This Row],[Quantite]],\"\")","v":10080},{"$f":"IFERROR(coustomerdata5[[#This Row],[Quantite]]*coustomerdata5[[#This Row],[Prix unitaire]]*(1-coustomerdata5[[#This Row],[Taux de reduction]]),\"\")","v":16067.224576271188},{"$f":"DAY(coustomerdata5[[#This Row],[Date]])","v":5},{"$f":"TEXT(coustomerdata5[[#This Row],[Date]], \"mmm\")","v":"mars"},{"$f":"TEXT(coustomerdata5[[#This Row],[Date]], \"aaaa\")","v":"2024"}]
[null,null,null,null,"2024-03-06","P021",9,"Grossiste","Espèces",0,{"$f":"IFERROR(VLOOKUP(coustomerdata5[[#This Row],[Index]],database[],2,0),\"\")","v":"Huile nourrissante"},{"$f":"IFERROR(VLOOKUP(coustomerdata5[[#This Row],[Index]],database[],3,0),\"\")","v":"Soins du Corps"},{"$f":"IFERROR(VLOOKUP(coustomerdata5[[#This Row],[Index]],database[],4,0),\"\")","v":"mL"},{"$f":"IFERROR(VLOOKUP(coustomerdata5[[#This Row],[Index]],database[],5,0),\"\")","v":1489},{"$f":"IFERROR(VLOOKUP(coustomerdata5[[#This Row],[Index]],database[],6,0),\"\")","v":2313.7350150602456},{"$f":"IFERROR(coustomerdata5[[#This Row],[Cout unitaire]]*coustomerdata5[[#This Row],[Quantite]],\"\")","v":13401},{"$f":"IFERROR(coustomerdata5[[#This Row],[Quantite]]*coustomerdata5[[#This Row],[Prix unitaire]]*(1-coustomerdata5[[#This Row],[Taux de reduction]]),\"\")","v":20823.615135542212},{"$f":"DAY(coustomerdata5[[#This Row],[Date]])","v":6},{"$f":"TEXT(coustomerdata5[[#This Row],[Date]], \"mmm\")","v":"mars"},{"$f":"TEXT(coustomerdata5[[#This Row],[Date]], \"aaaa\")","v":"2024"}]
[null,null,null,null,"2024-03-07","P021",7,"Grossiste","Mobile Money",0,{"$f":"IFERROR(VLOOKUP(coustomerdata5[[#This Row],[Index]],database[],2,0),\"\")","v":"Huile nourrissante"},{"$f":"IFERROR(VLOOKUP(coustomerdata5[[#This Row],[Index]],database[],3,0),\"\")","v":"Soins du Corps"},{"$f":"IFERROR(VLOOKUP(coustomerdata5[[#This Row],[Index]],database[],4,0),\"\")","v":"mL"},{"$f":"IFERROR(VLOOKUP(coustomerdata5[[#This Row],[Index]],database[],5,0),\"\")","v":1489},{"$f":"IFERROR(VLOOKUP(coustomerdata5[[#This Row],[Index]],database[],6,0),\"\")","v":2313.7350150602456},{"$f":"IFERROR(coustomerdata5[[#This Row],[Cout unitaire]]*coustomerdata5[[#This Row],[Quantite]],\"\")","v":10423},{"$f":"IFERROR(coustomerdata5[[#This Row],[Quantite]]*coustomerdata5[[#This Row],[Prix unitaire]]*(1-coustomerdata5[[#This Row],[Taux de reduction]]),\"\")","v":16196.14510542172},{"$f":"DAY(coustomerdata5[[#This Row],[Date]])","v":7},{"$f":"TEXT(coustomerdata5[[#This Row],[Date]], \"mmm\")","v":"mars"},{"$f":"TEXT(coustomerdata5[[#This Row],[Date]], \"aaaa\")","v":"2024"}]
[null,null,null,null,"2024-03-08","P008",9,"Détail","Mobile Money",0,{"$f":"IFERROR(VLOOKUP(coustomerdata5[[#This Row],[Index]],database[],2,0),\"\")","v":"Lotion tonique"},{"$f":"IFERROR(VLOOKUP(coustomerdata5[[#This Row],[Index]],database[],3,0),\"\")","v":"Soins du Visage"},{"$f":"IFERROR(VLOOKUP(coustomerdata5[[#This Row],[Index]],database[],4,0),\"\")","v":"mL"},{"$f":"IFERROR(VLOOKUP(coustomerdata5[[#This Row],[Index]],database[],5,0),\"\")","v":1489},{"$f":"IFERROR(VLOOKUP(coustomerdata5[[#This Row],[Index]],database[],6,0),\"\")","v":2290.0193939393948},{"$f":"IFERROR(coustomerdata5[[#This Row],[Cout unitaire]]*coustomerdata5[[#This Row],[Quantite]],\"\")","v":13401},{"$f":"IFERROR(coustomerdata5[[#This Row],[Quantite]]*coustomerdata5[[#This Row],[Prix unitaire]]*(1-coustomerdata5[[#This Row],[Taux de reduction]]),\"\")","v":20610.174545454553},{"$f":"DAY(coustomerdata5[[#This Row],[Date]])","v":8},{"$f":"TEXT(coustomerdata5[[#This Row],[Date]], \"mmm\")","v":"mars"},{"$f":"TEXT(coustomerdata5[[#This Row],[Date]], \"aaaa\")","v":"2024"}]
[null,null,null,null,"2024-03-09","P011",8,"Grossiste","Espèces",0,{"$f":"IFERROR(VLOOKUP(coustomerdata5[[#This Row],[Index]],database[],2,0),\"\")","v":"Eau micellaire"},{"$f":"IFERROR(VLOOKUP(coustomerdata5[[#This Row],[Index]],database[],3,0),\"\")","v":"Soins du Visage"},{"$f":"IFERROR(VLOOKUP(coustomerdata5[[#This Row],[Index]],database[],4,0),\"\")","v":"mL"},{"$f":"IFERROR(VLOOKUP(coustomerdata5[[#This Row],[Index]],database[],5,0),\"\")","v":1489},{"$f":"IFERROR(VLOOKUP(coustomerdata5[[#This Row],[Index]],database[],6,0),\"\")","v":2295.3177966101698},{"$f":"IFERROR(coustomerdata5[[#This Row],[Cout unitaire]]*coustomerdata5[[#This Row],[Quantite]],\"\")","v":11912},{"$f":"IFERROR(coustomerdata5[[#This Row],[Quantite]]*coustomerdata5[[#This Row],[Prix unitaire]]*(1-coustomerdata5[[#This Row],[Taux de reduction]]),\"\")","v":18362.542372881358},{"$f":"DAY(coustomerdata5[[#This Row],[Date]])","v":9},{"$f":"TEXT(coustomerdata5[[#This Row],[Date]], \"mmm\")","v":"mars"},{"$f":"TEXT(coustomerdata5[[#This Row],[Date]], \"aaaa\")","v":"2024"}]
[null,null,null,null,"2024-03-10","P041",2,"Grossiste","Espèces",0,{"$f":"IFERROR(VLOOKUP(coustomerdata5[[#This Row],[Index]],database[],2,0),\"\")","v":"Gel douche hydratant"},{"$f":"IFERROR(VLOOKUP(coustomerdata5[[#This Row],[Index]],database[],3,0),\"\")","v":"Soins du Corps"},{"$f":"IFERROR(VLOOKUP(coustomerdata5[[#This Row],[Index]],database[],4,0),\"\")","v":"mL"},{"$f":"IFERROR(VLOOKUP(coustomerdata5[[#This Row],[Index]],database[],5,0),\"\")","v":1456},{"$f":"IFERROR(VLOOKUP(coustomerdata5[[#This Row],[Index]],database[],6,0),\"\")","v":2198.2071542130352},{"$f":"IFERROR(coustomerdata5[[#This Row],[Cout unitaire]]*coustomerdata5[[#This Row],[Quantite]],\"\")","v":2912},{"$f":"IFERROR(coustomerdata5[[#This Row],[Quantite]]*coustomerdata5[[#This Row],[Prix unitaire]]*(1-coustomerdata5[[#This Row],[Taux de reduction]]),\"\")","v":4396.4143084260704},{"$f":"DAY(coustomerdata5[[#This Row],[Date]])","v":10},{"$f":"TEXT(coustomerdata5[[#This Row],[Date]], \"mmm\")","v":"mars"},{"$f":"TEXT(coustomerdata5[[#This Row],[Date]], \"aaaa\")","v":"2024"}]
[null,null,null,null,"2024-03-11","P039",1,"Grossiste","Carte",0,{"$f":"IFERROR(VLOOKUP(coustomerdata5[[#This Row],[Index]],database[],2,0),\"\")","v":"Crème pour les mains"},{"$f":"IFERROR(VLOOKUP(coustomerdata5[[#This Row],[Index]],database[],3,0),\"\")","v":"Soins du Corps"},{"$f":"IFERROR(VLOOKUP(coustomerdata5[[#This Row],[Index]],database[],4,0),\"\")","v":"mL"},{"$f":"IFERROR(VLOOKUP(coustomerdata5[[#This Row],[Index]],database[],5,0),\"\")","v":1440},{"$f":"IFERROR(VLOOKUP(coustomerdata5[[#This Row],[Index]],database[],6,0),\"\")","v":2295.3177966101698},{"$f":"IFERROR(coustomerdata5[[#This Row],[Cout unitaire]]*coustomerdata5[[#This Row],[Quantite]],\"\")","v":1440},{"$f":"IFERROR(coustomerdata5[[#This Row],[Quantite]]*coustomerdata5[[#This Row],[Prix unitaire]]*(1-coustomerdata5[[#This Row],[Taux de reduction]]),\"\")","v":2295.3177966101698},{"$f":"DAY(coustomerdata5[[#This Row],[Date]])","v":11},{"$f":"TEXT(coustomerdata5[[#This Row],[Date]], \"mmm\")","v":"mars"},{"$f":"TEXT(coustomerdata5[[#This Row],[Date]], \"aaaa\")","v":"2024"}]
[null,null,null,null,"2024-03-12","P014",7,"Détail","Mobile Money",0,{"$f":"IFERROR(VLOOKUP(coustomerdata5[[#This Row],[Index]],database[],2,0),\"\")","v":"Crème coiffante"},{"$f":"IFERROR(VLOOKUP(coustomerdata5[[#This Row],[Index]],database[],3,0),\"\")","v":"Soins Capillaires"},{"$f":"IFERROR(VLOOKUP(coustomerdata5[[#This Row],[Index]],database[],4,0),\"\")","v":"mL"},{"$f":"IFERROR(VLOOKUP(coustomerdata5[[#This Row],[Index]],database[],5,0),\"\")","v":1479},{"$f":"IFERROR(VLOOKUP(coustomerdata5[[#This Row],[Index]],database[],6,0),\"\")","v":2409.5477124183008},{"$f":"IFERROR(coustomerdata5[[#This Row],[Cout unitaire]]*coustomerdata5[[#This Row],[Quantite]],\"\")","v":10353},{"$f":"IFERROR(coustomerdata5[[#This Row],[Quantite]]*coustomerdata5[[#This Row],[Prix unitaire]]*(1-coustomerdata5[[#This Row],[Taux de reduction]]),\"\")","v":16866.833986928104},{"$f":"DAY(coustomerdata5[[#This Row],[Date]])","v":12},{"$f":"TEXT(coustomerdata5[[#This Row],[Date]], \"mmm\")","v":"mars"},{"$f":"TEXT(coustomerdata5[[#This Row],[Date]], \"aaaa\")","v":"2024"}]
[null,null,null,null,"2024-03-13","P018",7,"Détail","Mobile Money",0,{"$f":"IFERROR(VLOOKUP(coustomerdata5[[#This Row],[Index]],database[],2,0),\"\")","v":"Rouge à lèvres mat"},{"$f":"IFERROR(VLOOKUP(coustomerdata5[[#This Row],[Index]],database[],3,0),\"\")","v":"Maquillage"},{"$f":"IFERROR(VLOOKUP(coustomerdata5[[#This Row],[Index]],database[],4,0),\"\")","v":"g"},{"$f":"IFERROR(VLOOKUP(coustomerdata5[[#This Row],[Index]],database[],5,0),\"\")","v":1372},{"$f":"IFERROR(VLOOKUP(coustomerdata5[[#This Row],[Index]],database[],6,0),\"\")","v":2121.5981595092026},{"$f":"IFERROR(coustomerdata5[[#This Row],[Cout unitaire]]*coustomerdata5[[#This Row],[Quantite]],\"\")","v":9604},{"$f":"IFERROR(coustomerdata5[[#This Row],[Quantite]]*coustomerdata5[[#This Row],[Prix unitaire]]*(1-coustomerdata5[[#This Row],[Taux de reduction]]),\"\")","v":14851.187116564419},{"$f":"DAY(coustomerdata5[[#This Row],[Date]])","v":13},{"$f":"TEXT(coustomerdata5[[#This Row],[Date]], \"mmm\")","v":"mars"},{"$f":"TEXT(coustomerdata5[[#This Row],[Date]], \"aaaa\")","v":"2024"}]
[null,null,null,null,"2024-03-14","P023",8,"Détail","Espèces",0,{"$f":"IFERROR(VLOOKUP(coustomerdata5[[#This Row],[Index]],database[],2,0),\"\")","v":"Masque purifiant"},{"$f":"IFERROR(VLOOKUP(coustomerdata5[[#This Row],[Index]],database[],3,0),\"\")","v":"Soins du Visage"},{"$f":"IFERROR(VLOOKUP(coustomerdata5[[#This Row],[Index]],database[],4,0),\"\")","v":"g"},{"$f":"IFERROR(VLOOKUP(coustomerdata5[[#This Row],[Index]],database[],5,0),\"\")","v":1457},{"$f":"IFERROR(VLOOKUP(coustomerdata5[[#This Row],[Index]],database[],6,0),\"\")","v":2171.2942622950832},{"$f":"IFERROR(coustomerdata5[[#This Row],[Cout unitaire]]*coustomerdata5[[#This Row],[Quantite]],\"\")","v":11656},{"$f":"IFERROR(coustomerdata5[[#This Row],[Quantite]]*coustomerdata5[[#This Row],[Prix unitaire]]*(1-coustomerdata5[[#This Row],[Taux de reduction]]),\"\")","v":17370.354098360665},{"$f":"DAY(coustomerdata5[[#This Row],[Date]])","v":14},{"$f":"TEXT(coustomerdata5[[#This Row],[Date]], \"mmm\")","v":"mars"},{"$f":"TEXT(coustomerdata5[[#This Row],[Date]], \"aaaa\")","v":"2024"}]
[null,null,null,null,"2024-03-15","P050",5,"Détail","Espèces",0,{"$f":"IFERROR(VLOOKUP(coustomerdata5[[#This Row],[Index]],database[],2,0),\"\")","v":"Poudre libre fixante"},{"$f":"IFERROR(VLOOKUP(coustomerdata5[[#This Row],[Index]],database[],3,0),\"\")","v":"Maquillage"},{"$f":"IFERROR(VLOOKUP(coustomerdata5[[#This Row],[Index]],database[],4,0),\"\")","v":"g"},{"$f":"IFERROR(VLOOKUP(coustomerdata5[[#This Row],[Index]],database[],5,0),\"\")","v":1438},{"$f":"IFERROR(VLOOKUP(coustomerdata5[[#This Row],[Index]],database[],6,0),\"\")","v":2290.0193939393948},{"$f":"IFERROR(coustomerdata5[[#This Row],[Cout unitaire]]*coustomerdata5[[#This Row],[Quantite]],\"\")","v":7190},{"$f":"IFERROR(coustomerdata5[[#This Row],[Quantite]]*coustomerdata5[[#This Row],[Prix unitaire]]*(1-coustomerdata5[[#This Row],[Taux de reduction]]),\"\")","v":11450.096969696973},{"$f":"DAY(coustomerdata5[[#This Row],[Date]])","v":15},{"$f":"TEXT(coustomerdata5[[#This Row],[Date]], \"mmm\")","v":"mars"},{"$f":"TEXT(coustomerdata5[[#This Row],[Date]], \"aaaa\")","v":"2024"}]
[null,null,null,null,"2024-03-16","P042",3,"Grossiste","Espèces",0,{"$f":"IFERROR(VLOOKUP(coustomerdata5[[#This Row],[Index]],database[],2,0),\"\")","v":"Crème hydratante"},{"$f":"IFERROR(VLOOKUP(coustomerdata5[[#This Row],[Index]],database[],3,0),\"\")","v":"Soins du Visage"},{"$f":"IFERROR(VLOOKUP(coustomerdata5[[#This Row],[Index]],database[],4,0),\"\")","v":"mL"},{"$f":"IFERROR(VLOOKUP(coustomerdata5[[#This Row],[Index]],database[],5,0),\"\")","v":1448},{"$f":"IFERROR(VLOOKUP(coustomerdata5[[#This Row],[Index]],database[],6,0),\"\")","v":2409.5477124183008},{"$f":"IFERROR(coustomerdata5[[#This Row],[Cout unitaire]]*coustomerdata5[[#This Row],[Quantite]],\"\")","v":4344},{"$f":"IFERROR(coustomerdata5[[#This Row],[Quantite]]*coustomerdata5[[#This Row],[Prix unitaire]]*(1-coustomerdata5[[#This Row],[Taux de reduction]]),\"\")","v":7228.6431372549023},{"$f":"DAY(coustomerdata5[[#This Row],[Date]])","v":16},{"$f":"TEXT(coustomerdata5[[#This Row],[Date]], \"mmm\")","v":"mars"},{"$f":"TEXT(coustomerdata5[[#This Row],[Date]], \"aaaa\")","v":"2024"}]
[null,null,null,null,"2024-03-17","P002",8,"Grossiste","Carte",0,{"$f":"IFERROR(VLOOKUP(coustomerdata5[[#This Row],[Index]],database[],2,0),\"\")","v":"Eye-liner waterproof"},{"$f":"IFERROR(VLOOKUP(coustomerdata5[[#This Row],[Index]],database[],3,0),\"\")","v":"Maquillage"},{"$f":"IFERROR(VLOOKUP(coustomerdata5[[#This Row],[Index]],database[],4,0),\"\")","v":"mL"},{"$f":"IFERROR(VLOOKUP(coustomerdata5[[#This Row],[Index]],database[],5,0),\"\")","v":1489},{"$f":"IFERROR(VLOOKUP(coustomerdata5[[#This Row],[Index]],database[],6,0),\"\")","v":2285.5296327924843},{"$f":"IFERROR(coustomerdata5[[#This Row],[Cout unitaire]]*coustomerdata5[[#This Row],[Quantite]],\"\")","v":11912},{"$f":"IFERROR(coustomerdata5[[#This Row],[Quantite]]*coustomerdata5[[#This Row],[Prix unitaire]]*(1-coustomerdata5[[#This Row],[Taux de reduction]]),\"\")","v":18284.237062339875},{"$f":"DAY(coustomerdata5[[#This Row],[Date]])","v":17},{"$f":"TEXT(coustomerdata5[[#This Row],[Date]], \"mmm\")","v":"mars"},{"$f":"TEXT(coustomerdata5[[#This Row],[Date]], \"aaaa\")","v":"2024"}]
[null,null,null,null,"2024-03-18","P001",6,"Détail","Mobile Money",0,{"$f":"IFERROR(VLOOKUP(coustomerdata5[[#This Row],[Index]],database[],2,0),\"\")","v":"Crème pour les pieds"},{"$f":"IFERROR(VLOOKUP(coustomerdata5[[#This Row],[Index]],database[],3,0),\"\")","v":"Soins du Corps"},{"$f":"IFERROR(VLOOKUP(coustomerdata5[[#This Row],[Index]],database[],4,0),\"\")","v":"mL"},{"$f":"IFERROR(VLOOKUP(coustomerdata5[[#This Row],[Index]],database[],5,0),\"\")","v":1479},{"$f":"IFERROR(VLOOKUP(coustomerdata5[[#This Row],[Index]],database[],6,0),\"\")","v":2304.6419330289204},{"$f":"IFERROR(coustomerdata5[[#This Row],[Cout unitaire]]*coustomerdata5[[#This Row],[Quantite]],\"\")","v":8874},{"$f":"IFERROR(coustomerdata5[[#This Row],[Quantite]]*coustomerdata5[[#This Row],[Prix unitaire]]*(1-coustomerdata5[[#This Row],[Taux de reduction]]),\"\")","v":13827.851598173522},{"$f":"DAY(coustomerdata5[[#This Row],[Date]])","v":18},{"$f":"TEXT(coustomerdata5[[#This Row],[Date]], \"mmm\")","v":"mars"},{"$f":"TEXT(coustomerdata5[[#This Row],[Date]], \"aaaa\")","v":"2024"}]
[null,null,null,null,"2024-03-19","P003",3,"Grossiste","Carte",0,{"$f":"IFERROR(VLOOKUP(coustomerdata5[[#This Row],[Index]],database[],2,0),\"\")","v":"Contour des yeux"},{"$f":"IFERROR(VLOOKUP(coustomerdata5[[#This Row],[Index]],database[],3,0),\"\")","v":"Soins du Visage"},{"$f":"IFERROR(VLOOKUP(coustomerdata5[[#This Row],[Index]],database[],4,0),\"\")","v":"mL"},{"$f":"IFERROR(VLOOKUP(coustomerdata5[[#This Row],[Index]],database[],5,0),\"\")","v":1416},{"$f":"IFERROR(VLOOKUP(coustomerdata5[[#This Row],[Index]],database[],6,0),\"\")","v":2194.270807453418},{"$f":"IFERROR(coustomerdata5[[#This Row],[Cout unitaire]]*coustomerdata5[[#This Row],[Quantite]],\"\")","v":4248},{"$f":"IFERROR(coustomerdata5[[#This Row],[Quantite]]*coustomerdata5[[#This Row],[Prix unitaire]]*(1-coustomerdata5[[#This Row],[Taux de reduction]]),\"\")","v":6582.8124223602535},{"$f":"DAY(coustomerdata5[[#This Row],[Date]])","v":19},{"$f":"TEXT(coustomerdata5[[#This Row],[Date]], \"mmm\")","v":"mars"},{"$f":"TEXT(coustomerdata5[[#This Row],[Date]], \"aaaa\")","v":"2024"}]
[null,null,null,null,"2024-03-20","P010",1,"Grossiste","Mobile Money",0,{"$f":"IFERROR(VLOOKUP(coustomerdata5[[#This Row],[Index]],database[],2,0),\"\")","v":"Base de maquillage"},{"$f":"IFERROR(VLOOKUP(coustomerdata5[[#This Row],[Index]],database[],3,0),\"\")","v":"Maquillage"},{"$f":"IFERROR(VLOOKUP(coustomerdata5[[#This Row],[Index]],database[],4,0),\"\")","v":"mL"},{"$f":"IFERROR(VLOOKUP(coustomerdata5[[#This Row],[Index]],database[],5,0),\"\")","v":1479},{"$f":"IFERROR(VLOOKUP(coustomerdata5[[#This Row],[Index]],database[],6,0),\"\")","v":2214.6171779141105},{"$f":"IFERROR(coustomerdata5[[#This Row],[Cout unitaire]]*coustomerdata5[[#This Row],[Quantite]],\"\")","v":1479},{"$f":"IFERROR(coustomerdata5[[#This Row],[Quantite]]*coustomerdata5[[#This Row],[Prix unitaire]]*(1-coustomerdata5[[#This Row],[Taux de reduction]]),\"\")","v":2214.6171779141105},{"$f":"DAY(coustomerdata5[[#This Row],[Date]])","v":20},{"$f":"TEXT(coustomerdata5[[#This Row],[Date]], \"mmm\")","v":"mars"},{"$f":"TEXT(coustomerdata5[[#This Row],[Date]], \"aaaa\")","v":"2024"}]
[null,null,null,null,"2024-03-21","P038",3,"Détail","Espèces",0,{"$f":"IFERROR(VLOOKUP(coustomerdata5[[#This Row],[Index]],database[],2,0),\"\")","v":"Crème raffermissante"},{"$f":"IFERROR(VLOOKUP(coustomerdata5[[#This Row],[Index]],database[],3,0),\"\")","v":"Soins du Corps"},{"$f":"IFERROR(VLOOKUP(coustomerdata5[[#This Row],[Index]],database[],4,0),\"\")","v":"mL"},{"$f":"IFERROR(VLOOKUP(coustomerdata5[[#This Row],[Index]],database[],5,0),\"\")","v":1307},{"$f":"IFERROR(VLOOKUP(coustomerdata5[[#This Row],[Index]],database[],6,0),\"\")","v":2214.6171779141105},{"$f":"IFERROR(coustomerdata5[[#This Row],[Cout unitaire]]*coustomerdata5[[#This Row],[Quantite]],\"\")","v":3921},{"$f":"IFERROR(coustomerdata5[[#This Row],[Quantite]]*coustomerdata5[[#This Row],[Prix unitaire]]*(1-coustomerdata5[[#This Row],[Taux de reduction]]),\"\")","v":6643.8515337423314},{"$f":"DAY(coustomerdata5[[#This Row],[Date]])","v":21},{"$f":"TEXT(coustomerdata5[[#This Row],[Date]], \"mmm\")","v":"mars"},{"$f":"TEXT(coustomerdata5[[#This Row],[Date]], \"aaaa\")","v":"2024"}]
[null,null,null,null,"2024-03-22","P011",5,"Grossiste","Carte",0,{"$f":"IFERROR(VLOOKUP(coustomerdata5[[#This Row],[Index]],database[],2,0),\"\")","v":"Eau micellaire"},{"$f":"IFERROR(VLOOKUP(coustomerdata5[[#This Row],[Index]],database[],3,0),\"\")","v":"Soins du Visage"},{"$f":"IFERROR(VLOOKUP(coustomerdata5[[#This Row],[Index]],database[],4,0),\"\")","v":"mL"},{"$f":"IFERROR(VLOOKUP(coustomerdata5[[#This Row],[Index]],database[],5,0),\"\")","v":1489},{"$f":"IFERROR(VLOOKUP(coustomerdata5[[#This Row],[Index]],database[],6,0),\"\")","v":2295.3177966101698},{"$f":"IFERROR(coustomerdata5[[#This Row],[Cout unitaire]]*coustomerdata5[[#This Row],[Quantite]],\"\")","v":7445},{"$f":"IFERROR(coustomerdata5[[#This Row],[Quantite]]*coustomerdata5[[#This Row],[Prix unitaire]]*(1-coustomerdata5[[#This Row],[Taux de reduction]]),\"\")","v":11476.588983050849},{"$f":"DAY(coustomerdata5[[#This Row],[Date]])","v":22},{"$f":"TEXT(coustomerdata5[[#This Row],[Date]], \"mmm\")","v":"mars"},{"$f":"TEXT(coustomerdata5[[#This Row],[Date]], \"aaaa\")","v":"2024"}]
[null,null,null,null,"2024-03-23","P040",3,"Grossiste","Carte",0,{"$f":"IFERROR(VLOOKUP(coustomerdata5[[#This Row],[Index]],database[],2,0),\"\")","v":"Shampoing sec"},{"$f":"IFERROR(VLOOKUP(coustomerdata5[[#This Row],[Index]],database[],3,0),\"\")","v":"Soins Capillaires"},{"$f":"IFERROR(VLOOKUP(coustomerdata5[[#This Row],[Index]],database[],4,0),\"\")","v":"mL"},{"$f":"IFERROR(VLOOKUP(coustomerdata5[[#This Row],[Index]],database[],5,0),\"\")","v":1456},{"$f":"IFERROR(VLOOKUP(coustomerdata5[[#This Row],[Index]],database[],6,0),\"\")","v":2300.5051282051286},{"$f":"IFERROR(coustomerdata5[[#This Row],[Cout unitaire]]*coustomerdata5[[#This Row],[Quantite]],\"\")","v":4368},{"$f":"IFERROR(coustomerdata5[[#This Row],[Quantite]]*coustomerdata5[[#This Row],[Prix unitaire]]*(1-coustomerdata5[[#This Row],[Taux de reduction]]),\"\")","v":6901.5153846153862},{"$f":"DAY(coustomerdata5[[#This Row],[Date]])","v":23},{"$f":"TEXT(coustomerdata5[[#This Row],[Date]], \"mmm\")","v":"mars"},{"$f":"TEXT(coustomerdata5[[#This Row],[Date]], \"aaaa\")","v":"2024"}]
[null,null,null,null,"2024-03-24","P034",1,"Détail","Espèces",0,{"$f":"IFERROR(VLOOKUP(coustomerdata5[[#This Row],[Index]],database[],2,0),\"\")","v":"Blush rosé"},{"$f":"IFERROR(VLOOKUP(coustomerdata5[[#This Row],[Index]],database[],3,0),\"\")","v":"Maquillage"},{"$f":"IFERROR(VLOOKUP(coustomerdata5[[#This Row],[Index]],database[],4,0),\"\")","v":"g"},{"$f":"IFERROR(VLOOKUP(coustomerdata5[[#This Row],[Index]],database[],5,0),\"\")","v":1448},{"$f":"IFERROR(VLOOKUP(coustomerdata5[[#This Row],[Index]],database[],6,0),\"\")","v":2318.3925287356337},{"$f":"IFERROR(coustomerdata5[[#This Row],[Cout unitaire]]*coustomerdata5[[#This Row],[Quantite]],\"\")","v":1448},{"$f":"IFERROR(coustomerdata5[[#This Row],[Quantite]]*coustomerdata5[[#This Row],[Prix unitaire]]*(1-coustomerdata5[[#This Row],[Taux de reduction]]),\"\")","v":2318.3925287356337},{"$f":"DAY(coustomerdata5[[#This Row],[Date]])","v":24},{"$f":"TEXT(coustomerdata5[[#This Row],[Date]], \"mmm\")","v":"mars"},{"$f":"TEXT(coustomerdata5[[#This Row],[Date]], \"aaaa\")","v":"2024"}]
[null,null,null,null,"2024-03-25","P004",5,"Détail","Carte",0,{"$f":"IFERROR(VLOOKUP(coustomerdata5[[#This Row],[Index]],database[],2,0),\"\")","v":"Spray thermo-protecteur"},{"$f":"IFERROR(VLOOKUP(coustomerdata5[[#This Row],[Index]],database[],3,0),\"\")","v":"Soins Capillaires"},{"$f":"IFERROR(VLOOKUP(coustomerdata5[[#This Row],[Index]],database[],4,0),\"\")","v":"mL"},{"$f":"IFERROR(VLOOKUP(coustomerdata5[[#This Row],[Index]],database[],5,0),\"\")","v":1372},{"$f":"IFERROR(VLOOKUP(coustomerdata5[[#This Row],[Index]],database[],6,0),\"\")","v":2121.5981595092026},{"$f":"IFERROR(coustomerdata5[[#This Row],[Cout unitaire]]*coustomerdata5[[#This Row],[Quantite]],\"\")","v":6860},{"$f":"IFERROR(coustomerdata5[[#This Row],[Quantite]]*coustomerdata5[[#This Row],[Prix unitaire]]*(1-coustomerdata5[[#This Row],[Taux de reduction]]),\"\")","v":10607.990797546012},{"$f":"DAY(coustomerdata5[[#This Row],[Date]])","v":25},{"$f":"TEXT(coustomerdata5[[#This Row],[Date]], \"mmm\")","v":"mars"},{"$f":"TEXT(coustomerdata5[[#This Row],[Date]], \"aaaa\")","v":"2024"}]
[null,null,null,null,"2024-03-26","P040",7,"Détail","Carte",0,{"$f":"IFERROR(VLOOKUP(coustomerdata5[[#This Row],[Index]],database[],2,0),\"\")","v":"Shampoing sec"},{"$f":"IFERROR(VLOOKUP(coustomerdata5[[#This Row],[Index]],database[],3,0),\"\")","v":"Soins Capillaires"},{"$f":"IFERROR(VLOOKUP(coustomerdata5[[#This Row],[Index]],database[],4,0),\"\")","v":"mL"},{"$f":"IFERROR(VLOOKUP(coustomerdata5[[#This Row],[Index]],database[],5,0),\"\")","v":1456},{"$f":"IFERROR(VLOOKUP(coustomerdata5[[#This Row],[Index]],database[],6,0),\"\")","v":2300.5051282051286},{"$f":"IFERROR(coustomerdata5[[#This Row],[Cout unitaire]]*coustomerdata5[[#This Row],[Quantite]],\"\")","v":10192},{"$f":"IFERROR(coustomerdata5[[#This Row],[Quantite]]*coustomerdata5[[#This Row],[Prix unitaire]]*(1-coustomerdata5[[#This Row],[Taux de reduction]]),\"\")","v":16103.535897435901},{"$f":"DAY(coustomerdata5[[#This Row],[Date]])","v":26},{"$f":"TEXT(coustomerdata5[[#This Row],[Date]], \"mmm\")","v":"mars"},{"$f":"TEXT(coustomerdata5[[#This Row],[Date]], \"aaaa\")","v":"2024"}]
[null,null,null,null,"2024-03-27","P006",7,"Grossiste","Mobile Money",0,{"$f":"IFERROR(VLOOKUP(coustomerdata5[[#This Row],[Index]],database[],2,0),\"\")","v":"Déodorant naturel"},{"$f":"IFERROR(VLOOKUP(coustomerdata5[[#This Row],[Index]],database[],3,0),\"\")","v":"Soins du Corps"},{"$f":"IFERROR(VLOOKUP(coustomerdata5[[#This Row],[Index]],database[],4,0),\"\")","v":"mL"},{"$f":"IFERROR(VLOOKUP(coustomerdata5[[#This Row],[Index]],database[],5,0),\"\")","v":1440},{"$f":"IFERROR(VLOOKUP(coustomerdata5[[#This Row],[Index]],database[],6,0),\"\")","v":2318.3925287356337},{"$f":"IFERROR(coustomerdata5[[#This Row],[Cout unitaire]]*coustomerdata5[[#This Row],[Quantite]],\"\")","v":10080},{"$f":"IFERROR(coustomerdata5[[#This Row],[Quantite]]*coustomerdata5[[#This Row],[Prix unitaire]]*(1-coustomerdata5[[#This Row],[Taux de reduction]]),\"\")","v":16228.747701149436},{"$f":"DAY(coustomerdata5[[#This Row],[Date]])","v":27},{"$f":"TEXT(coustomerdata5[[#This Row],[Date]], \"mmm\")","v":"mars"},{"$f":"TEXT(coustomerdata5[[#This Row],[Date]], \"aaaa\")","v":"2024"}]
[null,null,null,null,"2024-03-28","P041",9,"Détail","Carte",0,{"$f":"IFERROR(VLOOKUP(coustomerdata5[[#This Row],[Index]],database[],2,0),\"\")","v":"Gel douche hydratant"},{"$f":"IFERROR(VLOOKUP(coustomerdata5[[#This Row],[Index]],database[],3,0),\"\")","v":"Soins du Corps"},{"$f":"IFERROR(VLOOKUP(coustomerdata5[[#This Row],[Index]],database[],4,0),\"\")","v":"mL"},{"$f":"IFERROR(VLOOKUP(coustomerdata5[[#This Row],[Index]],database[],5,0),\"\")","v":1456},{"$f":"IFERROR(VLOOKUP(coustomerdata5[[#This Row],[Index]],database[],6,0),\"\")","v":2198.2071542130352},{"$f":"IFERROR(coustomerdata5[[#This Row],[Cout unitaire]]*coustomerdata5[[#This Row],[Quantite]],\"\")","v":13104},{"$f":"IFERROR(coustomerdata5[[#This Row],[Quantite]]*coustomerdata5[[#This Row],[Prix unitaire]]*(1-coustomerdata5[[#This Row],[Taux de reduction]]),\"\")","v":19783.864387917318},{"$f":"DAY(coustomerdata5[[#This Row],[Date]])","v":28},{"$f":"TEXT(coustomerdata5[[#This Row],[Date]], \"mmm\")","v":"mars"},{"$f":"TEXT(coustomerdata5[[#This Row],[Date]], \"aaaa\")","v":"2024"}]
[null,null,null,null,"2024-03-29","P045",3,"Grossiste","Mobile Money",0,{"$f":"IFERROR(VLOOKUP(coustomerdata5[[#This Row],[Index]],database[],2,0),\"\")","v":"Palette de fards"},{"$f":"IFERROR(VLOOKUP(coustomerdata5[[#This Row],[Index]],database[],3,0),\"\")","v":"Maquillage"},{"$f":"IFERROR(VLOOKUP(coustomerdata5[[#This Row],[Index]],database[],4,0),\"\")","v":"g"},{"$f":"IFERROR(VLOOKUP(coustomerdata5[[#This Row],[Index]],database[],5,0),\"\")","v":1440},{"$f":"IFERROR(VLOOKUP(coustomerdata5[[#This Row],[Index]],database[],6,0),\"\")","v":2194.270807453418},{"$f":"IFERROR(coustomerdata5[[#This Row],[Cout unitaire]]*coustomerdata5[[#This Row],[Quantite]],\"\")","v":4320},{"$f":"IFERROR(coustomerdata5[[#This Row],[Quantite]]*coustomerdata5[[#This Row],[Prix unitaire]]*(1-coustomerdata5[[#This Row],[Taux de reduction]]),\"\")","v":6582.8124223602535},{"$f":"DAY(coustomerdata5[[#This Row],[Date]])","v":29},{"$f":"TEXT(coustomerdata5[[#This Row],[Date]], \"mmm\")","v":"mars"},{"$f":"TEXT(coustomerdata5[[#This Row],[Date]], \"aaaa\")","v":"2024"}]
[null,null,null,null,"2024-03-30","P040",7,"Grossiste","Mobile Money",0,{"$f":"IFERROR(VLOOKUP(coustomerdata5[[#This Row],[Index]],database[],2,0),\"\")","v":"Shampoing sec"},{"$f":"IFERROR(VLOOKUP(coustomerdata5[[#This Row],[Index]],database[],3,0),\"\")","v":"Soins Capillaires"},{"$f":"IFERROR(VLOOKUP(coustomerdata5[[#This Row],[Index]],database[],4,0),\"\")","v":"mL"},{"$f":"IFERROR(VLOOKUP(coustomerdata5[[#This Row],[Index]],database[],5,0),\"\")","v":1456},{"$f":"IFERROR(VLOOKUP(coustomerdata5[[#This Row],[Index]],database[],6,0),\"\")","v":2300.5051282051286},{"$f":"IFERROR(coustomerdata5[[#This Row],[Cout unitaire]]*coustomerdata5[[#This Row],[Quantite]],\"\")","v":10192},{"$f":"IFERROR(coustomerdata5[[#This Row],[Quantite]]*coustomerdata5[[#This Row],[Prix unitaire]]*(1-coustomerdata5[[#This Row],[Taux de reduction]]),\"\")","v":16103.535897435901},{"$f":"DAY(coustomerdata5[[#This Row],[Date]])","v":30},{"$f":"TEXT(coustomerdata5[[#This Row],[Date]], \"mmm\")","v":"mars"},{"$f":"TEXT(coustomerdata5[[#This Row],[Date]], \"aaaa\")","v":"2024"}]
[null,null,null,null,"2024-03-31","P029",1,"Grossiste","Espèces",0,{"$f":"IFERROR(VLOOKUP(coustomerdata5[[#This Row],[Index]],database[],2,0),\"\")","v":"Palette de fards"},{"$f":"IFERROR(VLOOKUP(coustomerdata5[[#This Row],[Index]],database[],3,0),\"\")","v":"Maquillage"},{"$f":"IFERROR(VLOOKUP(coustomerdata5[[#This Row],[Index]],database[],4,0),\"\")","v":"g"},{"$f":"IFERROR(VLOOKUP(coustomerdata5[[#This Row],[Index]],database[],5,0),\"\")","v":1416},{"$f":"IFERROR(VLOOKUP(coustomerdata5[[#This Row],[Index]],database[],6,0),\"\")","v":2304.6419330289204},{"$f":"IFERROR(coustomerdata5[[#This Row],[Cout unitaire]]*coustomerdata5[[#This Row],[Quantite]],\"\")","v":1416},{"$f":"IFERROR(coustomerdata5[[#This Row],[Quantite]]*coustomerdata5[[#This Row],[Prix unitaire]]*(1-coustomerdata5[[#This Row],[Taux de reduction]]),\"\")","v":2304.6419330289204},{"$f":"DAY(coustomerdata5[[#This Row],[Date]])","v":31},{"$f":"TEXT(coustomerdata5[[#This Row],[Date]], \"mmm\")","v":"mars"},{"$f":"TEXT(coustomerdata5[[#This Row],[Date]], \"aaaa\")","v":"2024"}]
[null,null,null,null,"2024-04-01","P004",4,"Détail","Espèces",0,{"$f":"IFERROR(VLOOKUP(coustomerdata5[[#This Row],[Index]],database[],2,0),\"\")","v":"Spray thermo-protecteur"},{"$f":"IFERROR(VLOOKUP(coustomerdata5[[#This Row],[Index]],database[],3,0),\"\")","v":"Soins Capillaires"},{"$f":"IFERROR(VLOOKUP(coustomerdata5[[#This Row],[Index]],database[],4,0),\"\")","v":"mL"},{"$f":"IFERROR(VLOOKUP(coustomerdata5[[#This Row],[Index]],database[],5,0),\"\")","v":1372},{"$f":"IFERROR(VLOOKUP(coustomerdata5[[#This Row],[Index]],database[],6,0),\"\")","v":2121.5981595092026},{"$f":"IFERROR(coustomerdata5[[#This Row],[Cout unitaire]]*coustomerdata5[[#This Row],[Quantite]],\"\")","v":5488},{"$f":"IFERROR(coustomerdata5[[#This Row],[Quantite]]*coustomerdata5[[#This Row],[Prix unitaire]]*(1-coustomerdata5[[#This Row],[Taux de reduction]]),\"\")","v":8486.3926380368102},{"$f":"DAY(coustomerdata5[[#This Row],[Date]])","v":1},{"$f":"TEXT(coustomerdata5[[#This Row],[Date]], \"mmm\")","v":"avr"},{"$f":"TEXT(coustomerdata5[[#This Row],[Date]], \"aaaa\")","v":"2024"}]
[null,null,null,null,"2024-04-02","P011",4,"Détail","Carte",0,{"$f":"IFERROR(VLOOKUP(coustomerdata5[[#This Row],[Index]],database[],2,0),\"\")","v":"Eau micellaire"},{"$f":"IFERROR(VLOOKUP(coustomerdata5[[#This Row],[Index]],database[],3,0),\"\")","v":"Soins du Visage"},{"$f":"IFERROR(VLOOKUP(coustomerdata5[[#This Row],[Index]],database[],4,0),\"\")","v":"mL"},{"$f":"IFERROR(VLOOKUP(coustomerdata5[[#This Row],[Index]],database[],5,0),\"\")","v":1489},{"$f":"IFERROR(VLOOKUP(coustomerdata5[[#This Row],[Index]],database[],6,0),\"\")","v":2295.3177966101698},{"$f":"IFERROR(coustomerdata5[[#This Row],[Cout unitaire]]*coustomerdata5[[#This Row],[Quantite]],\"\")","v":5956},{"$f":"IFERROR(coustomerdata5[[#This Row],[Quantite]]*coustomerdata5[[#This Row],[Prix unitaire]]*(1-coustomerdata5[[#This Row],[Taux de reduction]]),\"\")","v":9181.2711864406792},{"$f":"DAY(coustomerdata5[[#This Row],[Date]])","v":2},{"$f":"TEXT(coustomerdata5[[#This Row],[Date]], \"mmm\")","v":"avr"},{"$f":"TEXT(coustomerdata5[[#This Row],[Date]], \"aaaa\")","v":"2024"}]
[null,null,null,null,"2024-04-03","P038",5,"Grossiste","Espèces",0,{"$f":"IFERROR(VLOOKUP(coustomerdata5[[#This Row],[Index]],database[],2,0),\"\")","v":"Crème raffermissante"},{"$f":"IFERROR(VLOOKUP(coustomerdata5[[#This Row],[Index]],database[],3,0),\"\")","v":"Soins du Corps"},{"$f":"IFERROR(VLOOKUP(coustomerdata5[[#This Row],[Index]],database[],4,0),\"\")","v":"mL"},{"$f":"IFERROR(VLOOKUP(coustomerdata5[[#This Row],[Index]],database[],5,0),\"\")","v":1307},{"$f":"IFERROR(VLOOKUP(coustomerdata5[[#This Row],[Index]],database[],6,0),\"\")","v":2214.6171779141105},{"$f":"IFERROR(coustomerdata5[[#This Row],[Cout unitaire]]*coustomerdata5[[#This Row],[Quantite]],\"\")","v":6535},{"$f":"IFERROR(coustomerdata5[[#This Row],[Quantite]]*coustomerdata5[[#This Row],[Prix unitaire]]*(1-coustomerdata5[[#This Row],[Taux de reduction]]),\"\")","v":11073.085889570553},{"$f":"DAY(coustomerdata5[[#This Row],[Date]])","v":3},{"$f":"TEXT(coustomerdata5[[#This Row],[Date]], \"mmm\")","v":"avr"},{"$f":"TEXT(coustomerdata5[[#This Row],[Date]], \"aaaa\")","v":"2024"}]
[null,null,null,null,"2024-04-04","P043",7,"Détail","Carte",0,{"$f":"IFERROR(VLOOKUP(coustomerdata5[[#This Row],[Index]],database[],2,0),\"\")","v":"Crayon à sourcils"},{"$f":"IFERROR(VLOOKUP(coustomerdata5[[#This Row],[Index]],database[],3,0),\"\")","v":"Maquillage"},{"$f":"IFERROR(VLOOKUP(coustomerdata5[[#This Row],[Index]],database[],4,0),\"\")","v":"g"},{"$f":"IFERROR(VLOOKUP(coustomerdata5[[#This Row],[Index]],database[],5,0),\"\")","v":1440},{"$f":"IFERROR(VLOOKUP(coustomerdata5[[#This Row],[Index]],database[],6,0),\"\")","v":2304.6419330289204},{"$f":"IFERROR(coustomerdata5[[#This Row],[Cout unitaire]]*coustomerdata5[[#This Row],[Quantite]],\"\")","v":10080},{"$f":"IFERROR(coustomerdata5[[#This Row],[Quantite]]*coustomerdata5[[#This Row],[Prix unitaire]]*(1-coustomerdata5[[#This Row],[Taux de reduction]]),\"\")","v":16132.493531202443},{"$f":"DAY(coustomerdata5[[#This Row],[Date]])","v":4},{"$f":"TEXT(coustomerdata5[[#This Row],[Date]], \"mmm\")","v":"avr"},{"$f":"TEXT(coustomerdata5[[#This Row],[Date]], \"aaaa\")","v":"2024"}]
[null,null,null,null,"2024-04-05","P017",7,"Grossiste","Espèces",0,{"$f":"IFERROR(VLOOKUP(coustomerdata5[[#This Row],[Index]],database[],2,0),\"\")","v":"Spray rafraîchissant"},{"$f":"IFERROR(VLOOKUP(coustomerdata5[[#This Row],[Index]],database[],3,0),\"\")","v":"Soins du Corps"},{"$f":"IFERROR(VLOOKUP(coustomerdata5[[#This Row],[Index]],database[],4,0),\"\")","v":"mL"},{"$f":"IFERROR(VLOOKUP(coustomerdata5[[#This Row],[Index]],database[],5,0),\"\")","v":1440},{"$f":"IFERROR(VLOOKUP(coustomerdata5[[#This Row],[Index]],database[],6,0),\"\")","v":2194.270807453418},{"$f":"IFERROR(coustomerdata5[[#This Row],[Cout unitaire]]*coustomerdata5[[#This Row],[Quantite]],\"\")","v":10080},{"$f":"IFERROR(coustomerdata5[[#This Row],[Quantite]]*coustomerdata5[[#This Row],[Prix unitaire]]*(1-coustomerdata5[[#This Row],[Taux de reduction]]),\"\")","v":15359.895652173926},{"$f":"DAY(coustomerdata5[[#This Row],[Date]])","v":5},{"$f":"TEXT(coustomerdata5[[#This Row],[Date]], \"mmm\")","v":"avr"},{"$f":"TEXT(coustomerdata5[[#This Row],[Date]], \"aaaa\")","v":"2024"}]
[null,null,null,null,"2024-04-06","P006",4,"Grossiste","Mobile Money",0,{"$f":"IFERROR(VLOOKUP(coustomerdata5[[#This Row],[Index]],database[],2,0),\"\")","v":"Déodorant naturel"},{"$f":"IFERROR(VLOOKUP(coustomerdata5[[#This Row],[Index]],database[],3,0),\"\")","v":"Soins du Corps"},{"$f":"IFERROR(VLOOKUP(coustomerdata5[[#This Row],[Index]],database[],4,0),\"\")","v":"mL"},{"$f":"IFERROR(VLOOKUP(coustomerdata5[[#This Row],[Index]],database[],5,0),\"\")","v":1440},{"$f":"IFERROR(VLOOKUP(coustomerdata5[[#This Row],[Index]],database[],6,0),\"\")","v":2318.3925287356337},{"$f":"IFERROR(coustomerdata5[[#This Row],[Cout unitaire]]*coustomerdata5[[#This Row],[Quantite]],\"\")","v":5760},{"$f":"IFERROR(coustomerdata5[[#This Row],[Quantite]]*coustomerdata5[[#This Row],[Prix unitaire]]*(1-coustomerdata5[[#This Row],[Taux de reduction]]),\"\")","v":9273.5701149425349},{"$f":"DAY(coustomerdata5[[#This Row],[Date]])","v":6},{"$f":"TEXT(coustomerdata5[[#This Row],[Date]], \"mmm\")","v":"avr"},{"$f":"TEXT(coustomerdata5[[#This Row],[Date]], \"aaaa\")","v":"2024"}]
[null,null,null,null,"2024-04-07","P032",7,"Détail","Mobile Money",0,{"$f":"IFERROR(VLOOKUP(coustomerdata5[[#This Row],[Index]],database[],2,0),\"\")","v":"Fond de teint"},{"$f":"IFERROR(VLOOKUP(coustomerdata5[[#This Row],[Index]],database[],3,0),\"\")","v":"Maquillage"},{"$f":"IFERROR(VLOOKUP(coustomerdata5[[#This Row],[Index]],database[],4,0),\"\")","v":"mL"},{"$f":"IFERROR(VLOOKUP(coustomerdata5[[#This Row],[Index]],database[],5,0),\"\")","v":1307},{"$f":"IFERROR(VLOOKUP(coustomerdata5[[#This Row],[Index]],database[],6,0),\"\")","v":2121.5981595092026},{"$f":"IFERROR(coustomerdata5[[#This Row],[Cout unitaire]]*coustomerdata5[[#This Row],[Quantite]],\"\")","v":9149},{"$f":"IFERROR(coustomerdata5[[#This Row],[Quantite]]*coustomerdata5[[#This Row],[Prix unitaire]]*(1-coustomerdata5[[#This Row],[Taux de reduction]]),\"\")","v":14851.187116564419},{"$f":"DAY(coustomerdata5[[#This Row],[Date]])","v":7},{"$f":"TEXT(coustomerdata5[[#This Row],[Date]], \"mmm\")","v":"avr"},{"$f":"TEXT(coustomerdata5[[#This Row],[Date]], \"aaaa\")","v":"2024"}]
[null,null,null,null,"2024-04-08","P033",3,"Grossiste","Espèces",0,{"$f":"IFERROR(VLOOKUP(coustomerdata5[[#This Row],[Index]],database[],2,0),\"\")","v":"Gommage exfoliant"},{"$f":"IFERROR(VLOOKUP(coustomerdata5[[#This Row],[Index]],database[],3,0),\"\")","v":"Soins du Visage"},{"$f":"IFERROR(VLOOKUP(coustomerdata5[[#This Row],[Index]],database[],4,0),\"\")","v":"g"},{"$f":"IFERROR(VLOOKUP(coustomerdata5[[#This Row],[Index]],database[],5,0),\"\")","v":1456},{"$f":"IFERROR(VLOOKUP(coustomerdata5[[#This Row],[Index]],database[],6,0),\"\")","v":2349.1564814814842},{"$f":"IFERROR(coustomerdata5[[#This Row],[Cout unitaire]]*coustomerdata5[[#This Row],[Quantite]],\"\")","v":4368},{"$f":"IFERROR(coustomerdata5[[#This Row],[Quantite]]*coustomerdata5[[#This Row],[Prix unitaire]]*(1-coustomerdata5[[#This Row],[Taux de reduction]]),\"\")","v":7047.4694444444522},{"$f":"DAY(coustomerdata5[[#This Row],[Date]])","v":8},{"$f":"TEXT(coustomerdata5[[#This Row],[Date]], \"mmm\")","v":"avr"},{"$f":"TEXT(coustomerdata5[[#This Row],[Date]], \"aaaa\")","v":"2024"}]
[null,null,null,null,"2024-04-09","P016",6,"Grossiste","Espèces",0,{"$f":"IFERROR(VLOOKUP(coustomerdata5[[#This Row],[Index]],database[],2,0),\"\")","v":"BB crème"},{"$f":"IFERROR(VLOOKUP(coustomerdata5[[#This Row],[Index]],database[],3,0),\"\")","v":"Soins du Visage"},{"$f":"IFERROR(VLOOKUP(coustomerdata5[[#This Row],[Index]],database[],4,0),\"\")","v":"mL"},{"$f":"IFERROR(VLOOKUP(coustomerdata5[[#This Row],[Index]],database[],5,0),\"\")","v":1307},{"$f":"IFERROR(VLOOKUP(coustomerdata5[[#This Row],[Index]],database[],6,0),\"\")","v":2285.5296327924843},{"$f":"IFERROR(coustomerdata5[[#This Row],[Cout unitaire]]*coustomerdata5[[#This Row],[Quantite]],\"\")","v":7842},{"$f":"IFERROR(coustomerdata5[[#This Row],[Quantite]]*coustomerdata5[[#This Row],[Prix unitaire]]*(1-coustomerdata5[[#This Row],[Taux de reduction]]),\"\")","v":13713.177796754906},{"$f":"DAY(coustomerdata5[[#This Row],[Date]])","v":9},{"$f":"TEXT(coustomerdata5[[#This Row],[Date]], \"mmm\")","v":"avr"},{"$f":"TEXT(coustomerdata5[[#This Row],[Date]], \"aaaa\")","v":"2024"}]
[null,null,null,null,"2024-04-10","P039",2,"Grossiste","Carte",0,{"$f":"IFERROR(VLOOKUP(coustomerdata5[[#This Row],[Index]],database[],2,0),\"\")","v":"Crème pour les mains"},{"$f":"IFERROR(VLOOKUP(coustomerdata5[[#This Row],[Index]],database[],3,0),\"\")","v":"Soins du Corps"},{"$f":"IFERROR(VLOOKUP(coustomerdata5[[#This Row],[Index]],database[],4,0),\"\")","v":"mL"},{"$f":"IFERROR(VLOOKUP(coustomerdata5[[#This Row],[Index]],database[],5,0),\"\")","v":1440},{"$f":"IFERROR(VLOOKUP(coustomerdata5[[#This Row],[Index]],database[],6,0),\"\")","v":2295.3177966101698},{"$f":"IFERROR(coustomerdata5[[#This Row],[Cout unitaire]]*coustomerdata5[[#This Row],[Quantite]],\"\")","v":2880},{"$f":"IFERROR(coustomerdata5[[#This Row],[Quantite]]*coustomerdata5[[#This Row],[Prix unitaire]]*(1-coustomerdata5[[#This Row],[Taux de reduction]]),\"\")","v":4590.6355932203396},{"$f":"DAY(coustomerdata5[[#This Row],[Date]])","v":10},{"$f":"TEXT(coustomerdata5[[#This Row],[Date]], \"mmm\")","v":"avr"},{"$f":"TEXT(coustomerdata5[[#This Row],[Date]], \"aaaa\")","v":"2024"}]
[null,null,null,null,"2024-04-11","P032",9,"Détail","Mobile Money",0,{"$f":"IFERROR(VLOOKUP(coustomerdata5[[#This Row],[Index]],database[],2,0),\"\")","v":"Fond de teint"},{"$f":"IFERROR(VLOOKUP(coustomerdata5[[#This Row],[Index]],database[],3,0),\"\")","v":"Maquillage"},{"$f":"IFERROR(VLOOKUP(coustomerdata5[[#This Row],[Index]],database[],4,0),\"\")","v":"mL"},{"$f":"IFERROR(VLOOKUP(coustomerdata5[[#This Row],[Index]],database[],5,0),\"\")","v":1307},{"$f":"IFERROR(VLOOKUP(coustomerdata5[[#This Row],[Index]],database[],6,0),\"\")","v":2121.5981595092026},{"$f":"IFERROR(coustomerdata5[[#This Row],[Cout unitaire]]*coustomerdata5[[#This Row],[Quantite]],\"\")","v":11763},{"$f":"IFERROR(coustomerdata5[[#This Row],[Quantite]]*coustomerdata5[[#This Row],[Prix unitaire]]*(1-coustomerdata5[[#This Row],[Taux de reduction]]),\"\")","v":19094.383435582822},{"$f":"DAY(coustomerdata5[[#This Row],[Date]])","v":11},{"$f":"TEXT(coustomerdata5[[#This Row],[Date]], \"mmm\")","v":"avr"},{"$f":"TEXT(coustomerdata5[[#This Row],[Date]], \"aaaa\")","v":"2024"}]
[null,null,null,null,"2024-04-12","P005",5,"Détail","Mobile Money",0,{"$f":"IFERROR(VLOOKUP(coustomerdata5[[#This Row],[Index]],database[],2,0),\"\")","v":"Sérum anti-âge"},{"$f":"IFERROR(VLOOKUP(coustomerdata5[[#This Row],[Index]],database[],3,0),\"\")","v":"Soins du Visage"},{"$f":"IFERROR(VLOOKUP(coustomerdata5[[#This Row],[Index]],database[],4,0),\"\")","v":"mL"},{"$f":"IFERROR(VLOOKUP(coustomerdata5[[#This Row],[Index]],database[],5,0),\"\")","v":1372},{"$f":"IFERROR(VLOOKUP(coustomerdata5[[#This Row],[Index]],database[],6,0),\"\")","v":2349.1564814814842},{"$f":"IFERROR(coustomerdata5[[#This Row],[Cout unitaire]]*coustomerdata5[[#This Row],[Quantite]],\"\")","v":6860},{"$f":"IFERROR(coustomerdata5[[#This Row],[Quantite]]*coustomerdata5[[#This Row],[Prix unitaire]]*(1-coustomerdata5[[#This Row],[Taux de reduction]]),\"\")","v":11745.782407407421},{"$f":"DAY(coustomerdata5[[#This Row],[Date]])","v":12},{"$f":"TEXT(coustomerdata5[[#This Row],[Date]], \"mmm\")","v":"avr"},{"$f":"TEXT(coustomerdata5[[#This Row],[Date]], \"aaaa\")","v":"2024"}]
[null,null,null,null,"2024-04-13","P033",6,"Détail","Espèces",0,{"$f":"IFERROR(VLOOKUP(coustomerdata5[[#This Row],[Index]],database[],2,0),\"\")","v":"Gommage exfoliant"},{"$f":"IFERROR(VLOOKUP(coustomerdata5[[#This Row],[Index]],database[],3,0),\"\")","v":"Soins du Visage"},{"$f":"IFERROR(VLOOKUP(coustomerdata5[[#This Row],[Index]],database[],4,0),\"\")","v":"g"},{"$f":"IFERROR(VLOOKUP(coustomerdata5[[#This Row],[Index]],database[],5,0),\"\")","v":1456},{"$f":"IFERROR(VLOOKUP(coustomerdata5[[#This Row],[Index]],database[],6,0),\"\")","v":2349.1564814814842},{"$f":"IFERROR(coustomerdata5[[#This Row],[Cout unitaire]]*coustomerdata5[[#This Row],[Quantite]],\"\")","v":8736},{"$f":"IFERROR(coustomerdata5[[#This Row],[Quantite]]*coustomerdata5[[#This Row],[Prix unitaire]]*(1-coustomerdata5[[#This Row],[Taux de reduction]]),\"\")","v":14094.938888888904},{"$f":"DAY(coustomerdata5[[#This Row],[Date]])","v":13},{"$f":"TEXT(coustomerdata5[[#This Row],[Date]], \"mmm\")","v":"avr"},{"$f":"TEXT(coustomerdata5[[#This Row],[Date]], \"aaaa\")","v":"2024"}]
[null,null,null,null,"2024-04-14","P045",4,"Détail","Espèces",0,{"$f":"IFERROR(VLOOKUP(coustomerdata5[[#This Row],[Index]],database[],2,0),\"\")","v":"Palette de fards"},{"$f":"IFERROR(VLOOKUP(coustomerdata5[[#This Row],[Index]],database[],3,0),\"\")","v":"Maquillage"},{"$f":"IFERROR(VLOOKUP(coustomerdata5[[#This Row],[Index]],database[],4,0),\"\")","v":"g"},{"$f":"IFERROR(VLOOKUP(coustomerdata5[[#This Row],[Index]],database[],5,0),\"\")","v":1440},{"$f":"IFERROR(VLOOKUP(coustomerdata5[[#This Row],[Index]],database[],6,0),\"\")","v":2194.270807453418},{"$f":"IFERROR(coustomerdata5[[#This Row],[Cout unitaire]]*coustomerdata5[[#This Row],[Quantite]],\"\")","v":5760},{"$f":"IFERROR(coustomerdata5[[#This Row],[Quantite]]*coustomerdata5[[#This Row],[Prix unitaire]]*(1-coustomerdata5[[#This Row],[Taux de reduction]]),\"\")","v":8777.083229813672},{"$f":"DAY(coustomerdata5[[#This Row],[Date]])","v":14},{"$f":"TEXT(coustomerdata5[[#This Row],[Date]], \"mmm\")","v":"avr"},{"$f":"TEXT(coustomerdata5[[#This Row],[Date]], \"aaaa\")","v":"2024"}]
[null,null,null,null,"2024-04-15","P048",7,"Grossiste","Espèces",0,{"$f":"IFERROR(VLOOKUP(coustomerdata5[[#This Row],[Index]],database[],2,0),\"\")","v":"Cire coiffante"},{"$f":"IFERROR(VLOOKUP(coustomerdata5[[#This Row],[Index]],database[],3,0),\"\")","v":"Soins Capillaires"},{"$f":"IFERROR(VLOOKUP(coustomerdata5[[#This Row],[Index]],database[],4,0),\"\")","v":"g"},{"$f":"IFERROR(VLOOKUP(coustomerdata5[[#This Row],[Index]],database[],5,0),\"\")","v":1347},{"$f":"IFERROR(VLOOKUP(coustomerdata5[[#This Row],[Index]],database[],6,0),\"\")","v":2318.3925287356337},{"$f":"IFERROR(coustomerdata5[[#This Row],[Cout unitaire]]*coustomerdata5[[#This Row],[Quantite]],\"\")","v":9429},{"$f":"IFERROR(coustomerdata5[[#This Row],[Quantite]]*coustomerdata5[[#This Row],[Prix unitaire]]*(1-coustomerdata5[[#This Row],[Taux de reduction]]),\"\")","v":16228.747701149436},{"$f":"DAY(coustomerdata5[[#This Row],[Date]])","v":15},{"$f":"TEXT(coustomerdata5[[#This Row],[Date]], \"mmm\")","v":"avr"},{"$f":"TEXT(coustomerdata5[[#This Row],[Date]], \"aaaa\")","v":"2024"}]
[null,null,null,null,"2024-04-16","P050",9,"Grossiste","Carte",0,{"$f":"IFERROR(VLOOKUP(coustomerdata5[[#This Row],[Index]],database[],2,0),\"\")","v":"Poudre libre fixante"},{"$f":"IFERROR(VLOOKUP(coustomerdata5[[#This Row],[Index]],database[],3,0),\"\")","v":"Maquillage"},{"$f":"IFERROR(VLOOKUP(coustomerdata5[[#This Row],[Index]],database[],4,0),\"\")","v":"g"},{"$f":"IFERROR(VLOOKUP(coustomerdata5[[#This Row],[Index]],database[],5,0),\"\")","v":1438},{"$f":"IFERROR(VLOOKUP(coustomerdata5[[#This Row],[Index]],database[],6,0),\"\")","v":2290.0193939393948},{"$f":"IFERROR(coustomerdata5[[#This Row],[Cout unitaire]]*coustomerdata5[[#This Row],[Quantite]],\"\")","v":12942},{"$f":"IFERROR(coustomerdata5[[#This Row],[Quantite]]*coustomerdata5[[#This Row],[Prix unitaire]]*(1-coustomerdata5[[#This Row],[Taux de reduction]]),\"\")","v":20610.174545454553},{"$f":"DAY(coustomerdata5[[#This Row],[Date]])","v":16},{"$f":"TEXT(coustomerdata5[[#This Row],[Date]], \"mmm\")","v":"avr"},{"$f":"TEXT(coustomerdata5[[#This Row],[Date]], \"aaaa\")","v":"2024"}]
[null,null,null,null,"2024-04-17","P018",7,"Détail","Mobile Money",0,{"$f":"IFERROR(VLOOKUP(coustomerdata5[[#This Row],[Index]],database[],2,0),\"\")","v":"Rouge à lèvres mat"},{"$f":"IFERROR(VLOOKUP(coustomerdata5[[#This Row],[Index]],database[],3,0),\"\")","v":"Maquillage"},{"$f":"IFERROR(VLOOKUP(coustomerdata5[[#This Row],[Index]],database[],4,0),\"\")","v":"g"},{"$f":"IFERROR(VLOOKUP(coustomerdata5[[#This Row],[Index]],database[],5,0),\"\")","v":1372},{"$f":"IFERROR(VLOOKUP(coustomerdata5[[#This Row],[Index]],database[],6,0),\"\")","v":2121.5981595092026},{"$f":"IFERROR(coustomerdata5[[#This Row],[Cout unitaire]]*coustomerdata5[[#This Row],[Quantite]],\"\")","v":9604},{"$f":"IFERROR(coustomerdata5[[#This Row],[Quantite]]*coustomerdata5[[#This Row],[Prix unitaire]]*(1-coustomerdata5[[#This Row],[Taux de reduction]]),\"\")","v":14851.187116564419},{"$f":"DAY(coustomerdata5[[#This Row],[Date]])","v":17},{"$f":"TEXT(coustomerdata5[[#This Row],[Date]], \"mmm\")","v":"avr"},{"$f":"TEXT(coustomerdata5[[#This Row],[Date]], \"aaaa\")","v":"2024"}]
[null,null,null,null,"2024-04-18","P007",1,"Grossiste","Carte",0,{"$f":"IFERROR(VLOOKUP(coustomerdata5[[#This Row],[Index]],database[],2,0),\"\")","v":"Mousse volume"},{"$f":"IFERROR(VLOOKUP(coustomerdata5[[#This Row],[Index]],database[],3,0),\"\")","v":"Soins Capillaires"},{"$f":"IFERROR(VLOOKUP(coustomerdata5[[#This Row],[Index]],database[],4,0),\"\")","v":"mL"},{"$f":"IFERROR(VLOOKUP(coustomerdata5[[#This Row],[Index]],database[],5,0),\"\")","v":1479},{"$f":"IFERROR(VLOOKUP(coustomerdata5[[#This Row],[Index]],database[],6,0),\"\")","v":2313.7350150602456},{"$f":"IFERROR(coustomerdata5[[#This Row],[Cout unitaire]]*coustomerdata5[[#This Row],[Quantite]],\"\")","v":1479},{"$f":"IFERROR(coustomerdata5[[#This Row],[Quantite]]*coustomerdata5[[#This Row],[Prix unitaire]]*(1-coustomerdata5[[#This Row],[Taux de reduction]]),\"\")","v":2313.7350150602456},{"$f":"DAY(coustomerdata5[[#This Row],[Date]])","v":18},{"$f":"TEXT(coustomerdata5[[#This Row],[Date]], \"mmm\")","v":"avr"},{"$f":"TEXT(coustomerdata5[[#This Row],[Date]], \"aaaa\")","v":"2024"}]
[null,null,null,null,"2024-04-19","P022",1,"Grossiste","Mobile Money",0,{"$f":"IFERROR(VLOOKUP(coustomerdata5[[#This Row],[Index]],database[],2,0),\"\")","v":"Masque capillaire"},{"$f":"IFERROR(VLOOKUP(coustomerdata5[[#This Row],[Index]],database[],3,0),\"\")","v":"Soins Capillaires"},{"$f":"IFERROR(VLOOKUP(coustomerdata5[[#This Row],[Index]],database[],4,0),\"\")","v":"mL"},{"$f":"IFERROR(VLOOKUP(coustomerdata5[[#This Row],[Index]],database[],5,0),\"\")","v":1307},{"$f":"IFERROR(VLOOKUP(coustomerdata5[[#This Row],[Index]],database[],6,0),\"\")","v":2290.0193939393948},{"$f":"IFERROR(coustomerdata5[[#This Row],[Cout unitaire]]*coustomerdata5[[#This Row],[Quantite]],\"\")","v":1307},{"$f":"IFERROR(coustomerdata5[[#This Row],[Quantite]]*coustomerdata5[[#This Row],[Prix unitaire]]*(1-coustomerdata5[[#This Row],[Taux de reduction]]),\"\")","v":2290.0193939393948},{"$f":"DAY(coustomerdata5[[#This Row],[Date]])","v":19},{"$f":"TEXT(coustomerdata5[[#This Row],[Date]], \"mmm\")","v":"avr"},{"$f":"TEXT(coustomerdata5[[#This Row],[Date]], \"aaaa\")","v":"2024"}]
[null,null,null,null,"2024-04-20","P021",9,"Détail","Espèces",0,{"$f":"IFERROR(VLOOKUP(coustomerdata5[[#This Row],[Index]],database[],2,0),\"\")","v":"Huile nourrissante"},{"$f":"IFERROR(VLOOKUP(coustomerdata5[[#This Row],[Index]],database[],3,0),\"\")","v":"Soins du Corps"},{"$f":"IFERROR(VLOOKUP(coustomerdata5[[#This Row],[Index]],database[],4,0),\"\")","v":"mL"},{"$f":"IFERROR(VLOOKUP(coustomerdata5[[#This Row],[Index]],database[],5,0),\"\")","v":1489},{"$f":"IFERROR(VLOOKUP(coustomerdata5[[#This Row],[Index]],database[],6,0),\"\")","v":2313.7350150602456},{"$f":"IFERROR(coustomerdata5[[#This Row],[Cout unitaire]]*coustomerdata5[[#This Row],[Quantite]],\"\")","v":13401},{"$f":"IFERROR(coustomerdata5[[#This Row],[Quantite]]*coustomerdata5[[#This Row],[Prix unitaire]]*(1-coustomerdata5[[#This Row],[Taux de reduction]]),\"\")","v":20823.615135542212},{"$f":"DAY(coustomerdata5[[#This Row],[Date]])","v":20},{"$f":"TEXT(coustomerdata5[[#This Row],[Date]], \"mmm\")","v":"avr"},{"$f":"TEXT(coustomerdata5[[#This Row],[Date]], \"aaaa\")","v":"2024"}]
[null,null,null,null,"2024-04-21","P044",9,"Grossiste","Carte",0,{"$f":"IFERROR(VLOOKUP(coustomerdata5[[#This Row],[Index]],database[],2,0),\"\")","v":"Spray thermo-protecteur"},{"$f":"IFERROR(VLOOKUP(coustomerdata5[[#This Row],[Index]],database[],3,0),\"\")","v":"Soins Capillaires"},{"$f":"IFERROR(VLOOKUP(coustomerdata5[[#This Row],[Index]],database[],4,0),\"\")","v":"mL"},{"$f":"IFERROR(VLOOKUP(coustomerdata5[[#This Row],[Index]],database[],5,0),\"\")","v":1423},{"$f":"IFERROR(VLOOKUP(coustomerdata5[[#This Row],[Index]],database[],6,0),\"\")","v":2285.5296327924843},{"$f":"IFERROR(coustomerdata5[[#This Row],[Cout unitaire]]*coustomerdata5[[#This Row],[Quantite]],\"\")","v":12807},{"$f":"IFERROR(coustomerdata5[[#This Row],[Quantite]]*coustomerdata5[[#This Row],[Prix unitaire]]*(1-coustomerdata5[[#This Row],[Taux de reduction]]),\"\")","v":20569.766695132359},{"$f":"DAY(coustomerdata5[[#This Row],[Date]])","v":21},{"$f":"TEXT(coustomerdata5[[#This Row],[Date]], \"mmm\")","v":"avr"},{"$f":"TEXT(coustomerdata5[[#This Row],[Date]], \"aaaa\")","v":"2024"}]
[null,null,null,null,"2024-04-22","P018",4,"Grossiste","Carte",0,{"$f":"IFERROR(VLOOKUP(coustomerdata5[[#This Row],[Index]],database[],2,0),\"\")","v":"Rouge à lèvres mat"},{"$f":"IFERROR(VLOOKUP(coustomerdata5[[#This Row],[Index]],database[],3,0),\"\")","v":"Maquillage"},{"$f":"IFERROR(VLOOKUP(coustomerdata5[[#This Row],[Index]],database[],4,0),\"\")","v":"g"},{"$f":"IFERROR(VLOOKUP(coustomerdata5[[#This Row],[Index]],database[],5,0),\"\")","v":1372},{"$f":"IFERROR(VLOOKUP(coustomerdata5[[#This Row],[Index]],database[],6,0),\"\")","v":2121.5981595092026},{"$f":"IFERROR(coustomerdata5[[#This Row],[Cout unitaire]]*coustomerdata5[[#This Row],[Quantite]],\"\")","v":5488},{"$f":"IFERROR(coustomerdata5[[#This Row],[Quantite]]*coustomerdata5[[#This Row],[Prix unitaire]]*(1-coustomerdata5[[#This Row],[Taux de reduction]]),\"\")","v":8486.3926380368102},{"$f":"DAY(coustomerdata5[[#This Row],[Date]])","v":22},{"$f":"TEXT(coustomerdata5[[#This Row],[Date]], \"mmm\")","v":"avr"},{"$f":"TEXT(coustomerdata5[[#This Row],[Date]], \"aaaa\")","v":"2024"}]
[null,null,null,null,"2024-04-23","P018",9,"Détail","Espèces",0,{"$f":"IFERROR(VLOOKUP(coustomerdata5[[#This Row],[Index]],database[],2,0),\"\")","v":"Rouge à lèvres mat"},{"$f":"IFERROR(VLOOKUP(coustomerdata5[[#This Row],[Index]],database[],3,0),\"\")","v":"Maquillage"},{"$f":"IFERROR(VLOOKUP(coustomerdata5[[#This Row],[Index]],database[],4,0),\"\")","v":"g"},{"$f":"IFERROR(VLOOKUP(coustomerdata5[[#This Row],[Index]],database[],5,0),\"\")","v":1372},{"$f":"IFERROR(VLOOKUP(coustomerdata5[[#This Row],[Index]],database[],6,0),\"\")","v":2121.5981595092026},{"$f":"IFERROR(coustomerdata5[[#This Row],[Cout unitaire]]*coustomerdata5[[#This Row],[Quantite]],\"\")","v":12348},{"$f":"IFERROR(coustomerdata5[[#This Row],[Quantite]]*coustomerdata5[[#This Row],[Prix unitaire]]*(1-coustomerdata5[[#This Row],[Taux de reduction]]),\"\")","v":19094.383435582822},{"$f":"DAY(coustomerdata5[[#This Row],[Date]])","v":23},{"$f":"TEXT(coustomerdata5[[#This Row],[Date]], \"mmm\")","v":"avr"},{"$f":"TEXT(coustomerdata5[[#This Row],[Date]], \"aaaa\")","v":"2024"}]
[null,null,null,null,"2024-04-24","P025",3,"Détail","Carte",0,{"$f":"IFERROR(VLOOKUP(coustomerdata5[[#This Row],[Index]],database[],2,0),\"\")","v":"Cire coiffante"},{"$f":"IFERROR(VLOOKUP(coustomerdata5[[#This Row],[Index]],database[],3,0),\"\")","v":"Soins Capillaires"},{"$f":"IFERROR(VLOOKUP(coustomerdata5[[#This Row],[Index]],database[],4,0),\"\")","v":"g"},{"$f":"IFERROR(VLOOKUP(coustomerdata5[[#This Row],[Index]],database[],5,0),\"\")","v":1440},{"$f":"IFERROR(VLOOKUP(coustomerdata5[[#This Row],[Index]],database[],6,0),\"\")","v":2295.3177966101698},{"$f":"IFERROR(coustomerdata5[[#This Row],[Cout unitaire]]*coustomerdata5[[#This Row],[Quantite]],\"\")","v":4320},{"$f":"IFERROR(coustomerdata5[[#This Row],[Quantite]]*coustomerdata5[[#This Row],[Prix unitaire]]*(1-coustomerdata5[[#This Row],[Taux de reduction]]),\"\")","v":6885.953389830509},{"$f":"DAY(coustomerdata5[[#This Row],[Date]])","v":24},{"$f":"TEXT(coustomerdata5[[#This Row],[Date]], \"mmm\")","v":"avr"},{"$f":"TEXT(coustomerdata5[[#This Row],[Date]], \"aaaa\")","v":"2024"}]
[null,null,null,null,"2024-04-25","P021",7,"Détail","Carte",0,{"$f":"IFERROR(VLOOKUP(coustomerdata5[[#This Row],[Index]],database[],2,0),\"\")","v":"Huile nourrissante"},{"$f":"IFERROR(VLOOKUP(coustomerdata5[[#This Row],[Index]],database[],3,0),\"\")","v":"Soins du Corps"},{"$f":"IFERROR(VLOOKUP(coustomerdata5[[#This Row],[Index]],database[],4,0),\"\")","v":"mL"},{"$f":"IFERROR(VLOOKUP(coustomerdata5[[#This Row],[Index]],database[],5,0),\"\")","v":1489},{"$f":"IFERROR(VLOOKUP(coustomerdata5[[#This Row],[Index]],database[],6,0),\"\")","v":2313.7350150602456},{"$f":"IFERROR(coustomerdata5[[#This Row],[Cout unitaire]]*coustomerdata5[[#This Row],[Quantite]],\"\")","v":10423},{"$f":"IFERROR(coustomerdata5[[#This Row],[Quantite]]*coustomerdata5[[#This Row],[Prix unitaire]]*(1-coustomerdata5[[#This Row],[Taux de reduction]]),\"\")","v":16196.14510542172},{"$f":"DAY(coustomerdata5[[#This Row],[Date]])","v":25},{"$f":"TEXT(coustomerdata5[[#This Row],[Date]], \"mmm\")","v":"avr"},{"$f":"TEXT(coustomerdata5[[#This Row],[Date]], \"aaaa\")","v":"2024"}]
[null,null,null,null,"2024-04-26","P021",6,"Grossiste","Mobile Money",0,{"$f":"IFERROR(VLOOKUP(coustomerdata5[[#This Row],[Index]],database[],2,0),\"\")","v":"Huile nourrissante"},{"$f":"IFERROR(VLOOKUP(coustomerdata5[[#This Row],[Index]],database[],3,0),\"\")","v":"Soins du Corps"},{"$f":"IFERROR(VLOOKUP(coustomerdata5[[#This Row],[Index]],database[],4,0),\"\")","v":"mL"},{"$f":"IFERROR(VLOOKUP(coustomerdata5[[#This Row],[Index]],database[],5,0),\"\")","v":1489},{"$f":"IFERROR(VLOOKUP(coustomerdata5[[#This Row],[Index]],database[],6,0),\"\")","v":2313.7350150602456},{"$f":"IFERROR(coustomerdata5[[#This Row],[Cout unitaire]]*coustomerdata5[[#This Row],[Quantite]],\"\")","v":8934},{"$f":"IFERROR(coustomerdata5[[#This Row],[Quantite]]*coustomerdata5[[#This Row],[Prix unitaire]]*(1-coustomerdata5[[#This Row],[Taux de reduction]]),\"\")","v":13882.410090361474},{"$f":"DAY(coustomerdata5[[#This Row],[Date]])","v":26},{"$f":"TEXT(coustomerdata5[[#This Row],[Date]], \"mmm\")","v":"avr"},{"$f":"TEXT(coustomerdata5[[#This Row],[Date]], \"aaaa\")","v":"2024"}]
[null,null,null,null,"2024-04-27","P008",8,"Détail","Carte",0,{"$f":"IFERROR(VLOOKUP(coustomerdata5[[#This Row],[Index]],database[],2,0),\"\")","v":"Lotion tonique"},{"$f":"IFERROR(VLOOKUP(coustomerdata5[[#This Row],[Index]],database[],3,0),\"\")","v":"Soins du Visage"},{"$f":"IFERROR(VLOOKUP(coustomerdata5[[#This Row],[Index]],database[],4,0),\"\")","v":"mL"},{"$f":"IFERROR(VLOOKUP(coustomerdata5[[#This Row],[Index]],database[],5,0),\"\")","v":1489},{"$f":"IFERROR(VLOOKUP(coustomerdata5[[#This Row],[Index]],database[],6,0),\"\")","v":2290.0193939393948},{"$f":"IFERROR(coustomerdata5[[#This Row],[Cout unitaire]]*coustomerdata5[[#This Row],[Quantite]],\"\")","v":11912},{"$f":"IFERROR(coustomerdata5[[#This Row],[Quantite]]*coustomerdata5[[#This Row],[Prix unitaire]]*(1-coustomerdata5[[#This Row],[Taux de reduction]]),\"\")","v":18320.155151515159},{"$f":"DAY(coustomerdata5[[#This Row],[Date]])","v":27},{"$f":"TEXT(coustomerdata5[[#This Row],[Date]], \"mmm\")","v":"avr"},{"$f":"TEXT(coustomerdata5[[#This Row],[Date]], \"aaaa\")","v":"2024"}]
[null,null,null,null,"2024-04-28","P011",9,"Grossiste","Mobile Money",0,{"$f":"IFERROR(VLOOKUP(coustomerdata5[[#This Row],[Index]],database[],2,0),\"\")","v":"Eau micellaire"},{"$f":"IFERROR(VLOOKUP(coustomerdata5[[#This Row],[Index]],database[],3,0),\"\")","v":"Soins du Visage"},{"$f":"IFERROR(VLOOKUP(coustomerdata5[[#This Row],[Index]],database[],4,0),\"\")","v":"mL"},{"$f":"IFERROR(VLOOKUP(coustomerdata5[[#This Row],[Index]],database[],5,0),\"\")","v":1489},{"$f":"IFERROR(VLOOKUP(coustomerdata5[[#This Row],[Index]],database[],6,0),\"\")","v":2295.3177966101698},{"$f":"IFERROR(coustomerdata5[[#This Row],[Cout unitaire]]*coustomerdata5[[#This Row],[Quantite]],\"\")","v":13401},{"$f":"IFERROR(coustomerdata5[[#This Row],[Quantite]]*coustomerdata5[[#This Row],[Prix unitaire]]*(1-coustomerdata5[[#This Row],[Taux de reduction]]),\"\")","v":20657.860169491527},{"$f":"DAY(coustomerdata5[[#This Row],[Date]])","v":28},{"$f":"TEXT(coustomerdata5[[#This Row],[Date]], \"mmm\")","v":"avr"},{"$f":"TEXT(coustomerdata5[[#This Row],[Date]], \"aaaa\")","v":"2024"}]
[null,null,null,null,"2024-04-29","P041",5,"Grossiste","Mobile Money",0,{"$f":"IFERROR(VLOOKUP(coustomerdata5[[#This Row],[Index]],database[],2,0),\"\")","v":"Gel douche hydratant"},{"$f":"IFERROR(VLOOKUP(coustomerdata5[[#This Row],[Index]],database[],3,0),\"\")","v":"Soins du Corps"},{"$f":"IFERROR(VLOOKUP(coustomerdata5[[#This Row],[Index]],database[],4,0),\"\")","v":"mL"},{"$f":"IFERROR(VLOOKUP(coustomerdata5[[#This Row],[Index]],database[],5,0),\"\")","v":1456},{"$f":"IFERROR(VLOOKUP(coustomerdata5[[#This Row],[Index]],database[],6,0),\"\")","v":2198.2071542130352},{"$f":"IFERROR(coustomerdata5[[#This Row],[Cout unitaire]]*coustomerdata5[[#This Row],[Quantite]],\"\")","v":7280},{"$f":"IFERROR(coustomerdata5[[#This Row],[Quantite]]*coustomerdata5[[#This Row],[Prix unitaire]]*(1-coustomerdata5[[#This Row],[Taux de reduction]]),\"\")","v":10991.035771065177},{"$f":"DAY(coustomerdata5[[#This Row],[Date]])","v":29},{"$f":"TEXT(coustomerdata5[[#This Row],[Date]], \"mmm\")","v":"avr"},{"$f":"TEXT(coustomerdata5[[#This Row],[Date]], \"aaaa\")","v":"2024"}]
[null,null,null,null,"2024-04-30","P039",1,"Grossiste","Espèces",0,{"$f":"IFERROR(VLOOKUP(coustomerdata5[[#This Row],[Index]],database[],2,0),\"\")","v":"Crème pour les mains"},{"$f":"IFERROR(VLOOKUP(coustomerdata5[[#This Row],[Index]],database[],3,0),\"\")","v":"Soins du Corps"},{"$f":"IFERROR(VLOOKUP(coustomerdata5[[#This Row],[Index]],database[],4,0),\"\")","v":"mL"},{"$f":"IFERROR(VLOOKUP(coustomerdata5[[#This Row],[Index]],database[],5,0),\"\")","v":1440},{"$f":"IFERROR(VLOOKUP(coustomerdata5[[#This Row],[Index]],database[],6,0),\"\")","v":2295.3177966101698},{"$f":"IFERROR(coustomerdata5[[#This Row],[Cout unitaire]]*coustomerdata5[[#This Row],[Quantite]],\"\")","v":1440},{"$f":"IFERROR(coustomerdata5[[#This Row],[Quantite]]*coustomerdata5[[#This Row],[Prix unitaire]]*(1-coustomerdata5[[#This Row],[Taux de reduction]]),\"\")","v":2295.3177966101698},{"$f":"DAY(coustomerdata5[[#This Row],[Date]])","v":30},{"$f":"TEXT(coustomerdata5[[#This Row],[Date]], \"mmm\")","v":"avr"},{"$f":"TEXT(coustomerdata5[[#This Row],[Date]], \"aaaa\")","v":"2024"}]
[null,null,null,null,"2024-05-01","P014",3,"Détail","Espèces",0,{"$f":"IFERROR(VLOOKUP(coustomerdata5[[#This Row],[Index]],database[],2,0),\"\")","v":"Crème coiffante"},{"$f":"IFERROR(VLOOKUP(coustomerdata5[[#This Row],[Index]],database[],3,0),\"\")","v":"Soins Capillaires"},{"$f":"IFERROR(VLOOKUP(coustomerdata5[[#This Row],[Index]],database[],4,0),\"\")","v":"mL"},{"$f":"IFERROR(VLOOKUP(coustomerdata5[[#This Row],[Index]],database[],5,0),\"\")","v":1479},{"$f":"IFERROR(VLOOKUP(coustomerdata5[[#This Row],[Index]],database[],6,0),\"\")","v":2409.5477124183008},{"$f":"IFERROR(coustomerdata5[[#This Row],[Cout unitaire]]*coustomerdata5[[#This Row],[Quantite]],\"\")","v":4437},{"$f":"IFERROR(coustomerdata5[[#This Row],[Quantite]]*coustomerdata5[[#This Row],[Prix unitaire]]*(1-coustomerdata5[[#This Row],[Taux de reduction]]),\"\")","v":7228.6431372549023},{"$f":"DAY(coustomerdata5[[#This Row],[Date]])","v":1},{"$f":"TEXT(coustomerdata5[[#This Row],[Date]], \"mmm\")","v":"mai"},{"$f":"TEXT(coustomerdata5[[#This Row],[Date]], \"aaaa\")","v":"2024"}]
[null,null,null,null,"2024-05-02","P018",8,"Détail","Carte",0,{"$f":"IFERROR(VLOOKUP(coustomerdata5[[#This Row],[Index]],database[],2,0),\"\")","v":"Rouge à lèvres mat"},{"$f":"IFERROR(VLOOKUP(coustomerdata5[[#This Row],[Index]],database[],3,0),\"\")","v":"Maquillage"},{"$f":"IFERROR(VLOOKUP(coustomerdata5[[#This Row],[Index]],database[],4,0),\"\")","v":"g"},{"$f":"IFERROR(VLOOKUP(coustomerdata5[[#This Row],[Index]],database[],5,0),\"\")","v":1372},{"$f":"IFERROR(VLOOKUP(coustomerdata5[[#This Row],[Index]],database[],6,0),\"\")","v":2121.5981595092026},{"$f":"IFERROR(coustomerdata5[[#This Row],[Cout unitaire]]*coustomerdata5[[#This Row],[Quantite]],\"\")","v":10976},{"$f":"IFERROR(coustomerdata5[[#This Row],[Quantite]]*coustomerdata5[[#This Row],[Prix unitaire]]*(1-coustomerdata5[[#This Row],[Taux de reduction]]),\"\")","v":16972.78527607362},{"$f":"DAY(coustomerdata5[[#This Row],[Date]])","v":2},{"$f":"TEXT(coustomerdata5[[#This Row],[Date]], \"mmm\")","v":"mai"},{"$f":"TEXT(coustomerdata5[[#This Row],[Date]], \"aaaa\")","v":"2024"}]
[null,null,null,null,"2024-05-03","P023",6,"Grossiste","Espèces",0,{"$f":"IFERROR(VLOOKUP(coustomerdata5[[#This Row],[Index]],database[],2,0),\"\")","v":"Masque purifiant"},{"$f":"IFERROR(VLOOKUP(coustomerdata5[[#This Row],[Index]],database[],3,0),\"\")","v":"Soins du Visage"},{"$f":"IFERROR(VLOOKUP(coustomerdata5[[#This Row],[Index]],database[],4,0),\"\")","v":"g"},{"$f":"IFERROR(VLOOKUP(coustomerdata5[[#This Row],[Index]],database[],5,0),\"\")","v":1457},{"$f":"IFERROR(VLOOKUP(coustomerdata5[[#This Row],[Index]],database[],6,0),\"\")","v":2171.2942622950832},{"$f":"IFERROR(coustomerdata5[[#This Row],[Cout unitaire]]*coustomerdata5[[#This Row],[Quantite]],\"\")","v":8742},{"$f":"IFERROR(coustomerdata5[[#This Row],[Quantite]]*coustomerdata5[[#This Row],[Prix unitaire]]*(1-coustomerdata5[[#This Row],[Taux de reduction]]),\"\")","v":13027.765573770499},{"$f":"DAY(coustomerdata5[[#This Row],[Date]])","v":3},{"$f":"TEXT(coustomerdata5[[#This Row],[Date]], \"mmm\")","v":"mai"},{"$f":"TEXT(coustomerdata5[[#This Row],[Date]], \"aaaa\")","v":"2024"}]
[null,null,null,null,"2024-05-04","P050",8,"Détail","Carte",0,{"$f":"IFERROR(VLOOKUP(coustomerdata5[[#This Row],[Index]],database[],2,0),\"\")","v":"Poudre libre fixante"},{"$f":"IFERROR(VLOOKUP(coustomerdata5[[#This Row],[Index]],database[],3,0),\"\")","v":"Maquillage"},{"$f":"IFERROR(VLOOKUP(coustomerdata5[[#This Row],[Index]],database[],4,0),\"\")","v":"g"},{"$f":"IFERROR(VLOOKUP(coustomerdata5[[#This Row],[Index]],database[],5,0),\"\")","v":1438},{"$f":"IFERROR(VLOOKUP(coustomerdata5[[#This Row],[Index]],database[],6,0),\"\")","v":2290.0193939393948},{"$f":"IFERROR(coustomerdata5[[#This Row],[Cout unitaire]]*coustomerdata5[[#This Row],[Quantite]],\"\")","v":11504},{"$f":"IFERROR(coustomerdata5[[#This Row],[Quantite]]*coustomerdata5[[#This Row],[Prix unitaire]]*(1-coustomerdata5[[#This Row],[Taux de reduction]]),\"\")","v":18320.155151515159},{"$f":"DAY(coustomerdata5[[#This Row],[Date]])","v":4},{"$f":"TEXT(coustomerdata5[[#This Row],[Date]], \"mmm\")","v":"mai"},{"$f":"TEXT(coustomerdata5[[#This Row],[Date]], \"aaaa\")","v":"2024"}]
[null,null,null,null,"2024-05-05","P042",9,"Grossiste","Espèces",0,{"$f":"IFERROR(VLOOKUP(coustomerdata5[[#This Row],[Index]],database[],2,0),\"\")","v":"Crème hydratante"},{"$f":"IFERROR(VLOOKUP(coustomerdata5[[#This Row],[Index]],database[],3,0),\"\")","v":"Soins du Visage"},{"$f":"IFERROR(VLOOKUP(coustomerdata5[[#This Row],[Index]],database[],4,0),\"\")","v":"mL"},{"$f":"IFERROR(VLOOKUP(coustomerdata5[[#This Row],[Index]],database[],5,0),\"\")","v":1448},{"$f":"IFERROR(VLOOKUP(coustomerdata5[[#This Row],[Index]],database[],6,0),\"\")","v":2409.5477124183008},{"$f":"IFERROR(coustomerdata5[[#This Row],[Cout unitaire]]*coustomerdata5[[#This Row],[Quantite]],\"\")","v":13032},{"$f":"IFERROR(coustomerdata5[[#This Row],[Quantite]]*coustomerdata5[[#This Row],[Prix unitaire]]*(1-coustomerdata5[[#This Row],[Taux de reduction]]),\"\")","v":21685.929411764708},{"$f":"DAY(coustomerdata5[[#This Row],[Date]])","v":5},{"$f":"TEXT(coustomerdata5[[#This Row],[Date]], \"mmm\")","v":"mai"},{"$f":"TEXT(coustomerdata5[[#This Row],[Date]], \"aaaa\")","v":"2024"}]
[null,null,null,null,"2024-05-06","P002",4,"Grossiste","Mobile Money",0,{"$f":"IFERROR(VLOOKUP(coustomerdata5[[#This Row],[Index]],database[],2,0),\"\")","v":"Eye-liner waterproof"},{"$f":"IFERROR(VLOOKUP(coustomerdata5[[#This Row],[Index]],database[],3,0),\"\")","v":"Maquillage"},{"$f":"IFERROR(VLOOKUP(coustomerdata5[[#This Row],[Index]],database[],4,0),\"\")","v":"mL"},{"$f":"IFERROR(VLOOKUP(coustomerdata5[[#This Row],[Index]],database[],5,0),\"\")","v":1489},{"$f":"IFERROR(VLOOKUP(coustomerdata5[[#This Row],[Index]],database[],6,0),\"\")","v":2285.5296327924843},{"$f":"IFERROR(coustomerdata5[[#This Row],[Cout unitaire]]*coustomerdata5[[#This Row],[Quantite]],\"\")","v":5956},{"$f":"IFERROR(coustomerdata5[[#This Row],[Quantite]]*coustomerdata5[[#This Row],[Prix unitaire]]*(1-coustomerdata5[[#This Row],[Taux de reduction]]),\"\")","v":9142.1185311699373},{"$f":"DAY(coustomerdata5[[#This Row],[Date]])","v":6},{"$f":"TEXT(coustomerdata5[[#This Row],[Date]], \"mmm\")","v":"mai"},{"$f":"TEXT(coustomerdata5[[#This Row],[Date]], \"aaaa\")","v":"2024"}]
[null,null,null,null,"2024-05-07","P001",1,"Détail","Mobile Money",0,{"$f":"IFERROR(VLOOKUP(coustomerdata5[[#This Row],[Index]],database[],2,0),\"\")","v":"Crème pour les pieds"},{"$f":"IFERROR(VLOOKUP(coustomerdata5[[#This Row],[Index]],database[],3,0),\"\")","v":"Soins du Corps"},{"$f":"IFERROR(VLOOKUP(coustomerdata5[[#This Row],[Index]],database[],4,0),\"\")","v":"mL"},{"$f":"IFERROR(VLOOKUP(coustomerdata5[[#This Row],[Index]],database[],5,0),\"\")","v":1479},{"$f":"IFERROR(VLOOKUP(coustomerdata5[[#This Row],[Index]],database[],6,0),\"\")","v":2304.6419330289204},{"$f":"IFERROR(coustomerdata5[[#This Row],[Cout unitaire]]*coustomerdata5[[#This Row],[Quantite]],\"\")","v":1479},{"$f":"IFERROR(coustomerdata5[[#This Row],[Quantite]]*coustomerdata5[[#This Row],[Prix unitaire]]*(1-coustomerdata5[[#This Row],[Taux de reduction]]),\"\")","v":2304.6419330289204},{"$f":"DAY(coustomerdata5[[#This Row],[Date]])","v":7},{"$f":"TEXT(coustomerdata5[[#This Row],[Date]], \"mmm\")","v":"mai"},{"$f":"TEXT(coustomerdata5[[#This Row],[Date]], \"aaaa\")","v":"2024"}]
[null,null,null,null,"2024-05-08","P040",1,"Grossiste","Espèces",0,{"$f":"IFERROR(VLOOKUP(coustomerdata5[[#This Row],[Index]],database[],2,0),\"\")","v":"Shampoing sec"},{"$f":"IFERROR(VLOOKUP(coustomerdata5[[#This Row],[Index]],database[],3,0),\"\")","v":"Soins Capillaires"},{"$f":"IFERROR(VLOOKUP(coustomerdata5[[#This Row],[Index]],database[],4,0),\"\")","v":"mL"},{"$f":"IFERROR(VLOOKUP(coustomerdata5[[#This Row],[Index]],database[],5,0),\"\")","v":1456},{"$f":"IFERROR(VLOOKUP(coustomerdata5[[#This Row],[Index]],database[],6,0),\"\")","v":2300.5051282051286},{"$f":"IFERROR(coustomerdata5[[#This Row],[Cout unitaire]]*coustomerdata5[[#This Row],[Quantite]],\"\")","v":1456},{"$f":"IFERROR(coustomerdata5[[#This Row],[Quantite]]*coustomerdata5[[#This Row],[Prix unitaire]]*(1-coustomerdata5[[#This Row],[Taux de reduction]]),\"\")","v":2300.5051282051286},{"$f":"DAY(coustomerdata5[[#This Row],[Date]])","v":8},{"$f":"TEXT(coustomerdata5[[#This Row],[Date]], \"mmm\")","v":"mai"},{"$f":"TEXT(coustomerdata5[[#This Row],[Date]], \"aaaa\")","v":"2024"}]
[null,null,null,null,"2024-05-09","P034",4,"Grossiste","Espèces",0,{"$f":"IFERROR(VLOOKUP(coustomerdata5[[#This Row],[Index]],database[],2,0),\"\")","v":"Blush rosé"},{"$f":"IFERROR(VLOOKUP(coustomerdata5[[#This Row],[Index]],database[],3,0),\"\")","v":"Maquillage"},{"$f":"IFERROR(VLOOKUP(coustomerdata5[[#This Row],[Index]],database[],4,0),\"\")","v":"g"},{"$f":"IFERROR(VLOOKUP(coustomerdata5[[#This Row],[Index]],database[],5,0),\"\")","v":1448},{"$f":"IFERROR(VLOOKUP(coustomerdata5[[#This Row],[Index]],database[],6,0),\"\")","v":2318.3925287356337},{"$f":"IFERROR(coustomerdata5[[#This Row],[Cout unitaire]]*coustomerdata5[[#This Row],[Quantite]],\"\")","v":5792},{"$f":"IFERROR(coustomerdata5[[#This Row],[Quantite]]*coustomerdata5[[#This Row],[Prix unitaire]]*(1-coustomerdata5[[#This Row],[Taux de reduction]]),\"\")","v":9273.5701149425349},{"$f":"DAY(coustomerdata5[[#This Row],[Date]])","v":9},{"$f":"TEXT(coustomerdata5[[#This Row],[Date]], \"mmm\")","v":"mai"},{"$f":"TEXT(coustomerdata5[[#This Row],[Date]], \"aaaa\")","v":"2024"}]
[null,null,null,null,"2024-05-10","P004",7,"Grossiste","Carte",0,{"$f":"IFERROR(VLOOKUP(coustomerdata5[[#This Row],[Index]],database[],2,0),\"\")","v":"Spray thermo-protecteur"},{"$f":"IFERROR(VLOOKUP(coustomerdata5[[#This Row],[Index]],database[],3,0),\"\")","v":"Soins Capillaires"},{"$f":"IFERROR(VLOOKUP(coustomerdata5[[#This Row],[Index]],database[],4,0),\"\")","v":"mL"},{"$f":"IFERROR(VLOOKUP(coustomerdata5[[#This Row],[Index]],database[],5,0),\"\")","v":1372},{"$f":"IFERROR(VLOOKUP(coustomerdata5[[#This Row],[Index]],database[],6,0),\"\")","v":2121.5981595092026},{"$f":"IFERROR(coustomerdata5[[#This Row],[Cout unitaire]]*coustomerdata5[[#This Row],[Quantite]],\"\")","v":9604},{"$f":"IFERROR(coustomerdata5[[#This Row],[Quantite]]*coustomerdata5[[#This Row],[Prix unitaire]]*(1-coustomerdata5[[#This Row],[Taux de reduction]]),\"\")","v":14851.187116564419},{"$f":"DAY(coustomerdata5[[#This Row],[Date]])","v":10},{"$f":"TEXT(coustomerdata5[[#This Row],[Date]], \"mmm\")","v":"mai"},{"$f":"TEXT(coustomerdata5[[#This Row],[Date]], \"aaaa\")","v":"2024"}]
[null,null,null,null,"2024-05-11","P040",2,"Détail","Mobile Money",0,{"$f":"IFERROR(VLOOKUP(coustomerdata5[[#This Row],[Index]],database[],2,0),\"\")","v":"Shampoing sec"},{"$f":"IFERROR(VLOOKUP(coustomerdata5[[#This Row],[Index]],database[],3,0),\"\")","v":"Soins Capillaires"},{"$f":"IFERROR(VLOOKUP(coustomerdata5[[#This Row],[Index]],database[],4,0),\"\")","v":"mL"},{"$f":"IFERROR(VLOOKUP(coustomerdata5[[#This Row],[Index]],database[],5,0),\"\")","v":1456},{"$f":"IFERROR(VLOOKUP(coustomerdata5[[#This Row],[Index]],database[],6,0),\"\")","v":2300.5051282051286},{"$f":"IFERROR(coustomerdata5[[#This Row],[Cout unitaire]]*coustomerdata5[[#This Row],[Quantite]],\"\")","v":2912},{"$f":"IFERROR(coustomerdata5[[#This Row],[Quantite]]*coustomerdata5[[#This Row],[Prix unitaire]]*(1-coustomerdata5[[#This Row],[Taux de reduction]]),\"\")","v":4601.0102564102572},{"$f":"DAY(coustomerdata5[[#This Row],[Date]])","v":11},{"$f":"TEXT(coustomerdata5[[#This Row],[Date]], \"mmm\")","v":"mai"},{"$f":"TEXT(coustomerdata5[[#This Row],[Date]], \"aaaa\")","v":"2024"}]
[null,null,null,null,"2024-05-12","P006",3,"Détail","Mobile Money",0,{"$f":"IFERROR(VLOOKUP(coustomerdata5[[#This Row],[Index]],database[],2,0),\"\")","v":"Déodorant naturel"},{"$f":"IFERROR(VLOOKUP(coustomerdata5[[#This Row],[Index]],database[],3,0),\"\")","v":"Soins du Corps"},{"$f":"IFERROR(VLOOKUP(coustomerdata5[[#This Row],[Index]],database[],4,0),\"\")","v":"mL"},{"$f":"IFERROR(VLOOKUP(coustomerdata5[[#This Row],[Index]],database[],5,0),\"\")","v":1440},{"$f":"IFERROR(VLOOKUP(coustomerdata5[[#This Row],[Index]],database[],6,0),\"\")","v":2318.3925287356337},{"$f":"IFERROR(coustomerdata5[[#This Row],[Cout unitaire]]*coustomerdata5[[#This Row],[Quantite]],\"\")","v":4320},{"$f":"IFERROR(coustomerdata5[[#This Row],[Quantite]]*coustomerdata5[[#This Row],[Prix unitaire]]*(1-coustomerdata5[[#This Row],[Taux de reduction]]),\"\")","v":6955.1775862069007},{"$f":"DAY(coustomerdata5[[#This Row],[Date]])","v":12},{"$f":"TEXT(coustomerdata5[[#This Row],[Date]], \"mmm\")","v":"mai"},{"$f":"TEXT(coustomerdata5[[#This Row],[Date]], \"aaaa\")","v":"2024"}]
[null,null,null,null,"2024-05-13","P041",1,"Détail","Espèces",0,{"$f":"IFERROR(VLOOKUP(coustomerdata5[[#This Row],[Index]],database[],2,0),\"\")","v":"Gel douche hydratant"},{"$f":"IFERROR(VLOOKUP(coustomerdata5[[#This Row],[Index]],database[],3,0),\"\")","v":"Soins du Corps"},{"$f":"IFERROR(VLOOKUP(coustomerdata5[[#This Row],[Index]],database[],4,0),\"\")","v":"mL"},{"$f":"IFERROR(VLOOKUP(coustomerdata5[[#This Row],[Index]],database[],5,0),\"\")","v":1456},{"$f":"IFERROR(VLOOKUP(coustomerdata5[[#This Row],[Index]],database[],6,0),\"\")","v":2198.2071542130352},{"$f":"IFERROR(coustomerdata5[[#This Row],[Cout unitaire]]*coustomerdata5[[#This Row],[Quantite]],\"\")","v":1456},{"$f":"IFERROR(coustomerdata5[[#This Row],[Quantite]]*coustomerdata5[[#This Row],[Prix unitaire]]*(1-coustomerdata5[[#This Row],[Taux de reduction]]),\"\")","v":2198.2071542130352},{"$f":"DAY(coustomerdata5[[#This Row],[Date]])","v":13},{"$f":"TEXT(coustomerdata5[[#This Row],[Date]], \"mmm\")","v":"mai"},{"$f":"TEXT(coustomerdata5[[#This Row],[Date]], \"aaaa\")","v":"2024"}]
[null,null,null,null,"2024-05-14","P045",5,"Détail","Espèces",0,{"$f":"IFERROR(VLOOKUP(coustomerdata5[[#This Row],[Index]],database[],2,0),\"\")","v":"Palette de fards"},{"$f":"IFERROR(VLOOKUP(coustomerdata5[[#This Row],[Index]],database[],3,0),\"\")","v":"Maquillage"},{"$f":"IFERROR(VLOOKUP(coustomerdata5[[#This Row],[Index]],database[],4,0),\"\")","v":"g"},{"$f":"IFERROR(VLOOKUP(coustomerdata5[[#This Row],[Index]],database[],5,0),\"\")","v":1440},{"$f":"IFERROR(VLOOKUP(coustomerdata5[[#This Row],[Index]],database[],6,0),\"\")","v":2194.270807453418},{"$f":"IFERROR(coustomerdata5[[#This Row],[Cout unitaire]]*coustomerdata5[[#This Row],[Quantite]],\"\")","v":7200},{"$f":"IFERROR(coustomerdata5[[#This Row],[Quantite]]*coustomerdata5[[#This Row],[Prix unitaire]]*(1-coustomerdata5[[#This Row],[Taux de reduction]]),\"\")","v":10971.35403726709},{"$f":"DAY(coustomerdata5[[#This Row],[Date]])","v":14},{"$f":"TEXT(coustomerdata5[[#This Row],[Date]], \"mmm\")","v":"mai"},{"$f":"TEXT(coustomerdata5[[#This Row],[Date]], \"aaaa\")","v":"2024"}]
[null,null,null,null,"2024-05-15","P040",1,"Grossiste","Espèces",0,{"$f":"IFERROR(VLOOKUP(coustomerdata5[[#This Row],[Index]],database[],2,0),\"\")","v":"Shampoing sec"},{"$f":"IFERROR(VLOOKUP(coustomerdata5[[#This Row],[Index]],database[],3,0),\"\")","v":"Soins Capillaires"},{"$f":"IFERROR(VLOOKUP(coustomerdata5[[#This Row],[Index]],database[],4,0),\"\")","v":"mL"},{"$f":"IFERROR(VLOOKUP(coustomerdata5[[#This Row],[Index]],database[],5,0),\"\")","v":1456},{"$f":"IFERROR(VLOOKUP(coustomerdata5[[#This Row],[Index]],database[],6,0),\"\")","v":2300.5051282051286},{"$f":"IFERROR(coustomerdata5[[#This Row],[Cout unitaire]]*coustomerdata5[[#This Row],[Quantite]],\"\")","v":1456},{"$f":"IFERROR(coustomerdata5[[#This Row],[Quantite]]*coustomerdata5[[#This Row],[Prix unitaire]]*(1-coustomerdata5[[#This Row],[Taux de reduction]]),\"\")","v":2300.5051282051286},{"$f":"DAY(coustomerdata5[[#This Row],[Date]])","v":15},{"$f":"TEXT(coustomerdata5[[#This Row],[Date]], \"mmm\")","v":"mai"},{"$f":"TEXT(coustomerdata5[[#This Row],[Date]], \"aaaa\")","v":"2024"}]
[null,null,null,null,"2024-05-16","P029",8,"Grossiste","Carte",0,{"$f":"IFERROR(VLOOKUP(coustomerdata5[[#This Row],[Index]],database[],2,0),\"\")","v":"Palette de fards"},{"$f":"IFERROR(VLOOKUP(coustomerdata5[[#This Row],[Index]],database[],3,0),\"\")","v":"Maquillage"},{"$f":"IFERROR(VLOOKUP(coustomerdata5[[#This Row],[Index]],database[],4,0),\"\")","v":"g"},{"$f":"IFERROR(VLOOKUP(coustomerdata5[[#This Row],[Index]],database[],5,0),\"\")","v":1416},{"$f":"IFERROR(VLOOKUP(coustomerdata5[[#This Row],[Index]],database[],6,0),\"\")","v":2304.6419330289204},{"$f":"IFERROR(coustomerdata5[[#This Row],[Cout unitaire]]*coustomerdata5[[#This Row],[Quantite]],\"\")","v":11328},{"$f":"IFERROR(coustomerdata5[[#This Row],[Quantite]]*coustomerdata5[[#This Row],[Prix unitaire]]*(1-coustomerdata5[[#This Row],[Taux de reduction]]),\"\")","v":18437.135464231364},{"$f":"DAY(coustomerdata5[[#This Row],[Date]])","v":16},{"$f":"TEXT(coustomerdata5[[#This Row],[Date]], \"mmm\")","v":"mai"},{"$f":"TEXT(coustomerdata5[[#This Row],[Date]], \"aaaa\")","v":"2024"}]
[null,null,null,null,"2024-05-17","P004",1,"Détail","Mobile Money",0,{"$f":"IFERROR(VLOOKUP(coustomerdata5[[#This Row],[Index]],database[],2,0),\"\")","v":"Spray thermo-protecteur"},{"$f":"IFERROR(VLOOKUP(coustomerdata5[[#This Row],[Index]],database[],3,0),\"\")","v":"Soins Capillaires"},{"$f":"IFERROR(VLOOKUP(coustomerdata5[[#This Row],[Index]],database[],4,0),\"\")","v":"mL"},{"$f":"IFERROR(VLOOKUP(coustomerdata5[[#This Row],[Index]],database[],5,0),\"\")","v":1372},{"$f":"IFERROR(VLOOKUP(coustomerdata5[[#This Row],[Index]],database[],6,0),\"\")","v":2121.5981595092026},{"$f":"IFERROR(coustomerdata5[[#This Row],[Cout unitaire]]*coustomerdata5[[#This Row],[Quantite]],\"\")","v":1372},{"$f":"IFERROR(coustomerdata5[[#This Row],[Quantite]]*coustomerdata5[[#This Row],[Prix unitaire]]*(1-coustomerdata5[[#This Row],[Taux de reduction]]),\"\")","v":2121.5981595092026},{"$f":"DAY(coustomerdata5[[#This Row],[Date]])","v":17},{"$f":"TEXT(coustomerdata5[[#This Row],[Date]], \"mmm\")","v":"mai"},{"$f":"TEXT(coustomerdata5[[#This Row],[Date]], \"aaaa\")","v":"2024"}]
[null,null,null,null,"2024-05-18","P011",1,"Grossiste","Carte",0,{"$f":"IFERROR(VLOOKUP(coustomerdata5[[#This Row],[Index]],database[],2,0),\"\")","v":"Eau micellaire"},{"$f":"IFERROR(VLOOKUP(coustomerdata5[[#This Row],[Index]],database[],3,0),\"\")","v":"Soins du Visage"},{"$f":"IFERROR(VLOOKUP(coustomerdata5[[#This Row],[Index]],database[],4,0),\"\")","v":"mL"},{"$f":"IFERROR(VLOOKUP(coustomerdata5[[#This Row],[Index]],database[],5,0),\"\")","v":1489},{"$f":"IFERROR(VLOOKUP(coustomerdata5[[#This Row],[Index]],database[],6,0),\"\")","v":2295.3177966101698},{"$f":"IFERROR(coustomerdata5[[#This Row],[Cout unitaire]]*coustomerdata5[[#This Row],[Quantite]],\"\")","v":1489},{"$f":"IFERROR(coustomerdata5[[#This Row],[Quantite]]*coustomerdata5[[#This Row],[Prix unitaire]]*(1-coustomerdata5[[#This Row],[Taux de reduction]]),\"\")","v":2295.3177966101698},{"$f":"DAY(coustomerdata5[[#This Row],[Date]])","v":18},{"$f":"TEXT(coustomerdata5[[#This Row],[Date]], \"mmm\")","v":"mai"},{"$f":"TEXT(coustomerdata5[[#This Row],[Date]], \"aaaa\")","v":"2024"}]
[null,null,null,null,"2024-05-19","P038",2,"Grossiste","Mobile Money",0,{"$f":"IFERROR(VLOOKUP(coustomerdata5[[#This Row],[Index]],database[],2,0),\"\")","v":"Crème raffermissante"},{"$f":"IFERROR(VLOOKUP(coustomerdata5[[#This Row],[Index]],database[],3,0),\"\")","v":"Soins du Corps"},{"$f":"IFERROR(VLOOKUP(coustomerdata5[[#This Row],[Index]],database[],4,0),\"\")","v":"mL"},{"$f":"IFERROR(VLOOKUP(coustomerdata5[[#This Row],[Index]],database[],5,0),\"\")","v":1307},{"$f":"IFERROR(VLOOKUP(coustomerdata5[[#This Row],[Index]],database[],6,0),\"\")","v":2214.6171779141105},{"$f":"IFERROR(coustomerdata5[[#This Row],[Cout unitaire]]*coustomerdata5[[#This Row],[Quantite]],\"\")","v":2614},{"$f":"IFERROR(coustomerdata5[[#This Row],[Quantite]]*coustomerdata5[[#This Row],[Prix unitaire]]*(1-coustomerdata5[[#This Row],[Taux de reduction]]),\"\")","v":4429.2343558282209},{"$f":"DAY(coustomerdata5[[#This Row],[Date]])","v":19},{"$f":"TEXT(coustomerdata5[[#This Row],[Date]], \"mmm\")","v":"mai"},{"$f":"TEXT(coustomerdata5[[#This Row],[Date]], \"aaaa\")","v":"2024"}]
[null,null,null,null,"2024-05-20","P043",2,"Détail","Espèces",0,{"$f":"IFERROR(VLOOKUP(coustomerdata5[[#This Row],[Index]],database[],2,0),\"\")","v":"Crayon à sourcils"},{"$f":"IFERROR(VLOOKUP(coustomerdata5[[#This Row],[Index]],database[],3,0),\"\")","v":"Maquillage"},{"$f":"IFERROR(VLOOKUP(coustomerdata5[[#This Row],[Index]],database[],4,0),\"\")","v":"g"},{"$f":"IFERROR(VLOOKUP(coustomerdata5[[#This Row],[Index]],database[],5,0),\"\")","v":1440},{"$f":"IFERROR(VLOOKUP(coustomerdata5[[#This Row],[Index]],database[],6,0),\"\")","v":2304.6419330289204},{"$f":"IFERROR(coustomerdata5[[#This Row],[Cout unitaire]]*coustomerdata5[[#This Row],[Quantite]],\"\")","v":2880},{"$f":"IFERROR(coustomerdata5[[#This Row],[Quantite]]*coustomerdata5[[#This Row],[Prix unitaire]]*(1-coustomerdata5[[#This Row],[Taux de reduction]]),\"\")","v":4609.2838660578409},{"$f":"DAY(coustomerdata5[[#This Row],[Date]])","v":20},{"$f":"TEXT(coustomerdata5[[#This Row],[Date]], \"mmm\")","v":"mai"},{"$f":"TEXT(coustomerdata5[[#This Row],[Date]], \"aaaa\")","v":"2024"}]
[null,null,null,null,"2024-05-21","P017",6,"Grossiste","Carte",0,{"$f":"IFERROR(VLOOKUP(coustomerdata5[[#This Row],[Index]],database[],2,0),\"\")","v":"Spray rafraîchissant"},{"$f":"IFERROR(VLOOKUP(coustomerdata5[[#This Row],[Index]],database[],3,0),\"\")","v":"Soins du Corps"},{"$f":"IFERROR(VLOOKUP(coustomerdata5[[#This Row],[Index]],database[],4,0),\"\")","v":"mL"},{"$f":"IFERROR(VLOOKUP(coustomerdata5[[#This Row],[Index]],database[],5,0),\"\")","v":1440},{"$f":"IFERROR(VLOOKUP(coustomerdata5[[#This Row],[Index]],database[],6,0),\"\")","v":2194.270807453418},{"$f":"IFERROR(coustomerdata5[[#This Row],[Cout unitaire]]*coustomerdata5[[#This Row],[Quantite]],\"\")","v":8640},{"$f":"IFERROR(coustomerdata5[[#This Row],[Quantite]]*coustomerdata5[[#This Row],[Prix unitaire]]*(1-coustomerdata5[[#This Row],[Taux de reduction]]),\"\")","v":13165.624844720507},{"$f":"DAY(coustomerdata5[[#This Row],[Date]])","v":21},{"$f":"TEXT(coustomerdata5[[#This Row],[Date]], \"mmm\")","v":"mai"},{"$f":"TEXT(coustomerdata5[[#This Row],[Date]], \"aaaa\")","v":"2024"}]
[null,null,null,null,"2024-05-22","P006",7,"Grossiste","Carte",0,{"$f":"IFERROR(VLOOKUP(coustomerdata5[[#This Row],[Index]],database[],2,0),\"\")","v":"Déodorant naturel"},{"$f":"IFERROR(VLOOKUP(coustomerdata5[[#This Row],[Index]],database[],3,0),\"\")","v":"Soins du Corps"},{"$f":"IFERROR(VLOOKUP(coustomerdata5[[#This Row],[Index]],database[],4,0),\"\")","v":"mL"},{"$f":"IFERROR(VLOOKUP(coustomerdata5[[#This Row],[Index]],database[],5,0),\"\")","v":1440},{"$f":"IFERROR(VLOOKUP(coustomerdata5[[#This Row],[Index]],database[],6,0),\"\")","v":2318.3925287356337},{"$f":"IFERROR(coustomerdata5[[#This Row],[Cout unitaire]]*coustomerdata5[[#This Row],[Quantite]],\"\")","v":10080},{"$f":"IFERROR(coustomerdata5[[#This Row],[Quantite]]*coustomerdata5[[#This Row],[Prix unitaire]]*(1-coustomerdata5[[#This Row],[Taux de reduction]]),\"\")","v":16228.747701149436},{"$f":"DAY(coustomerdata5[[#This Row],[Date]])","v":22},{"$f":"TEXT(coustomerdata5[[#This Row],[Date]], \"mmm\")","v":"mai"},{"$f":"TEXT(coustomerdata5[[#This Row],[Date]], \"aaaa\")","v":"2024"}]
[null,null,null,null,"2024-05-23","P032",5,"Détail","Espèces",0,{"$f":"IFERROR(VLOOKUP(coustomerdata5[[#This Row],[Index]],database[],2,0),\"\")","v":"Fond de teint"},{"$f":"IFERROR(VLOOKUP(coustomerdata5[[#This Row],[Index]],database[],3,0),\"\")","v":"Maquillage"},{"$f":"IFERROR(VLOOKUP(coustomerdata5[[#This Row],[Index]],database[],4,0),\"\")","v":"mL"},{"$f":"IFERROR(VLOOKUP(coustomerdata5[[#This Row],[Index]],database[],5,0),\"\")","v":1307},{"$f":"IFERROR(VLOOKUP(coustomerdata5[[#This Row],[Index]],database[],6,0),\"\")","v":2121.5981595092026},{"$f":"IFERROR(coustomerdata5[[#This Row],[Cout unitaire]]*coustomerdata5[[#This Row],[Quantite]],\"\")","v":6535},{"$f":"IFERROR(coustomerdata5[[#This Row],[Quantite]]*coustomerdata5[[#This Row],[Prix unitaire]]*(1-coustomerdata5[[#This Row],[Taux de reduction]]),\"\")","v":10607.990797546012},{"$f":"DAY(coustomerdata5[[#This Row],[Date]])","v":23},{"$f":"TEXT(coustomerdata5[[#This Row],[Date]], \"mmm\")","v":"mai"},{"$f":"TEXT(coustomerdata5[[#This Row],[Date]], \"aaaa\")","v":"2024"}]
[null,null,null,null,"2024-05-24","P033",1,"Détail","Carte",0,{"$f":"IFERROR(VLOOKUP(coustomerdata5[[#This Row],[Index]],database[],2,0),\"\")","v":"Gommage exfoliant"},{"$f":"IFERROR(VLOOKUP(coustomerdata5[[#This Row],[Index]],database[],3,0),\"\")","v":"Soins du Visage"},{"$f":"IFERROR(VLOOKUP(coustomerdata5[[#This Row],[Index]],database[],4,0),\"\")","v":"g"},{"$f":"IFERROR(VLOOKUP(coustomerdata5[[#This Row],[Index]],database[],5,0),\"\")","v":1456},{"$f":"IFERROR(VLOOKUP(coustomerdata5[[#This Row],[Index]],database[],6,0),\"\")","v":2349.1564814814842},{"$f":"IFERROR(coustomerdata5[[#This Row],[Cout unitaire]]*coustomerdata5[[#This Row],[Quantite]],\"\")","v":1456},{"$f":"IFERROR(coustomerdata5[[#This Row],[Quantite]]*coustomerdata5[[#This Row],[Prix unitaire]]*(1-coustomerdata5[[#This Row],[Taux de reduction]]),\"\")","v":2349.1564814814842},{"$f":"DAY(coustomerdata5[[#This Row],[Date]])","v":24},{"$f":"TEXT(coustomerdata5[[#This Row],[Date]], \"mmm\")","v":"mai"},{"$f":"TEXT(coustomerdata5[[#This Row],[Date]], \"aaaa\")","v":"2024"}]
[null,null,null,null,"2024-05-25","P016",1,"Détail","Carte",0,{"$f":"IFERROR(VLOOKUP(coustomerdata5[[#This Row],[Index]],database[],2,0),\"\")","v":"BB crème"},{"$f":"IFERROR(VLOOKUP(coustomerdata5[[#This Row],[Index]],database[],3,0),\"\")","v":"Soins du Visage"},{"$f":"IFERROR(VLOOKUP(coustomerdata5[[#This Row],[Index]],database[],4,0),\"\")","v":"mL"},{"$f":"IFERROR(VLOOKUP(coustomerdata5[[#This Row],[Index]],database[],5,0),\"\")","v":1307},{"$f":"IFERROR(VLOOKUP(coustomerdata5[[#This Row],[Index]],database[],6,0),\"\")","v":2285.5296327924843},{"$f":"IFERROR(coustomerdata5[[#This Row],[Cout unitaire]]*coustomerdata5[[#This Row],[Quantite]],\"\")","v":1307},{"$f":"IFERROR(coustomerdata5[[#This Row],[Quantite]]*coustomerdata5[[#This Row],[Prix unitaire]]*(1-coustomerdata5[[#This Row],[Taux de reduction]]),\"\")","v":2285.5296327924843},{"$f":"DAY(coustomerdata5[[#This Row],[Date]])","v":25},{"$f":"TEXT(coustomerdata5[[#This Row],[Date]], \"mmm\")","v":"mai"},{"$f":"TEXT(coustomerdata5[[#This Row],[Date]], \"aaaa\")","v":"2024"}]
[null,null,null,null,"2024-05-26","P039",3,"Grossiste","Mobile Money",0,{"$f":"IFERROR(VLOOKUP(coustomerdata5[[#This Row],[Index]],database[],2,0),\"\")","v":"Crème pour les mains"},{"$f":"IFERROR(VLOOKUP(coustomerdata5[[#This Row],[Index]],database[],3,0),\"\")","v":"Soins du Corps"},{"$f":"IFERROR(VLOOKUP(coustomerdata5[[#This Row],[Index]],database[],4,0),\"\")","v":"mL"},{"$f":"IFERROR(VLOOKUP(coustomerdata5[[#This Row],[Index]],database[],5,0),\"\")","v":1440},{"$f":"IFERROR(VLOOKUP(coustomerdata5[[#This Row],[Index]],database[],6,0),\"\")","v":2295.3177966101698},{"$f":"IFERROR(coustomerdata5[[#This Row],[Cout unitaire]]*coustomerdata5[[#This Row],[Quantite]],\"\")","v":4320},{"$f":"IFERROR(coustomerdata5[[#This Row],[Quantite]]*coustomerdata5[[#This Row],[Prix unitaire]]*(1-coustomerdata5[[#This Row],[Taux de reduction]]),\"\")","v":6885.953389830509},{"$f":"DAY(coustomerdata5[[#This Row],[Date]])","v":26},{"$f":"TEXT(coustomerdata5[[#This Row],[Date]], \"mmm\")","v":"mai"},{"$f":"TEXT(coustomerdata5[[#This Row],[Date]], \"aaaa\")","v":"2024"}]
[null,null,null,null,"2024-05-27","P032",2,"Détail","Carte",0,{"$f":"IFERROR(VLOOKUP(coustomerdata5[[#This Row],[Index]],database[],2,0),\"\")","v":"Fond de teint"},{"$f":"IFERROR(VLOOKUP(coustomerdata5[[#This Row],[Index]],database[],3,0),\"\")","v":"Maquillage"},{"$f":"IFERROR(VLOOKUP(coustomerdata5[[#This Row],[Index]],database[],4,0),\"\")","v":"mL"},{"$f":"IFERROR(VLOOKUP(coustomerdata5[[#This Row],[Index]],database[],5,0),\"\")","v":1307},{"$f":"IFERROR(VLOOKUP(coustomerdata5[[#This Row],[Index]],database[],6,0),\"\")","v":2121.5981595092026},{"$f":"IFERROR(coustomerdata5[[#This Row],[Cout unitaire]]*coustomerdata5[[#This Row],[Quantite]],\"\")","v":2614},{"$f":"IFERROR(coustomerdata5[[#This Row],[Quantite]]*coustomerdata5[[#This Row],[Prix unitaire]]*(1-coustomerdata5[[#This Row],[Taux de reduction]]),\"\")","v":4243.1963190184051},{"$f":"DAY(coustomerdata5[[#This Row],[Date]])","v":27},{"$f":"TEXT(coustomerdata5[[#This Row],[Date]], \"mmm\")","v":"mai"},{"$f":"TEXT(coustomerdata5[[#This Row],[Date]], \"aaaa\")","v":"2024"}]
[null,null,null,null,"2024-05-28","P005",5,"Grossiste","Mobile Money",0,{"$f":"IFERROR(VLOOKUP(coustomerdata5[[#This Row],[Index]],database[],2,0),\"\")","v":"Sérum anti-âge"},{"$f":"IFERROR(VLOOKUP(coustomerdata5[[#This Row],[Index]],database[],3,0),\"\")","v":"Soins du Visage"},{"$f":"IFERROR(VLOOKUP(coustomerdata5[[#This Row],[Index]],database[],4,0),\"\")","v":"mL"},{"$f":"IFERROR(VLOOKUP(coustomerdata5[[#This Row],[Index]],database[],5,0),\"\")","v":1372},{"$f":"IFERROR(VLOOKUP(coustomerdata5[[#This Row],[Index]],database[],6,0),\"\")","v":2349.1564814814842},{"$f":"IFERROR(coustomerdata5[[#This Row],[Cout unitaire]]*coustomerdata5[[#This Row],[Quantite]],\"\")","v":6860},{"$f":"IFERROR(coustomerdata5[[#This Row],[Quantite]]*coustomerdata5[[#This Row],[Prix unitaire]]*(1-coustomerdata5[[#This Row],[Taux de reduction]]),\"\")","v":11745.782407407421},{"$f":"DAY(coustomerdata5[[#This Row],[Date]])","v":28},{"$f":"TEXT(coustomerdata5[[#This Row],[Date]], \"mmm\")","v":"mai"},{"$f":"TEXT(coustomerdata5[[#This Row],[Date]], \"aaaa\")","v":"2024"}]
[null,null,null,null,"2024-05-29","P033",6,"Grossiste","Mobile Money",0,{"$f":"IFERROR(VLOOKUP(coustomerdata5[[#This Row],[Index]],database[],2,0),\"\")","v":"Gommage exfoliant"},{"$f":"IFERROR(VLOOKUP(coustomerdata5[[#This Row],[Index]],database[],3,0),\"\")","v":"Soins du Visage"},{"$f":"IFERROR(VLOOKUP(coustomerdata5[[#This Row],[Index]],database[],4,0),\"\")","v":"g"},{"$f":"IFERROR(VLOOKUP(coustomerdata5[[#This Row],[Index]],database[],5,0),\"\")","v":1456},{"$f":"IFERROR(VLOOKUP(coustomerdata5[[#This Row],[Index]],database[],6,0),\"\")","v":2349.1564814814842},{"$f":"IFERROR(coustomerdata5[[#This Row],[Cout unitaire]]*coustomerdata5[[#This Row],[Quantite]],\"\")","v":8736},{"$f":"IFERROR(coustomerdata5[[#This Row],[Quantite]]*coustomerdata5[[#This Row],[Prix unitaire]]*(1-coustomerdata5[[#This Row],[Taux de reduction]]),\"\")","v":14094.938888888904},{"$f":"DAY(coustomerdata5[[#This Row],[Date]])","v":29},{"$f":"TEXT(coustomerdata5[[#This Row],[Date]], \"mmm\")","v":"mai"},{"$f":"TEXT(coustomerdata5[[#This Row],[Date]], \"aaaa\")","v":"2024"}]
[null,null,null,null,"2024-05-30","P045",7,"Grossiste","Espèces",0,{"$f":"IFERROR(VLOOKUP(coustomerdata5[[#This Row],[Index]],database[],2,0),\"\")","v":"Palette de fards"},{"$f":"IFERROR(VLOOKUP(coustomerdata5[[#This Row],[Index]],database[],3,0),\"\")","v":"Maquillage"},{"$f":"IFERROR(VLOOKUP(coustomerdata5[[#This Row],[Index]],database[],4,0),\"\")","v":"g"},{"$f":"IFERROR(VLOOKUP(coustomerdata5[[#This Row],[Index]],database[],5,0),\"\")","v":1440},{"$f":"IFERROR(VLOOKUP(coustomerdata5[[#This Row],[Index]],database[],6,0),\"\")","v":2194.270807453418},{"$f":"IFERROR(coustomerdata5[[#This Row],[Cout unitaire]]*coustomerdata5[[#This Row],[Quantite]],\"\")","v":10080},{"$f":"IFERROR(coustomerdata5[[#This Row],[Quantite]]*coustomerdata5[[#This Row],[Prix unitaire]]*(1-coustomerdata5[[#This Row],[Taux de reduction]]),\"\")","v":15359.895652173926},{"$f":"DAY(coustomerdata5[[#This Row],[Date]])","v":30},{"$f":"TEXT(coustomerdata5[[#This Row],[Date]], \"mmm\")","v":"mai"},{"$f":"TEXT(coustomerdata5[[#This Row],[Date]], \"aaaa\")","v":"2024"}]
[null,null,null,null,"2024-05-31","P048",4,"Détail","Espèces",0,{"$f":"IFERROR(VLOOKUP(coustomerdata5[[#This Row],[Index]],database[],2,0),\"\")","v":"Cire coiffante"},{"$f":"IFERROR(VLOOKUP(coustomerdata5[[#This Row],[Index]],database[],3,0),\"\")","v":"Soins Capillaires"},{"$f":"IFERROR(VLOOKUP(coustomerdata5[[#This Row],[Index]],database[],4,0),\"\")","v":"g"},{"$f":"IFERROR(VLOOKUP(coustomerdata5[[#This Row],[Index]],database[],5,0),\"\")","v":1347},{"$f":"IFERROR(VLOOKUP(coustomerdata5[[#This Row],[Index]],database[],6,0),\"\")","v":2318.3925287356337},{"$f":"IFERROR(coustomerdata5[[#This Row],[Cout unitaire]]*coustomerdata5[[#This Row],[Quantite]],\"\")","v":5388},{"$f":"IFERROR(coustomerdata5[[#This Row],[Quantite]]*coustomerdata5[[#This Row],[Prix unitaire]]*(1-coustomerdata5[[#This Row],[Taux de reduction]]),\"\")","v":9273.5701149425349},{"$f":"DAY(coustomerdata5[[#This Row],[Date]])","v":31},{"$f":"TEXT(coustomerdata5[[#This Row],[Date]], \"mmm\")","v":"mai"},{"$f":"TEXT(coustomerdata5[[#This Row],[Date]], \"aaaa\")","v":"2024"}]
[null,null,null,null,"2024-06-01","P050",7,"Détail","Carte",0,{"$f":"IFERROR(VLOOKUP(coustomerdata5[[#This Row],[Index]],database[],2,0),\"\")","v":"Poudre libre fixante"},{"$f":"IFERROR(VLOOKUP(coustomerdata5[[#This Row],[Index]],database[],3,0),\"\")","v":"Maquillage"},{"$f":"IFERROR(VLOOKUP(coustomerdata5[[#This Row],[Index]],database[],4,0),\"\")","v":"g"},{"$f":"IFERROR(VLOOKUP(coustomerdata5[[#This Row],[Index]],database[],5,0),\"\")","v":1438},{"$f":"IFERROR(VLOOKUP(coustomerdata5[[#This Row],[Index]],database[],6,0),\"\")","v":2290.0193939393948},{"$f":"IFERROR(coustomerdata5[[#This Row],[Cout unitaire]]*coustomerdata5[[#This Row],[Quantite]],\"\")","v":10066},{"$f":"IFERROR(coustomerdata5[[#This Row],[Quantite]]*coustomerdata5[[#This Row],[Prix unitaire]]*(1-coustomerdata5[[#This Row],[Taux de reduction]]),\"\")","v":16030.135757575765},{"$f":"DAY(coustomerdata5[[#This Row],[Date]])","v":1},{"$f":"TEXT(coustomerdata5[[#This Row],[Date]], \"mmm\")","v":"juin"},{"$f":"TEXT(coustomerdata5[[#This Row],[Date]], \"aaaa\")","v":"2024"}]
[null,null,null,null,"2024-06-02","P018",8,"Grossiste","Espèces",0,{"$f":"IFERROR(VLOOKUP(coustomerdata5[[#This Row],[Index]],database[],2,0),\"\")","v":"Rouge à lèvres mat"},{"$f":"IFERROR(VLOOKUP(coustomerdata5[[#This Row],[Index]],database[],3,0),\"\")","v":"Maquillage"},{"$f":"IFERROR(VLOOKUP(coustomerdata5[[#This Row],[Index]],database[],4,0),\"\")","v":"g"},{"$f":"IFERROR(VLOOKUP(coustomerdata5[[#This Row],[Index]],database[],5,0),\"\")","v":1372},{"$f":"IFERROR(VLOOKUP(coustomerdata5[[#This Row],[Index]],database[],6,0),\"\")","v":2121.5981595092026},{"$f":"IFERROR(coustomerdata5[[#This Row],[Cout unitaire]]*coustomerdata5[[#This Row],[Quantite]],\"\")","v":10976},{"$f":"IFERROR(coustomerdata5[[#This Row],[Quantite]]*coustomerdata5[[#This Row],[Prix unitaire]]*(1-coustomerdata5[[#This Row],[Taux de reduction]]),\"\")","v":16972.78527607362},{"$f":"DAY(coustomerdata5[[#This Row],[Date]])","v":2},{"$f":"TEXT(coustomerdata5[[#This Row],[Date]], \"mmm\")","v":"juin"},{"$f":"TEXT(coustomerdata5[[#This Row],[Date]], \"aaaa\")","v":"2024"}]
[null,null,null,null,"2024-06-03","P007",1,"Détail","Carte",0,{"$f":"IFERROR(VLOOKUP(coustomerdata5[[#This Row],[Index]],database[],2,0),\"\")","v":"Mousse volume"},{"$f":"IFERROR(VLOOKUP(coustomerdata5[[#This Row],[Index]],database[],3,0),\"\")","v":"Soins Capillaires"},{"$f":"IFERROR(VLOOKUP(coustomerdata5[[#This Row],[Index]],database[],4,0),\"\")","v":"mL"},{"$f":"IFERROR(VLOOKUP(coustomerdata5[[#This Row],[Index]],database[],5,0),\"\")","v":1479},{"$f":"IFERROR(VLOOKUP(coustomerdata5[[#This Row],[Index]],database[],6,0),\"\")","v":2313.7350150602456},{"$f":"IFERROR(coustomerdata5[[#This Row],[Cout unitaire]]*coustomerdata5[[#This Row],[Quantite]],\"\")","v":1479},{"$f":"IFERROR(coustomerdata5[[#This Row],[Quantite]]*coustomerdata5[[#This Row],[Prix unitaire]]*(1-coustomerdata5[[#This Row],[Taux de reduction]]),\"\")","v":2313.7350150602456},{"$f":"DAY(coustomerdata5[[#This Row],[Date]])","v":3},{"$f":"TEXT(coustomerdata5[[#This Row],[Date]], \"mmm\")","v":"juin"},{"$f":"TEXT(coustomerdata5[[#This Row],[Date]], \"aaaa\")","v":"2024"}]
[null,null,null,null,"2024-06-04","P022",6,"Grossiste","Espèces",0,{"$f":"IFERROR(VLOOKUP(coustomerdata5[[#This Row],[Index]],database[],2,0),\"\")","v":"Masque capillaire"},{"$f":"IFERROR(VLOOKUP(coustomerdata5[[#This Row],[Index]],database[],3,0),\"\")","v":"Soins Capillaires"},{"$f":"IFERROR(VLOOKUP(coustomerdata5[[#This Row],[Index]],database[],4,0),\"\")","v":"mL"},{"$f":"IFERROR(VLOOKUP(coustomerdata5[[#This Row],[Index]],database[],5,0),\"\")","v":1307},{"$f":"IFERROR(VLOOKUP(coustomerdata5[[#This Row],[Index]],database[],6,0),\"\")","v":2290.0193939393948},{"$f":"IFERROR(coustomerdata5[[#This Row],[Cout unitaire]]*coustomerdata5[[#This Row],[Quantite]],\"\")","v":7842},{"$f":"IFERROR(coustomerdata5[[#This Row],[Quantite]]*coustomerdata5[[#This Row],[Prix unitaire]]*(1-coustomerdata5[[#This Row],[Taux de reduction]]),\"\")","v":13740.116363636369},{"$f":"DAY(coustomerdata5[[#This Row],[Date]])","v":4},{"$f":"TEXT(coustomerdata5[[#This Row],[Date]], \"mmm\")","v":"juin"},{"$f":"TEXT(coustomerdata5[[#This Row],[Date]], \"aaaa\")","v":"2024"}]
[null,null,null,null,"2024-06-05","P021",8,"Grossiste","Mobile Money",0,{"$f":"IFERROR(VLOOKUP(coustomerdata5[[#This Row],[Index]],database[],2,0),\"\")","v":"Huile nourrissante"},{"$f":"IFERROR(VLOOKUP(coustomerdata5[[#This Row],[Index]],database[],3,0),\"\")","v":"Soins du Corps"},{"$f":"IFERROR(VLOOKUP(coustomerdata5[[#This Row],[Index]],database[],4,0),\"\")","v":"mL"},{"$f":"IFERROR(VLOOKUP(coustomerdata5[[#This Row],[Index]],database[],5,0),\"\")","v":1489},{"$f":"IFERROR(VLOOKUP(coustomerdata5[[#This Row],[Index]],database[],6,0),\"\")","v":2313.7350150602456},{"$f":"IFERROR(coustomerdata5[[#This Row],[Cout unitaire]]*coustomerdata5[[#This Row],[Quantite]],\"\")","v":11912},{"$f":"IFERROR(coustomerdata5[[#This Row],[Quantite]]*coustomerdata5[[#This Row],[Prix unitaire]]*(1-coustomerdata5[[#This Row],[Taux de reduction]]),\"\")","v":18509.880120481965},{"$f":"DAY(coustomerdata5[[#This Row],[Date]])","v":5},{"$f":"TEXT(coustomerdata5[[#This Row],[Date]], \"mmm\")","v":"juin"},{"$f":"TEXT(coustomerdata5[[#This Row],[Date]], \"aaaa\")","v":"2024"}]
[null,null,null,null,"2024-06-06","P044",5,"Détail","Mobile Money",0,{"$f":"IFERROR(VLOOKUP(coustomerdata5[[#This Row],[Index]],database[],2,0),\"\")","v":"Spray thermo-protecteur"},{"$f":"IFERROR(VLOOKUP(coustomerdata5[[#This Row],[Index]],database[],3,0),\"\")","v":"Soins Capillaires"},{"$f":"IFERROR(VLOOKUP(coustomerdata5[[#This Row],[Index]],database[],4,0),\"\")","v":"mL"},{"$f":"IFERROR(VLOOKUP(coustomerdata5[[#This Row],[Index]],database[],5,0),\"\")","v":1423},{"$f":"IFERROR(VLOOKUP(coustomerdata5[[#This Row],[Index]],database[],6,0),\"\")","v":2285.5296327924843},{"$f":"IFERROR(coustomerdata5[[#This Row],[Cout unitaire]]*coustomerdata5[[#This Row],[Quantite]],\"\")","v":7115},{"$f":"IFERROR(coustomerdata5[[#This Row],[Quantite]]*coustomerdata5[[#This Row],[Prix unitaire]]*(1-coustomerdata5[[#This Row],[Taux de reduction]]),\"\")","v":11427.648163962422},{"$f":"DAY(coustomerdata5[[#This Row],[Date]])","v":6},{"$f":"TEXT(coustomerdata5[[#This Row],[Date]], \"mmm\")","v":"juin"},{"$f":"TEXT(coustomerdata5[[#This Row],[Date]], \"aaaa\")","v":"2024"}]
[null,null,null,null,"2024-06-07","P018",4,"Grossiste","Espèces",0,{"$f":"IFERROR(VLOOKUP(coustomerdata5[[#This Row],[Index]],database[],2,0),\"\")","v":"Rouge à lèvres mat"},{"$f":"IFERROR(VLOOKUP(coustomerdata5[[#This Row],[Index]],database[],3,0),\"\")","v":"Maquillage"},{"$f":"IFERROR(VLOOKUP(coustomerdata5[[#This Row],[Index]],database[],4,0),\"\")","v":"g"},{"$f":"IFERROR(VLOOKUP(coustomerdata5[[#This Row],[Index]],database[],5,0),\"\")","v":1372},{"$f":"IFERROR(VLOOKUP(coustomerdata5[[#This Row],[Index]],database[],6,0),\"\")","v":2121.5981595092026},{"$f":"IFERROR(coustomerdata5[[#This Row],[Cout unitaire]]*coustomerdata5[[#This Row],[Quantite]],\"\")","v":5488},{"$f":"IFERROR(coustomerdata5[[#This Row],[Quantite]]*coustomerdata5[[#This Row],[Prix unitaire]]*(1-coustomerdata5[[#This Row],[Taux de reduction]]),\"\")","v":8486.3926380368102},{"$f":"DAY(coustomerdata5[[#This Row],[Date]])","v":7},{"$f":"TEXT(coustomerdata5[[#This Row],[Date]], \"mmm\")","v":"juin"},{"$f":"TEXT(coustomerdata5[[#This Row],[Date]], \"aaaa\")","v":"2024"}]
[null,null,null,null,"2024-06-08","P018",2,"Grossiste","Espèces",0,{"$f":"IFERROR(VLOOKUP(coustomerdata5[[#This Row],[Index]],database[],2,0),\"\")","v":"Rouge à lèvres mat"},{"$f":"IFERROR(VLOOKUP(coustomerdata5[[#This Row],[Index]],database[],3,0),\"\")","v":"Maquillage"},{"$f":"IFERROR(VLOOKUP(coustomerdata5[[#This Row],[Index]],database[],4,0),\"\")","v":"g"},{"$f":"IFERROR(VLOOKUP(coustomerdata5[[#This Row],[Index]],database[],5,0),\"\")","v":1372},{"$f":"IFERROR(VLOOKUP(coustomerdata5[[#This Row],[Index]],database[],6,0),\"\")","v":2121.5981595092026},{"$f":"IFERROR(coustomerdata5[[#This Row],[Cout unitaire]]*coustomerdata5[[#This Row],[Quantite]],\"\")","v":2744},{"$f":"IFERROR(coustomerdata5[[#This Row],[Quantite]]*coustomerdata5[[#This Row],[Prix unitaire]]*(1-coustomerdata5[[#This Row],[Taux de reduction]]),\"\")","v":4243.1963190184051},{"$f":"DAY(coustomerdata5[[#This Row],[Date]])","v":8},{"$f":"TEXT(coustomerdata5[[#This Row],[Date]], \"mmm\")","v":"juin"},{"$f":"TEXT(coustomerdata5[[#This Row],[Date]], \"aaaa\")","v":"2024"}]
[null,null,null,null,"2024-06-09","P025",6,"Grossiste","Carte",0,{"$f":"IFERROR(VLOOKUP(coustomerdata5[[#This Row],[Index]],database[],2,0),\"\")","v":"Cire coiffante"},{"$f":"IFERROR(VLOOKUP(coustomerdata5[[#This Row],[Index]],database[],3,0),\"\")","v":"Soins Capillaires"},{"$f":"IFERROR(VLOOKUP(coustomerdata5[[#This Row],[Index]],database[],4,0),\"\")","v":"g"},{"$f":"IFERROR(VLOOKUP(coustomerdata5[[#This Row],[Index]],database[],5,0),\"\")","v":1440},{"$f":"IFERROR(VLOOKUP(coustomerdata5[[#This Row],[Index]],database[],6,0),\"\")","v":2295.3177966101698},{"$f":"IFERROR(coustomerdata5[[#This Row],[Cout unitaire]]*coustomerdata5[[#This Row],[Quantite]],\"\")","v":8640},{"$f":"IFERROR(coustomerdata5[[#This Row],[Quantite]]*coustomerdata5[[#This Row],[Prix unitaire]]*(1-coustomerdata5[[#This Row],[Taux de reduction]]),\"\")","v":13771.906779661018},{"$f":"DAY(coustomerdata5[[#This Row],[Date]])","v":9},{"$f":"TEXT(coustomerdata5[[#This Row],[Date]], \"mmm\")","v":"juin"},{"$f":"TEXT(coustomerdata5[[#This Row],[Date]], \"aaaa\")","v":"2024"}]
[null,null,null,null,"2024-06-10","P021",6,"Détail","Mobile Money",0,{"$f":"IFERROR(VLOOKUP(coustomerdata5[[#This Row],[Index]],database[],2,0),\"\")","v":"Huile nourrissante"},{"$f":"IFERROR(VLOOKUP(coustomerdata5[[#This Row],[Index]],database[],3,0),\"\")","v":"Soins du Corps"},{"$f":"IFERROR(VLOOKUP(coustomerdata5[[#This Row],[Index]],database[],4,0),\"\")","v":"mL"},{"$f":"IFERROR(VLOOKUP(coustomerdata5[[#This Row],[Index]],database[],5,0),\"\")","v":1489},{"$f":"IFERROR(VLOOKUP(coustomerdata5[[#This Row],[Index]],database[],6,0),\"\")","v":2313.7350150602456},{"$f":"IFERROR(coustomerdata5[[#This Row],[Cout unitaire]]*coustomerdata5[[#This Row],[Quantite]],\"\")","v":8934},{"$f":"IFERROR(coustomerdata5[[#This Row],[Quantite]]*coustomerdata5[[#This Row],[Prix unitaire]]*(1-coustomerdata5[[#This Row],[Taux de reduction]]),\"\")","v":13882.410090361474},{"$f":"DAY(coustomerdata5[[#This Row],[Date]])","v":10},{"$f":"TEXT(coustomerdata5[[#This Row],[Date]], \"mmm\")","v":"juin"},{"$f":"TEXT(coustomerdata5[[#This Row],[Date]], \"aaaa\")","v":"2024"}]
[null,null,null,null,"2024-06-11","P021",1,"Détail","Mobile Money",0,{"$f":"IFERROR(VLOOKUP(coustomerdata5[[#This Row],[Index]],database[],2,0),\"\")","v":"Huile nourrissante"},{"$f":"IFERROR(VLOOKUP(coustomerdata5[[#This Row],[Index]],database[],3,0),\"\")","v":"Soins du Corps"},{"$f":"IFERROR(VLOOKUP(coustomerdata5[[#This Row],[Index]],database[],4,0),\"\")","v":"mL"},{"$f":"IFERROR(VLOOKUP(coustomerdata5[[#This Row],[Index]],database[],5,0),\"\")","v":1489},{"$f":"IFERROR(VLOOKUP(coustomerdata5[[#This Row],[Index]],database[],6,0),\"\")","v":2313.7350150602456},{"$f":"IFERROR(coustomerdata5[[#This Row],[Cout unitaire]]*coustomerdata5[[#This Row],[Quantite]],\"\")","v":1489},{"$f":"IFERROR(coustomerdata5[[#This Row],[Quantite]]*coustomerdata5[[#This Row],[Prix unitaire]]*(1-coustomerdata5[[#This Row],[Taux de reduction]]),\"\")","v":2313.7350150602456},{"$f":"DAY(coustomerdata5[[#This Row],[Date]])","v":11},{"$f":"TEXT(coustomerdata5[[#This Row],[Date]], \"mmm\")","v":"juin"},{"$f":"TEXT(coustomerdata5[[#This Row],[Date]], \"aaaa\")","v":"2024"}]
[null,null,null,null,"2024-06-12","P008",9,"Détail","Espèces",0,{"$f":"IFERROR(VLOOKUP(coustomerdata5[[#This Row],[Index]],database[],2,0),\"\")","v":"Lotion tonique"},{"$f":"IFERROR(VLOOKUP(coustomerdata5[[#This Row],[Index]],database[],3,0),\"\")","v":"Soins du Visage"},{"$f":"IFERROR(VLOOKUP(coustomerdata5[[#This Row],[Index]],database[],4,0),\"\")","v":"mL"},{"$f":"IFERROR(VLOOKUP(coustomerdata5[[#This Row],[Index]],database[],5,0),\"\")","v":1489},{"$f":"IFERROR(VLOOKUP(coustomerdata5[[#This Row],[Index]],database[],6,0),\"\")","v":2290.0193939393948},{"$f":"IFERROR(coustomerdata5[[#This Row],[Cout unitaire]]*coustomerdata5[[#This Row],[Quantite]],\"\")","v":13401},{"$f":"IFERROR(coustomerdata5[[#This Row],[Quantite]]*coustomerdata5[[#This Row],[Prix unitaire]]*(1-coustomerdata5[[#This Row],[Taux de reduction]]),\"\")","v":20610.174545454553},{"$f":"DAY(coustomerdata5[[#This Row],[Date]])","v":12},{"$f":"TEXT(coustomerdata5[[#This Row],[Date]], \"mmm\")","v":"juin"},{"$f":"TEXT(coustomerdata5[[#This Row],[Date]], \"aaaa\")","v":"2024"}]
[null,null,null,null,"2024-06-13","P011",6,"Détail","Espèces",0,{"$f":"IFERROR(VLOOKUP(coustomerdata5[[#This Row],[Index]],database[],2,0),\"\")","v":"Eau micellaire"},{"$f":"IFERROR(VLOOKUP(coustomerdata5[[#This Row],[Index]],database[],3,0),\"\")","v":"Soins du Visage"},{"$f":"IFERROR(VLOOKUP(coustomerdata5[[#This Row],[Index]],database[],4,0),\"\")","v":"mL"},{"$f":"IFERROR(VLOOKUP(coustomerdata5[[#This Row],[Index]],database[],5,0),\"\")","v":1489},{"$f":"IFERROR(VLOOKUP(coustomerdata5[[#This Row],[Index]],database[],6,0),\"\")","v":2295.3177966101698},{"$f":"IFERROR(coustomerdata5[[#This Row],[Cout unitaire]]*coustomerdata5[[#This Row],[Quantite]],\"\")","v":8934},{"$f":"IFERROR(coustomerdata5[[#This Row],[Quantite]]*coustomerdata5[[#This Row],[Prix unitaire]]*(1-coustomerdata5[[#This Row],[Taux de reduction]]),\"\")","v":13771.906779661018},{"$f":"DAY(coustomerdata5[[#This Row],[Date]])","v":13},{"$f":"TEXT(coustomerdata5[[#This Row],[Date]], \"mmm\")","v":"juin"},{"$f":"TEXT(coustomerdata5[[#This Row],[Date]], \"aaaa\")","v":"2024"}]
[null,null,null,null,"2024-06-14","P041",3,"Grossiste","Espèces",0,{"$f":"IFERROR(VLOOKUP(coustomerdata5[[#This Row],[Index]],database[],2,0),\"\")","v":"Gel douche hydratant"},{"$f":"IFERROR(VLOOKUP(coustomerdata5[[#This Row],[Index]],database[],3,0),\"\")","v":"Soins du Corps"},{"$f":"IFERROR(VLOOKUP(coustomerdata5[[#This Row],[Index]],database[],4,0),\"\")","v":"mL"},{"$f":"IFERROR(VLOOKUP(coustomerdata5[[#This Row],[Index]],database[],5,0),\"\")","v":1456},{"$f":"IFERROR(VLOOKUP(coustomerdata5[[#This Row],[Index]],database[],6,0),\"\")","v":2198.2071542130352},{"$f":"IFERROR(coustomerdata5[[#This Row],[Cout unitaire]]*coustomerdata5[[#This Row],[Quantite]],\"\")","v":4368},{"$f":"IFERROR(coustomerdata5[[#This Row],[Quantite]]*coustomerdata5[[#This Row],[Prix unitaire]]*(1-coustomerdata5[[#This Row],[Taux de reduction]]),\"\")","v":6594.6214626391056},{"$f":"DAY(coustomerdata5[[#This Row],[Date]])","v":14},{"$f":"TEXT(coustomerdata5[[#This Row],[Date]], \"mmm\")","v":"juin"},{"$f":"TEXT(coustomerdata5[[#This Row],[Date]], \"aaaa\")","v":"2024"}]
[null,null,null,null,"2024-06-15","P039",4,"Grossiste","Carte",0,{"$f":"IFERROR(VLOOKUP(coustomerdata5[[#This Row],[Index]],database[],2,0),\"\")","v":"Crème pour les mains"},{"$f":"IFERROR(VLOOKUP(coustomerdata5[[#This Row],[Index]],database[],3,0),\"\")","v":"Soins du Corps"},{"$f":"IFERROR(VLOOKUP(coustomerdata5[[#This Row],[Index]],database[],4,0),\"\")","v":"mL"},{"$f":"IFERROR(VLOOKUP(coustomerdata5[[#This Row],[Index]],database[],5,0),\"\")","v":1440},{"$f":"IFERROR(VLOOKUP(coustomerdata5[[#This Row],[Index]],database[],6,0),\"\")","v":2295.3177966101698},{"$f":"IFERROR(coustomerdata5[[#This Row],[Cout unitaire]]*coustomerdata5[[#This Row],[Quantite]],\"\")","v":5760},{"$f":"IFERROR(coustomerdata5[[#This Row],[Quantite]]*coustomerdata5[[#This Row],[Prix unitaire]]*(1-coustomerdata5[[#This Row],[Taux de reduction]]),\"\")","v":9181.2711864406792},{"$f":"DAY(coustomerdata5[[#This Row],[Date]])","v":15},{"$f":"TEXT(coustomerdata5[[#This Row],[Date]], \"mmm\")","v":"juin"},{"$f":"TEXT(coustomerdata5[[#This Row],[Date]], \"aaaa\")","v":"2024"}]
[null,null,null,null,"2024-06-16","P014",4,"Détail","Mobile Money",0,{"$f":"IFERROR(VLOOKUP(coustomerdata5[[#This Row],[Index]],database[],2,0),\"\")","v":"Crème coiffante"},{"$f":"IFERROR(VLOOKUP(coustomerdata5[[#This Row],[Index]],database[],3,0),\"\")","v":"Soins Capillaires"},{"$f":"IFERROR(VLOOKUP(coustomerdata5[[#This Row],[Index]],database[],4,0),\"\")","v":"mL"},{"$f":"IFERROR(VLOOKUP(coustomerdata5[[#This Row],[Index]],database[],5,0),\"\")","v":1479},{"$f":"IFERROR(VLOOKUP(coustomerdata5[[#This Row],[Index]],database[],6,0),\"\")","v":2409.5477124183008},{"$f":"IFERROR(coustomerdata5[[#This Row],[Cout unitaire]]*coustomerdata5[[#This Row],[Quantite]],\"\")","v":5916},{"$f":"IFERROR(coustomerdata5[[#This Row],[Quantite]]*coustomerdata5[[#This Row],[Prix unitaire]]*(1-coustomerdata5[[#This Row],[Taux de reduction]]),\"\")","v":9638.190849673203},{"$f":"DAY(coustomerdata5[[#This Row],[Date]])","v":16},{"$f":"TEXT(coustomerdata5[[#This Row],[Date]], \"mmm\")","v":"juin"},{"$f":"TEXT(coustomerdata5[[#This Row],[Date]], \"aaaa\")","v":"2024"}]
[null,null,null,null,"2024-06-17","P018",3,"Grossiste","Carte",0,{"$f":"IFERROR(VLOOKUP(coustomerdata5[[#This Row],[Index]],database[],2,0),\"\")","v":"Rouge à lèvres mat"},{"$f":"IFERROR(VLOOKUP(coustomerdata5[[#This Row],[Index]],database[],3,0),\"\")","v":"Maquillage"},{"$f":"IFERROR(VLOOKUP(coustomerdata5[[#This Row],[Index]],database[],4,0),\"\")","v":"g"},{"$f":"IFERROR(VLOOKUP(coustomerdata5[[#This Row],[Index]],database[],5,0),\"\")","v":1372},{"$f":"IFERROR(VLOOKUP(coustomerdata5[[#This Row],[Index]],database[],6,0),\"\")","v":2121.5981595092026},{"$f":"IFERROR(coustomerdata5[[#This Row],[Cout unitaire]]*coustomerdata5[[#This Row],[Quantite]],\"\")","v":4116},{"$f":"IFERROR(coustomerdata5[[#This Row],[Quantite]]*coustomerdata5[[#This Row],[Prix unitaire]]*(1-coustomerdata5[[#This Row],[Taux de reduction]]),\"\")","v":6364.7944785276077},{"$f":"DAY(coustomerdata5[[#This Row],[Date]])","v":17},{"$f":"TEXT(coustomerdata5[[#This Row],[Date]], \"mmm\")","v":"juin"},{"$f":"TEXT(coustomerdata5[[#This Row],[Date]], \"aaaa\")","v":"2024"}]
[null,null,null,null,"2024-06-18","P023",3,"Grossiste","Mobile Money",0,{"$f":"IFERROR(VLOOKUP(coustomerdata5[[#This Row],[Index]],database[],2,0),\"\")","v":"Masque purifiant"},{"$f":"IFERROR(VLOOKUP(coustomerdata5[[#This Row],[Index]],database[],3,0),\"\")","v":"Soins du Visage"},{"$f":"IFERROR(VLOOKUP(coustomerdata5[[#This Row],[Index]],database[],4,0),\"\")","v":"g"},{"$f":"IFERROR(VLOOKUP(coustomerdata5[[#This Row],[Index]],database[],5,0),\"\")","v":1457},{"$f":"IFERROR(VLOOKUP(coustomerdata5[[#This Row],[Index]],database[],6,0),\"\")","v":2171.2942622950832},{"$f":"IFERROR(coustomerdata5[[#This Row],[Cout unitaire]]*coustomerdata5[[#This Row],[Quantite]],\"\")","v":4371},{"$f":"IFERROR(coustomerdata5[[#This Row],[Quantite]]*coustomerdata5[[#This Row],[Prix unitaire]]*(1-coustomerdata5[[#This Row],[Taux de reduction]]),\"\")","v":6513.8827868852495},{"$f":"DAY(coustomerdata5[[#This Row],[Date]])","v":18},{"$f":"TEXT(coustomerdata5[[#This Row],[Date]], \"mmm\")","v":"juin"},{"$f":"TEXT(coustomerdata5[[#This Row],[Date]], \"aaaa\")","v":"2024"}]
[null,null,null,null,"2024-06-19","P050",3,"Détail","Espèces",0,{"$f":"IFERROR(VLOOKUP(coustomerdata5[[#This Row],[Index]],database[],2,0),\"\")","v":"Poudre libre fixante"},{"$f":"IFERROR(VLOOKUP(coustomerdata5[[#This Row],[Index]],database[],3,0),\"\")","v":"Maquillage"},{"$f":"IFERROR(VLOOKUP(coustomerdata5[[#This Row],[Index]],database[],4,0),\"\")","v":"g"},{"$f":"IFERROR(VLOOKUP(coustomerdata5[[#This Row],[Index]],database[],5,0),\"\")","v":1438},{"$f":"IFERROR(VLOOKUP(coustomerdata5[[#This Row],[Index]],database[],6,0),\"\")","v":2290.0193939393948},{"$f":"IFERROR(coustomerdata5[[#This Row],[Cout unitaire]]*coustomerdata5[[#This Row],[Quantite]],\"\")","v":4314},{"$f":"IFERROR(coustomerdata5[[#This Row],[Quantite]]*coustomerdata5[[#This Row],[Prix unitaire]]*(1-coustomerdata5[[#This Row],[Taux de reduction]]),\"\")","v":6870.0581818181845},{"$f":"DAY(coustomerdata5[[#This Row],[Date]])","v":19},{"$f":"TEXT(coustomerdata5[[#This Row],[Date]], \"mmm\")","v":"juin"},{"$f":"TEXT(coustomerdata5[[#This Row],[Date]], \"aaaa\")","v":"2024"}]
[null,null,null,null,"2024-06-20","P042",4,"Grossiste","Carte",0,{"$f":"IFERROR(VLOOKUP(coustomerdata5[[#This Row],[Index]],database[],2,0),\"\")","v":"Crème hydratante"},{"$f":"IFERROR(VLOOKUP(coustomerdata5[[#This Row],[Index]],database[],3,0),\"\")","v":"Soins du Visage"},{"$f":"IFERROR(VLOOKUP(coustomerdata5[[#This Row],[Index]],database[],4,0),\"\")","v":"mL"},{"$f":"IFERROR(VLOOKUP(coustomerdata5[[#This Row],[Index]],database[],5,0),\"\")","v":1448},{"$f":"IFERROR(VLOOKUP(coustomerdata5[[#This Row],[Index]],database[],6,0),\"\")","v":2409.5477124183008},{"$f":"IFERROR(coustomerdata5[[#This Row],[Cout unitaire]]*coustomerdata5[[#This Row],[Quantite]],\"\")","v":5792},{"$f":"IFERROR(coustomerdata5[[#This Row],[Quantite]]*coustomerdata5[[#This Row],[Prix unitaire]]*(1-coustomerdata5[[#This Row],[Taux de reduction]]),\"\")","v":9638.190849673203},{"$f":"DAY(coustomerdata5[[#This Row],[Date]])","v":20},{"$f":"TEXT(coustomerdata5[[#This Row],[Date]], \"mmm\")","v":"juin"},{"$f":"TEXT(coustomerdata5[[#This Row],[Date]], \"aaaa\")","v":"2024"}]
[null,null,null,null,"2024-06-21","P002",7,"Grossiste","Carte",0,{"$f":"IFERROR(VLOOKUP(coustomerdata5[[#This Row],[Index]],database[],2,0),\"\")","v":"Eye-liner waterproof"},{"$f":"IFERROR(VLOOKUP(coustomerdata5[[#This Row],[Index]],database[],3,0),\"\")","v":"Maquillage"},{"$f":"IFERROR(VLOOKUP(coustomerdata5[[#This Row],[Index]],database[],4,0),\"\")","v":"mL"},{"$f":"IFERROR(VLOOKUP(coustomerdata5[[#This Row],[Index]],database[],5,0),\"\")","v":1489},{"$f":"IFERROR(VLOOKUP(coustomerdata5[[#This Row],[Index]],database[],6,0),\"\")","v":2285.5296327924843},{"$f":"IFERROR(coustomerdata5[[#This Row],[Cout unitaire]]*coustomerdata5[[#This Row],[Quantite]],\"\")","v":10423},{"$f":"IFERROR(coustomerdata5[[#This Row],[Quantite]]*coustomerdata5[[#This Row],[Prix unitaire]]*(1-coustomerdata5[[#This Row],[Taux de reduction]]),\"\")","v":15998.70742954739},{"$f":"DAY(coustomerdata5[[#This Row],[Date]])","v":21},{"$f":"TEXT(coustomerdata5[[#This Row],[Date]], \"mmm\")","v":"juin"},{"$f":"TEXT(coustomerdata5[[#This Row],[Date]], \"aaaa\")","v":"2024"}]
[null,null,null,null,"2024-06-22","P001",4,"Détail","Espèces",0,{"$f":"IFERROR(VLOOKUP(coustomerdata5[[#This Row],[Index]],database[],2,0),\"\")","v":"Crème pour les pieds"},{"$f":"IFERROR(VLOOKUP(coustomerdata5[[#This Row],[Index]],database[],3,0),\"\")","v":"Soins du Corps"},{"$f":"IFERROR(VLOOKUP(coustomerdata5[[#This Row],[Index]],database[],4,0),\"\")","v":"mL"},{"$f":"IFERROR(VLOOKUP(coustomerdata5[[#This Row],[Index]],database[],5,0),\"\")","v":1479},{"$f":"IFERROR(VLOOKUP(coustomerdata5[[#This Row],[Index]],database[],6,0),\"\")","v":2304.6419330289204},{"$f":"IFERROR(coustomerdata5[[#This Row],[Cout unitaire]]*coustomerdata5[[#This Row],[Quantite]],\"\")","v":5916},{"$f":"IFERROR(coustomerdata5[[#This Row],[Quantite]]*coustomerdata5[[#This Row],[Prix unitaire]]*(1-coustomerdata5[[#This Row],[Taux de reduction]]),\"\")","v":9218.5677321156818},{"$f":"DAY(coustomerdata5[[#This Row],[Date]])","v":22},{"$f":"TEXT(coustomerdata5[[#This Row],[Date]], \"mmm\")","v":"juin"},{"$f":"TEXT(coustomerdata5[[#This Row],[Date]], \"aaaa\")","v":"2024"}]
[null,null,null,null,"2024-06-23","P021",9,"Détail","Carte",0,{"$f":"IFERROR(VLOOKUP(coustomerdata5[[#This Row],[Index]],database[],2,0),\"\")","v":"Huile nourrissante"},{"$f":"IFERROR(VLOOKUP(coustomerdata5[[#This Row],[Index]],database[],3,0),\"\")","v":"Soins du Corps"},{"$f":"IFERROR(VLOOKUP(coustomerdata5[[#This Row],[Index]],database[],4,0),\"\")","v":"mL"},{"$f":"IFERROR(VLOOKUP(coustomerdata5[[#This Row],[Index]],database[],5,0),\"\")","v":1489},{"$f":"IFERROR(VLOOKUP(coustomerdata5[[#This Row],[Index]],database[],6,0),\"\")","v":2313.7350150602456},{"$f":"IFERROR(coustomerdata5[[#This Row],[Cout unitaire]]*coustomerdata5[[#This Row],[Quantite]],\"\")","v":13401},{"$f":"IFERROR(coustomerdata5[[#This Row],[Quantite]]*coustomerdata5[[#This Row],[Prix unitaire]]*(1-coustomerdata5[[#This Row],[Taux de reduction]]),\"\")","v":20823.615135542212},{"$f":"DAY(coustomerdata5[[#This Row],[Date]])","v":23},{"$f":"TEXT(coustomerdata5[[#This Row],[Date]], \"mmm\")","v":"juin"},{"$f":"TEXT(coustomerdata5[[#This Row],[Date]], \"aaaa\")","v":"2024"}]
[null,null,null,null,"2024-06-24","P044",1,"Détail","Carte",0,{"$f":"IFERROR(VLOOKUP(coustomerdata5[[#This Row],[Index]],database[],2,0),\"\")","v":"Spray thermo-protecteur"},{"$f":"IFERROR(VLOOKUP(coustomerdata5[[#This Row],[Index]],database[],3,0),\"\")","v":"Soins Capillaires"},{"$f":"IFERROR(VLOOKUP(coustomerdata5[[#This Row],[Index]],database[],4,0),\"\")","v":"mL"},{"$f":"IFERROR(VLOOKUP(coustomerdata5[[#This Row],[Index]],database[],5,0),\"\")","v":1423},{"$f":"IFERROR(VLOOKUP(coustomerdata5[[#This Row],[Index]],database[],6,0),\"\")","v":2285.5296327924843},{"$f":"IFERROR(coustomerdata5[[#This Row],[Cout unitaire]]*coustomerdata5[[#This Row],[Quantite]],\"\")","v":1423},{"$f":"IFERROR(coustomerdata5[[#This Row],[Quantite]]*coustomerdata5[[#This Row],[Prix unitaire]]*(1-coustomerdata5[[#This Row],[Taux de reduction]]),\"\")","v":2285.5296327924843},{"$f":"DAY(coustomerdata5[[#This Row],[Date]])","v":24},{"$f":"TEXT(coustomerdata5[[#This Row],[Date]], \"mmm\")","v":"juin"},{"$f":"TEXT(coustomerdata5[[#This Row],[Date]], \"aaaa\")","v":"2024"}]
[null,null,null,null,"2024-06-25","P018",8,"Grossiste","Mobile Money",0,{"$f":"IFERROR(VLOOKUP(coustomerdata5[[#This Row],[Index]],database[],2,0),\"\")","v":"Rouge à lèvres mat"},{"$f":"IFERROR(VLOOKUP(coustomerdata5[[#This Row],[Index]],database[],3,0),\"\")","v":"Maquillage"},{"$f":"IFERROR(VLOOKUP(coustomerdata5[[#This Row],[Index]],database[],4,0),\"\")","v":"g"},{"$f":"IFERROR(VLOOKUP(coustomerdata5[[#This Row],[Index]],database[],5,0),\"\")","v":1372},{"$f":"IFERROR(VLOOKUP(coustomerdata5[[#This Row],[Index]],database[],6,0),\"\")","v":2121.5981595092026},{"$f":"IFERROR(coustomerdata5[[#This Row],[Cout unitaire]]*coustomerdata5[[#This Row],[Quantite]],\"\")","v":10976},{"$f":"IFERROR(coustomerdata5[[#This Row],[Quantite]]*coustomerdata5[[#This Row],[Prix unitaire]]*(1-coustomerdata5[[#This Row],[Taux de reduction]]),\"\")","v":16972.78527607362},{"$f":"DAY(coustomerdata5[[#This Row],[Date]])","v":25},{"$f":"TEXT(coustomerdata5[[#This Row],[Date]], \"mmm\")","v":"juin"},{"$f":"TEXT(coustomerdata5[[#This Row],[Date]], \"aaaa\")","v":"2024"}]
[null,null,null,null,"2024-06-26","P018",7,"Détail","Carte",0,{"$f":"IFERROR(VLOOKUP(coustomerdata5[[#This Row],[Index]],database[],2,0),\"\")","v":"Rouge à lèvres mat"},{"$f":"IFERROR(VLOOKUP(coustomerdata5[[#This Row],[Index]],database[],3,0),\"\")","v":"Maquillage"},{"$f":"IFERROR(VLOOKUP(coustomerdata5[[#This Row],[Index]],database[],4,0),\"\")","v":"g"},{"$f":"IFERROR(VLOOKUP(coustomerdata5[[#This Row],[Index]],database[],5,0),\"\")","v":1372},{"$f":"IFERROR(VLOOKUP(coustomerdata5[[#This Row],[Index]],database[],6,0),\"\")","v":2121.5981595092026},{"$f":"IFERROR(coustomerdata5[[#This Row],[Cout unitaire]]*coustomerdata5[[#This Row],[Quantite]],\"\")","v":9604},{"$f":"IFERROR(coustomerdata5[[#This Row],[Quantite]]*coustomerdata5[[#This Row],[Prix unitaire]]*(1-coustomerdata5[[#This Row],[Taux de reduction]]),\"\")","v":14851.187116564419},{"$f":"DAY(coustomerdata5[[#This Row],[Date]])","v":26},{"$f":"TEXT(coustomerdata5[[#This Row],[Date]], \"mmm\")","v":"juin"},{"$f":"TEXT(coustomerdata5[[#This Row],[Date]], \"aaaa\")","v":"2024"}]
[null,null,null,null,"2024-06-27","P025",2,"Grossiste","Mobile Money",0,{"$f":"IFERROR(VLOOKUP(coustomerdata5[[#This Row],[Index]],database[],2,0),\"\")","v":"Cire coiffante"},{"$f":"IFERROR(VLOOKUP(coustomerdata5[[#This Row],[Index]],database[],3,0),\"\")","v":"Soins Capillaires"},{"$f":"IFERROR(VLOOKUP(coustomerdata5[[#This Row],[Index]],database[],4,0),\"\")","v":"g"},{"$f":"IFERROR(VLOOKUP(coustomerdata5[[#This Row],[Index]],database[],5,0),\"\")","v":1440},{"$f":"IFERROR(VLOOKUP(coustomerdata5[[#This Row],[Index]],database[],6,0),\"\")","v":2295.3177966101698},{"$f":"IFERROR(coustomerdata5[[#This Row],[Cout unitaire]]*coustomerdata5[[#This Row],[Quantite]],\"\")","v":2880},{"$f":"IFERROR(coustomerdata5[[#This Row],[Quantite]]*coustomerdata5[[#This Row],[Prix unitaire]]*(1-coustomerdata5[[#This Row],[Taux de reduction]]),\"\")","v":4590.6355932203396},{"$f":"DAY(coustomerdata5[[#This Row],[Date]])","v":27},{"$f":"TEXT(coustomerdata5[[#This Row],[Date]], \"mmm\")","v":"juin"},{"$f":"TEXT(coustomerdata5[[#This Row],[Date]], \"aaaa\")","v":"2024"}]
[null,null,null,null,"2024-06-28","P021",8,"Grossiste","Mobile Money",0,{"$f":"IFERROR(VLOOKUP(coustomerdata5[[#This Row],[Index]],database[],2,0),\"\")","v":"Huile nourrissante"},{"$f":"IFERROR(VLOOKUP(coustomerdata5[[#This Row],[Index]],database[],3,0),\"\")","v":"Soins du Corps"},{"$f":"IFERROR(VLOOKUP(coustomerdata5[[#This Row],[Index]],database[],4,0),\"\")","v":"mL"},{"$f":"IFERROR(VLOOKUP(coustomerdata5[[#This Row],[Index]],database[],5,0),\"\")","v":1489},{"$f":"IFERROR(VLOOKUP(coustomerdata5[[#This Row],[Index]],database[],6,0),\"\")","v":2313.7350150602456},{"$f":"IFERROR(coustomerdata5[[#This Row],[Cout unitaire]]*coustomerdata5[[#This Row],[Quantite]],\"\")","v":11912},{"$f":"IFERROR(coustomerdata5[[#This Row],[Quantite]]*coustomerdata5[[#This Row],[Prix unitaire]]*(1-coustomerdata5[[#This Row],[Taux de reduction]]),\"\")","v":18509.880120481965},{"$f":"DAY(coustomerdata5[[#This Row],[Date]])","v":28},{"$f":"TEXT(coustomerdata5[[#This Row],[Date]], \"mmm\")","v":"juin"},{"$f":"TEXT(coustomerdata5[[#This Row],[Date]], \"aaaa\")","v":"2024"}]
[null,null,null,null,"2024-06-29","P021",5,"Grossiste","Espèces",0,{"$f":"IFERROR(VLOOKUP(coustomerdata5[[#This Row],[Index]],database[],2,0),\"\")","v":"Huile nourrissante"},{"$f":"IFERROR(VLOOKUP(coustomerdata5[[#This Row],[Index]],database[],3,0),\"\")","v":"Soins du Corps"},{"$f":"IFERROR(VLOOKUP(coustomerdata5[[#This Row],[Index]],database[],4,0),\"\")","v":"mL"},{"$f":"IFERROR(VLOOKUP(coustomerdata5[[#This Row],[Index]],database[],5,0),\"\")","v":1489},{"$f":"IFERROR(VLOOKUP(coustomerdata5[[#This Row],[Index]],database[],6,0),\"\")","v":2313.7350150602456},{"$f":"IFERROR(coustomerdata5[[#This Row],[Cout unitaire]]*coustomerdata5[[#This Row],[Quantite]],\"\")","v":7445},{"$f":"IFERROR(coustomerdata5[[#This Row],[Quantite]]*coustomerdata5[[#This Row],[Prix unitaire]]*(1-coustomerdata5[[#This Row],[Taux de reduction]]),\"\")","v":11568.675075301227},{"$f":"DAY(coustomerdata5[[#This Row],[Date]])","v":29},{"$f":"TEXT(coustomerdata5[[#This Row],[Date]], \"mmm\")","v":"juin"},{"$f":"TEXT(coustomerdata5[[#This Row],[Date]], \"aaaa\")","v":"2024"}]
[null,null,null,null,"2024-06-30","P008",5,"Détail","Espèces",0,{"$f":"IFERROR(VLOOKUP(coustomerdata5[[#This Row],[Index]],database[],2,0),\"\")","v":"Lotion tonique"},{"$f":"IFERROR(VLOOKUP(coustomerdata5[[#This Row],[Index]],database[],3,0),\"\")","v":"Soins du Visage"},{"$f":"IFERROR(VLOOKUP(coustomerdata5[[#This Row],[Index]],database[],4,0),\"\")","v":"mL"},{"$f":"IFERROR(VLOOKUP(coustomerdata5[[#This Row],[Index]],database[],5,0),\"\")","v":1489},{"$f":"IFERROR(VLOOKUP(coustomerdata5[[#This Row],[Index]],database[],6,0),\"\")","v":2290.0193939393948},{"$f":"IFERROR(coustomerdata5[[#This Row],[Cout unitaire]]*coustomerdata5[[#This Row],[Quantite]],\"\")","v":7445},{"$f":"IFERROR(coustomerdata5[[#This Row],[Quantite]]*coustomerdata5[[#This Row],[Prix unitaire]]*(1-coustomerdata5[[#This Row],[Taux de reduction]]),\"\")","v":11450.096969696973},{"$f":"DAY(coustomerdata5[[#This Row],[Date]])","v":30},{"$f":"TEXT(coustomerdata5[[#This Row],[Date]], \"mmm\")","v":"juin"},{"$f":"TEXT(coustomerdata5[[#This Row],[Date]], \"aaaa\")","v":"2024"}]
[null,null,null,null,"2024-07-01","P011",6,"Détail","Carte",0,{"$f":"IFERROR(VLOOKUP(coustomerdata5[[#This Row],[Index]],database[],2,0),\"\")","v":"Eau micellaire"},{"$f":"IFERROR(VLOOKUP(coustomerdata5[[#This Row],[Index]],database[],3,0),\"\")","v":"Soins du Visage"},{"$f":"IFERROR(VLOOKUP(coustomerdata5[[#This Row],[Index]],database[],4,0),\"\")","v":"mL"},{"$f":"IFERROR(VLOOKUP(coustomerdata5[[#This Row],[Index]],database[],5,0),\"\")","v":1489},{"$f":"IFERROR(VLOOKUP(coustomerdata5[[#This Row],[Index]],database[],6,0),\"\")","v":2295.3177966101698},{"$f":"IFERROR(coustomerdata5[[#This Row],[Cout unitaire]]*coustomerdata5[[#This Row],[Quantite]],\"\")","v":8934},{"$f":"IFERROR(coustomerdata5[[#This Row],[Quantite]]*coustomerdata5[[#This Row],[Prix unitaire]]*(1-coustomerdata5[[#This Row],[Taux de reduction]]),\"\")","v":13771.906779661018},{"$f":"DAY(coustomerdata5[[#This Row],[Date]])","v":1},{"$f":"TEXT(coustomerdata5[[#This Row],[Date]], \"mmm\")","v":"juil"},{"$f":"TEXT(coustomerdata5[[#This Row],[Date]], \"aaaa\")","v":"2024"}]
[null,null,null,null,"2024-07-02","P041",1,"Grossiste","Espèces",0,{"$f":"IFERROR(VLOOKUP(coustomerdata5[[#This Row],[Index]],database[],2,0),\"\")","v":"Gel douche hydratant"},{"$f":"IFERROR(VLOOKUP(coustomerdata5[[#This Row],[Index]],database[],3,0),\"\")","v":"Soins du Corps"},{"$f":"IFERROR(VLOOKUP(coustomerdata5[[#This Row],[Index]],database[],4,0),\"\")","v":"mL"},{"$f":"IFERROR(VLOOKUP(coustomerdata5[[#This Row],[Index]],database[],5,0),\"\")","v":1456},{"$f":"IFERROR(VLOOKUP(coustomerdata5[[#This Row],[Index]],database[],6,0),\"\")","v":2198.2071542130352},{"$f":"IFERROR(coustomerdata5[[#This Row],[Cout unitaire]]*coustomerdata5[[#This Row],[Quantite]],\"\")","v":1456},{"$f":"IFERROR(coustomerdata5[[#This Row],[Quantite]]*coustomerdata5[[#This Row],[Prix unitaire]]*(1-coustomerdata5[[#This Row],[Taux de reduction]]),\"\")","v":2198.2071542130352},{"$f":"DAY(coustomerdata5[[#This Row],[Date]])","v":2},{"$f":"TEXT(coustomerdata5[[#This Row],[Date]], \"mmm\")","v":"juil"},{"$f":"TEXT(coustomerdata5[[#This Row],[Date]], \"aaaa\")","v":"2024"}]
[null,null,null,null,"2024-07-03","P039",4,"Détail","Carte",0,{"$f":"IFERROR(VLOOKUP(coustomerdata5[[#This Row],[Index]],database[],2,0),\"\")","v":"Crème pour les mains"},{"$f":"IFERROR(VLOOKUP(coustomerdata5[[#This Row],[Index]],database[],3,0),\"\")","v":"Soins du Corps"},{"$f":"IFERROR(VLOOKUP(coustomerdata5[[#This Row],[Index]],database[],4,0),\"\")","v":"mL"},{"$f":"IFERROR(VLOOKUP(coustomerdata5[[#This Row],[Index]],database[],5,0),\"\")","v":1440},{"$f":"IFERROR(VLOOKUP(coustomerdata5[[#This Row],[Index]],database[],6,0),\"\")","v":2295.3177966101698},{"$f":"IFERROR(coustomerdata5[[#This Row],[Cout unitaire]]*coustomerdata5[[#This Row],[Quantite]],\"\")","v":5760},{"$f":"IFERROR(coustomerdata5[[#This Row],[Quantite]]*coustomerdata5[[#This Row],[Prix unitaire]]*(1-coustomerdata5[[#This Row],[Taux de reduction]]),\"\")","v":9181.2711864406792},{"$f":"DAY(coustomerdata5[[#This Row],[Date]])","v":3},{"$f":"TEXT(coustomerdata5[[#This Row],[Date]], \"mmm\")","v":"juil"},{"$f":"TEXT(coustomerdata5[[#This Row],[Date]], \"aaaa\")","v":"2024"}]
[null,null,null,null,"2024-07-04","P014",1,"Grossiste","Espèces",0,{"$f":"IFERROR(VLOOKUP(coustomerdata5[[#This Row],[Index]],database[],2,0),\"\")","v":"Crème coiffante"},{"$f":"IFERROR(VLOOKUP(coustomerdata5[[#This Row],[Index]],database[],3,0),\"\")","v":"Soins Capillaires"},{"$f":"IFERROR(VLOOKUP(coustomerdata5[[#This Row],[Index]],database[],4,0),\"\")","v":"mL"},{"$f":"IFERROR(VLOOKUP(coustomerdata5[[#This Row],[Index]],database[],5,0),\"\")","v":1479},{"$f":"IFERROR(VLOOKUP(coustomerdata5[[#This Row],[Index]],database[],6,0),\"\")","v":2409.5477124183008},{"$f":"IFERROR(coustomerdata5[[#This Row],[Cout unitaire]]*coustomerdata5[[#This Row],[Quantite]],\"\")","v":1479},{"$f":"IFERROR(coustomerdata5[[#This Row],[Quantite]]*coustomerdata5[[#This Row],[Prix unitaire]]*(1-coustomerdata5[[#This Row],[Taux de reduction]]),\"\")","v":2409.5477124183008},{"$f":"DAY(coustomerdata5[[#This Row],[Date]])","v":4},{"$f":"TEXT(coustomerdata5[[#This Row],[Date]], \"mmm\")","v":"juil"},{"$f":"TEXT(coustomerdata5[[#This Row],[Date]], \"aaaa\")","v":"2024"}]
[null,null,null,null,"2024-07-05","P018",4,"Grossiste","Mobile Money",0,{"$f":"IFERROR(VLOOKUP(coustomerdata5[[#This Row],[Index]],database[],2,0),\"\")","v":"Rouge à lèvres mat"},{"$f":"IFERROR(VLOOKUP(coustomerdata5[[#This Row],[Index]],database[],3,0),\"\")","v":"Maquillage"},{"$f":"IFERROR(VLOOKUP(coustomerdata5[[#This Row],[Index]],database[],4,0),\"\")","v":"g"},{"$f":"IFERROR(VLOOKUP(coustomerdata5[[#This Row],[Index]],database[],5,0),\"\")","v":1372},{"$f":"IFERROR(VLOOKUP(coustomerdata5[[#This Row],[Index]],database[],6,0),\"\")","v":2121.5981595092026},{"$f":"IFERROR(coustomerdata5[[#This Row],[Cout unitaire]]*coustomerdata5[[#This Row],[Quantite]],\"\")","v":5488},{"$f":"IFERROR(coustomerdata5[[#This Row],[Quantite]]*coustomerdata5[[#This Row],[Prix unitaire]]*(1-coustomerdata5[[#This Row],[Taux de reduction]]),\"\")","v":8486.3926380368102},{"$f":"DAY(coustomerdata5[[#This Row],[Date]])","v":5},{"$f":"TEXT(coustomerdata5[[#This Row],[Date]], \"mmm\")","v":"juil"},{"$f":"TEXT(coustomerdata5[[#This Row],[Date]], \"aaaa\")","v":"2024"}]
[null,null,null,null,"2024-07-06","P023",5,"Détail","Mobile Money",0,{"$f":"IFERROR(VLOOKUP(coustomerdata5[[#This Row],[Index]],database[],2,0),\"\")","v":"Masque purifiant"},{"$f":"IFERROR(VLOOKUP(coustomerdata5[[#This Row],[Index]],database[],3,0),\"\")","v":"Soins du Visage"},{"$f":"IFERROR(VLOOKUP(coustomerdata5[[#This Row],[Index]],database[],4,0),\"\")","v":"g"},{"$f":"IFERROR(VLOOKUP(coustomerdata5[[#This Row],[Index]],database[],5,0),\"\")","v":1457},{"$f":"IFERROR(VLOOKUP(coustomerdata5[[#This Row],[Index]],database[],6,0),\"\")","v":2171.2942622950832},{"$f":"IFERROR(coustomerdata5[[#This Row],[Cout unitaire]]*coustomerdata5[[#This Row],[Quantite]],\"\")","v":7285},{"$f":"IFERROR(coustomerdata5[[#This Row],[Quantite]]*coustomerdata5[[#This Row],[Prix unitaire]]*(1-coustomerdata5[[#This Row],[Taux de reduction]]),\"\")","v":10856.471311475416},{"$f":"DAY(coustomerdata5[[#This Row],[Date]])","v":6},{"$f":"TEXT(coustomerdata5[[#This Row],[Date]], \"mmm\")","v":"juil"},{"$f":"TEXT(coustomerdata5[[#This Row],[Date]], \"aaaa\")","v":"2024"}]
[null,null,null,null,"2024-07-07","P050",2,"Grossiste","Espèces",0,{"$f":"IFERROR(VLOOKUP(coustomerdata5[[#This Row],[Index]],database[],2,0),\"\")","v":"Poudre libre fixante"},{"$f":"IFERROR(VLOOKUP(coustomerdata5[[#This Row],[Index]],database[],3,0),\"\")","v":"Maquillage"},{"$f":"IFERROR(VLOOKUP(coustomerdata5[[#This Row],[Index]],database[],4,0),\"\")","v":"g"},{"$f":"IFERROR(VLOOKUP(coustomerdata5[[#This Row],[Index]],database[],5,0),\"\")","v":1438},{"$f":"IFERROR(VLOOKUP(coustomerdata5[[#This Row],[Index]],database[],6,0),\"\")","v":2290.0193939393948},{"$f":"IFERROR(coustomerdata5[[#This Row],[Cout unitaire]]*coustomerdata5[[#This Row],[Quantite]],\"\")","v":2876},{"$f":"IFERROR(coustomerdata5[[#This Row],[Quantite]]*coustomerdata5[[#This Row],[Prix unitaire]]*(1-coustomerdata5[[#This Row],[Taux de reduction]]),\"\")","v":4580.0387878787897},{"$f":"DAY(coustomerdata5[[#This Row],[Date]])","v":7},{"$f":"TEXT(coustomerdata5[[#This Row],[Date]], \"mmm\")","v":"juil"},{"$f":"TEXT(coustomerdata5[[#This Row],[Date]], \"aaaa\")","v":"2024"}]
[null,null,null,null,"2024-07-08","P042",6,"Grossiste","Espèces",0,{"$f":"IFERROR(VLOOKUP(coustomerdata5[[#This Row],[Index]],database[],2,0),\"\")","v":"Crème hydratante"},{"$f":"IFERROR(VLOOKUP(coustomerdata5[[#This Row],[Index]],database[],3,0),\"\")","v":"Soins du Visage"},{"$f":"IFERROR(VLOOKUP(coustomerdata5[[#This Row],[Index]],database[],4,0),\"\")","v":"mL"},{"$f":"IFERROR(VLOOKUP(coustomerdata5[[#This Row],[Index]],database[],5,0),\"\")","v":1448},{"$f":"IFERROR(VLOOKUP(coustomerdata5[[#This Row],[Index]],database[],6,0),\"\")","v":2409.5477124183008},{"$f":"IFERROR(coustomerdata5[[#This Row],[Cout unitaire]]*coustomerdata5[[#This Row],[Quantite]],\"\")","v":8688},{"$f":"IFERROR(coustomerdata5[[#This Row],[Quantite]]*coustomerdata5[[#This Row],[Prix unitaire]]*(1-coustomerdata5[[#This Row],[Taux de reduction]]),\"\")","v":14457.286274509805},{"$f":"DAY(coustomerdata5[[#This Row],[Date]])","v":8},{"$f":"TEXT(coustomerdata5[[#This Row],[Date]], \"mmm\")","v":"juil"},{"$f":"TEXT(coustomerdata5[[#This Row],[Date]], \"aaaa\")","v":"2024"}]
[null,null,null,null,"2024-07-09","P002",2,"Grossiste","Carte",0,{"$f":"IFERROR(VLOOKUP(coustomerdata5[[#This Row],[Index]],database[],2,0),\"\")","v":"Eye-liner waterproof"},{"$f":"IFERROR(VLOOKUP(coustomerdata5[[#This Row],[Index]],database[],3,0),\"\")","v":"Maquillage"},{"$f":"IFERROR(VLOOKUP(coustomerdata5[[#This Row],[Index]],database[],4,0),\"\")","v":"mL"},{"$f":"IFERROR(VLOOKUP(coustomerdata5[[#This Row],[Index]],database[],5,0),\"\")","v":1489},{"$f":"IFERROR(VLOOKUP(coustomerdata5[[#This Row],[Index]],database[],6,0),\"\")","v":2285.5296327924843},{"$f":"IFERROR(coustomerdata5[[#This Row],[Cout unitaire]]*coustomerdata5[[#This Row],[Quantite]],\"\")","v":2978},{"$f":"IFERROR(coustomerdata5[[#This Row],[Quantite]]*coustomerdata5[[#This Row],[Prix unitaire]]*(1-coustomerdata5[[#This Row],[Taux de reduction]]),\"\")","v":4571.0592655849687},{"$f":"DAY(coustomerdata5[[#This Row],[Date]])","v":9},{"$f":"TEXT(coustomerdata5[[#This Row],[Date]], \"mmm\")","v":"juil"},{"$f":"TEXT(coustomerdata5[[#This Row],[Date]], \"aaaa\")","v":"2024"}]
[null,null,null,null,"2024-07-10","P001",6,"Détail","Mobile Money",0,{"$f":"IFERROR(VLOOKUP(coustomerdata5[[#This Row],[Index]],database[],2,0),\"\")","v":"Crème pour les pieds"},{"$f":"IFERROR(VLOOKUP(coustomerdata5[[#This Row],[Index]],database[],3,0),\"\")","v":"Soins du Corps"},{"$f":"IFERROR(VLOOKUP(coustomerdata5[[#This Row],[Index]],database[],4,0),\"\")","v":"mL"},{"$f":"IFERROR(VLOOKUP(coustomerdata5[[#This Row],[Index]],database[],5,0),\"\")","v":1479},{"$f":"IFERROR(VLOOKUP(coustomerdata5[[#This Row],[Index]],database[],6,0),\"\")","v":2304.6419330289204},{"$f":"IFERROR(coustomerdata5[[#This Row],[Cout unitaire]]*coustomerdata5[[#This Row],[Quantite]],\"\")","v":8874},{"$f":"IFERROR(coustomerdata5[[#This Row],[Quantite]]*coustomerdata5[[#This Row],[Prix unitaire]]*(1-coustomerdata5[[#This Row],[Taux de reduction]]),\"\")","v":13827.851598173522},{"$f":"DAY(coustomerdata5[[#This Row],[Date]])","v":10},{"$f":"TEXT(coustomerdata5[[#This Row],[Date]], \"mmm\")","v":"juil"},{"$f":"TEXT(coustomerdata5[[#This Row],[Date]], \"aaaa\")","v":"2024"}]
[null,null,null,null,"2024-07-11","P003",2,"Détail","Mobile Money",0,{"$f":"IFERROR(VLOOKUP(coustomerdata5[[#This Row],[Index]],database[],2,0),\"\")","v":"Contour des yeux"},{"$f":"IFERROR(VLOOKUP(coustomerdata5[[#This Row],[Index]],database[],3,0),\"\")","v":"Soins du Visage"},{"$f":"IFERROR(VLOOKUP(coustomerdata5[[#This Row],[Index]],database[],4,0),\"\")","v":"mL"},{"$f":"IFERROR(VLOOKUP(coustomerdata5[[#This Row],[Index]],database[],5,0),\"\")","v":1416},{"$f":"IFERROR(VLOOKUP(coustomerdata5[[#This Row],[Index]],database[],6,0),\"\")","v":2194.270807453418},{"$f":"IFERROR(coustomerdata5[[#This Row],[Cout unitaire]]*coustomerdata5[[#This Row],[Quantite]],\"\")","v":2832},{"$f":"IFERROR(coustomerdata5[[#This Row],[Quantite]]*coustomerdata5[[#This Row],[Prix unitaire]]*(1-coustomerdata5[[#This Row],[Taux de reduction]]),\"\")","v":4388.541614906836},{"$f":"DAY(coustomerdata5[[#This Row],[Date]])","v":11},{"$f":"TEXT(coustomerdata5[[#This Row],[Date]], \"mmm\")","v":"juil"},{"$f":"TEXT(coustomerdata5[[#This Row],[Date]], \"aaaa\")","v":"2024"}]
[null,null,null,null,"2024-07-12","P010",6,"Détail","Espèces",0,{"$f":"IFERROR(VLOOKUP(coustomerdata5[[#This Row],[Index]],database[],2,0),\"\")","v":"Base de maquillage"},{"$f":"IFERROR(VLOOKUP(coustomerdata5[[#This Row],[Index]],database[],3,0),\"\")","v":"Maquillage"},{"$f":"IFERROR(VLOOKUP(coustomerdata5[[#This Row],[Index]],database[],4,0),\"\")","v":"mL"},{"$f":"IFERROR(VLOOKUP(coustomerdata5[[#This Row],[Index]],database[],5,0),\"\")","v":1479},{"$f":"IFERROR(VLOOKUP(coustomerdata5[[#This Row],[Index]],database[],6,0),\"\")","v":2214.6171779141105},{"$f":"IFERROR(coustomerdata5[[#This Row],[Cout unitaire]]*coustomerdata5[[#This Row],[Quantite]],\"\")","v":8874},{"$f":"IFERROR(coustomerdata5[[#This Row],[Quantite]]*coustomerdata5[[#This Row],[Prix unitaire]]*(1-coustomerdata5[[#This Row],[Taux de reduction]]),\"\")","v":13287.703067484663},{"$f":"DAY(coustomerdata5[[#This Row],[Date]])","v":12},{"$f":"TEXT(coustomerdata5[[#This Row],[Date]], \"mmm\")","v":"juil"},{"$f":"TEXT(coustomerdata5[[#This Row],[Date]], \"aaaa\")","v":"2024"}]
[null,null,null,null,"2024-07-13","P038",6,"Détail","Espèces",0,{"$f":"IFERROR(VLOOKUP(coustomerdata5[[#This Row],[Index]],database[],2,0),\"\")","v":"Crème raffermissante"},{"$f":"IFERROR(VLOOKUP(coustomerdata5[[#This Row],[Index]],database[],3,0),\"\")","v":"Soins du Corps"},{"$f":"IFERROR(VLOOKUP(coustomerdata5[[#This Row],[Index]],database[],4,0),\"\")","v":"mL"},{"$f":"IFERROR(VLOOKUP(coustomerdata5[[#This Row],[Index]],database[],5,0),\"\")","v":1307},{"$f":"IFERROR(VLOOKUP(coustomerdata5[[#This Row],[Index]],database[],6,0),\"\")","v":2214.6171779141105},{"$f":"IFERROR(coustomerdata5[[#This Row],[Cout unitaire]]*coustomerdata5[[#This Row],[Quantite]],\"\")","v":7842},{"$f":"IFERROR(coustomerdata5[[#This Row],[Quantite]]*coustomerdata5[[#This Row],[Prix unitaire]]*(1-coustomerdata5[[#This Row],[Taux de reduction]]),\"\")","v":13287.703067484663},{"$f":"DAY(coustomerdata5[[#This Row],[Date]])","v":13},{"$f":"TEXT(coustomerdata5[[#This Row],[Date]], \"mmm\")","v":"juil"},{"$f":"TEXT(coustomerdata5[[#This Row],[Date]], \"aaaa\")","v":"2024"}]
[null,null,null,null,"2024-07-14","P011",6,"Grossiste","Espèces",0,{"$f":"IFERROR(VLOOKUP(coustomerdata5[[#This Row],[Index]],database[],2,0),\"\")","v":"Eau micellaire"},{"$f":"IFERROR(VLOOKUP(coustomerdata5[[#This Row],[Index]],database[],3,0),\"\")","v":"Soins du Visage"},{"$f":"IFERROR(VLOOKUP(coustomerdata5[[#This Row],[Index]],database[],4,0),\"\")","v":"mL"},{"$f":"IFERROR(VLOOKUP(coustomerdata5[[#This Row],[Index]],database[],5,0),\"\")","v":1489},{"$f":"IFERROR(VLOOKUP(coustomerdata5[[#This Row],[Index]],database[],6,0),\"\")","v":2295.3177966101698},{"$f":"IFERROR(coustomerdata5[[#This Row],[Cout unitaire]]*coustomerdata5[[#This Row],[Quantite]],\"\")","v":8934},{"$f":"IFERROR(coustomerdata5[[#This Row],[Quantite]]*coustomerdata5[[#This Row],[Prix unitaire]]*(1-coustomerdata5[[#This Row],[Taux de reduction]]),\"\")","v":13771.906779661018},{"$f":"DAY(coustomerdata5[[#This Row],[Date]])","v":14},{"$f":"TEXT(coustomerdata5[[#This Row],[Date]], \"mmm\")","v":"juil"},{"$f":"TEXT(coustomerdata5[[#This Row],[Date]], \"aaaa\")","v":"2024"}]
[null,null,null,null,"2024-07-15","P040",3,"Grossiste","Carte",0,{"$f":"IFERROR(VLOOKUP(coustomerdata5[[#This Row],[Index]],database[],2,0),\"\")","v":"Shampoing sec"},{"$f":"IFERROR(VLOOKUP(coustomerdata5[[#This Row],[Index]],database[],3,0),\"\")","v":"Soins Capillaires"},{"$f":"IFERROR(VLOOKUP(coustomerdata5[[#This Row],[Index]],database[],4,0),\"\")","v":"mL"},{"$f":"IFERROR(VLOOKUP(coustomerdata5[[#This Row],[Index]],database[],5,0),\"\")","v":1456},{"$f":"IFERROR(VLOOKUP(coustomerdata5[[#This Row],[Index]],database[],6,0),\"\")","v":2300.5051282051286},{"$f":"IFERROR(coustomerdata5[[#This Row],[Cout unitaire]]*coustomerdata5[[#This Row],[Quantite]],\"\")","v":4368},{"$f":"IFERROR(coustomerdata5[[#This Row],[Quantite]]*coustomerdata5[[#This Row],[Prix unitaire]]*(1-coustomerdata5[[#This Row],[Taux de reduction]]),\"\")","v":6901.5153846153862},{"$f":"DAY(coustomerdata5[[#This Row],[Date]])","v":15},{"$f":"TEXT(coustomerdata5[[#This Row],[Date]], \"mmm\")","v":"juil"},{"$f":"TEXT(coustomerdata5[[#This Row],[Date]], \"aaaa\")","v":"2024"}]
[null,null,null,null,"2024-07-16","P034",4,"Détail","Mobile Money",0,{"$f":"IFERROR(VLOOKUP(coustomerdata5[[#This Row],[Index]],database[],2,0),\"\")","v":"Blush rosé"},{"$f":"IFERROR(VLOOKUP(coustomerdata5[[#This Row],[Index]],database[],3,0),\"\")","v":"Maquillage"},{"$f":"IFERROR(VLOOKUP(coustomerdata5[[#This Row],[Index]],database[],4,0),\"\")","v":"g"},{"$f":"IFERROR(VLOOKUP(coustomerdata5[[#This Row],[Index]],database[],5,0),\"\")","v":1448},{"$f":"IFERROR(VLOOKUP(coustomerdata5[[#This Row],[Index]],database[],6,0),\"\")","v":2318.3925287356337},{"$f":"IFERROR(coustomerdata5[[#This Row],[Cout unitaire]]*coustomerdata5[[#This Row],[Quantite]],\"\")","v":5792},{"$f":"IFERROR(coustomerdata5[[#This Row],[Quantite]]*coustomerdata5[[#This Row],[Prix unitaire]]*(1-coustomerdata5[[#This Row],[Taux de reduction]]),\"\")","v":9273.5701149425349},{"$f":"DAY(coustomerdata5[[#This Row],[Date]])","v":16},{"$f":"TEXT(coustomerdata5[[#This Row],[Date]], \"mmm\")","v":"juil"},{"$f":"TEXT(coustomerdata5[[#This Row],[Date]], \"aaaa\")","v":"2024"}]
[null,null,null,null,"2024-07-17","P004",5,"Grossiste","Carte",0,{"$f":"IFERROR(VLOOKUP(coustomerdata5[[#This Row],[Index]],database[],2,0),\"\")","v":"Spray thermo-protecteur"},{"$f":"IFERROR(VLOOKUP(coustomerdata5[[#This Row],[Index]],database[],3,0),\"\")","v":"Soins Capillaires"},{"$f":"IFERROR(VLOOKUP(coustomerdata5[[#This Row],[Index]],database[],4,0),\"\")","v":"mL"},{"$f":"IFERROR(VLOOKUP(coustomerdata5[[#This Row],[Index]],database[],5,0),\"\")","v":1372},{"$f":"IFERROR(VLOOKUP(coustomerdata5[[#This Row],[Index]],database[],6,0),\"\")","v":2121.5981595092026},{"$f":"IFERROR(coustomerdata5[[#This Row],[Cout unitaire]]*coustomerdata5[[#This Row],[Quantite]],\"\")","v":6860},{"$f":"IFERROR(coustomerdata5[[#This Row],[Quantite]]*coustomerdata5[[#This Row],[Prix unitaire]]*(1-coustomerdata5[[#This Row],[Taux de reduction]]),\"\")","v":10607.990797546012},{"$f":"DAY(coustomerdata5[[#This Row],[Date]])","v":17},{"$f":"TEXT(coustomerdata5[[#This Row],[Date]], \"mmm\")","v":"juil"},{"$f":"TEXT(coustomerdata5[[#This Row],[Date]], \"aaaa\")","v":"2024"}]
[null,null,null,null,"2024-07-18","P040",1,"Grossiste","Mobile Money",0,{"$f":"IFERROR(VLOOKUP(coustomerdata5[[#This Row],[Index]],database[],2,0),\"\")","v":"Shampoing sec"},{"$f":"IFERROR(VLOOKUP(coustomerdata5[[#This Row],[Index]],database[],3,0),\"\")","v":"Soins Capillaires"},{"$f":"IFERROR(VLOOKUP(coustomerdata5[[#This Row],[Index]],database[],4,0),\"\")","v":"mL"},{"$f":"IFERROR(VLOOKUP(coustomerdata5[[#This Row],[Index]],database[],5,0),\"\")","v":1456},{"$f":"IFERROR(VLOOKUP(coustomerdata5[[#This Row],[Index]],database[],6,0),\"\")","v":2300.5051282051286},{"$f":"IFERROR(coustomerdata5[[#This Row],[Cout unitaire]]*coustomerdata5[[#This Row],[Quantite]],\"\")","v":1456},{"$f":"IFERROR(coustomerdata5[[#This Row],[Quantite]]*coustomerdata5[[#This Row],[Prix unitaire]]*(1-coustomerdata5[[#This Row],[Taux de reduction]]),\"\")","v":2300.5051282051286},{"$f":"DAY(coustomerdata5[[#This Row],[Date]])","v":18},{"$f":"TEXT(coustomerdata5[[#This Row],[Date]], \"mmm\")","v":"juil"},{"$f":"TEXT(coustomerdata5[[#This Row],[Date]], \"aaaa\")","v":"2024"}]
[null,null,null,null,"2024-07-19","P006",6,"Détail","Espèces",0,{"$f":"IFERROR(VLOOKUP(coustomerdata5[[#This Row],[Index]],database[],2,0),\"\")","v":"Déodorant naturel"},{"$f":"IFERROR(VLOOKUP(coustomerdata5[[#This Row],[Index]],database[],3,0),\"\")","v":"Soins du Corps"},{"$f":"IFERROR(VLOOKUP(coustomerdata5[[#This Row],[Index]],database[],4,0),\"\")","v":"mL"},{"$f":"IFERROR(VLOOKUP(coustomerdata5[[#This Row],[Index]],database[],5,0),\"\")","v":1440},{"$f":"IFERROR(VLOOKUP(coustomerdata5[[#This Row],[Index]],database[],6,0),\"\")","v":2318.3925287356337},{"$f":"IFERROR(coustomerdata5[[#This Row],[Cout unitaire]]*coustomerdata5[[#This Row],[Quantite]],\"\")","v":8640},{"$f":"IFERROR(coustomerdata5[[#This Row],[Quantite]]*coustomerdata5[[#This Row],[Prix unitaire]]*(1-coustomerdata5[[#This Row],[Taux de reduction]]),\"\")","v":13910.355172413801},{"$f":"DAY(coustomerdata5[[#This Row],[Date]])","v":19},{"$f":"TEXT(coustomerdata5[[#This Row],[Date]], \"mmm\")","v":"juil"},{"$f":"TEXT(coustomerdata5[[#This Row],[Date]], \"aaaa\")","v":"2024"}]
[null,null,null,null,"2024-07-20","P041",4,"Grossiste","Carte",0,{"$f":"IFERROR(VLOOKUP(coustomerdata5[[#This Row],[Index]],database[],2,0),\"\")","v":"Gel douche hydratant"},{"$f":"IFERROR(VLOOKUP(coustomerdata5[[#This Row],[Index]],database[],3,0),\"\")","v":"Soins du Corps"},{"$f":"IFERROR(VLOOKUP(coustomerdata5[[#This Row],[Index]],database[],4,0),\"\")","v":"mL"},{"$f":"IFERROR(VLOOKUP(coustomerdata5[[#This Row],[Index]],database[],5,0),\"\")","v":1456},{"$f":"IFERROR(VLOOKUP(coustomerdata5[[#This Row],[Index]],database[],6,0),\"\")","v":2198.2071542130352},{"$f":"IFERROR(coustomerdata5[[#This Row],[Cout unitaire]]*coustomerdata5[[#This Row],[Quantite]],\"\")","v":5824},{"$f":"IFERROR(coustomerdata5[[#This Row],[Quantite]]*coustomerdata5[[#This Row],[Prix unitaire]]*(1-coustomerdata5[[#This Row],[Taux de reduction]]),\"\")","v":8792.8286168521408},{"$f":"DAY(coustomerdata5[[#This Row],[Date]])","v":20},{"$f":"TEXT(coustomerdata5[[#This Row],[Date]], \"mmm\")","v":"juil"},{"$f":"TEXT(coustomerdata5[[#This Row],[Date]], \"aaaa\")","v":"2024"}]
[null,null,null,null,"2024-07-21","P045",4,"Grossiste","Carte",0,{"$f":"IFERROR(VLOOKUP(coustomerdata5[[#This Row],[Index]],database[],2,0),\"\")","v":"Palette de fards"},{"$f":"IFERROR(VLOOKUP(coustomerdata5[[#This Row],[Index]],database[],3,0),\"\")","v":"Maquillage"},{"$f":"IFERROR(VLOOKUP(coustomerdata5[[#This Row],[Index]],database[],4,0),\"\")","v":"g"},{"$f":"IFERROR(VLOOKUP(coustomerdata5[[#This Row],[Index]],database[],5,0),\"\")","v":1440},{"$f":"IFERROR(VLOOKUP(coustomerdata5[[#This Row],[Index]],database[],6,0),\"\")","v":2194.270807453418},{"$f":"IFERROR(coustomerdata5[[#This Row],[Cout unitaire]]*coustomerdata5[[#This Row],[Quantite]],\"\")","v":5760},{"$f":"IFERROR(coustomerdata5[[#This Row],[Quantite]]*coustomerdata5[[#This Row],[Prix unitaire]]*(1-coustomerdata5[[#This Row],[Taux de reduction]]),\"\")","v":8777.083229813672},{"$f":"DAY(coustomerdata5[[#This Row],[Date]])","v":21},{"$f":"TEXT(coustomerdata5[[#This Row],[Date]], \"mmm\")","v":"juil"},{"$f":"TEXT(coustomerdata5[[#This Row],[Date]], \"aaaa\")","v":"2024"}]
[null,null,null,null,"2024-07-22","P040",1,"Détail","Espèces",0,{"$f":"IFERROR(VLOOKUP(coustomerdata5[[#This Row],[Index]],database[],2,0),\"\")","v":"Shampoing sec"},{"$f":"IFERROR(VLOOKUP(coustomerdata5[[#This Row],[Index]],database[],3,0),\"\")","v":"Soins Capillaires"},{"$f":"IFERROR(VLOOKUP(coustomerdata5[[#This Row],[Index]],database[],4,0),\"\")","v":"mL"},{"$f":"IFERROR(VLOOKUP(coustomerdata5[[#This Row],[Index]],database[],5,0),\"\")","v":1456},{"$f":"IFERROR(VLOOKUP(coustomerdata5[[#This Row],[Index]],database[],6,0),\"\")","v":2300.5051282051286},{"$f":"IFERROR(coustomerdata5[[#This Row],[Cout unitaire]]*coustomerdata5[[#This Row],[Quantite]],\"\")","v":1456},{"$f":"IFERROR(coustomerdata5[[#This Row],[Quantite]]*coustomerdata5[[#This Row],[Prix unitaire]]*(1-coustomerdata5[[#This Row],[Taux de reduction]]),\"\")","v":2300.5051282051286},{"$f":"DAY(coustomerdata5[[#This Row],[Date]])","v":22},{"$f":"TEXT(coustomerdata5[[#This Row],[Date]], \"mmm\")","v":"juil"},{"$f":"TEXT(coustomerdata5[[#This Row],[Date]], \"aaaa\")","v":"2024"}]
[null,null,null,null,"2024-07-23","P029",5,"Détail","Carte",0,{"$f":"IFERROR(VLOOKUP(coustomerdata5[[#This Row],[Index]],database[],2,0),\"\")","v":"Palette de fards"},{"$f":"IFERROR(VLOOKUP(coustomerdata5[[#This Row],[Index]],database[],3,0),\"\")","v":"Maquillage"},{"$f":"IFERROR(VLOOKUP(coustomerdata5[[#This Row],[Index]],database[],4,0),\"\")","v":"g"},{"$f":"IFERROR(VLOOKUP(coustomerdata5[[#This Row],[Index]],database[],5,0),\"\")","v":1416},{"$f":"IFERROR(VLOOKUP(coustomerdata5[[#This Row],[Index]],database[],6,0),\"\")","v":2304.6419330289204},{"$f":"IFERROR(coustomerdata5[[#This Row],[Cout unitaire]]*coustomerdata5[[#This Row],[Quantite]],\"\")","v":7080},{"$f":"IFERROR(coustomerdata5[[#This Row],[Quantite]]*coustomerdata5[[#This Row],[Prix unitaire]]*(1-coustomerdata5[[#This Row],[Taux de reduction]]),\"\")","v":11523.209665144603},{"$f":"DAY(coustomerdata5[[#This Row],[Date]])","v":23},{"$f":"TEXT(coustomerdata5[[#This Row],[Date]], \"mmm\")","v":"juil"},{"$f":"TEXT(coustomerdata5[[#This Row],[Date]], \"aaaa\")","v":"2024"}]
[null,null,null,null,"2024-07-24","P004",5,"Détail","Carte",0,{"$f":"IFERROR(VLOOKUP(coustomerdata5[[#This Row],[Index]],database[],2,0),\"\")","v":"Spray thermo-protecteur"},{"$f":"IFERROR(VLOOKUP(coustomerdata5[[#This Row],[Index]],database[],3,0),\"\")","v":"Soins Capillaires"},{"$f":"IFERROR(VLOOKUP(coustomerdata5[[#This Row],[Index]],database[],4,0),\"\")","v":"mL"},{"$f":"IFERROR(VLOOKUP(coustomerdata5[[#This Row],[Index]],database[],5,0),\"\")","v":1372},{"$f":"IFERROR(VLOOKUP(coustomerdata5[[#This Row],[Index]],database[],6,0),\"\")","v":2121.5981595092026},{"$f":"IFERROR(coustomerdata5[[#This Row],[Cout unitaire]]*coustomerdata5[[#This Row],[Quantite]],\"\")","v":6860},{"$f":"IFERROR(coustomerdata5[[#This Row],[Quantite]]*coustomerdata5[[#This Row],[Prix unitaire]]*(1-coustomerdata5[[#This Row],[Taux de reduction]]),\"\")","v":10607.990797546012},{"$f":"DAY(coustomerdata5[[#This Row],[Date]])","v":24},{"$f":"TEXT(coustomerdata5[[#This Row],[Date]], \"mmm\")","v":"juil"},{"$f":"TEXT(coustomerdata5[[#This Row],[Date]], \"aaaa\")","v":"2024"}]
[null,null,null,null,"2024-07-25","P011",3,"Grossiste","Mobile Money",0,{"$f":"IFERROR(VLOOKUP(coustomerdata5[[#This Row],[Index]],database[],2,0),\"\")","v":"Eau micellaire"},{"$f":"IFERROR(VLOOKUP(coustomerdata5[[#This Row],[Index]],database[],3,0),\"\")","v":"Soins du Visage"},{"$f":"IFERROR(VLOOKUP(coustomerdata5[[#This Row],[Index]],database[],4,0),\"\")","v":"mL"},{"$f":"IFERROR(VLOOKUP(coustomerdata5[[#This Row],[Index]],database[],5,0),\"\")","v":1489},{"$f":"IFERROR(VLOOKUP(coustomerdata5[[#This Row],[Index]],database[],6,0),\"\")","v":2295.3177966101698},{"$f":"IFERROR(coustomerdata5[[#This Row],[Cout unitaire]]*coustomerdata5[[#This Row],[Quantite]],\"\")","v":4467},{"$f":"IFERROR(coustomerdata5[[#This Row],[Quantite]]*coustomerdata5[[#This Row],[Prix unitaire]]*(1-coustomerdata5[[#This Row],[Taux de reduction]]),\"\")","v":6885.953389830509},{"$f":"DAY(coustomerdata5[[#This Row],[Date]])","v":25},{"$f":"TEXT(coustomerdata5[[#This Row],[Date]], \"mmm\")","v":"juil"},{"$f":"TEXT(coustomerdata5[[#This Row],[Date]], \"aaaa\")","v":"2024"}]
[null,null,null,null,"2024-07-26","P038",1,"Détail","Carte",0,{"$f":"IFERROR(VLOOKUP(coustomerdata5[[#This Row],[Index]],database[],2,0),\"\")","v":"Crème raffermissante"},{"$f":"IFERROR(VLOOKUP(coustomerdata5[[#This Row],[Index]],database[],3,0),\"\")","v":"Soins du Corps"},{"$f":"IFERROR(VLOOKUP(coustomerdata5[[#This Row],[Index]],database[],4,0),\"\")","v":"mL"},{"$f":"IFERROR(VLOOKUP(coustomerdata5[[#This Row],[Index]],database[],5,0),\"\")","v":1307},{"$f":"IFERROR(VLOOKUP(coustomerdata5[[#This Row],[Index]],database[],6,0),\"\")","v":2214.6171779141105},{"$f":"IFERROR(coustomerdata5[[#This Row],[Cout unitaire]]*coustomerdata5[[#This Row],[Quantite]],\"\")","v":1307},{"$f":"IFERROR(coustomerdata5[[#This Row],[Quantite]]*coustomerdata5[[#This Row],[Prix unitaire]]*(1-coustomerdata5[[#This Row],[Taux de reduction]]),\"\")","v":2214.6171779141105},{"$f":"DAY(coustomerdata5[[#This Row],[Date]])","v":26},{"$f":"TEXT(coustomerdata5[[#This Row],[Date]], \"mmm\")","v":"juil"},{"$f":"TEXT(coustomerdata5[[#This Row],[Date]], \"aaaa\")","v":"2024"}]
[null,null,null,null,"2024-07-27","P043",2,"Grossiste","Mobile Money",0,{"$f":"IFERROR(VLOOKUP(coustomerdata5[[#This Row],[Index]],database[],2,0),\"\")","v":"Crayon à sourcils"},{"$f":"IFERROR(VLOOKUP(coustomerdata5[[#This Row],[Index]],database[],3,0),\"\")","v":"Maquillage"},{"$f":"IFERROR(VLOOKUP(coustomerdata5[[#This Row],[Index]],database[],4,0),\"\")","v":"g"},{"$f":"IFERROR(VLOOKUP(coustomerdata5[[#This Row],[Index]],database[],5,0),\"\")","v":1440},{"$f":"IFERROR(VLOOKUP(coustomerdata5[[#This Row],[Index]],database[],6,0),\"\")","v":2304.6419330289204},{"$f":"IFERROR(coustomerdata5[[#This Row],[Cout unitaire]]*coustomerdata5[[#This Row],[Quantite]],\"\")","v":2880},{"$f":"IFERROR(coustomerdata5[[#This Row],[Quantite]]*coustomerdata5[[#This Row],[Prix unitaire]]*(1-coustomerdata5[[#This Row],[Taux de reduction]]),\"\")","v":4609.2838660578409},{"$f":"DAY(coustomerdata5[[#This Row],[Date]])","v":27},{"$f":"TEXT(coustomerdata5[[#This Row],[Date]], \"mmm\")","v":"juil"},{"$f":"TEXT(coustomerdata5[[#This Row],[Date]], \"aaaa\")","v":"2024"}]
[null,null,null,null,"2024-07-28","P017",4,"Grossiste","Mobile Money",0,{"$f":"IFERROR(VLOOKUP(coustomerdata5[[#This Row],[Index]],database[],2,0),\"\")","v":"Spray rafraîchissant"},{"$f":"IFERROR(VLOOKUP(coustomerdata5[[#This Row],[Index]],database[],3,0),\"\")","v":"Soins du Corps"},{"$f":"IFERROR(VLOOKUP(coustomerdata5[[#This Row],[Index]],database[],4,0),\"\")","v":"mL"},{"$f":"IFERROR(VLOOKUP(coustomerdata5[[#This Row],[Index]],database[],5,0),\"\")","v":1440},{"$f":"IFERROR(VLOOKUP(coustomerdata5[[#This Row],[Index]],database[],6,0),\"\")","v":2194.270807453418},{"$f":"IFERROR(coustomerdata5[[#This Row],[Cout unitaire]]*coustomerdata5[[#This Row],[Quantite]],\"\")","v":5760},{"$f":"IFERROR(coustomerdata5[[#This Row],[Quantite]]*coustomerdata5[[#This Row],[Prix unitaire]]*(1-coustomerdata5[[#This Row],[Taux de reduction]]),\"\")","v":8777.083229813672},{"$f":"DAY(coustomerdata5[[#This Row],[Date]])","v":28},{"$f":"TEXT(coustomerdata5[[#This Row],[Date]], \"mmm\")","v":"juil"},{"$f":"TEXT(coustomerdata5[[#This Row],[Date]], \"aaaa\")","v":"2024"}]
[null,null,null,null,"2024-07-29","P006",1,"Grossiste","Espèces",0,{"$f":"IFERROR(VLOOKUP(coustomerdata5[[#This Row],[Index]],database[],2,0),\"\")","v":"Déodorant naturel"},{"$f":"IFERROR(VLOOKUP(coustomerdata5[[#This Row],[Index]],database[],3,0),\"\")","v":"Soins du Corps"},{"$f":"IFERROR(VLOOKUP(coustomerdata5[[#This Row],[Index]],database[],4,0),\"\")","v":"mL"},{"$f":"IFERROR(VLOOKUP(coustomerdata5[[#This Row],[Index]],database[],5,0),\"\")","v":1440},{"$f":"IFERROR(VLOOKUP(coustomerdata5[[#This Row],[Index]],database[],6,0),\"\")","v":2318.3925287356337},{"$f":"IFERROR(coustomerdata5[[#This Row],[Cout unitaire]]*coustomerdata5[[#This Row],[Quantite]],\"\")","v":1440},{"$f":"IFERROR(coustomerdata5[[#This Row],[Quantite]]*coustomerdata5[[#This Row],[Prix unitaire]]*(1-coustomerdata5[[#This Row],[Taux de reduction]]),\"\")","v":2318.3925287356337},{"$f":"DAY(coustomerdata5[[#This Row],[Date]])","v":29},{"$f":"TEXT(coustomerdata5[[#This Row],[Date]], \"mmm\")","v":"juil"},{"$f":"TEXT(coustomerdata5[[#This Row],[Date]], \"aaaa\")","v":"2024"}]
[null,null,null,null,"2024-07-30","P032",4,"Détail","Espèces",0,{"$f":"IFERROR(VLOOKUP(coustomerdata5[[#This Row],[Index]],database[],2,0),\"\")","v":"Fond de teint"},{"$f":"IFERROR(VLOOKUP(coustomerdata5[[#This Row],[Index]],database[],3,0),\"\")","v":"Maquillage"},{"$f":"IFERROR(VLOOKUP(coustomerdata5[[#This Row],[Index]],database[],4,0),\"\")","v":"mL"},{"$f":"IFERROR(VLOOKUP(coustomerdata5[[#This Row],[Index]],database[],5,0),\"\")","v":1307},{"$f":"IFERROR(VLOOKUP(coustomerdata5[[#This Row],[Index]],database[],6,0),\"\")","v":2121.5981595092026},{"$f":"IFERROR(coustomerdata5[[#This Row],[Cout unitaire]]*coustomerdata5[[#This Row],[Quantite]],\"\")","v":5228},{"$f":"IFERROR(coustomerdata5[[#This Row],[Quantite]]*coustomerdata5[[#This Row],[Prix unitaire]]*(1-coustomerdata5[[#This Row],[Taux de reduction]]),\"\")","v":8486.3926380368102},{"$f":"DAY(coustomerdata5[[#This Row],[Date]])","v":30},{"$f":"TEXT(coustomerdata5[[#This Row],[Date]], \"mmm\")","v":"juil"},{"$f":"TEXT(coustomerdata5[[#This Row],[Date]], \"aaaa\")","v":"2024"}]
[null,null,null,null,"2024-07-31","P033",5,"Détail","Carte",0,{"$f":"IFERROR(VLOOKUP(coustomerdata5[[#This Row],[Index]],database[],2,0),\"\")","v":"Gommage exfoliant"},{"$f":"IFERROR(VLOOKUP(coustomerdata5[[#This Row],[Index]],database[],3,0),\"\")","v":"Soins du Visage"},{"$f":"IFERROR(VLOOKUP(coustomerdata5[[#This Row],[Index]],database[],4,0),\"\")","v":"g"},{"$f":"IFERROR(VLOOKUP(coustomerdata5[[#This Row],[Index]],database[],5,0),\"\")","v":1456},{"$f":"IFERROR(VLOOKUP(coustomerdata5[[#This Row],[Index]],database[],6,0),\"\")","v":2349.1564814814842},{"$f":"IFERROR(coustomerdata5[[#This Row],[Cout unitaire]]*coustomerdata5[[#This Row],[Quantite]],\"\")","v":7280},{"$f":"IFERROR(coustomerdata5[[#This Row],[Quantite]]*coustomerdata5[[#This Row],[Prix unitaire]]*(1-coustomerdata5[[#This Row],[Taux de reduction]]),\"\")","v":11745.782407407421},{"$f":"DAY(coustomerdata5[[#This Row],[Date]])","v":31},{"$f":"TEXT(coustomerdata5[[#This Row],[Date]], \"mmm\")","v":"juil"},{"$f":"TEXT(coustomerdata5[[#This Row],[Date]], \"aaaa\")","v":"2024"}]
[null,null,null,null,"2024-08-01","P016",3,"Grossiste","Espèces",0,{"$f":"IFERROR(VLOOKUP(coustomerdata5[[#This Row],[Index]],database[],2,0),\"\")","v":"BB crème"},{"$f":"IFERROR(VLOOKUP(coustomerdata5[[#This Row],[Index]],database[],3,0),\"\")","v":"Soins du Visage"},{"$f":"IFERROR(VLOOKUP(coustomerdata5[[#This Row],[Index]],database[],4,0),\"\")","v":"mL"},{"$f":"IFERROR(VLOOKUP(coustomerdata5[[#This Row],[Index]],database[],5,0),\"\")","v":1307},{"$f":"IFERROR(VLOOKUP(coustomerdata5[[#This Row],[Index]],database[],6,0),\"\")","v":2285.5296327924843},{"$f":"IFERROR(coustomerdata5[[#This Row],[Cout unitaire]]*coustomerdata5[[#This Row],[Quantite]],\"\")","v":3921},{"$f":"IFERROR(coustomerdata5[[#This Row],[Quantite]]*coustomerdata5[[#This Row],[Prix unitaire]]*(1-coustomerdata5[[#This Row],[Taux de reduction]]),\"\")","v":6856.588898377453},{"$f":"DAY(coustomerdata5[[#This Row],[Date]])","v":1},{"$f":"TEXT(coustomerdata5[[#This Row],[Date]], \"mmm\")","v":"août"},{"$f":"TEXT(coustomerdata5[[#This Row],[Date]], \"aaaa\")","v":"2024"}]
[null,null,null,null,"2024-08-02","P039",5,"Détail","Carte",0,{"$f":"IFERROR(VLOOKUP(coustomerdata5[[#This Row],[Index]],database[],2,0),\"\")","v":"Crème pour les mains"},{"$f":"IFERROR(VLOOKUP(coustomerdata5[[#This Row],[Index]],database[],3,0),\"\")","v":"Soins du Corps"},{"$f":"IFERROR(VLOOKUP(coustomerdata5[[#This Row],[Index]],database[],4,0),\"\")","v":"mL"},{"$f":"IFERROR(VLOOKUP(coustomerdata5[[#This Row],[Index]],database[],5,0),\"\")","v":1440},{"$f":"IFERROR(VLOOKUP(coustomerdata5[[#This Row],[Index]],database[],6,0),\"\")","v":2295.3177966101698},{"$f":"IFERROR(coustomerdata5[[#This Row],[Cout unitaire]]*coustomerdata5[[#This Row],[Quantite]],\"\")","v":7200},{"$f":"IFERROR(coustomerdata5[[#This Row],[Quantite]]*coustomerdata5[[#This Row],[Prix unitaire]]*(1-coustomerdata5[[#This Row],[Taux de reduction]]),\"\")","v":11476.588983050849},{"$f":"DAY(coustomerdata5[[#This Row],[Date]])","v":2},{"$f":"TEXT(coustomerdata5[[#This Row],[Date]], \"mmm\")","v":"août"},{"$f":"TEXT(coustomerdata5[[#This Row],[Date]], \"aaaa\")","v":"2024"}]
[null,null,null,null,"2024-08-03","P032",3,"Grossiste","Espèces",0,{"$f":"IFERROR(VLOOKUP(coustomerdata5[[#This Row],[Index]],database[],2,0),\"\")","v":"Fond de teint"},{"$f":"IFERROR(VLOOKUP(coustomerdata5[[#This Row],[Index]],database[],3,0),\"\")","v":"Maquillage"},{"$f":"IFERROR(VLOOKUP(coustomerdata5[[#This Row],[Index]],database[],4,0),\"\")","v":"mL"},{"$f":"IFERROR(VLOOKUP(coustomerdata5[[#This Row],[Index]],database[],5,0),\"\")","v":1307},{"$f":"IFERROR(VLOOKUP(coustomerdata5[[#This Row],[Index]],database[],6,0),\"\")","v":2121.5981595092026},{"$f":"IFERROR(coustomerdata5[[#This Row],[Cout unitaire]]*coustomerdata5[[#This Row],[Quantite]],\"\")","v":3921},{"$f":"IFERROR(coustomerdata5[[#This Row],[Quantite]]*coustomerdata5[[#This Row],[Prix unitaire]]*(1-coustomerdata5[[#This Row],[Taux de reduction]]),\"\")","v":6364.7944785276077},{"$f":"DAY(coustomerdata5[[#This Row],[Date]])","v":3},{"$f":"TEXT(coustomerdata5[[#This Row],[Date]], \"mmm\")","v":"août"},{"$f":"TEXT(coustomerdata5[[#This Row],[Date]], \"aaaa\")","v":"2024"}]
[null,null,null,null,"2024-08-04","P005",3,"Grossiste","Mobile Money",0,{"$f":"IFERROR(VLOOKUP(coustomerdata5[[#This Row],[Index]],database[],2,0),\"\")","v":"Sérum anti-âge"},{"$f":"IFERROR(VLOOKUP(coustomerdata5[[#This Row],[Index]],database[],3,0),\"\")","v":"Soins du Visage"},{"$f":"IFERROR(VLOOKUP(coustomerdata5[[#This Row],[Index]],database[],4,0),\"\")","v":"mL"},{"$f":"IFERROR(VLOOKUP(coustomerdata5[[#This Row],[Index]],database[],5,0),\"\")","v":1372},{"$f":"IFERROR(VLOOKUP(coustomerdata5[[#This Row],[Index]],database[],6,0),\"\")","v":2349.1564814814842},{"$f":"IFERROR(coustomerdata5[[#This Row],[Cout unitaire]]*coustomerdata5[[#This Row],[Quantite]],\"\")","v":4116},{"$f":"IFERROR(coustomerdata5[[#This Row],[Quantite]]*coustomerdata5[[#This Row],[Prix unitaire]]*(1-coustomerdata5[[#This Row],[Taux de reduction]]),\"\")","v":7047.4694444444522},{"$f":"DAY(coustomerdata5[[#This Row],[Date]])","v":4},{"$f":"TEXT(coustomerdata5[[#This Row],[Date]], \"mmm\")","v":"août"},{"$f":"TEXT(coustomerdata5[[#This Row],[Date]], \"aaaa\")","v":"2024"}]
[null,null,null,null,"2024-08-05","P033",6,"Détail","Mobile Money",0,{"$f":"IFERROR(VLOOKUP(coustomerdata5[[#This Row],[Index]],database[],2,0),\"\")","v":"Gommage exfoliant"},{"$f":"IFERROR(VLOOKUP(coustomerdata5[[#This Row],[Index]],database[],3,0),\"\")","v":"Soins du Visage"},{"$f":"IFERROR(VLOOKUP(coustomerdata5[[#This Row],[Index]],database[],4,0),\"\")","v":"g"},{"$f":"IFERROR(VLOOKUP(coustomerdata5[[#This Row],[Index]],database[],5,0),\"\")","v":1456},{"$f":"IFERROR(VLOOKUP(coustomerdata5[[#This Row],[Index]],database[],6,0),\"\")","v":2349.1564814814842},{"$f":"IFERROR(coustomerdata5[[#This Row],[Cout unitaire]]*coustomerdata5[[#This Row],[Quantite]],\"\")","v":8736},{"$f":"IFERROR(coustomerdata5[[#This Row],[Quantite]]*coustomerdata5[[#This Row],[Prix unitaire]]*(1-coustomerdata5[[#This Row],[Taux de reduction]]),\"\")","v":14094.938888888904},{"$f":"DAY(coustomerdata5[[#This Row],[Date]])","v":5},{"$f":"TEXT(coustomerdata5[[#This Row],[Date]], \"mmm\")","v":"août"},{"$f":"TEXT(coustomerdata5[[#This Row],[Date]], \"aaaa\")","v":"2024"}]
[null,null,null,null,"2024-08-06","P045",5,"Grossiste","Espèces",0,{"$f":"IFERROR(VLOOKUP(coustomerdata5[[#This Row],[Index]],database[],2,0),\"\")","v":"Palette de fards"},{"$f":"IFERROR(VLOOKUP(coustomerdata5[[#This Row],[Index]],database[],3,0),\"\")","v":"Maquillage"},{"$f":"IFERROR(VLOOKUP(coustomerdata5[[#This Row],[Index]],database[],4,0),\"\")","v":"g"},{"$f":"IFERROR(VLOOKUP(coustomerdata5[[#This Row],[Index]],database[],5,0),\"\")","v":1440},{"$f":"IFERROR(VLOOKUP(coustomerdata5[[#This Row],[Index]],database[],6,0),\"\")","v":2194.270807453418},{"$f":"IFERROR(coustomerdata5[[#This Row],[Cout unitaire]]*coustomerdata5[[#This Row],[Quantite]],\"\")","v":7200},{"$f":"IFERROR(coustomerdata5[[#This Row],[Quantite]]*coustomerdata5[[#This Row],[Prix unitaire]]*(1-coustomerdata5[[#This Row],[Taux de reduction]]),\"\")","v":10971.35403726709},{"$f":"DAY(coustomerdata5[[#This Row],[Date]])","v":6},{"$f":"TEXT(coustomerdata5[[#This Row],[Date]], \"mmm\")","v":"août"},{"$f":"TEXT(coustomerdata5[[#This Row],[Date]], \"aaaa\")","v":"2024"}]
[null,null,null,null,"2024-08-07","P048",3,"Grossiste","Espèces",0,{"$f":"IFERROR(VLOOKUP(coustomerdata5[[#This Row],[Index]],database[],2,0),\"\")","v":"Cire coiffante"},{"$f":"IFERROR(VLOOKUP(coustomerdata5[[#This Row],[Index]],database[],3,0),\"\")","v":"Soins Capillaires"},{"$f":"IFERROR(VLOOKUP(coustomerdata5[[#This Row],[Index]],database[],4,0),\"\")","v":"g"},{"$f":"IFERROR(VLOOKUP(coustomerdata5[[#This Row],[Index]],database[],5,0),\"\")","v":1347},{"$f":"IFERROR(VLOOKUP(coustomerdata5[[#This Row],[Index]],database[],6,0),\"\")","v":2318.3925287356337},{"$f":"IFERROR(coustomerdata5[[#This Row],[Cout unitaire]]*coustomerdata5[[#This Row],[Quantite]],\"\")","v":4041},{"$f":"IFERROR(coustomerdata5[[#This Row],[Quantite]]*coustomerdata5[[#This Row],[Prix unitaire]]*(1-coustomerdata5[[#This Row],[Taux de reduction]]),\"\")","v":6955.1775862069007},{"$f":"DAY(coustomerdata5[[#This Row],[Date]])","v":7},{"$f":"TEXT(coustomerdata5[[#This Row],[Date]], \"mmm\")","v":"août"},{"$f":"TEXT(coustomerdata5[[#This Row],[Date]], \"aaaa\")","v":"2024"}]
[null,null,null,null,"2024-08-08","P050",2,"Grossiste","Carte",0,{"$f":"IFERROR(VLOOKUP(coustomerdata5[[#This Row],[Index]],database[],2,0),\"\")","v":"Poudre libre fixante"},{"$f":"IFERROR(VLOOKUP(coustomerdata5[[#This Row],[Index]],database[],3,0),\"\")","v":"Maquillage"},{"$f":"IFERROR(VLOOKUP(coustomerdata5[[#This Row],[Index]],database[],4,0),\"\")","v":"g"},{"$f":"IFERROR(VLOOKUP(coustomerdata5[[#This Row],[Index]],database[],5,0),\"\")","v":1438},{"$f":"IFERROR(VLOOKUP(coustomerdata5[[#This Row],[Index]],database[],6,0),\"\")","v":2290.0193939393948},{"$f":"IFERROR(coustomerdata5[[#This Row],[Cout unitaire]]*coustomerdata5[[#This Row],[Quantite]],\"\")","v":2876},{"$f":"IFERROR(coustomerdata5[[#This Row],[Quantite]]*coustomerdata5[[#This Row],[Prix unitaire]]*(1-coustomerdata5[[#This Row],[Taux de reduction]]),\"\")","v":4580.0387878787897},{"$f":"DAY(coustomerdata5[[#This Row],[Date]])","v":8},{"$f":"TEXT(coustomerdata5[[#This Row],[Date]], \"mmm\")","v":"août"},{"$f":"TEXT(coustomerdata5[[#This Row],[Date]], \"aaaa\")","v":"2024"}]
[null,null,null,null,"2024-08-09","P018",1,"Détail","Mobile Money",0,{"$f":"IFERROR(VLOOKUP(coustomerdata5[[#This Row],[Index]],database[],2,0),\"\")","v":"Rouge à lèvres mat"},{"$f":"IFERROR(VLOOKUP(coustomerdata5[[#This Row],[Index]],database[],3,0),\"\")","v":"Maquillage"},{"$f":"IFERROR(VLOOKUP(coustomerdata5[[#This Row],[Index]],database[],4,0),\"\")","v":"g"},{"$f":"IFERROR(VLOOKUP(coustomerdata5[[#This Row],[Index]],database[],5,0),\"\")","v":1372},{"$f":"IFERROR(VLOOKUP(coustomerdata5[[#This Row],[Index]],database[],6,0),\"\")","v":2121.5981595092026},{"$f":"IFERROR(coustomerdata5[[#This Row],[Cout unitaire]]*coustomerdata5[[#This Row],[Quantite]],\"\")","v":1372},{"$f":"IFERROR(coustomerdata5[[#This Row],[Quantite]]*coustomerdata5[[#This Row],[Prix unitaire]]*(1-coustomerdata5[[#This Row],[Taux de reduction]]),\"\")","v":2121.5981595092026},{"$f":"DAY(coustomerdata5[[#This Row],[Date]])","v":9},{"$f":"TEXT(coustomerdata5[[#This Row],[Date]], \"mmm\")","v":"août"},{"$f":"TEXT(coustomerdata5[[#This Row],[Date]], \"aaaa\")","v":"2024"}]
[null,null,null,null,"2024-08-10","P007",6,"Détail","Mobile Money",0,{"$f":"IFERROR(VLOOKUP(coustomerdata5[[#This Row],[Index]],database[],2,0),\"\")","v":"Mousse volume"},{"$f":"IFERROR(VLOOKUP(coustomerdata5[[#This Row],[Index]],database[],3,0),\"\")","v":"Soins Capillaires"},{"$f":"IFERROR(VLOOKUP(coustomerdata5[[#This Row],[Index]],database[],4,0),\"\")","v":"mL"},{"$f":"IFERROR(VLOOKUP(coustomerdata5[[#This Row],[Index]],database[],5,0),\"\")","v":1479},{"$f":"IFERROR(VLOOKUP(coustomerdata5[[#This Row],[Index]],database[],6,0),\"\")","v":2313.7350150602456},{"$f":"IFERROR(coustomerdata5[[#This Row],[Cout unitaire]]*coustomerdata5[[#This Row],[Quantite]],\"\")","v":8874},{"$f":"IFERROR(coustomerdata5[[#This Row],[Quantite]]*coustomerdata5[[#This Row],[Prix unitaire]]*(1-coustomerdata5[[#This Row],[Taux de reduction]]),\"\")","v":13882.410090361474},{"$f":"DAY(coustomerdata5[[#This Row],[Date]])","v":10},{"$f":"TEXT(coustomerdata5[[#This Row],[Date]], \"mmm\")","v":"août"},{"$f":"TEXT(coustomerdata5[[#This Row],[Date]], \"aaaa\")","v":"2024"}]
[null,null,null,null,"2024-08-11","P022",3,"Détail","Espèces",0,{"$f":"IFERROR(VLOOKUP(coustomerdata5[[#This Row],[Index]],database[],2,0),\"\")","v":"Masque capillaire"},{"$f":"IFERROR(VLOOKUP(coustomerdata5[[#This Row],[Index]],database[],3,0),\"\")","v":"Soins Capillaires"},{"$f":"IFERROR(VLOOKUP(coustomerdata5[[#This Row],[Index]],database[],4,0),\"\")","v":"mL"},{"$f":"IFERROR(VLOOKUP(coustomerdata5[[#This Row],[Index]],database[],5,0),\"\")","v":1307},{"$f":"IFERROR(VLOOKUP(coustomerdata5[[#This Row],[Index]],database[],6,0),\"\")","v":2290.0193939393948},{"$f":"IFERROR(coustomerdata5[[#This Row],[Cout unitaire]]*coustomerdata5[[#This Row],[Quantite]],\"\")","v":3921},{"$f":"IFERROR(coustomerdata5[[#This Row],[Quantite]]*coustomerdata5[[#This Row],[Prix unitaire]]*(1-coustomerdata5[[#This Row],[Taux de reduction]]),\"\")","v":6870.0581818181845},{"$f":"DAY(coustomerdata5[[#This Row],[Date]])","v":11},{"$f":"TEXT(coustomerdata5[[#This Row],[Date]], \"mmm\")","v":"août"},{"$f":"TEXT(coustomerdata5[[#This Row],[Date]], \"aaaa\")","v":"2024"}]
[null,null,null,null,"2024-08-12","P021",3,"Détail","Espèces",0,{"$f":"IFERROR(VLOOKUP(coustomerdata5[[#This Row],[Index]],database[],2,0),\"\")","v":"Huile nourrissante"},{"$f":"IFERROR(VLOOKUP(coustomerdata5[[#This Row],[Index]],database[],3,0),\"\")","v":"Soins du Corps"},{"$f":"IFERROR(VLOOKUP(coustomerdata5[[#This Row],[Index]],database[],4,0),\"\")","v":"mL"},{"$f":"IFERROR(VLOOKUP(coustomerdata5[[#This Row],[Index]],database[],5,0),\"\")","v":1489},{"$f":"IFERROR(VLOOKUP(coustomerdata5[[#This Row],[Index]],database[],6,0),\"\")","v":2313.7350150602456},{"$f":"IFERROR(coustomerdata5[[#This Row],[Cout unitaire]]*coustomerdata5[[#This Row],[Quantite]],\"\")","v":4467},{"$f":"IFERROR(coustomerdata5[[#This Row],[Quantite]]*coustomerdata5[[#This Row],[Prix unitaire]]*(1-coustomerdata5[[#This Row],[Taux de reduction]]),\"\")","v":6941.2050451807372},{"$f":"DAY(coustomerdata5[[#This Row],[Date]])","v":12},{"$f":"TEXT(coustomerdata5[[#This Row],[Date]], \"mmm\")","v":"août"},{"$f":"TEXT(coustomerdata5[[#This Row],[Date]], \"aaaa\")","v":"2024"}]
[null,null,null,null,"2024-08-13","P044",3,"Grossiste","Espèces",0,{"$f":"IFERROR(VLOOKUP(coustomerdata5[[#This Row],[Index]],database[],2,0),\"\")","v":"Spray thermo-protecteur"},{"$f":"IFERROR(VLOOKUP(coustomerdata5[[#This Row],[Index]],database[],3,0),\"\")","v":"Soins Capillaires"},{"$f":"IFERROR(VLOOKUP(coustomerdata5[[#This Row],[Index]],database[],4,0),\"\")","v":"mL"},{"$f":"IFERROR(VLOOKUP(coustomerdata5[[#This Row],[Index]],database[],5,0),\"\")","v":1423},{"$f":"IFERROR(VLOOKUP(coustomerdata5[[#This Row],[Index]],database[],6,0),\"\")","v":2285.5296327924843},{"$f":"IFERROR(coustomerdata5[[#This Row],[Cout unitaire]]*coustomerdata5[[#This Row],[Quantite]],\"\")","v":4269},{"$f":"IFERROR(coustomerdata5[[#This Row],[Quantite]]*coustomerdata5[[#This Row],[Prix unitaire]]*(1-coustomerdata5[[#This Row],[Taux de reduction]]),\"\")","v":6856.588898377453},{"$f":"DAY(coustomerdata5[[#This Row],[Date]])","v":13},{"$f":"TEXT(coustomerdata5[[#This Row],[Date]], \"mmm\")","v":"août"},{"$f":"TEXT(coustomerdata5[[#This Row],[Date]], \"aaaa\")","v":"2024"}]
[null,null,null,null,"2024-08-14","P018",1,"Grossiste","Carte",0,{"$f":"IFERROR(VLOOKUP(coustomerdata5[[#This Row],[Index]],database[],2,0),\"\")","v":"Rouge à lèvres mat"},{"$f":"IFERROR(VLOOKUP(coustomerdata5[[#This Row],[Index]],database[],3,0),\"\")","v":"Maquillage"},{"$f":"IFERROR(VLOOKUP(coustomerdata5[[#This Row],[Index]],database[],4,0),\"\")","v":"g"},{"$f":"IFERROR(VLOOKUP(coustomerdata5[[#This Row],[Index]],database[],5,0),\"\")","v":1372},{"$f":"IFERROR(VLOOKUP(coustomerdata5[[#This Row],[Index]],database[],6,0),\"\")","v":2121.5981595092026},{"$f":"IFERROR(coustomerdata5[[#This Row],[Cout unitaire]]*coustomerdata5[[#This Row],[Quantite]],\"\")","v":1372},{"$f":"IFERROR(coustomerdata5[[#This Row],[Quantite]]*coustomerdata5[[#This Row],[Prix unitaire]]*(1-coustomerdata5[[#This Row],[Taux de reduction]]),\"\")","v":2121.5981595092026},{"$f":"DAY(coustomerdata5[[#This Row],[Date]])","v":14},{"$f":"TEXT(coustomerdata5[[#This Row],[Date]], \"mmm\")","v":"août"},{"$f":"TEXT(coustomerdata5[[#This Row],[Date]], \"aaaa\")","v":"2024"}]
[null,null,null,null,"2024-08-15","P018",3,"Détail","Mobile Money",0,{"$f":"IFERROR(VLOOKUP(coustomerdata5[[#This Row],[Index]],database[],2,0),\"\")","v":"Rouge à lèvres mat"},{"$f":"IFERROR(VLOOKUP(coustomerdata5[[#This Row],[Index]],database[],3,0),\"\")","v":"Maquillage"},{"$f":"IFERROR(VLOOKUP(coustomerdata5[[#This Row],[Index]],database[],4,0),\"\")","v":"g"},{"$f":"IFERROR(VLOOKUP(coustomerdata5[[#This Row],[Index]],database[],5,0),\"\")","v":1372},{"$f":"IFERROR(VLOOKUP(coustomerdata5[[#This Row],[Index]],database[],6,0),\"\")","v":2121.5981595092026},{"$f":"IFERROR(coustomerdata5[[#This Row],[Cout unitaire]]*coustomerdata5[[#This Row],[Quantite]],\"\")","v":4116},{"$f":"IFERROR(coustomerdata5[[#This Row],[Quantite]]*coustomerdata5[[#This Row],[Prix unitaire]]*(1-coustomerdata5[[#This Row],[Taux de reduction]]),\"\")","v":6364.7944785276077},{"$f":"DAY(coustomerdata5[[#This Row],[Date]])","v":15},{"$f":"TEXT(coustomerdata5[[#This Row],[Date]], \"mmm\")","v":"août"},{"$f":"TEXT(coustomerdata5[[#This Row],[Date]], \"aaaa\")","v":"2024"}]
[null,null,null,null,"2024-08-16","P025",1,"Grossiste","Carte",0,{"$f":"IFERROR(VLOOKUP(coustomerdata5[[#This Row],[Index]],database[],2,0),\"\")","v":"Cire coiffante"},{"$f":"IFERROR(VLOOKUP(coustomerdata5[[#This Row],[Index]],database[],3,0),\"\")","v":"Soins Capillaires"},{"$f":"IFERROR(VLOOKUP(coustomerdata5[[#This Row],[Index]],database[],4,0),\"\")","v":"g"},{"$f":"IFERROR(VLOOKUP(coustomerdata5[[#This Row],[Index]],database[],5,0),\"\")","v":1440},{"$f":"IFERROR(VLOOKUP(coustomerdata5[[#This Row],[Index]],database[],6,0),\"\")","v":2295.3177966101698},{"$f":"IFERROR(coustomerdata5[[#This Row],[Cout unitaire]]*coustomerdata5[[#This Row],[Quantite]],\"\")","v":1440},{"$f":"IFERROR(coustomerdata5[[#This Row],[Quantite]]*coustomerdata5[[#This Row],[Prix unitaire]]*(1-coustomerdata5[[#This Row],[Taux de reduction]]),\"\")","v":2295.3177966101698},{"$f":"DAY(coustomerdata5[[#This Row],[Date]])","v":16},{"$f":"TEXT(coustomerdata5[[#This Row],[Date]], \"mmm\")","v":"août"},{"$f":"TEXT(coustomerdata5[[#This Row],[Date]], \"aaaa\")","v":"2024"}]
[null,null,null,null,"2024-08-17","P021",3,"Grossiste","Mobile Money",0,{"$f":"IFERROR(VLOOKUP(coustomerdata5[[#This Row],[Index]],database[],2,0),\"\")","v":"Huile nourrissante"},{"$f":"IFERROR(VLOOKUP(coustomerdata5[[#This Row],[Index]],database[],3,0),\"\")","v":"Soins du Corps"},{"$f":"IFERROR(VLOOKUP(coustomerdata5[[#This Row],[Index]],database[],4,0),\"\")","v":"mL"},{"$f":"IFERROR(VLOOKUP(coustomerdata5[[#This Row],[Index]],database[],5,0),\"\")","v":1489},{"$f":"IFERROR(VLOOKUP(coustomerdata5[[#This Row],[Index]],database[],6,0),\"\")","v":2313.7350150602456},{"$f":"IFERROR(coustomerdata5[[#This Row],[Cout unitaire]]*coustomerdata5[[#This Row],[Quantite]],\"\")","v":4467},{"$f":"IFERROR(coustomerdata5[[#This Row],[Quantite]]*coustomerdata5[[#This Row],[Prix unitaire]]*(1-coustomerdata5[[#This Row],[Taux de reduction]]),\"\")","v":6941.2050451807372},{"$f":"DAY(coustomerdata5[[#This Row],[Date]])","v":17},{"$f":"TEXT(coustomerdata5[[#This Row],[Date]], \"mmm\")","v":"août"},{"$f":"TEXT(coustomerdata5[[#This Row],[Date]], \"aaaa\")","v":"2024"}]
[null,null,null,null,"2024-08-18","P021",3,"Détail","Espèces",0,{"$f":"IFERROR(VLOOKUP(coustomerdata5[[#This Row],[Index]],database[],2,0),\"\")","v":"Huile nourrissante"},{"$f":"IFERROR(VLOOKUP(coustomerdata5[[#This Row],[Index]],database[],3,0),\"\")","v":"Soins du Corps"},{"$f":"IFERROR(VLOOKUP(coustomerdata5[[#This Row],[Index]],database[],4,0),\"\")","v":"mL"},{"$f":"IFERROR(VLOOKUP(coustomerdata5[[#This Row],[Index]],database[],5,0),\"\")","v":1489},{"$f":"IFERROR(VLOOKUP(coustomerdata5[[#This Row],[Index]],database[],6,0),\"\")","v":2313.7350150602456},{"$f":"IFERROR(coustomerdata5[[#This Row],[Cout unitaire]]*coustomerdata5[[#This Row],[Quantite]],\"\")","v":4467},{"$f":"IFERROR(coustomerdata5[[#This Row],[Quantite]]*coustomerdata5[[#This Row],[Prix unitaire]]*(1-coustomerdata5[[#This Row],[Taux de reduction]]),\"\")","v":6941.2050451807372},{"$f":"DAY(coustomerdata5[[#This Row],[Date]])","v":18},{"$f":"TEXT(coustomerdata5[[#This Row],[Date]], \"mmm\")","v":"août"},{"$f":"TEXT(coustomerdata5[[#This Row],[Date]], \"aaaa\")","v":"2024"}]
[null,null,null,null,"2024-08-19","P008",1,"Grossiste","Carte",0,{"$f":"IFERROR(VLOOKUP(coustomerdata5[[#This Row],[Index]],database[],2,0),\"\")","v":"Lotion tonique"},{"$f":"IFERROR(VLOOKUP(coustomerdata5[[#This Row],[Index]],database[],3,0),\"\")","v":"Soins du Visage"},{"$f":"IFERROR(VLOOKUP(coustomerdata5[[#This Row],[Index]],database[],4,0),\"\")","v":"mL"},{"$f":"IFERROR(VLOOKUP(coustomerdata5[[#This Row],[Index]],database[],5,0),\"\")","v":1489},{"$f":"IFERROR(VLOOKUP(coustomerdata5[[#This Row],[Index]],database[],6,0),\"\")","v":2290.0193939393948},{"$f":"IFERROR(coustomerdata5[[#This Row],[Cout unitaire]]*coustomerdata5[[#This Row],[Quantite]],\"\")","v":1489},{"$f":"IFERROR(coustomerdata5[[#This Row],[Quantite]]*coustomerdata5[[#This Row],[Prix unitaire]]*(1-coustomerdata5[[#This Row],[Taux de reduction]]),\"\")","v":2290.0193939393948},{"$f":"DAY(coustomerdata5[[#This Row],[Date]])","v":19},{"$f":"TEXT(coustomerdata5[[#This Row],[Date]], \"mmm\")","v":"août"},{"$f":"TEXT(coustomerdata5[[#This Row],[Date]], \"aaaa\")","v":"2024"}]
[null,null,null,null,"2024-08-20","P011",4,"Grossiste","Carte",0,{"$f":"IFERROR(VLOOKUP(coustomerdata5[[#This Row],[Index]],database[],2,0),\"\")","v":"Eau micellaire"},{"$f":"IFERROR(VLOOKUP(coustomerdata5[[#This Row],[Index]],database[],3,0),\"\")","v":"Soins du Visage"},{"$f":"IFERROR(VLOOKUP(coustomerdata5[[#This Row],[Index]],database[],4,0),\"\")","v":"mL"},{"$f":"IFERROR(VLOOKUP(coustomerdata5[[#This Row],[Index]],database[],5,0),\"\")","v":1489},{"$f":"IFERROR(VLOOKUP(coustomerdata5[[#This Row],[Index]],database[],6,0),\"\")","v":2295.3177966101698},{"$f":"IFERROR(coustomerdata5[[#This Row],[Cout unitaire]]*coustomerdata5[[#This Row],[Quantite]],\"\")","v":5956},{"$f":"IFERROR(coustomerdata5[[#This Row],[Quantite]]*coustomerdata5[[#This Row],[Prix unitaire]]*(1-coustomerdata5[[#This Row],[Taux de reduction]]),\"\")","v":9181.2711864406792},{"$f":"DAY(coustomerdata5[[#This Row],[Date]])","v":20},{"$f":"TEXT(coustomerdata5[[#This Row],[Date]], \"mmm\")","v":"août"},{"$f":"TEXT(coustomerdata5[[#This Row],[Date]], \"aaaa\")","v":"2024"}]
[null,null,null,null,"2024-08-21","P041",5,"Détail","Espèces",0,{"$f":"IFERROR(VLOOKUP(coustomerdata5[[#This Row],[Index]],database[],2,0),\"\")","v":"Gel douche hydratant"},{"$f":"IFERROR(VLOOKUP(coustomerdata5[[#This Row],[Index]],database[],3,0),\"\")","v":"Soins du Corps"},{"$f":"IFERROR(VLOOKUP(coustomerdata5[[#This Row],[Index]],database[],4,0),\"\")","v":"mL"},{"$f":"IFERROR(VLOOKUP(coustomerdata5[[#This Row],[Index]],database[],5,0),\"\")","v":1456},{"$f":"IFERROR(VLOOKUP(coustomerdata5[[#This Row],[Index]],database[],6,0),\"\")","v":2198.2071542130352},{"$f":"IFERROR(coustomerdata5[[#This Row],[Cout unitaire]]*coustomerdata5[[#This Row],[Quantite]],\"\")","v":7280},{"$f":"IFERROR(coustomerdata5[[#This Row],[Quantite]]*coustomerdata5[[#This Row],[Prix unitaire]]*(1-coustomerdata5[[#This Row],[Taux de reduction]]),\"\")","v":10991.035771065177},{"$f":"DAY(coustomerdata5[[#This Row],[Date]])","v":21},{"$f":"TEXT(coustomerdata5[[#This Row],[Date]], \"mmm\")","v":"août"},{"$f":"TEXT(coustomerdata5[[#This Row],[Date]], \"aaaa\")","v":"2024"}]
[null,null,null,null,"2024-08-22","P039",2,"Détail","Carte",0,{"$f":"IFERROR(VLOOKUP(coustomerdata5[[#This Row],[Index]],database[],2,0),\"\")","v":"Crème pour les mains"},{"$f":"IFERROR(VLOOKUP(coustomerdata5[[#This Row],[Index]],database[],3,0),\"\")","v":"Soins du Corps"},{"$f":"IFERROR(VLOOKUP(coustomerdata5[[#This Row],[Index]],database[],4,0),\"\")","v":"mL"},{"$f":"IFERROR(VLOOKUP(coustomerdata5[[#This Row],[Index]],database[],5,0),\"\")","v":1440},{"$f":"IFERROR(VLOOKUP(coustomerdata5[[#This Row],[Index]],database[],6,0),\"\")","v":2295.3177966101698},{"$f":"IFERROR(coustomerdata5[[#This Row],[Cout unitaire]]*coustomerdata5[[#This Row],[Quantite]],\"\")","v":2880},{"$f":"IFERROR(coustomerdata5[[#This Row],[Quantite]]*coustomerdata5[[#This Row],[Prix unitaire]]*(1-coustomerdata5[[#This Row],[Taux de reduction]]),\"\")","v":4590.6355932203396},{"$f":"DAY(coustomerdata5[[#This Row],[Date]])","v":22},{"$f":"TEXT(coustomerdata5[[#This Row],[Date]], \"mmm\")","v":"août"},{"$f":"TEXT(coustomerdata5[[#This Row],[Date]], \"aaaa\")","v":"2024"}]
[null,null,null,null,"2024-08-23","P014",3,"Détail","Carte",0,{"$f":"IFERROR(VLOOKUP(coustomerdata5[[#This Row],[Index]],database[],2,0),\"\")","v":"Crème coiffante"},{"$f":"IFERROR(VLOOKUP(coustomerdata5[[#This Row],[Index]],database[],3,0),\"\")","v":"Soins Capillaires"},{"$f":"IFERROR(VLOOKUP(coustomerdata5[[#This Row],[Index]],database[],4,0),\"\")","v":"mL"},{"$f":"IFERROR(VLOOKUP(coustomerdata5[[#This Row],[Index]],database[],5,0),\"\")","v":1479},{"$f":"IFERROR(VLOOKUP(coustomerdata5[[#This Row],[Index]],database[],6,0),\"\")","v":2409.5477124183008},{"$f":"IFERROR(coustomerdata5[[#This Row],[Cout unitaire]]*coustomerdata5[[#This Row],[Quantite]],\"\")","v":4437},{"$f":"IFERROR(coustomerdata5[[#This Row],[Quantite]]*coustomerdata5[[#This Row],[Prix unitaire]]*(1-coustomerdata5[[#This Row],[Taux de reduction]]),\"\")","v":7228.6431372549023},{"$f":"DAY(coustomerdata5[[#This Row],[Date]])","v":23},{"$f":"TEXT(coustomerdata5[[#This Row],[Date]], \"mmm\")","v":"août"},{"$f":"TEXT(coustomerdata5[[#This Row],[Date]], \"aaaa\")","v":"2024"}]
[null,null,null,null,"2024-08-24","P018",6,"Grossiste","Mobile Money",0,{"$f":"IFERROR(VLOOKUP(coustomerdata5[[#This Row],[Index]],database[],2,0),\"\")","v":"Rouge à lèvres mat"},{"$f":"IFERROR(VLOOKUP(coustomerdata5[[#This Row],[Index]],database[],3,0),\"\")","v":"Maquillage"},{"$f":"IFERROR(VLOOKUP(coustomerdata5[[#This Row],[Index]],database[],4,0),\"\")","v":"g"},{"$f":"IFERROR(VLOOKUP(coustomerdata5[[#This Row],[Index]],database[],5,0),\"\")","v":1372},{"$f":"IFERROR(VLOOKUP(coustomerdata5[[#This Row],[Index]],database[],6,0),\"\")","v":2121.5981595092026},{"$f":"IFERROR(coustomerdata5[[#This Row],[Cout unitaire]]*coustomerdata5[[#This Row],[Quantite]],\"\")","v":8232},{"$f":"IFERROR(coustomerdata5[[#This Row],[Quantite]]*coustomerdata5[[#This Row],[Prix unitaire]]*(1-coustomerdata5[[#This Row],[Taux de reduction]]),\"\")","v":12729.588957055215},{"$f":"DAY(coustomerdata5[[#This Row],[Date]])","v":24},{"$f":"TEXT(coustomerdata5[[#This Row],[Date]], \"mmm\")","v":"août"},{"$f":"TEXT(coustomerdata5[[#This Row],[Date]], \"aaaa\")","v":"2024"}]
[null,null,null,null,"2024-08-25","P023",6,"Détail","Carte",0,{"$f":"IFERROR(VLOOKUP(coustomerdata5[[#This Row],[Index]],database[],2,0),\"\")","v":"Masque purifiant"},{"$f":"IFERROR(VLOOKUP(coustomerdata5[[#This Row],[Index]],database[],3,0),\"\")","v":"Soins du Visage"},{"$f":"IFERROR(VLOOKUP(coustomerdata5[[#This Row],[Index]],database[],4,0),\"\")","v":"g"},{"$f":"IFERROR(VLOOKUP(coustomerdata5[[#This Row],[Index]],database[],5,0),\"\")","v":1457},{"$f":"IFERROR(VLOOKUP(coustomerdata5[[#This Row],[Index]],database[],6,0),\"\")","v":2171.2942622950832},{"$f":"IFERROR(coustomerdata5[[#This Row],[Cout unitaire]]*coustomerdata5[[#This Row],[Quantite]],\"\")","v":8742},{"$f":"IFERROR(coustomerdata5[[#This Row],[Quantite]]*coustomerdata5[[#This Row],[Prix unitaire]]*(1-coustomerdata5[[#This Row],[Taux de reduction]]),\"\")","v":13027.765573770499},{"$f":"DAY(coustomerdata5[[#This Row],[Date]])","v":25},{"$f":"TEXT(coustomerdata5[[#This Row],[Date]], \"mmm\")","v":"août"},{"$f":"TEXT(coustomerdata5[[#This Row],[Date]], \"aaaa\")","v":"2024"}]
[null,null,null,null,"2024-08-26","P050",3,"Grossiste","Mobile Money",0,{"$f":"IFERROR(VLOOKUP(coustomerdata5[[#This Row],[Index]],database[],2,0),\"\")","v":"Poudre libre fixante"},{"$f":"IFERROR(VLOOKUP(coustomerdata5[[#This Row],[Index]],database[],3,0),\"\")","v":"Maquillage"},{"$f":"IFERROR(VLOOKUP(coustomerdata5[[#This Row],[Index]],database[],4,0),\"\")","v":"g"},{"$f":"IFERROR(VLOOKUP(coustomerdata5[[#This Row],[Index]],database[],5,0),\"\")","v":1438},{"$f":"IFERROR(VLOOKUP(coustomerdata5[[#This Row],[Index]],database[],6,0),\"\")","v":2290.0193939393948},{"$f":"IFERROR(coustomerdata5[[#This Row],[Cout unitaire]]*coustomerdata5[[#This Row],[Quantite]],\"\")","v":4314},{"$f":"IFERROR(coustomerdata5[[#This Row],[Quantite]]*coustomerdata5[[#This Row],[Prix unitaire]]*(1-coustomerdata5[[#This Row],[Taux de reduction]]),\"\")","v":6870.0581818181845},{"$f":"DAY(coustomerdata5[[#This Row],[Date]])","v":26},{"$f":"TEXT(coustomerdata5[[#This Row],[Date]], \"mmm\")","v":"août"},{"$f":"TEXT(coustomerdata5[[#This Row],[Date]], \"aaaa\")","v":"2024"}]
[null,null,null,null,"2024-08-27","P042",2,"Grossiste","Mobile Money",0,{"$f":"IFERROR(VLOOKUP(coustomerdata5[[#This Row],[Index]],database[],2,0),\"\")","v":"Crème hydratante"},{"$f":"IFERROR(VLOOKUP(coustomerdata5[[#This Row],[Index]],database[],3,0),\"\")","v":"Soins du Visage"},{"$f":"IFERROR(VLOOKUP(coustomerdata5[[#This Row],[Index]],database[],4,0),\"\")","v":"mL"},{"$f":"IFERROR(VLOOKUP(coustomerdata5[[#This Row],[Index]],database[],5,0),\"\")","v":1448},{"$f":"IFERROR(VLOOKUP(coustomerdata5[[#This Row],[Index]],database[],6,0),\"\")","v":2409.5477124183008},{"$f":"IFERROR(coustomerdata5[[#This Row],[Cout unitaire]]*coustomerdata5[[#This Row],[Quantite]],\"\")","v":2896},{"$f":"IFERROR(coustomerdata5[[#This Row],[Quantite]]*coustomerdata5[[#This Row],[Prix unitaire]]*(1-coustomerdata5[[#This Row],[Taux de reduction]]),\"\")","v":4819.0954248366015},{"$f":"DAY(coustomerdata5[[#This Row],[Date]])","v":27},{"$f":"TEXT(coustomerdata5[[#This Row],[Date]], \"mmm\")","v":"août"},{"$f":"TEXT(coustomerdata5[[#This Row],[Date]], \"aaaa\")","v":"2024"}]
[null,null,null,null,"2024-08-28","P002",3,"Grossiste","Espèces",0,{"$f":"IFERROR(VLOOKUP(coustomerdata5[[#This Row],[Index]],database[],2,0),\"\")","v":"Eye-liner waterproof"},{"$f":"IFERROR(VLOOKUP(coustomerdata5[[#This Row],[Index]],database[],3,0),\"\")","v":"Maquillage"},{"$f":"IFERROR(VLOOKUP(coustomerdata5[[#This Row],[Index]],database[],4,0),\"\")","v":"mL"},{"$f":"IFERROR(VLOOKUP(coustomerdata5[[#This Row],[Index]],database[],5,0),\"\")","v":1489},{"$f":"IFERROR(VLOOKUP(coustomerdata5[[#This Row],[Index]],database[],6,0),\"\")","v":2285.5296327924843},{"$f":"IFERROR(coustomerdata5[[#This Row],[Cout unitaire]]*coustomerdata5[[#This Row],[Quantite]],\"\")","v":4467},{"$f":"IFERROR(coustomerdata5[[#This Row],[Quantite]]*coustomerdata5[[#This Row],[Prix unitaire]]*(1-coustomerdata5[[#This Row],[Taux de reduction]]),\"\")","v":6856.588898377453},{"$f":"DAY(coustomerdata5[[#This Row],[Date]])","v":28},{"$f":"TEXT(coustomerdata5[[#This Row],[Date]], \"mmm\")","v":"août"},{"$f":"TEXT(coustomerdata5[[#This Row],[Date]], \"aaaa\")","v":"2024"}]
[null,null,null,null,"2024-08-29","P001",1,"Détail","Espèces",0,{"$f":"IFERROR(VLOOKUP(coustomerdata5[[#This Row],[Index]],database[],2,0),\"\")","v":"Crème pour les pieds"},{"$f":"IFERROR(VLOOKUP(coustomerdata5[[#This Row],[Index]],database[],3,0),\"\")","v":"Soins du Corps"},{"$f":"IFERROR(VLOOKUP(coustomerdata5[[#This Row],[Index]],database[],4,0),\"\")","v":"mL"},{"$f":"IFERROR(VLOOKUP(coustomerdata5[[#This Row],[Index]],database[],5,0),\"\")","v":1479},{"$f":"IFERROR(VLOOKUP(coustomerdata5[[#This Row],[Index]],database[],6,0),\"\")","v":2304.6419330289204},{"$f":"IFERROR(coustomerdata5[[#This Row],[Cout unitaire]]*coustomerdata5[[#This Row],[Quantite]],\"\")","v":1479},{"$f":"IFERROR(coustomerdata5[[#This Row],[Quantite]]*coustomerdata5[[#This Row],[Prix unitaire]]*(1-coustomerdata5[[#This Row],[Taux de reduction]]),\"\")","v":2304.6419330289204},{"$f":"DAY(coustomerdata5[[#This Row],[Date]])","v":29},{"$f":"TEXT(coustomerdata5[[#This Row],[Date]], \"mmm\")","v":"août"},{"$f":"TEXT(coustomerdata5[[#This Row],[Date]], \"aaaa\")","v":"2024"}]
[null,null,null,null,"2024-08-30","P040",3,"Détail","Carte",0,{"$f":"IFERROR(VLOOKUP(coustomerdata5[[#This Row],[Index]],database[],2,0),\"\")","v":"Shampoing sec"},{"$f":"IFERROR(VLOOKUP(coustomerdata5[[#This Row],[Index]],database[],3,0),\"\")","v":"Soins Capillaires"},{"$f":"IFERROR(VLOOKUP(coustomerdata5[[#This Row],[Index]],database[],4,0),\"\")","v":"mL"},{"$f":"IFERROR(VLOOKUP(coustomerdata5[[#This Row],[Index]],database[],5,0),\"\")","v":1456},{"$f":"IFERROR(VLOOKUP(coustomerdata5[[#This Row],[Index]],database[],6,0),\"\")","v":2300.5051282051286},{"$f":"IFERROR(coustomerdata5[[#This Row],[Cout unitaire]]*coustomerdata5[[#This Row],[Quantite]],\"\")","v":4368},{"$f":"IFERROR(coustomerdata5[[#This Row],[Quantite]]*coustomerdata5[[#This Row],[Prix unitaire]]*(1-coustomerdata5[[#This Row],[Taux de reduction]]),\"\")","v":6901.5153846153862},{"$f":"DAY(coustomerdata5[[#This Row],[Date]])","v":30},{"$f":"TEXT(coustomerdata5[[#This Row],[Date]], \"mmm\")","v":"août"},{"$f":"TEXT(coustomerdata5[[#This Row],[Date]], \"aaaa\")","v":"2024"}]
[null,null,null,null,"2024-08-31","P034",5,"Grossiste","Espèces",0,{"$f":"IFERROR(VLOOKUP(coustomerdata5[[#This Row],[Index]],database[],2,0),\"\")","v":"Blush rosé"},{"$f":"IFERROR(VLOOKUP(coustomerdata5[[#This Row],[Index]],database[],3,0),\"\")","v":"Maquillage"},{"$f":"IFERROR(VLOOKUP(coustomerdata5[[#This Row],[Index]],database[],4,0),\"\")","v":"g"},{"$f":"IFERROR(VLOOKUP(coustomerdata5[[#This Row],[Index]],database[],5,0),\"\")","v":1448},{"$f":"IFERROR(VLOOKUP(coustomerdata5[[#This Row],[Index]],database[],6,0),\"\")","v":2318.3925287356337},{"$f":"IFERROR(coustomerdata5[[#This Row],[Cout unitaire]]*coustomerdata5[[#This Row],[Quantite]],\"\")","v":7240},{"$f":"IFERROR(coustomerdata5[[#This Row],[Quantite]]*coustomerdata5[[#This Row],[Prix unitaire]]*(1-coustomerdata5[[#This Row],[Taux de reduction]]),\"\")","v":11591.962643678169},{"$f":"DAY(coustomerdata5[[#This Row],[Date]])","v":31},{"$f":"TEXT(coustomerdata5[[#This Row],[Date]], \"mmm\")","v":"août"},{"$f":"TEXT(coustomerdata5[[#This Row],[Date]], \"aaaa\")","v":"2024"}]
[null,null,null,null,"2024-09-01","P004",2,"Détail","Carte",0,{"$f":"IFERROR(VLOOKUP(coustomerdata5[[#This Row],[Index]],database[],2,0),\"\")","v":"Spray thermo-protecteur"},{"$f":"IFERROR(VLOOKUP(coustomerdata5[[#This Row],[Index]],database[],3,0),\"\")","v":"Soins Capillaires"},{"$f":"IFERROR(VLOOKUP(coustomerdata5[[#This Row],[Index]],database[],4,0),\"\")","v":"mL"},{"$f":"IFERROR(VLOOKUP(coustomerdata5[[#This Row],[Index]],database[],5,0),\"\")","v":1372},{"$f":"IFERROR(VLOOKUP(coustomerdata5[[#This Row],[Index]],database[],6,0),\"\")","v":2121.5981595092026},{"$f":"IFERROR(coustomerdata5[[#This Row],[Cout unitaire]]*coustomerdata5[[#This Row],[Quantite]],\"\")","v":2744},{"$f":"IFERROR(coustomerdata5[[#This Row],[Quantite]]*coustomerdata5[[#This Row],[Prix unitaire]]*(1-coustomerdata5[[#This Row],[Taux de reduction]]),\"\")","v":4243.1963190184051},{"$f":"DAY(coustomerdata5[[#This Row],[Date]])","v":1},{"$f":"TEXT(coustomerdata5[[#This Row],[Date]], \"mmm\")","v":"sept"},{"$f":"TEXT(coustomerdata5[[#This Row],[Date]], \"aaaa\")","v":"2024"}]
[null,null,null,null,"2024-09-02","P040",2,"Grossiste","Espèces",0,{"$f":"IFERROR(VLOOKUP(coustomerdata5[[#This Row],[Index]],database[],2,0),\"\")","v":"Shampoing sec"},{"$f":"IFERROR(VLOOKUP(coustomerdata5[[#This Row],[Index]],database[],3,0),\"\")","v":"Soins Capillaires"},{"$f":"IFERROR(VLOOKUP(coustomerdata5[[#This Row],[Index]],database[],4,0),\"\")","v":"mL"},{"$f":"IFERROR(VLOOKUP(coustomerdata5[[#This Row],[Index]],database[],5,0),\"\")","v":1456},{"$f":"IFERROR(VLOOKUP(coustomerdata5[[#This Row],[Index]],database[],6,0),\"\")","v":2300.5051282051286},{"$f":"IFERROR(coustomerdata5[[#This Row],[Cout unitaire]]*coustomerdata5[[#This Row],[Quantite]],\"\")","v":2912},{"$f":"IFERROR(coustomerdata5[[#This Row],[Quantite]]*coustomerdata5[[#This Row],[Prix unitaire]]*(1-coustomerdata5[[#This Row],[Taux de reduction]]),\"\")","v":4601.0102564102572},{"$f":"DAY(coustomerdata5[[#This Row],[Date]])","v":2},{"$f":"TEXT(coustomerdata5[[#This Row],[Date]], \"mmm\")","v":"sept"},{"$f":"TEXT(coustomerdata5[[#This Row],[Date]], \"aaaa\")","v":"2024"}]
[null,null,null,null,"2024-09-03","P006",2,"Grossiste","Mobile Money",0,{"$f":"IFERROR(VLOOKUP(coustomerdata5[[#This Row],[Index]],database[],2,0),\"\")","v":"Déodorant naturel"},{"$f":"IFERROR(VLOOKUP(coustomerdata5[[#This Row],[Index]],database[],3,0),\"\")","v":"Soins du Corps"},{"$f":"IFERROR(VLOOKUP(coustomerdata5[[#This Row],[Index]],database[],4,0),\"\")","v":"mL"},{"$f":"IFERROR(VLOOKUP(coustomerdata5[[#This Row],[Index]],database[],5,0),\"\")","v":1440},{"$f":"IFERROR(VLOOKUP(coustomerdata5[[#This Row],[Index]],database[],6,0),\"\")","v":2318.3925287356337},{"$f":"IFERROR(coustomerdata5[[#This Row],[Cout unitaire]]*coustomerdata5[[#This Row],[Quantite]],\"\")","v":2880},{"$f":"IFERROR(coustomerdata5[[#This Row],[Quantite]]*coustomerdata5[[#This Row],[Prix unitaire]]*(1-coustomerdata5[[#This Row],[Taux de reduction]]),\"\")","v":4636.7850574712675},{"$f":"DAY(coustomerdata5[[#This Row],[Date]])","v":3},{"$f":"TEXT(coustomerdata5[[#This Row],[Date]], \"mmm\")","v":"sept"},{"$f":"TEXT(coustomerdata5[[#This Row],[Date]], \"aaaa\")","v":"2024"}]
[null,null,null,null,"2024-09-04","P041",4,"Détail","Mobile Money",0,{"$f":"IFERROR(VLOOKUP(coustomerdata5[[#This Row],[Index]],database[],2,0),\"\")","v":"Gel douche hydratant"},{"$f":"IFERROR(VLOOKUP(coustomerdata5[[#This Row],[Index]],database[],3,0),\"\")","v":"Soins du Corps"},{"$f":"IFERROR(VLOOKUP(coustomerdata5[[#This Row],[Index]],database[],4,0),\"\")","v":"mL"},{"$f":"IFERROR(VLOOKUP(coustomerdata5[[#This Row],[Index]],database[],5,0),\"\")","v":1456},{"$f":"IFERROR(VLOOKUP(coustomerdata5[[#This Row],[Index]],database[],6,0),\"\")","v":2198.2071542130352},{"$f":"IFERROR(coustomerdata5[[#This Row],[Cout unitaire]]*coustomerdata5[[#This Row],[Quantite]],\"\")","v":5824},{"$f":"IFERROR(coustomerdata5[[#This Row],[Quantite]]*coustomerdata5[[#This Row],[Prix unitaire]]*(1-coustomerdata5[[#This Row],[Taux de reduction]]),\"\")","v":8792.8286168521408},{"$f":"DAY(coustomerdata5[[#This Row],[Date]])","v":4},{"$f":"TEXT(coustomerdata5[[#This Row],[Date]], \"mmm\")","v":"sept"},{"$f":"TEXT(coustomerdata5[[#This Row],[Date]], \"aaaa\")","v":"2024"}]
[null,null,null,null,"2024-09-05","P045",1,"Grossiste","Espèces",0,{"$f":"IFERROR(VLOOKUP(coustomerdata5[[#This Row],[Index]],database[],2,0),\"\")","v":"Palette de fards"},{"$f":"IFERROR(VLOOKUP(coustomerdata5[[#This Row],[Index]],database[],3,0),\"\")","v":"Maquillage"},{"$f":"IFERROR(VLOOKUP(coustomerdata5[[#This Row],[Index]],database[],4,0),\"\")","v":"g"},{"$f":"IFERROR(VLOOKUP(coustomerdata5[[#This Row],[Index]],database[],5,0),\"\")","v":1440},{"$f":"IFERROR(VLOOKUP(coustomerdata5[[#This Row],[Index]],database[],6,0),\"\")","v":2194.270807453418},{"$f":"IFERROR(coustomerdata5[[#This Row],[Cout unitaire]]*coustomerdata5[[#This Row],[Quantite]],\"\")","v":1440},{"$f":"IFERROR(coustomerdata5[[#This Row],[Quantite]]*coustomerdata5[[#This Row],[Prix unitaire]]*(1-coustomerdata5[[#This Row],[Taux de reduction]]),\"\")","v":2194.270807453418},{"$f":"DAY(coustomerdata5[[#This Row],[Date]])","v":5},{"$f":"TEXT(coustomerdata5[[#This Row],[Date]], \"mmm\")","v":"sept"},{"$f":"TEXT(coustomerdata5[[#This Row],[Date]], \"aaaa\")","v":"2024"}]
[null,null,null,null,"2024-09-06","P040",6,"Grossiste","Espèces",0,{"$f":"IFERROR(VLOOKUP(coustomerdata5[[#This Row],[Index]],database[],2,0),\"\")","v":"Shampoing sec"},{"$f":"IFERROR(VLOOKUP(coustomerdata5[[#This Row],[Index]],database[],3,0),\"\")","v":"Soins Capillaires"},{"$f":"IFERROR(VLOOKUP(coustomerdata5[[#This Row],[Index]],database[],4,0),\"\")","v":"mL"},{"$f":"IFERROR(VLOOKUP(coustomerdata5[[#This Row],[Index]],database[],5,0),\"\")","v":1456},{"$f":"IFERROR(VLOOKUP(coustomerdata5[[#This Row],[Index]],database[],6,0),\"\")","v":2300.5051282051286},{"$f":"IFERROR(coustomerdata5[[#This Row],[Cout unitaire]]*coustomerdata5[[#This Row],[Quantite]],\"\")","v":8736},{"$f":"IFERROR(coustomerdata5[[#This Row],[Quantite]]*coustomerdata5[[#This Row],[Prix unitaire]]*(1-coustomerdata5[[#This Row],[Taux de reduction]]),\"\")","v":13803.030769230772},{"$f":"DAY(coustomerdata5[[#This Row],[Date]])","v":6},{"$f":"TEXT(coustomerdata5[[#This Row],[Date]], \"mmm\")","v":"sept"},{"$f":"TEXT(coustomerdata5[[#This Row],[Date]], \"aaaa\")","v":"2024"}]
[null,null,null,null,"2024-09-07","P029",6,"Grossiste","Carte",0,{"$f":"IFERROR(VLOOKUP(coustomerdata5[[#This Row],[Index]],database[],2,0),\"\")","v":"Palette de fards"},{"$f":"IFERROR(VLOOKUP(coustomerdata5[[#This Row],[Index]],database[],3,0),\"\")","v":"Maquillage"},{"$f":"IFERROR(VLOOKUP(coustomerdata5[[#This Row],[Index]],database[],4,0),\"\")","v":"g"},{"$f":"IFERROR(VLOOKUP(coustomerdata5[[#This Row],[Index]],database[],5,0),\"\")","v":1416},{"$f":"IFERROR(VLOOKUP(coustomerdata5[[#This Row],[Index]],database[],6,0),\"\")","v":2304.6419330289204},{"$f":"IFERROR(coustomerdata5[[#This Row],[Cout unitaire]]*coustomerdata5[[#This Row],[Quantite]],\"\")","v":8496},{"$f":"IFERROR(coustomerdata5[[#This Row],[Quantite]]*coustomerdata5[[#This Row],[Prix unitaire]]*(1-coustomerdata5[[#This Row],[Taux de reduction]]),\"\")","v":13827.851598173522},{"$f":"DAY(coustomerdata5[[#This Row],[Date]])","v":7},{"$f":"TEXT(coustomerdata5[[#This Row],[Date]], \"mmm\")","v":"sept"},{"$f":"TEXT(coustomerdata5[[#This Row],[Date]], \"aaaa\")","v":"2024"}]
[null,null,null,null,"2024-09-08","P004",3,"Détail","Mobile Money",0,{"$f":"IFERROR(VLOOKUP(coustomerdata5[[#This Row],[Index]],database[],2,0),\"\")","v":"Spray thermo-protecteur"},{"$f":"IFERROR(VLOOKUP(coustomerdata5[[#This Row],[Index]],database[],3,0),\"\")","v":"Soins Capillaires"},{"$f":"IFERROR(VLOOKUP(coustomerdata5[[#This Row],[Index]],database[],4,0),\"\")","v":"mL"},{"$f":"IFERROR(VLOOKUP(coustomerdata5[[#This Row],[Index]],database[],5,0),\"\")","v":1372},{"$f":"IFERROR(VLOOKUP(coustomerdata5[[#This Row],[Index]],database[],6,0),\"\")","v":2121.5981595092026},{"$f":"IFERROR(coustomerdata5[[#This Row],[Cout unitaire]]*coustomerdata5[[#This Row],[Quantite]],\"\")","v":4116},{"$f":"IFERROR(coustomerdata5[[#This Row],[Quantite]]*coustomerdata5[[#This Row],[Prix unitaire]]*(1-coustomerdata5[[#This Row],[Taux de reduction]]),\"\")","v":6364.7944785276077},{"$f":"DAY(coustomerdata5[[#This Row],[Date]])","v":8},{"$f":"TEXT(coustomerdata5[[#This Row],[Date]], \"mmm\")","v":"sept"},{"$f":"TEXT(coustomerdata5[[#This Row],[Date]], \"aaaa\")","v":"2024"}]
[null,null,null,null,"2024-09-09","P011",5,"Détail","Mobile Money",0,{"$f":"IFERROR(VLOOKUP(coustomerdata5[[#This Row],[Index]],database[],2,0),\"\")","v":"Eau micellaire"},{"$f":"IFERROR(VLOOKUP(coustomerdata5[[#This Row],[Index]],database[],3,0),\"\")","v":"Soins du Visage"},{"$f":"IFERROR(VLOOKUP(coustomerdata5[[#This Row],[Index]],database[],4,0),\"\")","v":"mL"},{"$f":"IFERROR(VLOOKUP(coustomerdata5[[#This Row],[Index]],database[],5,0),\"\")","v":1489},{"$f":"IFERROR(VLOOKUP(coustomerdata5[[#This Row],[Index]],database[],6,0),\"\")","v":2295.3177966101698},{"$f":"IFERROR(coustomerdata5[[#This Row],[Cout unitaire]]*coustomerdata5[[#This Row],[Quantite]],\"\")","v":7445},{"$f":"IFERROR(coustomerdata5[[#This Row],[Quantite]]*coustomerdata5[[#This Row],[Prix unitaire]]*(1-coustomerdata5[[#This Row],[Taux de reduction]]),\"\")","v":11476.588983050849},{"$f":"DAY(coustomerdata5[[#This Row],[Date]])","v":9},{"$f":"TEXT(coustomerdata5[[#This Row],[Date]], \"mmm\")","v":"sept"},{"$f":"TEXT(coustomerdata5[[#This Row],[Date]], \"aaaa\")","v":"2024"}]
[null,null,null,null,"2024-09-10","P038",5,"Détail","Espèces",0,{"$f":"IFERROR(VLOOKUP(coustomerdata5[[#This Row],[Index]],database[],2,0),\"\")","v":"Crème raffermissante"},{"$f":"IFERROR(VLOOKUP(coustomerdata5[[#This Row],[Index]],database[],3,0),\"\")","v":"Soins du Corps"},{"$f":"IFERROR(VLOOKUP(coustomerdata5[[#This Row],[Index]],database[],4,0),\"\")","v":"mL"},{"$f":"IFERROR(VLOOKUP(coustomerdata5[[#This Row],[Index]],database[],5,0),\"\")","v":1307},{"$f":"IFERROR(VLOOKUP(coustomerdata5[[#This Row],[Index]],database[],6,0),\"\")","v":2214.6171779141105},{"$f":"IFERROR(coustomerdata5[[#This Row],[Cout unitaire]]*coustomerdata5[[#This Row],[Quantite]],\"\")","v":6535},{"$f":"IFERROR(coustomerdata5[[#This Row],[Quantite]]*coustomerdata5[[#This Row],[Prix unitaire]]*(1-coustomerdata5[[#This Row],[Taux de reduction]]),\"\")","v":11073.085889570553},{"$f":"DAY(coustomerdata5[[#This Row],[Date]])","v":10},{"$f":"TEXT(coustomerdata5[[#This Row],[Date]], \"mmm\")","v":"sept"},{"$f":"TEXT(coustomerdata5[[#This Row],[Date]], \"aaaa\")","v":"2024"}]
[null,null,null,null,"2024-09-11","P043",6,"Détail","Espèces",0,{"$f":"IFERROR(VLOOKUP(coustomerdata5[[#This Row],[Index]],database[],2,0),\"\")","v":"Crayon à sourcils"},{"$f":"IFERROR(VLOOKUP(coustomerdata5[[#This Row],[Index]],database[],3,0),\"\")","v":"Maquillage"},{"$f":"IFERROR(VLOOKUP(coustomerdata5[[#This Row],[Index]],database[],4,0),\"\")","v":"g"},{"$f":"IFERROR(VLOOKUP(coustomerdata5[[#This Row],[Index]],database[],5,0),\"\")","v":1440},{"$f":"IFERROR(VLOOKUP(coustomerdata5[[#This Row],[Index]],database[],6,0),\"\")","v":2304.6419330289204},{"$f":"IFERROR(coustomerdata5[[#This Row],[Cout unitaire]]*coustomerdata5[[#This Row],[Quantite]],\"\")","v":8640},{"$f":"IFERROR(coustomerdata5[[#This Row],[Quantite]]*coustomerdata5[[#This Row],[Prix unitaire]]*(1-coustomerdata5[[#This Row],[Taux de reduction]]),\"\")","v":13827.851598173522},{"$f":"DAY(coustomerdata5[[#This Row],[Date]])","v":11},{"$f":"TEXT(coustomerdata5[[#This Row],[Date]], \"mmm\")","v":"sept"},{"$f":"TEXT(coustomerdata5[[#This Row],[Date]], \"aaaa\")","v":"2024"}]
[null,null,null,null,"2024-09-12","P017",3,"Grossiste","Espèces",0,{"$f":"IFERROR(VLOOKUP(coustomerdata5[[#This Row],[Index]],database[],2,0),\"\")","v":"Spray rafraîchissant"},{"$f":"IFERROR(VLOOKUP(coustomerdata5[[#This Row],[Index]],database[],3,0),\"\")","v":"Soins du Corps"},{"$f":"IFERROR(VLOOKUP(coustomerdata5[[#This Row],[Index]],database[],4,0),\"\")","v":"mL"},{"$f":"IFERROR(VLOOKUP(coustomerdata5[[#This Row],[Index]],database[],5,0),\"\")","v":1440},{"$f":"IFERROR(VLOOKUP(coustomerdata5[[#This Row],[Index]],database[],6,0),\"\")","v":2194.270807453418},{"$f":"IFERROR(coustomerdata5[[#This Row],[Cout unitaire]]*coustomerdata5[[#This Row],[Quantite]],\"\")","v":4320},{"$f":"IFERROR(coustomerdata5[[#This Row],[Quantite]]*coustomerdata5[[#This Row],[Prix unitaire]]*(1-coustomerdata5[[#This Row],[Taux de reduction]]),\"\")","v":6582.8124223602535},{"$f":"DAY(coustomerdata5[[#This Row],[Date]])","v":12},{"$f":"TEXT(coustomerdata5[[#This Row],[Date]], \"mmm\")","v":"sept"},{"$f":"TEXT(coustomerdata5[[#This Row],[Date]], \"aaaa\")","v":"2024"}]
[null,null,null,null,"2024-09-13","P006",1,"Grossiste","Carte",0,{"$f":"IFERROR(VLOOKUP(coustomerdata5[[#This Row],[Index]],database[],2,0),\"\")","v":"Déodorant naturel"},{"$f":"IFERROR(VLOOKUP(coustomerdata5[[#This Row],[Index]],database[],3,0),\"\")","v":"Soins du Corps"},{"$f":"IFERROR(VLOOKUP(coustomerdata5[[#This Row],[Index]],database[],4,0),\"\")","v":"mL"},{"$f":"IFERROR(VLOOKUP(coustomerdata5[[#This Row],[Index]],database[],5,0),\"\")","v":1440},{"$f":"IFERROR(VLOOKUP(coustomerdata5[[#This Row],[Index]],database[],6,0),\"\")","v":2318.3925287356337},{"$f":"IFERROR(coustomerdata5[[#This Row],[Cout unitaire]]*coustomerdata5[[#This Row],[Quantite]],\"\")","v":1440},{"$f":"IFERROR(coustomerdata5[[#This Row],[Quantite]]*coustomerdata5[[#This Row],[Prix unitaire]]*(1-coustomerdata5[[#This Row],[Taux de reduction]]),\"\")","v":2318.3925287356337},{"$f":"DAY(coustomerdata5[[#This Row],[Date]])","v":13},{"$f":"TEXT(coustomerdata5[[#This Row],[Date]], \"mmm\")","v":"sept"},{"$f":"TEXT(coustomerdata5[[#This Row],[Date]], \"aaaa\")","v":"2024"}]
[null,null,null,null,"2024-09-14","P032",1,"Détail","Mobile Money",0,{"$f":"IFERROR(VLOOKUP(coustomerdata5[[#This Row],[Index]],database[],2,0),\"\")","v":"Fond de teint"},{"$f":"IFERROR(VLOOKUP(coustomerdata5[[#This Row],[Index]],database[],3,0),\"\")","v":"Maquillage"},{"$f":"IFERROR(VLOOKUP(coustomerdata5[[#This Row],[Index]],database[],4,0),\"\")","v":"mL"},{"$f":"IFERROR(VLOOKUP(coustomerdata5[[#This Row],[Index]],database[],5,0),\"\")","v":1307},{"$f":"IFERROR(VLOOKUP(coustomerdata5[[#This Row],[Index]],database[],6,0),\"\")","v":2121.5981595092026},{"$f":"IFERROR(coustomerdata5[[#This Row],[Cout unitaire]]*coustomerdata5[[#This Row],[Quantite]],\"\")","v":1307},{"$f":"IFERROR(coustomerdata5[[#This Row],[Quantite]]*coustomerdata5[[#This Row],[Prix unitaire]]*(1-coustomerdata5[[#This Row],[Taux de reduction]]),\"\")","v":2121.5981595092026},{"$f":"DAY(coustomerdata5[[#This Row],[Date]])","v":14},{"$f":"TEXT(coustomerdata5[[#This Row],[Date]], \"mmm\")","v":"sept"},{"$f":"TEXT(coustomerdata5[[#This Row],[Date]], \"aaaa\")","v":"2024"}]
[null,null,null,null,"2024-09-15","P033",6,"Grossiste","Carte",0,{"$f":"IFERROR(VLOOKUP(coustomerdata5[[#This Row],[Index]],database[],2,0),\"\")","v":"Gommage exfoliant"},{"$f":"IFERROR(VLOOKUP(coustomerdata5[[#This Row],[Index]],database[],3,0),\"\")","v":"Soins du Visage"},{"$f":"IFERROR(VLOOKUP(coustomerdata5[[#This Row],[Index]],database[],4,0),\"\")","v":"g"},{"$f":"IFERROR(VLOOKUP(coustomerdata5[[#This Row],[Index]],database[],5,0),\"\")","v":1456},{"$f":"IFERROR(VLOOKUP(coustomerdata5[[#This Row],[Index]],database[],6,0),\"\")","v":2349.1564814814842},{"$f":"IFERROR(coustomerdata5[[#This Row],[Cout unitaire]]*coustomerdata5[[#This Row],[Quantite]],\"\")","v":8736},{"$f":"IFERROR(coustomerdata5[[#This Row],[Quantite]]*coustomerdata5[[#This Row],[Prix unitaire]]*(1-coustomerdata5[[#This Row],[Taux de reduction]]),\"\")","v":14094.938888888904},{"$f":"DAY(coustomerdata5[[#This Row],[Date]])","v":15},{"$f":"TEXT(coustomerdata5[[#This Row],[Date]], \"mmm\")","v":"sept"},{"$f":"TEXT(coustomerdata5[[#This Row],[Date]], \"aaaa\")","v":"2024"}]
[null,null,null,null,"2024-09-16","P016",2,"Grossiste","Mobile Money",0,{"$f":"IFERROR(VLOOKUP(coustomerdata5[[#This Row],[Index]],database[],2,0),\"\")","v":"BB crème"},{"$f":"IFERROR(VLOOKUP(coustomerdata5[[#This Row],[Index]],database[],3,0),\"\")","v":"Soins du Visage"},{"$f":"IFERROR(VLOOKUP(coustomerdata5[[#This Row],[Index]],database[],4,0),\"\")","v":"mL"},{"$f":"IFERROR(VLOOKUP(coustomerdata5[[#This Row],[Index]],database[],5,0),\"\")","v":1307},{"$f":"IFERROR(VLOOKUP(coustomerdata5[[#This Row],[Index]],database[],6,0),\"\")","v":2285.5296327924843},{"$f":"IFERROR(coustomerdata5[[#This Row],[Cout unitaire]]*coustomerdata5[[#This Row],[Quantite]],\"\")","v":2614},{"$f":"IFERROR(coustomerdata5[[#This Row],[Quantite]]*coustomerdata5[[#This Row],[Prix unitaire]]*(1-coustomerdata5[[#This Row],[Taux de reduction]]),\"\")","v":4571.0592655849687},{"$f":"DAY(coustomerdata5[[#This Row],[Date]])","v":16},{"$f":"TEXT(coustomerdata5[[#This Row],[Date]], \"mmm\")","v":"sept"},{"$f":"TEXT(coustomerdata5[[#This Row],[Date]], \"aaaa\")","v":"2024"}]
[null,null,null,null,"2024-09-17","P039",5,"Détail","Espèces",0,{"$f":"IFERROR(VLOOKUP(coustomerdata5[[#This Row],[Index]],database[],2,0),\"\")","v":"Crème pour les mains"},{"$f":"IFERROR(VLOOKUP(coustomerdata5[[#This Row],[Index]],database[],3,0),\"\")","v":"Soins du Corps"},{"$f":"IFERROR(VLOOKUP(coustomerdata5[[#This Row],[Index]],database[],4,0),\"\")","v":"mL"},{"$f":"IFERROR(VLOOKUP(coustomerdata5[[#This Row],[Index]],database[],5,0),\"\")","v":1440},{"$f":"IFERROR(VLOOKUP(coustomerdata5[[#This Row],[Index]],database[],6,0),\"\")","v":2295.3177966101698},{"$f":"IFERROR(coustomerdata5[[#This Row],[Cout unitaire]]*coustomerdata5[[#This Row],[Quantite]],\"\")","v":7200},{"$f":"IFERROR(coustomerdata5[[#This Row],[Quantite]]*coustomerdata5[[#This Row],[Prix unitaire]]*(1-coustomerdata5[[#This Row],[Taux de reduction]]),\"\")","v":11476.588983050849},{"$f":"DAY(coustomerdata5[[#This Row],[Date]])","v":17},{"$f":"TEXT(coustomerdata5[[#This Row],[Date]], \"mmm\")","v":"sept"},{"$f":"TEXT(coustomerdata5[[#This Row],[Date]], \"aaaa\")","v":"2024"}]
[null,null,null,null,"2024-09-18","P032",3,"Grossiste","Carte",0,{"$f":"IFERROR(VLOOKUP(coustomerdata5[[#This Row],[Index]],database[],2,0),\"\")","v":"Fond de teint"},{"$f":"IFERROR(VLOOKUP(coustomerdata5[[#This Row],[Index]],database[],3,0),\"\")","v":"Maquillage"},{"$f":"IFERROR(VLOOKUP(coustomerdata5[[#This Row],[Index]],database[],4,0),\"\")","v":"mL"},{"$f":"IFERROR(VLOOKUP(coustomerdata5[[#This Row],[Index]],database[],5,0),\"\")","v":1307},{"$f":"IFERROR(VLOOKUP(coustomerdata5[[#This Row],[Index]],database[],6,0),\"\")","v":2121.5981595092026},{"$f":"IFERROR(coustomerdata5[[#This Row],[Cout unitaire]]*coustomerdata5[[#This Row],[Quantite]],\"\")","v":3921},{"$f":"IFERROR(coustomerdata5[[#This Row],[Quantite]]*coustomerdata5[[#This Row],[Prix unitaire]]*(1-coustomerdata5[[#This Row],[Taux de reduction]]),\"\")","v":6364.7944785276077},{"$f":"DAY(coustomerdata5[[#This Row],[Date]])","v":18},{"$f":"TEXT(coustomerdata5[[#This Row],[Date]], \"mmm\")","v":"sept"},{"$f":"TEXT(coustomerdata5[[#This Row],[Date]], \"aaaa\")","v":"2024"}]
[null,null,null,null,"2024-09-19","P005",1,"Grossiste","Carte",0,{"$f":"IFERROR(VLOOKUP(coustomerdata5[[#This Row],[Index]],database[],2,0),\"\")","v":"Sérum anti-âge"},{"$f":"IFERROR(VLOOKUP(coustomerdata5[[#This Row],[Index]],database[],3,0),\"\")","v":"Soins du Visage"},{"$f":"IFERROR(VLOOKUP(coustomerdata5[[#This Row],[Index]],database[],4,0),\"\")","v":"mL"},{"$f":"IFERROR(VLOOKUP(coustomerdata5[[#This Row],[Index]],database[],5,0),\"\")","v":1372},{"$f":"IFERROR(VLOOKUP(coustomerdata5[[#This Row],[Index]],database[],6,0),\"\")","v":2349.1564814814842},{"$f":"IFERROR(coustomerdata5[[#This Row],[Cout unitaire]]*coustomerdata5[[#This Row],[Quantite]],\"\")","v":1372},{"$f":"IFERROR(coustomerdata5[[#This Row],[Quantite]]*coustomerdata5[[#This Row],[Prix unitaire]]*(1-coustomerdata5[[#This Row],[Taux de reduction]]),\"\")","v":2349.1564814814842},{"$f":"DAY(coustomerdata5[[#This Row],[Date]])","v":19},{"$f":"TEXT(coustomerdata5[[#This Row],[Date]], \"mmm\")","v":"sept"},{"$f":"TEXT(coustomerdata5[[#This Row],[Date]], \"aaaa\")","v":"2024"}]
[null,null,null,null,"2024-09-20","P033",1,"Détail","Espèces",0,{"$f":"IFERROR(VLOOKUP(coustomerdata5[[#This Row],[Index]],database[],2,0),\"\")","v":"Gommage exfoliant"},{"$f":"IFERROR(VLOOKUP(coustomerdata5[[#This Row],[Index]],database[],3,0),\"\")","v":"Soins du Visage"},{"$f":"IFERROR(VLOOKUP(coustomerdata5[[#This Row],[Index]],database[],4,0),\"\")","v":"g"},{"$f":"IFERROR(VLOOKUP(coustomerdata5[[#This Row],[Index]],database[],5,0),\"\")","v":1456},{"$f":"IFERROR(VLOOKUP(coustomerdata5[[#This Row],[Index]],database[],6,0),\"\")","v":2349.1564814814842},{"$f":"IFERROR(coustomerdata5[[#This Row],[Cout unitaire]]*coustomerdata5[[#This Row],[Quantite]],\"\")","v":1456},{"$f":"IFERROR(coustomerdata5[[#This Row],[Quantite]]*coustomerdata5[[#This Row],[Prix unitaire]]*(1-coustomerdata5[[#This Row],[Taux de reduction]]),\"\")","v":2349.1564814814842},{"$f":"DAY(coustomerdata5[[#This Row],[Date]])","v":20},{"$f":"TEXT(coustomerdata5[[#This Row],[Date]], \"mmm\")","v":"sept"},{"$f":"TEXT(coustomerdata5[[#This Row],[Date]], \"aaaa\")","v":"2024"}]
[null,null,null,null,"2024-09-21","P045",6,"Détail","Carte",0,{"$f":"IFERROR(VLOOKUP(coustomerdata5[[#This Row],[Index]],database[],2,0),\"\")","v":"Palette de fards"},{"$f":"IFERROR(VLOOKUP(coustomerdata5[[#This Row],[Index]],database[],3,0),\"\")","v":"Maquillage"},{"$f":"IFERROR(VLOOKUP(coustomerdata5[[#This Row],[Index]],database[],4,0),\"\")","v":"g"},{"$f":"IFERROR(VLOOKUP(coustomerdata5[[#This Row],[Index]],database[],5,0),\"\")","v":1440},{"$f":"IFERROR(VLOOKUP(coustomerdata5[[#This Row],[Index]],database[],6,0),\"\")","v":2194.270807453418},{"$f":"IFERROR(coustomerdata5[[#This Row],[Cout unitaire]]*coustomerdata5[[#This Row],[Quantite]],\"\")","v":8640},{"$f":"IFERROR(coustomerdata5[[#This Row],[Quantite]]*coustomerdata5[[#This Row],[Prix unitaire]]*(1-coustomerdata5[[#This Row],[Taux de reduction]]),\"\")","v":13165.624844720507},{"$f":"DAY(coustomerdata5[[#This Row],[Date]])","v":21},{"$f":"TEXT(coustomerdata5[[#This Row],[Date]], \"mmm\")","v":"sept"},{"$f":"TEXT(coustomerdata5[[#This Row],[Date]], \"aaaa\")","v":"2024"}]
[null,null,null,null,"2024-09-22","P048",3,"Détail","Carte",0,{"$f":"IFERROR(VLOOKUP(coustomerdata5[[#This Row],[Index]],database[],2,0),\"\")","v":"Cire coiffante"},{"$f":"IFERROR(VLOOKUP(coustomerdata5[[#This Row],[Index]],database[],3,0),\"\")","v":"Soins Capillaires"},{"$f":"IFERROR(VLOOKUP(coustomerdata5[[#This Row],[Index]],database[],4,0),\"\")","v":"g"},{"$f":"IFERROR(VLOOKUP(coustomerdata5[[#This Row],[Index]],database[],5,0),\"\")","v":1347},{"$f":"IFERROR(VLOOKUP(coustomerdata5[[#This Row],[Index]],database[],6,0),\"\")","v":2318.3925287356337},{"$f":"IFERROR(coustomerdata5[[#This Row],[Cout unitaire]]*coustomerdata5[[#This Row],[Quantite]],\"\")","v":4041},{"$f":"IFERROR(coustomerdata5[[#This Row],[Quantite]]*coustomerdata5[[#This Row],[Prix unitaire]]*(1-coustomerdata5[[#This Row],[Taux de reduction]]),\"\")","v":6955.1775862069007},{"$f":"DAY(coustomerdata5[[#This Row],[Date]])","v":22},{"$f":"TEXT(coustomerdata5[[#This Row],[Date]], \"mmm\")","v":"sept"},{"$f":"TEXT(coustomerdata5[[#This Row],[Date]], \"aaaa\")","v":"2024"}]
[null,null,null,null,"2024-09-23","P050",2,"Grossiste","Mobile Money",0,{"$f":"IFERROR(VLOOKUP(coustomerdata5[[#This Row],[Index]],database[],2,0),\"\")","v":"Poudre libre fixante"},{"$f":"IFERROR(VLOOKUP(coustomerdata5[[#This Row],[Index]],database[],3,0),\"\")","v":"Maquillage"},{"$f":"IFERROR(VLOOKUP(coustomerdata5[[#This Row],[Index]],database[],4,0),\"\")","v":"g"},{"$f":"IFERROR(VLOOKUP(coustomerdata5[[#This Row],[Index]],database[],5,0),\"\")","v":1438},{"$f":"IFERROR(VLOOKUP(coustomerdata5[[#This Row],[Index]],database[],6,0),\"\")","v":2290.0193939393948},{"$f":"IFERROR(coustomerdata5[[#This Row],[Cout unitaire]]*coustomerdata5[[#This Row],[Quantite]],\"\")","v":2876},{"$f":"IFERROR(coustomerdata5[[#This Row],[Quantite]]*coustomerdata5[[#This Row],[Prix unitaire]]*(1-coustomerdata5[[#This Row],[Taux de reduction]]),\"\")","v":4580.0387878787897},{"$f":"DAY(coustomerdata5[[#This Row],[Date]])","v":23},{"$f":"TEXT(coustomerdata5[[#This Row],[Date]], \"mmm\")","v":"sept"},{"$f":"TEXT(coustomerdata5[[#This Row],[Date]], \"aaaa\")","v":"2024"}]
[null,null,null,null,"2024-09-24","P018",5,"Détail","Carte",0,{"$f":"IFERROR(VLOOKUP(coustomerdata5[[#This Row],[Index]],database[],2,0),\"\")","v":"Rouge à lèvres mat"},{"$f":"IFERROR(VLOOKUP(coustomerdata5[[#This Row],[Index]],database[],3,0),\"\")","v":"Maquillage"},{"$f":"IFERROR(VLOOKUP(coustomerdata5[[#This Row],[Index]],database[],4,0),\"\")","v":"g"},{"$f":"IFERROR(VLOOKUP(coustomerdata5[[#This Row],[Index]],database[],5,0),\"\")","v":1372},{"$f":"IFERROR(VLOOKUP(coustomerdata5[[#This Row],[Index]],database[],6,0),\"\")","v":2121.5981595092026},{"$f":"IFERROR(coustomerdata5[[#This Row],[Cout unitaire]]*coustomerdata5[[#This Row],[Quantite]],\"\")","v":6860},{"$f":"IFERROR(coustomerdata5[[#This Row],[Quantite]]*coustomerdata5[[#This Row],[Prix unitaire]]*(1-coustomerdata5[[#This Row],[Taux de reduction]]),\"\")","v":10607.990797546012},{"$f":"DAY(coustomerdata5[[#This Row],[Date]])","v":24},{"$f":"TEXT(coustomerdata5[[#This Row],[Date]], \"mmm\")","v":"sept"},{"$f":"TEXT(coustomerdata5[[#This Row],[Date]], \"aaaa\")","v":"2024"}]
[null,null,null,null,"2024-09-25","P007",6,"Grossiste","Mobile Money",0,{"$f":"IFERROR(VLOOKUP(coustomerdata5[[#This Row],[Index]],database[],2,0),\"\")","v":"Mousse volume"},{"$f":"IFERROR(VLOOKUP(coustomerdata5[[#This Row],[Index]],database[],3,0),\"\")","v":"Soins Capillaires"},{"$f":"IFERROR(VLOOKUP(coustomerdata5[[#This Row],[Index]],database[],4,0),\"\")","v":"mL"},{"$f":"IFERROR(VLOOKUP(coustomerdata5[[#This Row],[Index]],database[],5,0),\"\")","v":1479},{"$f":"IFERROR(VLOOKUP(coustomerdata5[[#This Row],[Index]],database[],6,0),\"\")","v":2313.7350150602456},{"$f":"IFERROR(coustomerdata5[[#This Row],[Cout unitaire]]*coustomerdata5[[#This Row],[Quantite]],\"\")","v":8874},{"$f":"IFERROR(coustomerdata5[[#This Row],[Quantite]]*coustomerdata5[[#This Row],[Prix unitaire]]*(1-coustomerdata5[[#This Row],[Taux de reduction]]),\"\")","v":13882.410090361474},{"$f":"DAY(coustomerdata5[[#This Row],[Date]])","v":25},{"$f":"TEXT(coustomerdata5[[#This Row],[Date]], \"mmm\")","v":"sept"},{"$f":"TEXT(coustomerdata5[[#This Row],[Date]], \"aaaa\")","v":"2024"}]
[null,null,null,null,"2024-09-26","P022",2,"Grossiste","Mobile Money",0,{"$f":"IFERROR(VLOOKUP(coustomerdata5[[#This Row],[Index]],database[],2,0),\"\")","v":"Masque capillaire"},{"$f":"IFERROR(VLOOKUP(coustomerdata5[[#This Row],[Index]],database[],3,0),\"\")","v":"Soins Capillaires"},{"$f":"IFERROR(VLOOKUP(coustomerdata5[[#This Row],[Index]],database[],4,0),\"\")","v":"mL"},{"$f":"IFERROR(VLOOKUP(coustomerdata5[[#This Row],[Index]],database[],5,0),\"\")","v":1307},{"$f":"IFERROR(VLOOKUP(coustomerdata5[[#This Row],[Index]],database[],6,0),\"\")","v":2290.0193939393948},{"$f":"IFERROR(coustomerdata5[[#This Row],[Cout unitaire]]*coustomerdata5[[#This Row],[Quantite]],\"\")","v":2614},{"$f":"IFERROR(coustomerdata5[[#This Row],[Quantite]]*coustomerdata5[[#This Row],[Prix unitaire]]*(1-coustomerdata5[[#This Row],[Taux de reduction]]),\"\")","v":4580.0387878787897},{"$f":"DAY(coustomerdata5[[#This Row],[Date]])","v":26},{"$f":"TEXT(coustomerdata5[[#This Row],[Date]], \"mmm\")","v":"sept"},{"$f":"TEXT(coustomerdata5[[#This Row],[Date]], \"aaaa\")","v":"2024"}]
[null,null,null,null,"2024-09-27","P021",6,"Grossiste","Carte",0,{"$f":"IFERROR(VLOOKUP(coustomerdata5[[#This Row],[Index]],database[],2,0),\"\")","v":"Huile nourrissante"},{"$f":"IFERROR(VLOOKUP(coustomerdata5[[#This Row],[Index]],database[],3,0),\"\")","v":"Soins du Corps"},{"$f":"IFERROR(VLOOKUP(coustomerdata5[[#This Row],[Index]],database[],4,0),\"\")","v":"mL"},{"$f":"IFERROR(VLOOKUP(coustomerdata5[[#This Row],[Index]],database[],5,0),\"\")","v":1489},{"$f":"IFERROR(VLOOKUP(coustomerdata5[[#This Row],[Index]],database[],6,0),\"\")","v":2313.7350150602456},{"$f":"IFERROR(coustomerdata5[[#This Row],[Cout unitaire]]*coustomerdata5[[#This Row],[Quantite]],\"\")","v":8934},{"$f":"IFERROR(coustomerdata5[[#This Row],[Quantite]]*coustomerdata5[[#This Row],[Prix unitaire]]*(1-coustomerdata5[[#This Row],[Taux de reduction]]),\"\")","v":13882.410090361474},{"$f":"DAY(coustomerdata5[[#This Row],[Date]])","v":27},{"$f":"TEXT(coustomerdata5[[#This Row],[Date]], \"mmm\")","v":"sept"},{"$f":"TEXT(coustomerdata5[[#This Row],[Date]], \"aaaa\")","v":"2024"}]
[null,null,null,null,"1900-01-28","P025",4,"Détail","Mobile Money",0,{"$f":"IFERROR(VLOOKUP(coustomerdata5[[#This Row],[Index]],database[],2,0),\"\")","v":"Cire coiffante"},{"$f":"IFERROR(VLOOKUP(coustomerdata5[[#This Row],[Index]],database[],3,0),\"\")","v":"Soins Capillaires"},{"$f":"IFERROR(VLOOKUP(coustomerdata5[[#This Row],[Index]],database[],4,0),\"\")","v":"g"},{"$f":"IFERROR(VLOOKUP(coustomerdata5[[#This Row],[Index]],database[],5,0),\"\")","v":1440},{"$f":"IFERROR(VLOOKUP(coustomerdata5[[#This Row],[Index]],database[],6,0),\"\")","v":2295.3177966101698},{"$f":"IFERROR(coustomerdata5[[#This Row],[Cout unitaire]]*coustomerdata5[[#This Row],[Quantite]],\"\")","v":5760},{"$f":"IFERROR(coustomerdata5[[#This Row],[Quantite]]*coustomerdata5[[#This Row],[Prix unitaire]]*(1-coustomerdata5[[#This Row],[Taux de reduction]]),\"\")","v":9181.2711864406792},{"$f":"DAY(coustomerdata5[[#This Row],[Date]])","v":28},{"$f":"TEXT(coustomerdata5[[#This Row],[Date]], \"mmm\")","v":"janv"},{"$f":"TEXT(coustomerdata5[[#This Row],[Date]], \"aaaa\")","v":"1900"}]

{"sheet":"Analyses","index":4,"n_rows":73,"n_cols":57,"rows_kept":73,"cut":false,"hidden":false,"merged":[]}
[]
[]
[]
[null,null,null,null,null,null,null,null,null,null,null,null,null,null,null,null,null,null,null,null,null,null,null,null,null,null,null,null,null,null,null,"Top produit",{"$f":"VLOOKUP(1,AF7:AI34,2,0)","v":"Huile nourrissante"},{"$f":"VLOOKUP(1,AF7:AI34,3,0)","v":114},{"$f":"VLOOKUP(1,AF7:AI34,4,0)","v":263765.79171686806},null,null,1,{"$f":"COUNT(AD:AD)-9","v":20},{"$f":"MIN(AL4:AM4)","v":1},null,null,null,null,null,"TOP CATEGORIE",{"$f":"VLOOKUP(1,AT:AV,2,0)","v":"Maquillage"},{"$f":"VLOOKUP(1,AT:AV,3,0)","v":930346.76685317617}]
[null,null,null,null,null,null,null,null,null,null,null,null,null,null,null,null,null,null,null,null,null,true,true,true]
[null,null,null,null,null,null,null,null,"Jours ","Dépenses par Jour",null,"Dépenses Totale","Chiffre d'affaire",null,null,null,"Mois","Dépenses Totale","Chiffre d'affaire",null,"Mois","Chiffre d'affaire","Profit","Profit %",null,null,null,"Produits","Quantité","vente par produits",null,"RANG","Produits","Quantité","vente par produits",null,null,"Produits","vente par produits",null,null,null,"Catégories","ventes",null,"RANG","Catégories","ventes",null,null,null,"Catégories","ventes",null,null,"Canaux","ventes"]
[null,null,null,null,null,null,null,null,1,73993,null,2002222,3171123.2807303364,null,null,null,"janv",192360,305950.54126678011,null,"janv",{"$f":"IF($V$5=TRUE,VLOOKUP(U7,$Q$7:$S$16,2,0),\" \")","v":192360},{"$f":"IF($W$5=TRUE,VLOOKUP(U7,$Q$7:$S$16,3,0)-VLOOKUP(U7,$Q$7:$S$16,2,0), \" \")","v":113590.54126678011},{"$f":"IF($X$5=TRUE,W7/SUM($S$7:$S$16), \" \")","v":3.5820285498525062E-2},null,null,null,"Base de maquillage",12,26575.406134969329,null,{"$f":"RANK(_xlfn.ANCHORARRAY(AI7),_xlfn.ANCHORARRAY(AI7))","v":29},{"$f":"OFFSET(AB6,1,0,COUNT(AD:AD),1)","v":"Base de maquillage"},{"$f":"OFFSET(AB6,1,1,COUNT(AD:AD),1)","v":12},{"$f":"OFFSET(AB6,1,2,COUNT(AD:AD),1)","v":26575.406134969329},null,null,{"$f":"OFFSET(AG6,AN4,0,10,1)","v":"Base de maquillage"},{"$f":"OFFSET(AG6,AN4,2,10,1)","v":26575.406134969329},null,null,null,"Maquillage",930346.76685317617,null,{"$f":"RANK(_xlfn.ANCHORARRAY(AV7),_xlfn.ANCHORARRAY(AV7))","v":1},{"$f":"OFFSET($AQ$6,1,0,COUNTA(AQ7:AQ10),1)","v":"Maquillage"},{"$f":"OFFSET($AQ$6,1,1,COUNTA(AQ7:AQ10),1)","v":930346.76685317617},null,null,null,"Carte",1060384.5801224988,null,null,"Détail",1567151.4061259918]
[null,null,null,null,null,null,null,null,2,57921,null,null,null,null,null,null,"févr",213154,342036.01139451488,null,"févr",{"$f":"IF($V$5=TRUE,VLOOKUP(U8,$Q$7:$S$16,2,0),\" \")","v":213154},{"$f":"IF($W$5=TRUE,VLOOKUP(U8,$Q$7:$S$16,3,0)-VLOOKUP(U8,$Q$7:$S$16,2,0), \" \")","v":128882.01139451488},{"$f":"IF($X$5=TRUE,W8/SUM($S$7:$S$16), \" \")","v":4.064238441238785E-2},null,null,null,"BB crème",14,31997.414859094781,null,28,"BB crème",14,31997.414859094781,null,null,"BB crème",31997.414859094781,null,null,null,"Soins Capillaires",701586.07448479452,null,4,"Soins Capillaires",701586.07448479452,null,null,null,"Espèces",1074339.6103499678,null,null,"Grossiste",1603971.8746043453]
[null,null,null,null,null,null,null,null,3,60929,null,null,null,null,null,null,"mars",239594,376009.6124229345,null,"mars",239594,136415.6124229345,4.3018072886626089E-2,null,null,null,"Blush rosé",38,88098.916091954074,null,15,"Blush rosé",38,88098.916091954074,null,null,"Blush rosé",88098.916091954074,null,null,null,"Soins du Corps",800179.56945993809,null,2,"Soins du Corps",800179.56945993809,null,null,null,"Mobile Money",1036399.090257871]
[null,null,null,null,null,null,null,null,4,62233,null,null,null,null,null,null,"avr",237772,377918.26607580192,null,"avr",237772,140146.26607580192,4.4194518367486807E-2,null,null,null,"Cire coiffante",51,117753.44959088258,null,10,"Cire coiffante",51,117753.44959088258,null,null,"Cire coiffante",117753.44959088258,null,null,null,"Soins du Visage",739010.86993242893,null,3,"Soins du Visage",739010.86993242893]
[null,null,null,null,null,null,null,null,5,89136,null,"Dépenses Totale","Chiffre d'affaire","Profit","Profit %",null,"mai",176021,280266.5114087807,null,"mai",176021,104245.5114087807,3.2873370783860552E-2,null,null,null,"Contour des yeux",23,50468.228571428612,null,25,"Contour des yeux",23,50468.228571428612,null,null,"Contour des yeux",50468.228571428612]
[null,null,null,null,null,null,null,null,6,65760,null,2002222,3171123.2807303364,{"$f":"M12-L12","v":1168901.2807303364},{"$f":"N12/SUM(S7:S16)","v":0.36860795915229388},null,"juin",215082,337144.71274103748,null,"juin",215082,122062.71274103748,3.8491948100146195E-2,null,null,null,"Crayon à sourcils",31,71443.899923896533,null,18,"Crayon à sourcils",31,71443.899923896533,null,null,"Crayon à sourcils",71443.899923896533]
[null,null,null,null,null,null,null,null,7,56861,null,null,null,null,null,null,"juil",164758,259108.94651100997,null,"juil",164758,94350.94651100997,2.9753162573130907E-2,null,null,null,"Crème coiffante",21,50600.501960784313,null,24,"Crème coiffante",21,50600.501960784313,null,null,"Crème coiffante",50600.501960784313]
[null,null,null,null,null,null,null,null,8,53764,null,null,null,null,null,null,"août",144556,229065.7540839985,null,"août",144556,84509.754083998501,2.6649785140026208E-2,null,null,null,"Crème hydratante",32,77105.526797385639,null,17,"Crème hydratante",32,77105.526797385639,null,null,"Crème hydratante",77105.526797385639]
[null,null,null,null,null,null,null,null,9,66085,null,null,null,null,null,null,"sept",134973,214723.48304850666,null,"sept",134973,79750.483048506663,2.5148969620045623E-2,null,null,null,"Crème pour les mains",47,107879.93644067799,null,13,"Crème pour les mains",47,107879.93644067799,null,null,"Crème pour les mains",107879.93644067799]
[null,null,null,null,null,null,null,null,10,81233,null,null,null,null,null,null,"déc",283952,448899.44177697261,null,"déc",283952,164947.44177697261,5.2015461770058898E-2,null,null,null,"Crème pour les pieds",20,46092.838660578404,null,27,"Crème pour les pieds",20,46092.838660578404,null,null,"Crème pour les pieds",46092.838660578404]
[null,null,null,null,null,null,null,null,11,51769,null,null,null,null,null,null,null,null,null,null,null,null,null,null,null,null,null,"Crème raffermissante",40,88584.687116564426,null,14,"Crème raffermissante",40,88584.687116564426]
[null,null,null,null,null,null,null,null,12,80970,null,null,null,null,null,null,null,null,null,null,null,null,null,null,null,null,null,"Déodorant naturel",50,115919.62643678168,null,11,"Déodorant naturel",50,115919.62643678168]
[null,null,null,null,null,null,null,null,13,56681,null,null,null,null,null,null,null,null,null,null,null,null,null,null,null,null,null,"Eau micellaire",90,206578.60169491527,null,4,"Eau micellaire",90,206578.60169491527]
[null,null,null,null,null,null,null,null,14,59445,null,null,null,null,null,null,null,null,null,null,null,null,null,null,null,null,null,"Eye-liner waterproof",28,63994.829718189561,null,22,"Eye-liner waterproof",28,63994.829718189561]
[null,null,null,null,null,null,null,null,15,56895,null,null,null,null,null,null,null,null,null,null,null,null,null,null,null,null,null,"Fond de teint",63,133660.68404907975,null,8,"Fond de teint",63,133660.68404907975]
[null,null,null,null,null,null,null,null,16,92539,null,null,null,null,null,null,null,null,null,null,null,null,null,null,null,null,null,"Gel douche hydratant",51,112108.56486486479,null,12,"Gel douche hydratant",51,112108.56486486479]
[null,null,null,null,null,null,null,null,17,65715,null,null,null,null,null,null,null,null,null,null,null,null,null,null,null,null,null,"Gommage exfoliant",69,162091.79722222238,null,7,"Gommage exfoliant",69,162091.79722222238]
[null,null,null,null,null,null,null,null,18,30108,null,null,null,null,null,null,null,null,null,null,null,null,null,null,null,null,null,"Huile nourrissante",114,263765.79171686806,null,1,"Huile nourrissante",114,263765.79171686806]
[null,null,null,null,null,null,null,null,19,63746,null,null,null,null,null,null,null,null,null,null,null,null,null,null,null,null,null,"Lotion tonique",34,77860.659393939422,null,16,"Lotion tonique",34,77860.659393939422]
[null,null,null,null,null,null,null,null,20,58099,null,null,null,null,null,null,null,null,null,null,null,null,null,null,null,null,null,"Masque capillaire",29,66410.562424242453,null,20,"Masque capillaire",29,66410.562424242453]
[null,null,null,null,null,null,null,null,21,87099,null,null,null,null,null,null,null,null,null,null,null,null,null,null,null,null,null,"Masque purifiant",32,69481.416393442662,null,19,"Masque purifiant",32,69481.416393442662]
[null,null,null,null,null,null,null,null,22,62889,null,null,null,null,null,null,null,null,null,null,null,null,null,null,null,null,null,"Mousse volume",20,46274.70030120491,null,26,"Mousse volume",20,46274.70030120491]
[null,null,null,null,null,null,null,null,23,58239,null,null,null,null,null,null,null,null,null,null,null,null,null,null,null,null,null,"Palette de fards",78,174684.99899978266,null,5,"Palette de fards",78,174684.99899978266]
[null,null,null,null,null,null,null,null,24,66216,null,null,null,null,null,null,null,null,null,null,null,null,null,null,null,null,null,"Poudre libre fixante",54,123661.0472727273,null,9,"Poudre libre fixante",54,123661.0472727273]
[null,null,null,null,null,null,null,null,25,101289,null,null,null,null,null,null,null,null,null,null,null,null,null,null,null,null,null,"Rouge à lèvres mat",117,248226.98466257672,null,3,"Rouge à lèvres mat",117,248226.98466257672]
[null,null,null,null,null,null,null,null,26,60428,null,null,null,null,null,null,null,null,null,null,null,null,null,null,null,null,null,"Sérum anti-âge",27,63427.225000000079,null,23,"Sérum anti-âge",27,63427.225000000079]
[null,null,null,null,null,null,null,null,27,70242,null,null,null,null,null,null,null,null,null,null,null,null,null,null,null,null,null,"Shampoing sec",112,257656.5743589745,null,2,"Shampoing sec",112,257656.5743589745]
[null,null,null,null,null,null,null,null,28,64438,null,null,null,null,null,null,null,null,null,null,null,null,null,null,null,null,null,"Spray rafraîchissant",30,65828.124223602543,null,21,"Spray rafraîchissant",30,65828.124223602543]
[null,null,null,null,null,null,null,null,29,58221,null,null,null,null,null,null,null,null,null,null,null,null,null,null,null,null,null,"Spray thermo-protecteur",75,162890.28584870571,null,6,"Spray thermo-protecteur",75,162890.28584870571]
[null,null,null,null,null,null,null,null,30,59041]
[null,null,null,null,null,null,null,null,31,30238]
[]
[]
[]
[]
[null,null,null,null,null,null,null,null,"Jours ","Ventes par Jour"]
[null,null,null,null,null,null,null,null,1,119210.97110600329]
[null,null,null,null,null,null,null,null,2,91566.21812897925]
[null,null,null,null,null,null,null,null,3,96314.01517787404]
[null,null,null,null,null,null,null,null,4,100127.20250178818]
[null,null,null,null,null,null,null,null,5,140532.19168670371]
[null,null,null,null,null,null,null,null,6,101767.30826158699]
[null,null,null,null,null,null,null,null,7,91480.838240523532]
[null,null,null,null,null,null,null,null,8,84893.459393510275]
[null,null,null,null,null,null,null,null,9,105526.4729010232]
[null,null,null,null,null,null,null,null,10,128055.87352455955]
[null,null,null,null,null,null,null,null,11,82361.431068989405]
[null,null,null,null,null,null,null,null,12,128570.35187367011]
[null,null,null,null,null,null,null,null,13,90535.348529868032]
[null,null,null,null,null,null,null,null,14,90285.527197731324]
[null,null,null,null,null,null,null,null,15,91651.822389769441]
[null,null,null,null,null,null,null,null,16,149098.96499394995]
[null,null,null,null,null,null,null,null,17,103313.21964119664]
[null,null,null,null,null,null,null,null,18,47086.017800453548]
[null,null,null,null,null,null,null,null,19,100695.2359102553]
[null,null,null,null,null,null,null,null,20,92330.665920371001]
[null,null,null,null,null,null,null,null,21,138109.80587842234]
[null,null,null,null,null,null,null,null,22,100613.18389478228]
[null,null,null,null,null,null,null,null,23,92142.117861571969]
[null,null,null,null,null,null,null,null,24,105481.19396379328]
[null,null,null,null,null,null,null,null,25,160698.52226710611]
[null,null,null,null,null,null,null,null,26,95254.106348215515]
[null,null,null,null,null,null,null,null,27,110562.40334005356]
[null,null,null,null,null,null,null,null,28,100092.36918780881]
[null,null,null,null,null,null,null,null,29,90960.730368516844]
[null,null,null,null,null,null,null,null,30,93138.351874974687]
[null,null,null,null,null,null,null,null,31,48667.359496284829]

{"sheet":"Tableau de Bord","index":5,"n_rows":48,"n_cols":203,"rows_kept":48,"cut":false,"hidden":false,"merged":[]}
[]
[]
[]
[]
[]
[]
[]
[]
[null,null,null,null,null,null,null,null,null,null,null,null,null,null,null,null,null,null,null,true,false,false]
[]
[]
[]
[]
[]
[]
[]
[]
[]
[]
[]
[]
[]
[null,null,null,null,null,null,null,null,null,null,null,null,null,null,null,null,null,null,null,null,null,null,null,null,null,null,null,null,null,null,null,null,null,null,null,null,null,null,null,null,null,null,null,null,null,null,null,null,null,null,null,null,null,null,null,null,null,null,null,null,null,null,null,null,null,null,null,null,null,null,null,null,null,null,null,null,null,null,null,null,null,null,null,null,null,null,null,null,null,null,null,null,null,null,null,null,null,null,null,null,null,null,null,null,null,null,null,null,null,null,null,null,null,null,null,null,null,null,null,null,null,null,null,null,null,null,null,null,null,null,null,null,null,null,null,null,null,null,null,null,null,null,null,null,null,null,null,null,null,null,null,null,null,null,null,null,null,null,null,null,null,null,null,null,null,null,null,null,null,null,null,null,null,null,null,null,null,null,null,null,null,null,null,null,null,null,null,null,null,null,null,null,null,null,null,"Mois","Dépenses Totale","Chiffre d'affaire"]
[null,null,null,null,null,null,null,null,null,null,null,null,null,null,null,null,null,null,null,null,null,null,null,null,null,null,null,null,null,null,null,null,null,null,null,null,null,null,null,null,null,null,null,null,null,null,null,null,null,null,null,null,null,null,null,null,null,null,null,null,null,null,null,null,null,null,null,null,null,null,null,null,null,null,null,null,null,null,null,null,null,null,null,null,null,null,null,null,null,null,null,null,null,null,null,null,null,null,null,null,null,null,null,null,null,null,null,null,null,null,null,null,null,null,null,null,null,null,null,null,null,null,null,null,null,null,null,null,null,null,null,null,null,null,null,null,null,null,null,null,null,null,null,null,null,null,null,null,null,null,null,null,null,null,null,null,null,null,null,null,null,null,null,null,null,null,null,null,null,null,null,null,null,null,null,null,null,null,null,null,null,null,null,null,null,null,null,null,null,null,null,null,null,null,null,"janv",192360,305950.54126678011]
[null,null,null,null,null,null,null,null,null,null,null,null,null,null,null,null,null,null,null,null,null,null,null,null,null,null,null,null,null,null,null,null,null,null,null,null,null,null,null,null,null,null,null,null,null,null,null,null,null,null,null,null,null,null,null,null,null,null,null,null,null,null,null,null,null,null,null,null,null,null,null,null,null,null,null,null,null,null,null,null,null,null,null,null,null,null,null,null,null,null,null,null,null,null,null,null,null,null,null,null,null,null,null,null,null,null,null,null,null,null,null,null,null,null,null,null,null,null,null,null,null,null,null,null,null,null,null,null,null,null,null,null,null,null,null,null,null,null,null,null,null,null,null,null,null,null,null,null,null,null,null,null,null,null,null,null,null,null,null,null,null,null,null,null,null,null,null,null,null,null,null,null,null,null,null,null,null,null,null,null,null,null,null,null,null,null,null,null,null,null,null,null,null,null,null,"févr",213154,342036.01139451488]
[null,null,null,null,null,null,null,null,null,null,null,null,null,null,null,null,null,null,null,null,null,null,null,null,null,null,null,null,null,null,null,null,null,null,null,null,null,null,null,null,null,null,null,null,null,null,null,null,null,null,null,null,null,null,null,null,null,null,null,null,null,null,null,null,null,null,null,null,null,null,null,null,null,null,null,null,null,null,null,null,null,null,null,null,null,null,null,null,null,null,null,null,null,null,null,null,null,null,null,null,null,null,null,null,null,null,null,null,null,null,null,null,null,null,null,null,null,null,null,null,null,null,null,null,null,null,null,null,null,null,null,null,null,null,null,null,null,null,null,null,null,null,null,null,null,null,null,null,null,null,null,null,null,null,null,null,null,null,null,null,null,null,null,null,null,null,null,null,null,null,null,null,null,null,null,null,null,null,null,null,null,null,null,null,null,null,null,null,null,null,null,null,null,null,null,"mars",239594,376009.6124229345]
[null,null,null,null,null,null,null,null,null,null,null,null,null,null,null,null,null,null,null,null,null,null,null,null,null,null,null,null,null,null,null,null,null,null,null,null,null,null,null,null,null,null,null,null,null,null,null,null,null,null,null,null,null,null,null,null,null,null,null,null,null,null,null,null,null,null,null,null,null,null,null,null,null,null,null,null,null,null,null,null,null,null,null,null,null,null,null,null,null,null,null,null,null,null,null,null,null,null,null,null,null,null,null,null,null,null,null,null,null,null,null,null,null,null,null,null,null,null,null,null,null,null,null,null,null,null,null,null,null,null,null,null,null,null,null,null,null,null,null,null,null,null,null,null,null,null,null,null,null,null,null,null,null,null,null,null,null,null,null,null,null,null,null,null,null,null,null,null,null,null,null,null,null,null,null,null,null,null,null,null,null,null,null,null,null,null,null,null,null,null,null,null,null,null,null,"avr",237772,377918.26607580192]
[null,null,null,null,null,null,null,null,null,null,null,null,null,null,null,null,null,null,null,null,null,null,null,null,null,null,null,null,null,null,null,null,null,null,null,null,null,null,null,null,null,null,null,null,null,null,null,null,null,null,null,null,null,null,null,null,null,null,null,null,null,null,null,null,null,null,null,null,null,null,null,null,null,null,null,null,null,null,null,null,null,null,null,null,null,null,null,null,null,null,null,null,null,null,null,null,null,null,null,null,null,null,null,null,null,null,null,null,null,null,null,null,null,null,null,null,null,null,null,null,null,null,null,null,null,null,null,null,null,null,null,null,null,null,null,null,null,null,null,null,null,null,null,null,null,null,null,null,null,null,null,null,null,null,null,null,null,null,null,null,null,null,null,null,null,null,null,null,null,null,null,null,null,null,null,null,null,null,null,null,null,null,null,null,null,null,null,null,null,null,null,null,null,null,null,"mai",176021,280266.5114087807]
[null,null,null,null,null,null,null,null,null,null,null,null,null,null,null,null,null,null,null,null,null,null,null,null,null,null,null,null,null,null,null,null,null,null,null,null,null,null,null,null,null,null,null,null,null,null,null,null,null,null,null,null,null,null,null,null,null,null,null,null,null,null,null,null,null,null,null,null,null,null,null,null,null,null,null,null,null,null,null,null,null,null,null,null,null,null,null,null,null,null,null,null,null,null,null,null,null,null,null,null,null,null,null,null,null,null,null,null,null,null,null,null,null,null,null,null,null,null,null,null,null,null,null,null,null,null,null,null,null,null,null,null,null,null,null,null,null,null,null,null,null,null,null,null,null,null,null,null,null,null,null,null,null,null,null,null,null,null,null,null,null,null,null,null,null,null,null,null,null,null,null,null,null,null,null,null,null,null,null,null,null,null,null,null,null,null,null,null,null,null,null,null,null,null,null,"juin",215082,337144.71274103748]
[null,null,null,null,null,null,null,null,null,null,null,null,null,null,null,null,null,null,null,null,null,null,null,null,null,null,null,null,null,null,null,null,null,null,null,null,null,null,null,null,null,null,null,null,null,null,null,null,null,null,null,null,null,null,null,null,null,null,null,null,null,null,null,null,null,null,null,null,null,null,null,null,null,null,null,null,null,null,null,null,null,null,null,null,null,null,null,null,null,null,null,null,null,null,null,null,null,null,null,null,null,null,null,null,null,null,null,null,null,null,null,null,null,null,null,null,null,null,null,null,null,null,null,null,null,null,null,null,null,null,null,null,null,null,null,null,null,null,null,null,null,null,null,null,null,null,null,null,null,null,null,null,null,null,null,null,null,null,null,null,null,null,null,null,null,null,null,null,null,null,null,null,null,null,null,null,null,null,null,null,null,null,null,null,null,null,null,null,null,null,null,null,null,null,null,"juil",164758,259108.94651100997]
[null,null,null,null,null,null,null,null,null,null,null,null,null,null,null,null,null,null,null,null,null,null,null,null,null,null,null,null,null,null,null,null,null,null,null,null,null,null,null,null,null,null,null,null,null,null,null,null,null,null,null,null,null,null,null,null,null,null,null,null,null,null,null,null,null,null,null,null,null,null,null,null,null,null,null,null,null,null,null,null,null,null,null,null,null,null,null,null,null,null,null,null,null,null,null,null,null,null,null,null,null,null,null,null,null,null,null,null,null,null,null,null,null,null,null,null,null,null,null,null,null,null,null,null,null,null,null,null,null,null,null,null,null,null,null,null,null,null,null,null,null,null,null,null,null,null,null,null,null,null,null,null,null,null,null,null,null,null,null,null,null,null,null,null,null,null,null,null,null,null,null,null,null,null,null,null,null,null,null,null,null,null,null,null,null,null,null,null,null,null,null,null,null,null,null,"août",144556,229065.7540839985]
[null,null,null,null,null,null,null,null,null,null,null,null,null,null,null,null,null,null,null,null,null,null,null,null,null,null,null,null,null,null,null,null,null,null,null,null,null,null,null,null,null,null,null,null,null,null,null,null,null,null,null,null,null,null,null,null,null,null,null,null,null,null,null,null,null,null,null,null,null,null,null,null,null,null,null,null,null,null,null,null,null,null,null,null,null,null,null,null,null,null,null,null,null,null,null,null,null,null,null,null,null,null,null,null,null,null,null,null,null,null,null,null,null,null,null,null,null,null,null,null,null,null,null,null,null,null,null,null,null,null,null,null,null,null,null,null,null,null,null,null,null,null,null,null,null,null,null,null,null,null,null,null,null,null,null,null,null,null,null,null,null,null,null,null,null,null,null,null,null,null,null,null,null,null,null,null,null,null,null,null,null,null,null,null,null,null,null,null,null,null,null,null,null,null,null,"sept",134973,214723.48304850666]
[null,null,null,null,null,null,null,null,null,null,null,null,null,null,null,null,null,null,null,null,null,null,null,null,null,null,null,null,null,null,null,null,null,null,null,null,null,null,null,null,null,null,null,null,null,null,null,null,null,null,null,null,null,null,null,null,null,null,null,null,null,null,null,null,null,null,null,null,null,null,null,null,null,null,null,null,null,null,null,null,null,null,null,null,null,null,null,null,null,null,null,null,null,null,null,null,null,null,null,null,null,null,null,null,null,null,null,null,null,null,null,null,null,null,null,null,null,null,null,null,null,null,null,null,null,null,null,null,null,null,null,null,null,null,null,null,null,null,null,null,null,null,null,null,null,null,null,null,null,null,null,null,null,null,null,null,null,null,null,null,null,null,null,null,null,null,null,null,null,null,null,null,null,null,null,null,null,null,null,null,null,null,null,null,null,null,null,null,null,null,null,null,null,null,null,"déc",283952,448899.44177697261]
[null,null,null,null,null,null,null,null,null,null,null,null,null,null,null,null,null,null,null,null,null,null,null,null,null,null,null,null,null,null,null,null,null,null,null,null,null,null,null,null,null,null,null,null,null,null,null,null,null,null,null,null,null,null,null,null,null,null,null,null,null,null,null,null,null,null,null,null,null,null,null,null,null,null,null,null,null,null,null,null,null,null,null,null,null,null,null,null,null,null,null,null,null,null,null,null,null,null,null,null,null,null,null,null,null,null,null,null,null,null,null,null,null,null,null,null,null,null,null,null,null,null,null,null,null,null,null,null,null,null,null,null,null,null,null,null,null,null,null,null,null,null,null,null,null,null,null,null,null,null,null,null,null,null,null,null,null,null,null,null,null,null,null,null,null,null,null,null,null,null,null,null,null,null,null,null,null,null,null,null,null,null,null,null,null,null,null,null,null,null,null,1,20,{"$f":"MIN(GJ34:GK34)","v":1}]
[]
[null,null,null,null,null,null,null,null,null,null,null,null,null,null,null,null,null,null,null,null,null,null,null,null,null,null,null,null,null,null,null,null,null,null,null,null,null,null,null,null,null,null,null,null,null,null,null,null,null,null,null,null,null,null,null,null,null,null,null,null,null,null,null,null,null,null,null,null,null,null,null,null,null,null,null,null,null,null,null,null,null,null,null,null,null,null,null,null,null,null,null,null,null,null,null,null,null,null,null,null,null,null,null,null,null,null,null,null,null,null,null,null,null,null,null,null,null,null,null,null,null,null,null,null,null,null,null,null,null,null,null,null,null,null,null,null,null,null,null,null,null,null,null,null,null,null,null,null,null,null,null,null,null,null,null,null,null,null,null,null,null,null,null,null,null,null,null,null,null,null,null,null,null,null,null,null,null,null,null,null,null,null,null,null,null,null,null,null,null,null,null,{"$f":"OFFSET(Analyses!$AB$6,GL34,0,10,1)","v":"Base de maquillage"},{"$f":"OFFSET(Analyses!$AB$6,GL34,2,10,1)","v":26575.406134969329}]
[null,null,null,null,null,null,null,null,null,null,null,null,null,null,null,null,null,null,null,null,null,null,null,null,null,null,null,null,null,null,null,null,null,null,null,null,null,null,null,null,null,null,null,null,null,null,null,null,null,null,null,null,null,null,null,null,null,null,null,null,null,null,null,null,null,null,null,null,null,null,null,null,null,null,null,null,null,null,null,null,null,null,null,null,null,null,null,null,null,null,null,null,null,null,null,null,null,null,null,null,null,null,null,null,null,null,null,null,null,null,null,null,null,null,null,null,null,null,null,null,null,null,null,null,null,null,null,null,null,null,null,null,null,null,null,null,null,null,null,null,null,null,null,null,null,null,null,null,null,null,null,null,null,null,null,null,null,null,null,null,null,null,null,null,null,null,null,null,null,null,null,null,null,null,null,null,null,null,null,null,null,null,null,null,null,null,null,null,null,null,null,"BB crème",31997.414859094781]
[null,null,null,null,null,null,null,null,null,null,null,null,null,null,null,null,null,null,null,null,null,null,null,null,null,null,null,null,null,null,null,null,null,null,null,null,null,null,null,null,null,null,null,null,null,null,null,null,null,null,null,null,null,null,null,null,null,null,null,null,null,null,null,null,null,null,null,null,null,null,null,null,null,null,null,null,null,null,null,null,null,null,null,null,null,null,null,null,null,null,null,null,null,null,null,null,null,null,null,null,null,null,null,null,null,null,null,null,null,null,null,null,null,null,null,null,null,null,null,null,null,null,null,null,null,null,null,null,null,null,null,null,null,null,null,null,null,null,null,null,null,null,null,null,null,null,null,null,null,null,null,null,null,null,null,null,null,null,null,null,null,null,null,null,null,null,null,null,null,null,null,null,null,null,null,null,null,null,null,null,null,null,null,null,null,null,null,null,null,null,null,"Blush rosé",88098.916091954074,null,null,"Mois","Chiffre d'affaire","Profit","Profit  %",null,true,true,true]
[null,null,null,null,null,null,null,null,null,null,null,null,null,null,null,null,null,null,null,null,null,null,null,null,null,null,null,null,null,null,null,null,null,null,null,null,null,null,null,null,null,null,null,null,null,null,null,null,null,null,null,null,null,null,null,null,null,null,null,null,null,null,null,null,null,null,null,null,null,null,null,null,null,null,null,null,null,null,null,null,null,null,null,null,null,null,null,null,null,null,null,null,null,null,null,null,null,null,null,null,null,null,null,null,null,null,null,null,null,null,null,null,null,null,null,null,null,null,null,null,null,null,null,null,null,null,null,null,null,null,null,null,null,null,null,null,null,null,null,null,null,null,null,null,null,null,null,null,null,null,null,null,null,null,null,null,null,null,null,null,null,null,null,null,null,null,null,null,null,null,null,null,null,null,null,null,null,null,null,null,null,null,null,null,null,null,null,null,null,null,null,"Cire coiffante",117753.44959088258,null,null,"janv",{"$f":"IF($GS$38=TRUE,VLOOKUP(GN39,$GN$24:$GP$33,3,0),\"\")","v":305950.54126678011},{"$f":"IF($GT$38=TRUE,VLOOKUP(GN39,$GN$24:$GP$33,3,0)-VLOOKUP(GN39,$GN$24:$GP$33,2,0),\"\")","v":113590.54126678011},{"$f":"IF($GU$38=TRUE,GP39/SUM($GP$24:$GP$33),\"\")","v":3.5820285498525062E-2}]
[null,null,null,null,null,null,null,null,null,null,null,null,null,null,null,null,null,null,null,null,null,null,null,null,null,null,null,null,null,null,null,null,null,null,null,null,null,null,null,null,null,null,null,null,null,null,null,null,null,null,null,null,null,null,null,null,null,null,null,null,null,null,null,null,null,null,null,null,null,null,null,null,null,null,null,null,null,null,null,null,null,null,null,null,null,null,null,null,null,null,null,null,null,null,null,null,null,null,null,null,null,null,null,null,null,null,null,null,null,null,null,null,null,null,null,null,null,null,null,null,null,null,null,null,null,null,null,null,null,null,null,null,null,null,null,null,null,null,null,null,null,null,null,null,null,null,null,null,null,null,null,null,null,null,null,null,null,null,null,null,null,null,null,null,null,null,null,null,null,null,null,null,null,null,null,null,null,null,null,null,null,null,null,null,null,null,null,null,null,null,null,"Contour des yeux",50468.228571428612,null,null,"févr",342036.01139451488,128882.01139451488,4.064238441238785E-2]
[null,null,null,null,null,null,null,null,null,null,null,null,null,null,null,null,null,null,null,null,null,null,null,null,null,null,null,null,null,null,null,null,null,null,null,null,null,null,null,null,null,null,null,null,null,null,null,null,null,null,null,null,null,null,null,null,null,null,null,null,null,null,null,null,null,null,null,null,null,null,null,null,null,null,null,null,null,null,null,null,null,null,null,null,null,null,null,null,null,null,null,null,null,null,null,null,null,null,null,null,null,null,null,null,null,null,null,null,null,null,null,null,null,null,null,null,null,null,null,null,null,null,null,null,null,null,null,null,null,null,null,null,null,null,null,null,null,null,null,null,null,null,null,null,null,null,null,null,null,null,null,null,null,null,null,null,null,null,null,null,null,null,null,null,null,null,null,null,null,null,null,null,null,null,null,null,null,null,null,null,null,null,null,null,null,null,null,null,null,null,null,"Crayon à sourcils",71443.899923896533,null,null,"mars",376009.6124229345,136415.6124229345,4.3018072886626089E-2]
[null,null,null,null,null,null,null,null,null,null,null,null,null,null,null,null,null,null,null,null,null,null,null,null,null,null,null,null,null,null,null,null,null,null,null,null,null,null,null,null,null,null,null,null,null,null,null,null,null,null,null,null,null,null,null,null,null,null,null,null,null,null,null,null,null,null,null,null,null,null,null,null,null,null,null,null,null,null,null,null,null,null,null,null,null,null,null,null,null,null,null,null,null,null,null,null,null,null,null,null,null,null,null,null,null,null,null,null,null,null,null,null,null,null,null,null,null,null,null,null,null,null,null,null,null,null,null,null,null,null,null,null,null,null,null,null,null,null,null,null,null,null,null,null,null,null,null,null,null,null,null,null,null,null,null,null,null,null,null,null,null,null,null,null,null,null,null,null,null,null,null,null,null,null,null,null,null,null,null,null,null,null,null,null,null,null,null,null,null,null,null,"Crème coiffante",50600.501960784313,null,null,"avr",377918.26607580192,140146.26607580192,4.4194518367486807E-2]
[null,null,null,null,null,null,null,null,null,null,null,null,null,null,null,null,null,null,null,null,null,null,null,null,null,null,null,null,null,null,null,null,null,null,null,null,null,null,null,null,null,null,null,null,null,null,null,null,null,null,null,null,null,null,null,null,null,null,null,null,null,null,null,null,null,null,null,null,null,null,null,null,null,null,null,null,null,null,null,null,null,null,null,null,null,null,null,null,null,null,null,null,null,null,null,null,null,null,null,null,null,null,null,null,null,null,null,null,null,null,null,null,null,null,null,null,null,null,null,null,null,null,null,null,null,null,null,null,null,null,null,null,null,null,null,null,null,null,null,null,null,null,null,null,null,null,null,null,null,null,null,null,null,null,null,null,null,null,null,null,null,null,null,null,null,null,null,null,null,null,null,null,null,null,null,null,null,null,null,null,null,null,null,null,null,null,null,null,null,null,null,"Crème hydratante",77105.526797385639,null,null,"mai",280266.5114087807,104245.5114087807,3.2873370783860552E-2]
[null,null,null,null,null,null,null,null,null,null,null,null,null,null,null,null,null,null,null,null,null,null,null,null,null,null,null,null,null,null,null,null,null,null,null,null,null,null,null,null,null,null,null,null,null,null,null,null,null,null,null,null,null,null,null,null,null,null,null,null,null,null,null,null,null,null,null,null,null,null,null,null,null,null,null,null,null,null,null,null,null,null,null,null,null,null,null,null,null,null,null,null,null,null,null,null,null,null,null,null,null,null,null,null,null,null,null,null,null,null,null,null,null,null,null,null,null,null,null,null,null,null,null,null,null,null,null,null,null,null,null,null,null,null,null,null,null,null,null,null,null,null,null,null,null,null,null,null,null,null,null,null,null,null,null,null,null,null,null,null,null,null,null,null,null,null,null,null,null,null,null,null,null,null,null,null,null,null,null,null,null,null,null,null,null,null,null,null,null,null,null,"Crème pour les mains",107879.93644067799,null,null,"juin",337144.71274103748,122062.71274103748,3.8491948100146195E-2]
[null,null,null,null,null,null,null,null,null,null,null,null,null,null,null,null,null,null,null,null,null,null,null,null,null,null,null,null,null,null,null,null,null,null,null,null,null,null,null,null,null,null,null,null,null,null,null,null,null,null,null,null,null,null,null,null,null,null,null,null,null,null,null,null,null,null,null,null,null,null,null,null,null,null,null,null,null,null,null,null,null,null,null,null,null,null,null,null,null,null,null,null,null,null,null,null,null,null,null,null,null,null,null,null,null,null,null,null,null,null,null,null,null,null,null,null,null,null,null,null,null,null,null,null,null,null,null,null,null,null,null,null,null,null,null,null,null,null,null,null,null,null,null,null,null,null,null,null,null,null,null,null,null,null,null,null,null,null,null,null,null,null,null,null,null,null,null,null,null,null,null,null,null,null,null,null,null,null,null,null,null,null,null,null,null,null,null,null,null,null,null,"Crème pour les pieds",46092.838660578404,null,null,"juil",259108.94651100997,94350.94651100997,2.9753162573130907E-2]
[null,null,null,null,null,null,null,null,null,null,null,null,null,null,null,null,null,null,null,null,null,null,null,null,null,null,null,null,null,null,null,null,null,null,null,null,null,null,null,null,null,null,null,null,null,null,null,null,null,null,null,null,null,null,null,null,null,null,null,null,null,null,null,null,null,null,null,null,null,null,null,null,null,null,null,null,null,null,null,null,null,null,null,null,null,null,null,null,null,null,null,null,null,null,null,null,null,null,null,null,null,null,null,null,null,null,null,null,null,null,null,null,null,null,null,null,null,null,null,null,null,null,null,null,null,null,null,null,null,null,null,null,null,null,null,null,null,null,null,null,null,null,null,null,null,null,null,null,null,null,null,null,null,null,null,null,null,null,null,null,null,null,null,null,null,null,null,null,null,null,null,null,null,null,null,null,null,null,null,null,null,null,null,null,null,null,null,null,null,null,null,null,null,null,null,"août",229065.7540839985,84509.754083998501,2.6649785140026208E-2]
[null,null,null,null,null,null,null,null,null,null,null,null,null,null,null,null,null,null,null,null,null,null,null,null,null,null,null,null,null,null,null,null,null,null,null,null,null,null,null,null,null,null,null,null,null,null,null,null,null,null,null,null,null,null,null,null,null,null,null,null,null,null,null,null,null,null,null,null,null,null,null,null,null,null,null,null,null,null,null,null,null,null,null,null,null,null,null,null,null,null,null,null,null,null,null,null,null,null,null,null,null,null,null,null,null,null,null,null,null,null,null,null,null,null,null,null,null,null,null,null,null,null,null,null,null,null,null,null,null,null,null,null,null,null,null,null,null,null,null,null,null,null,null,null,null,null,null,null,null,null,null,null,null,null,null,null,null,null,null,null,null,null,null,null,null,null,null,null,null,null,null,null,null,null,null,null,null,null,null,null,null,null,null,null,null,null,null,null,null,null,null,null,null,null,null,"sept",214723.48304850666,79750.483048506663,2.5148969620045623E-2]
[null,null,null,null,null,null,null,null,null,null,null,null,null,null,null,null,null,null,null,null,null,null,null,null,null,null,null,null,null,null,null,null,null,null,null,null,null,null,null,null,null,null,null,null,null,null,null,null,null,null,null,null,null,null,null,null,null,null,null,null,null,null,null,null,null,null,null,null,null,null,null,null,null,null,null,null,null,null,null,null,null,null,null,null,null,null,null,null,null,null,null,null,null,null,null,null,null,null,null,null,null,null,null,null,null,null,null,null,null,null,null,null,null,null,null,null,null,null,null,null,null,null,null,null,null,null,null,null,null,null,null,null,null,null,null,null,null,null,null,null,null,null,null,null,null,null,null,null,null,null,null,null,null,null,null,null,null,null,null,null,null,null,null,null,null,null,null,null,null,null,null,null,null,null,null,null,null,null,null,null,null,null,null,null,null,null,null,null,null,null,null,null,null,null,null,"déc",448899.44177697261,164947.44177697261,5.2015461770058898E-2]